Workbook

Sheet Ra
A1: Date | B1: Ord | C1: Ord2 | D1: Month | E1: Month2 | F1: Year | G1: Year2 | H1: Weekday | I1: Weekday2 | J1: 1st of month | K1: M1 | L1: T1 | M1: W1 | N1: Th1 | O1: F1 | P1: S1 | Q1: Su1 | R1: M2 | S1: T2 | T1: W2 | U1: Th2 | V1: F2 | W1: S2 | X1: Su2 | Y1: M3 | Z1: T3 | AA1: W3 | AB1: Th3 | AC1: F3 | AD1: S3 | AE1: Su3 | AF1: M4 | AG1: T4 | AH1: W4 | AI1: Th4 | AJ1: F4 | AK1: S4 | AL1: Su4 | AM1: M5 | AN1: T5 | AO1: W5 | AP1: Th5 | AQ1: F5 | AR1: S5 | AS1: Su5 | AT1: M6 | AU1: T6 | AV1: NexMonth | AW1: 1st Next | AX1: 2M1 | AY1: 2T1 | AZ1: 2W1 | BA1: 2Th1 | BB1: 2F1 | BC1: 2S1 | BD1: 2Su1 | BE1: 2M2 | BF1: 2T2 | BG1: 2W2 | BH1: 2Th2 | BI1: 2F2 | BJ1: 2S2 | BK1: 2Su2 | BL1: 2M3 | BM1: 2T3 | BN1: 2W3 | BO1: 2Th3 | BP1: 2F3 | BQ1: 2S3 | BR1: 2Su3 | BS1: 2M4 | BT1: 2T4 | BU1: 2W4 | BV1: 2Th4 | BW1: 2F4 | BX1: 2S4 | BY1: 2Su4 | BZ1: 2M5 | CA1: 2T5 | CB1: 2W5 | CC1: 2Th5 | CD1: 2F5 | CE1: 2S5 | CF1: 2Su5 | CG1: 2M6 | CH1: 2T6 | CI1: Sunset | CJ1: JD | CK1: Previous | CL1: Age | CM1: Ingoa | CN1: TimeZone | CO1: Date
A2: 2026-01-01 | B2: =DAY(A2)&" o" -> 1 o | C2: =B3 -> 2 o | D2: =LOOKUP(VALUE(TEXT(A2,"M")),{1,2,3,4,5,6,7,8,9,10,11,12},{"Kohitātea","Hui‑tanguru","Poutū‑te‑rangi","Paengawhāwhā","Haratua","Pipiri","Hōngongoi","Here‑turi‑kōkā","Mahuru","Whiringa‑ā‑nuku","Whiringa‑ā‑rangi","Hakihea"}) -> Kohitātea | E2: =D3 -> Kohitātea | F2: =TEXT(A2,"YYYY") -> 2026 | G2: =F3 -> 2026 | H2: =LOOKUP(WEEKDAY(A2),{1,2,3,4,5,6,7},{"Rātapu","Rāhina","Rātū","Rāapa","Rāpare","Rāmere","Rāhoroi ","Rātapu"}) -> Rāpare | I2: =H3 -> Rāmere | J2: =DATEVALUE("1" & " "&TEXT(A2,"Mmmm") & " " & F2) -> 2026-01-01 | K2: =IF(WEEKDAY($J2)=2,1," ") ->  | L2: =IF(AND((WEEKDAY(J2)<4),(WEEKDAY(J2)>1)),CHOOSE(WEEKDAY($J2),3,2,1,7,6,5,4)," ") ->  | M2: =IF(AND((WEEKDAY(J2)<5),(WEEKDAY(J2)>1)),CHOOSE(WEEKDAY($J2),4,3,2,1,7,6,5)," ") ->  | N2: =IF(AND((WEEKDAY(J2)<6),(WEEKDAY(J2)>1)),CHOOSE(WEEKDAY($J2),5,4,3,2,1,7,6)," ") -> 1 | O2: =IF(AND((WEEKDAY(J2)<7),(WEEKDAY(J2)>1)),CHOOSE(WEEKDAY($J2),6,5,4,3,2,1,7)," ") -> 2 | P2: =IF(AND((WEEKDAY(J2)<8),(WEEKDAY(J2)>1)),CHOOSE(WEEKDAY($J2),7,6,5,4,3,2,1)," ") -> 3 | Q2: =IF(WEEKDAY(J2)<8,CHOOSE(WEEKDAY($J2),1,7,6,5,4,3,2)," ") -> 4 | R2: =Q2+1 -> 5 | S2: =R2+1 -> 6 | T2: 7 | U2: 8 | V2: 9 | W2: 10 | X2: 11 | Y2: 12 | Z2: 13 | AA2: 14 | AB2: 15 | AC2: 16 | AD2: 17 | AE2: 18 | AF2: 19 | AG2: 20 | AH2: 21 | AI2: 22 | AJ2: 23 | AK2: 24 | AL2: 25 | AM2: =IF(ISERROR(DATEVALUE(AL2+1 & " "&TEXT($A2,"Mmmm") & " " & $F2))," ",AL2+1) -> 26 | AN2: 27 | AO2: 28 | AP2: 29 | AQ2: 30 | AR2: 31 | AV2: =LOOKUP(VALUE(TEXT(AW2,"M")),{1,2,3,4,5,6,7,8,9,10,11,12},{"Kohitātea","Hui‑tanguru","Poutū‑te‑rangi","Paengawhāwhā","Haratua","Pipiri","Hōngongoi","Here‑turi‑kōkā","Mahuru","Whiringa‑ā‑nuku","Whiringa‑ā‑rangi","Hakihea"}) -> Hui‑tanguru | AW2: =DATE(YEAR(A2),MONTH(A2)+1,DAY(1)) -> 46054 | AX2: =IF(WEEKDAY(AW2)=2,1," ") ->  | AY2: =IF(AND((WEEKDAY(AW2)<4),(WEEKDAY(AW2)>1)),CHOOSE(WEEKDAY($AW2),3,2,1,7,6,5,4)," ") ->  | AZ2: =IF(AND((WEEKDAY(AW2)<5),(WEEKDAY(AW2)>1)),CHOOSE(WEEKDAY($AW2),4,3,2,1,7,6,5)," ") ->  | BA2: =IF(AND((WEEKDAY(AW2)<6),(WEEKDAY(AW2)>1)),CHOOSE(WEEKDAY($AW2),5,4,3,2,1,7,6)," ") ->  | BB2: =IF(AND((WEEKDAY(AW2)<7),(WEEKDAY(AW2)>1)),CHOOSE(WEEKDAY($AW2),6,5,4,3,2,1,7)," ") ->  | BC2: =IF(AND((WEEKDAY(AW2)<8),(WEEKDAY(AW2)>1)),CHOOSE(WEEKDAY($AW2),7,6,5,4,3,2,1)," ") ->  | BD2: =IF(WEEKDAY(AW2)<8,CHOOSE(WEEKDAY($AW2),1,7,6,5,4,3,2),"∙") -> 1 | BE2: =BD2+1 -> 2 | BF2: =BE2+1 -> 3 | BG2: =BF2+1 -> 4 | BH2: =BG2+1 -> 5 | BI2: =BH2+1 -> 6 | BJ2: =BI2+1 -> 7 | BK2: =BJ2+1 -> 8 | BL2: =BK2+1 -> 9 | BM2: =BL2+1 -> 10 | BN2: =BM2+1 -> 11 | BO2: =BN2+1 -> 12 | BP2: =BO2+1 -> 13 | BQ2: =BP2+1 -> 14 | BR2: =BQ2+1 -> 15 | BS2: =BR2+1 -> 16 | BT2: =BS2+1 -> 17 | BU2: =BT2+1 -> 18 | BV2: =BU2+1 -> 19 | BW2: =BV2+1 -> 20 | BX2: =BW2+1 -> 21 | BY2: =BX2+1 -> 22 | BZ2: =IF(ISERROR(DATEVALUE(BY2+1 & " "&TEXT($AW2,"Mmmm") & " " & $F2)),"∙",BY2+1) -> 23 | CA2: 24 | CB2: 25 | CC2: 26 | CD2: 27 | CE2: 28 | CF2: ∙ | CG2: ∙ | CH2: ∙ | CI2: =SunsetTime(A2, -41.2865, 174.7762, 13) -> 2025-12-31T19:57:57.030 | CJ2: =ExcelToJD(CI2-CN2/24) -> 2461040.79 | CK2: =NewMoonPrevious(CI2 - CN2/24) -> 2461029.573 | CL2: =CJ2-CK2 -> 11.21759799 | CM2: =_xlfn.IFS( CL2<1,"Whiro", CL2<2,"Tirea", CL2<3,"Ohata", CL2<4,"Ōuenuku", CL2<5,"Okoro", CL2<6,"Tamatea-kai-ariki", CL2<7,"Tamatea-wananga", CL2<8,"Tamatea-ā-āio", CL2<9,"Tamatea-whakapau", CL2<10,"Huna", CL2<11,"Airoa", CL2<12,"Hotu", CL2<13,"Māwharu", CL2<14,"Atua whakahaehae", CL2<15,"Ōhua", CL2<16,"Ōturu", CL2<17,"Rākaunui", CL2<18,"Rākaumatohi", CL2<19,"Takiraua", CL2<20,"Oike", CL2<21,"Korekore", CL2<22,"Korekore tuarua", CL2<23,"Korekore piri ki Tangaroa", CL2<24,"Tangaroa ā-mua", CL2<25,"Tangaroa ā-roto", CL2<26,"Tangaroa ata kiokio", CL2<27,"Ōtāne", CL2<28,"Ōrongonui", CL2<29,"Maurea", CL2<30,"Mutuwhenua" ) -> Hotu | CN2: =LookupTimezoneOffset(A2) -> 13 | CO2: =A2 -> 2026-01-01
A3: =A2+1 -> 2026-01-02 | B3: =DAY(A3)&" o" -> 2 o | C3: =B4 -> 3 o | D3: =LOOKUP(VALUE(TEXT(A3,"M")),{1,2,3,4,5,6,7,8,9,10,11,12},{"Kohitātea","Hui‑tanguru","Poutū‑te‑rangi","Paengawhāwhā","Haratua","Pipiri","Hōngongoi","Here‑turi‑kōkā","Mahuru","Whiringa‑ā‑nuku","Whiringa‑ā‑rangi","Hakihea"}) -> Kohitātea | E3: =D4 -> Kohitātea | F3: =TEXT(A3,"YYYY") -> 2026 | G3: =F4 -> 2026 | H3: =LOOKUP(WEEKDAY(A3),{1,2,3,4,5,6,7},{"Rātapu","Rāhina","Rātū","Rāapa","Rāpare","Rāmere","Rāhoroi ","Rātapu"}) -> Rāmere | I3: =H4 -> Rāhoroi | J3: =DATEVALUE("1" & " "&TEXT(A3,"Mmmm") & " " & F3) -> 2026-01-01 | K3: =IF(WEEKDAY($J3)=2,1," ") ->  | L3: =IF(AND((WEEKDAY(J3)<4),(WEEKDAY(J3)>1)),CHOOSE(WEEKDAY($J3),3,2,1,7,6,5,4)," ") ->  | M3: =IF(AND((WEEKDAY(J3)<5),(WEEKDAY(J3)>1)),CHOOSE(WEEKDAY($J3),4,3,2,1,7,6,5)," ") ->  | N3: =IF(AND((WEEKDAY(J3)<6),(WEEKDAY(J3)>1)),CHOOSE(WEEKDAY($J3),5,4,3,2,1,7,6)," ") -> 1 | O3: =IF(AND((WEEKDAY(J3)<7),(WEEKDAY(J3)>1)),CHOOSE(WEEKDAY($J3),6,5,4,3,2,1,7)," ") -> 2 | P3: =IF(AND((WEEKDAY(J3)<8),(WEEKDAY(J3)>1)),CHOOSE(WEEKDAY($J3),7,6,5,4,3,2,1)," ") -> 3 | Q3: =IF(WEEKDAY(J3)<8,CHOOSE(WEEKDAY($J3),1,7,6,5,4,3,2)," ") -> 4 | R3: =Q3+1 -> 5 | S3: =R3+1 -> 6 | T3: =S3+1 -> 7 | U3: =T3+1 -> 8 | V3: =U3+1 -> 9 | W3: =V3+1 -> 10 | X3: =W3+1 -> 11 | Y3: =X3+1 -> 12 | Z3: =Y3+1 -> 13 | AA3: =Z3+1 -> 14 | AB3: =AA3+1 -> 15 | AC3: =AB3+1 -> 16 | AD3: =AC3+1 -> 17 | AE3: =AD3+1 -> 18 | AF3: =AE3+1 -> 19 | AG3: =AF3+1 -> 20 | AH3: =AG3+1 -> 21 | AI3: =AH3+1 -> 22 | AJ3: =AI3+1 -> 23 | AK3: =AJ3+1 -> 24 | AL3: =AK3+1 -> 25 | AM3: =IF(ISERROR(DATEVALUE(AL3+1 & " "&TEXT($A3,"Mmmm") & " " & $F3))," ",AL3+1) -> 26 | AN3: 27 | AO3: 28 | AP3: 29 | AQ3: 30 | AR3: 31 | AV3: =LOOKUP(VALUE(TEXT(AW3,"M")),{1,2,3,4,5,6,7,8,9,10,11,12},{"Kohitātea","Hui‑tanguru","Poutū‑te‑rangi","Paengawhāwhā","Haratua","Pipiri","Hōngongoi","Here‑turi‑kōkā","Mahuru","Whiringa‑ā‑nuku","Whiringa‑ā‑rangi","Hakihea"}) -> Hui‑tanguru | AW3: =DATE(YEAR(A3),MONTH(A3)+1,DAY(1)) -> 46054 | AX3: =IF(WEEKDAY(AW3)=2,1," ") ->  | AY3: =IF(AND((WEEKDAY(AW3)<4),(WEEKDAY(AW3)>1)),CHOOSE(WEEKDAY($AW3),3,2,1,7,6,5,4)," ") ->  | AZ3: =IF(AND((WEEKDAY(AW3)<5),(WEEKDAY(AW3)>1)),CHOOSE(WEEKDAY($AW3),4,3,2,1,7,6,5)," ") ->  | BA3: =IF(AND((WEEKDAY(AW3)<6),(WEEKDAY(AW3)>1)),CHOOSE(WEEKDAY($AW3),5,4,3,2,1,7,6)," ") ->  | BB3: =IF(AND((WEEKDAY(AW3)<7),(WEEKDAY(AW3)>1)),CHOOSE(WEEKDAY($AW3),6,5,4,3,2,1,7)," ") ->  | BC3: =IF(AND((WEEKDAY(AW3)<8),(WEEKDAY(AW3)>1)),CHOOSE(WEEKDAY($AW3),7,6,5,4,3,2,1)," ") ->  | BD3: 1 | BE3: =BD3+1 -> 2 | BF3: 3 | BG3: 4 | BH3: 5 | BI3: 6 | BJ3: 7 | BK3: 8 | BL3: 9 | BM3: 10 | BN3: 11 | BO3: 12 | BP3: 13 | BQ3: 14 | BR3: 15 | BS3: 16 | BT3: 17 | BU3: 18 | BV3: 19 | BW3: 20 | BX3: 21 | BY3: 22 | BZ3: =IF(ISERROR(DATEVALUE(BY3+1 & " "&TEXT($AW3,"Mmmm") & " " & $F3)),"∙",BY3+1) -> 23 | CA3: 24 | CB3: 25 | CC3: 26 | CD3: 27 | CE3: 28 | CF3: ∙ | CG3: ∙ | CH3: ∙ | CI3: =SunsetTime(A3, -41.2865, 174.7762, 13) -> 2026-01-01T19:58:05.158 | CJ3: =ExcelToJD(CI3-CN3/24) -> 2461041.79 | CK3: =NewMoonPrevious(CI3 - CN3/24) -> 2461029.573 | CL3: =CJ3-CK3 -> 12.21769206 | CM3: =_xlfn.IFS( CL3<1,"Whiro", CL3<2,"Tirea", CL3<3,"Ohata", CL3<4,"Ōuenuku", CL3<5,"Okoro", CL3<6,"Tamatea-kai-ariki", CL3<7,"Tamatea-wananga", CL3<8,"Tamatea-ā-āio", CL3<9,"Tamatea-whakapau", CL3<10,"Huna", CL3<11,"Airoa", CL3<12,"Hotu", CL3<13,"Māwharu", CL3<14,"Atua whakahaehae", CL3<15,"Ōhua", CL3<16,"Ōturu", CL3<17,"Rākaunui", CL3<18,"Rākaumatohi", CL3<19,"Takiraua", CL3<20,"Oike", CL3<21,"Korekore", CL3<22,"Korekore tuarua", CL3<23,"Korekore piri ki Tangaroa", CL3<24,"Tangaroa ā-mua", CL3<25,"Tangaroa ā-roto", CL3<26,"Tangaroa ata kiokio", CL3<27,"Ōtāne", CL3<28,"Ōrongonui", CL3<29,"Maurea", CL3<30,"Mutuwhenua" ) -> Māwharu | CN3: =LookupTimezoneOffset(A3) -> 13 | CO3: =A3 -> 2026-01-02
A4: =A3+1 -> 2026-01-03 | B4: 3 o | C4: 4 o | D4: =LOOKUP(VALUE(TEXT(A4,"M")),{1,2,3,4,5,6,7,8,9,10,11,12},{"Kohitātea","Hui‑tanguru","Poutū‑te‑rangi","Paengawhāwhā","Haratua","Pipiri","Hōngongoi","Here‑turi‑kōkā","Mahuru","Whiringa‑ā‑nuku","Whiringa‑ā‑rangi","Hakihea"}) -> Kohitātea | E4: Kohitātea | F4: 2026 | G4: 2026 | H4: =LOOKUP(WEEKDAY(A4),{1,2,3,4,5,6,7},{"Rātapu","Rāhina","Rātū","Rāapa","Rāpare","Rāmere","Rāhoroi ","Rātapu"}) -> Rāhoroi | I4: Rātapu | J4: 2026-01-01 | N4: 1 | O4: 2 | P4: 3 | Q4: 4 | R4: 5 | S4: 6 | T4: 7 | U4: 8 | V4: 9 | W4: 10 | X4: 11 | Y4: 12 | Z4: 13 | AA4: 14 | AB4: 15 | AC4: 16 | AD4: 17 | AE4: 18 | AF4: 19 | AG4: 20 | AH4: 21 | AI4: 22 | AJ4: 23 | AK4: 24 | AL4: 25 | AM4: =IF(ISERROR(DATEVALUE(AL4+1 & " "&TEXT($A4,"Mmmm") & " " & $F4))," ",AL4+1) -> 26 | AN4: 27 | AO4: 28 | AP4: 29 | AQ4: 30 | AR4: 31 | AV4: =LOOKUP(VALUE(TEXT(AW4,"M")),{1,2,3,4,5,6,7,8,9,10,11,12},{"Kohitātea","Hui‑tanguru","Poutū‑te‑rangi","Paengawhāwhā","Haratua","Pipiri","Hōngongoi","Here‑turi‑kōkā","Mahuru","Whiringa‑ā‑nuku","Whiringa‑ā‑rangi","Hakihea"}) -> Hui‑tanguru | AW4: 46054 | BD4: 1 | BE4: 2 | BF4: 3 | BG4: 4 | BH4: 5 | BI4: 6 | BJ4: 7 | BK4: 8 | BL4: 9 | BM4: 10 | BN4: 11 | BO4: 12 | BP4: 13 | BQ4: 14 | BR4: 15 | BS4: 16 | BT4: 17 | BU4: 18 | BV4: 19 | BW4: 20 | BX4: 21 | BY4: 22 | BZ4: =IF(ISERROR(DATEVALUE(BY4+1 & " "&TEXT($AW4,"Mmmm") & " " & $F4)),"∙",BY4+1) -> 23 | CA4: 24 | CB4: 25 | CC4: 26 | CD4: 27 | CE4: 28 | CF4: ∙ | CG4: ∙ | CH4: ∙ | CI4: =SunsetTime(A4, -41.2865, 174.7762, 13) -> 2026-01-02T19:58:11.062 | CJ4: =ExcelToJD(CI4-CN4/24) -> 2461042.79 | CK4: =NewMoonPrevious(CI4 - CN4/24) -> 2461029.573 | CL4: 13.21776039 | CM4: =_xlfn.IFS( CL4<1,"Whiro", CL4<2,"Tirea", CL4<3,"Ohata", CL4<4,"Ōuenuku", CL4<5,"Okoro", CL4<6,"Tamatea-kai-ariki", CL4<7,"Tamatea-wananga", CL4<8,"Tamatea-ā-āio", CL4<9,"Tamatea-whakapau", CL4<10,"Huna", CL4<11,"Airoa", CL4<12,"Hotu", CL4<13,"Māwharu", CL4<14,"Atua whakahaehae", CL4<15,"Ōhua", CL4<16,"Ōturu", CL4<17,"Rākaunui", CL4<18,"Rākaumatohi", CL4<19,"Takiraua", CL4<20,"Oike", CL4<21,"Korekore", CL4<22,"Korekore tuarua", CL4<23,"Korekore piri ki Tangaroa", CL4<24,"Tangaroa ā-mua", CL4<25,"Tangaroa ā-roto", CL4<26,"Tangaroa ata kiokio", CL4<27,"Ōtāne", CL4<28,"Ōrongonui", CL4<29,"Maurea", CL4<30,"Mutuwhenua" ) -> Atua whakahaehae | CN4: =LookupTimezoneOffset(A4) -> 13 | CO4: 2026-01-03
A5: 2026-01-04 | B5: 4 o | C5: 5 o | D5: =LOOKUP(VALUE(TEXT(A5,"M")),{1,2,3,4,5,6,7,8,9,10,11,12},{"Kohitātea","Hui‑tanguru","Poutū‑te‑rangi","Paengawhāwhā","Haratua","Pipiri","Hōngongoi","Here‑turi‑kōkā","Mahuru","Whiringa‑ā‑nuku","Whiringa‑ā‑rangi","Hakihea"}) -> Kohitātea | E5: Kohitātea | F5: 2026 | G5: 2026 | H5: =LOOKUP(WEEKDAY(A5),{1,2,3,4,5,6,7},{"Rātapu","Rāhina","Rātū","Rāapa","Rāpare","Rāmere","Rāhoroi ","Rātapu"}) -> Rātapu | I5: Rāhina | J5: 2026-01-01 | N5: 1 | O5: 2 | P5: 3 | Q5: 4 | R5: 5 | S5: 6 | T5: 7 | U5: 8 | V5: 9 | W5: 10 | X5: 11 | Y5: 12 | Z5: 13 | AA5: 14 | AB5: 15 | AC5: 16 | AD5: 17 | AE5: 18 | AF5: 19 | AG5: 20 | AH5: 21 | AI5: 22 | AJ5: 23 | AK5: 24 | AL5: 25 | AM5: =IF(ISERROR(DATEVALUE(AL5+1 & " "&TEXT($A5,"Mmmm") & " " & $F5))," ",AL5+1) -> 26 | AN5: 27 | AO5: 28 | AP5: 29 | AQ5: 30 | AR5: 31 | AV5: =LOOKUP(VALUE(TEXT(AW5,"M")),{1,2,3,4,5,6,7,8,9,10,11,12},{"Kohitātea","Hui‑tanguru","Poutū‑te‑rangi","Paengawhāwhā","Haratua","Pipiri","Hōngongoi","Here‑turi‑kōkā","Mahuru","Whiringa‑ā‑nuku","Whiringa‑ā‑rangi","Hakihea"}) -> Hui‑tanguru | AW5: 46054 | BD5: 1 | BE5: 2 | BF5: 3 | BG5: 4 | BH5: 5 | BI5: 6 | BJ5: 7 | BK5: 8 | BL5: 9 | BM5: 10 | BN5: 11 | BO5: 12 | BP5: 13 | BQ5: 14 | BR5: 15 | BS5: 16 | BT5: 17 | BU5: 18 | BV5: 19 | BW5: 20 | BX5: 21 | BY5: 22 | BZ5: =IF(ISERROR(DATEVALUE(BY5+1 & " "&TEXT($AW5,"Mmmm") & " " & $F5)),"∙",BY5+1) -> 23 | CA5: 24 | CB5: 25 | CC5: 26 | CD5: 27 | CE5: 28 | CF5: ∙ | CG5: ∙ | CH5: ∙ | CI5: =SunsetTime(A5, -41.2865, 174.7762, 13) -> 2026-01-03T19:58:14.737 | CJ5: =ExcelToJD(CI5-CN5/24) -> 2461043.79 | CK5: =NewMoonPrevious(CI5 - CN5/24) -> 2461029.573 | CL5: 14.21780293 | CM5: =_xlfn.IFS( CL5<1,"Whiro", CL5<2,"Tirea", CL5<3,"Ohata", CL5<4,"Ōuenuku", CL5<5,"Okoro", CL5<6,"Tamatea-kai-ariki", CL5<7,"Tamatea-wananga", CL5<8,"Tamatea-ā-āio", CL5<9,"Tamatea-whakapau", CL5<10,"Huna", CL5<11,"Airoa", CL5<12,"Hotu", CL5<13,"Māwharu", CL5<14,"Atua whakahaehae", CL5<15,"Ōhua", CL5<16,"Ōturu", CL5<17,"Rākaunui", CL5<18,"Rākaumatohi", CL5<19,"Takiraua", CL5<20,"Oike", CL5<21,"Korekore", CL5<22,"Korekore tuarua", CL5<23,"Korekore piri ki Tangaroa", CL5<24,"Tangaroa ā-mua", CL5<25,"Tangaroa ā-roto", CL5<26,"Tangaroa ata kiokio", CL5<27,"Ōtāne", CL5<28,"Ōrongonui", CL5<29,"Maurea", CL5<30,"Mutuwhenua" ) -> Ōhua | CN5: =LookupTimezoneOffset(A5) -> 13 | CO5: 2026-01-04
A6: 2026-01-05 | B6: 5 o | C6: 6 o | D6: =LOOKUP(VALUE(TEXT(A6,"M")),{1,2,3,4,5,6,7,8,9,10,11,12},{"Kohitātea","Hui‑tanguru","Poutū‑te‑rangi","Paengawhāwhā","Haratua","Pipiri","Hōngongoi","Here‑turi‑kōkā","Mahuru","Whiringa‑ā‑nuku","Whiringa‑ā‑rangi","Hakihea"}) -> Kohitātea | E6: Kohitātea | F6: 2026 | G6: 2026 | H6: =LOOKUP(WEEKDAY(A6),{1,2,3,4,5,6,7},{"Rātapu","Rāhina","Rātū","Rāapa","Rāpare","Rāmere","Rāhoroi ","Rātapu"}) -> Rāhina | I6: Rātū | J6: 2026-01-01 | N6: 1 | O6: 2 | P6: 3 | Q6: 4 | R6: 5 | S6: 6 | T6: 7 | U6: 8 | V6: 9 | W6: 10 | X6: 11 | Y6: 12 | Z6: 13 | AA6: 14 | AB6: 15 | AC6: 16 | AD6: 17 | AE6: 18 | AF6: 19 | AG6: 20 | AH6: 21 | AI6: 22 | AJ6: 23 | AK6: 24 | AL6: 25 | AM6: =IF(ISERROR(DATEVALUE(AL6+1 & " "&TEXT($A6,"Mmmm") & " " & $F6))," ",AL6+1) -> 26 | AN6: 27 | AO6: 28 | AP6: 29 | AQ6: 30 | AR6: 31 | AV6: =LOOKUP(VALUE(TEXT(AW6,"M")),{1,2,3,4,5,6,7,8,9,10,11,12},{"Kohitātea","Hui‑tanguru","Poutū‑te‑rangi","Paengawhāwhā","Haratua","Pipiri","Hōngongoi","Here‑turi‑kōkā","Mahuru","Whiringa‑ā‑nuku","Whiringa‑ā‑rangi","Hakihea"}) -> Hui‑tanguru | AW6: 46054 | BD6: 1 | BE6: 2 | BF6: 3 | BG6: 4 | BH6: 5 | BI6: 6 | BJ6: 7 | BK6: 8 | BL6: 9 | BM6: 10 | BN6: 11 | BO6: 12 | BP6: 13 | BQ6: 14 | BR6: 15 | BS6: 16 | BT6: 17 | BU6: 18 | BV6: 19 | BW6: 20 | BX6: 21 | BY6: 22 | BZ6: =IF(ISERROR(DATEVALUE(BY6+1 & " "&TEXT($AW6,"Mmmm") & " " & $F6)),"∙",BY6+1) -> 23 | CA6: 24 | CB6: 25 | CC6: 26 | CD6: 27 | CE6: 28 | CF6: ∙ | CG6: ∙ | CH6: ∙ | CI6: =SunsetTime(A6, -41.2865, 174.7762, 13) -> 2026-01-04T19:58:16.180 | CJ6: =ExcelToJD(CI6-CN6/24) -> 2461044.79 | CK6: =NewMoonPrevious(CI6 - CN6/24) -> 2461029.573 | CL6: 15.21781963 | CM6: =_xlfn.IFS( CL6<1,"Whiro", CL6<2,"Tirea", CL6<3,"Ohata", CL6<4,"Ōuenuku", CL6<5,"Okoro", CL6<6,"Tamatea-kai-ariki", CL6<7,"Tamatea-wananga", CL6<8,"Tamatea-ā-āio", CL6<9,"Tamatea-whakapau", CL6<10,"Huna", CL6<11,"Airoa", CL6<12,"Hotu", CL6<13,"Māwharu", CL6<14,"Atua whakahaehae", CL6<15,"Ōhua", CL6<16,"Ōturu", CL6<17,"Rākaunui", CL6<18,"Rākaumatohi", CL6<19,"Takiraua", CL6<20,"Oike", CL6<21,"Korekore", CL6<22,"Korekore tuarua", CL6<23,"Korekore piri ki Tangaroa", CL6<24,"Tangaroa ā-mua", CL6<25,"Tangaroa ā-roto", CL6<26,"Tangaroa ata kiokio", CL6<27,"Ōtāne", CL6<28,"Ōrongonui", CL6<29,"Maurea", CL6<30,"Mutuwhenua" ) -> Ōturu | CN6: =LookupTimezoneOffset(A6) -> 13 | CO6: 2026-01-05
A7: 2026-01-06 | B7: 6 o | C7: 7 o | D7: =LOOKUP(VALUE(TEXT(A7,"M")),{1,2,3,4,5,6,7,8,9,10,11,12},{"Kohitātea","Hui‑tanguru","Poutū‑te‑rangi","Paengawhāwhā","Haratua","Pipiri","Hōngongoi","Here‑turi‑kōkā","Mahuru","Whiringa‑ā‑nuku","Whiringa‑ā‑rangi","Hakihea"}) -> Kohitātea | E7: Kohitātea | F7: 2026 | G7: 2026 | H7: =LOOKUP(WEEKDAY(A7),{1,2,3,4,5,6,7},{"Rātapu","Rāhina","Rātū","Rāapa","Rāpare","Rāmere","Rāhoroi ","Rātapu"}) -> Rātū | I7: Rāapa | J7: 2026-01-01 | N7: 1 | O7: 2 | P7: 3 | Q7: 4 | R7: 5 | S7: 6 | T7: 7 | U7: 8 | V7: 9 | W7: 10 | X7: 11 | Y7: 12 | Z7: 13 | AA7: 14 | AB7: 15 | AC7: 16 | AD7: 17 | AE7: 18 | AF7: 19 | AG7: 20 | AH7: 21 | AI7: 22 | AJ7: 23 | AK7: 24 | AL7: 25 | AM7: =IF(ISERROR(DATEVALUE(AL7+1 & " "&TEXT($A7,"Mmmm") & " " & $F7))," ",AL7+1) -> 26 | AN7: 27 | AO7: 28 | AP7: 29 | AQ7: 30 | AR7: 31 | AV7: =LOOKUP(VALUE(TEXT(AW7,"M")),{1,2,3,4,5,6,7,8,9,10,11,12},{"Kohitātea","Hui‑tanguru","Poutū‑te‑rangi","Paengawhāwhā","Haratua","Pipiri","Hōngongoi","Here‑turi‑kōkā","Mahuru","Whiringa‑ā‑nuku","Whiringa‑ā‑rangi","Hakihea"}) -> Hui‑tanguru | AW7: 46054 | BD7: 1 | BE7: 2 | BF7: 3 | BG7: 4 | BH7: 5 | BI7: 6 | BJ7: 7 | BK7: 8 | BL7: 9 | BM7: 10 | BN7: 11 | BO7: 12 | BP7: 13 | BQ7: 14 | BR7: 15 | BS7: 16 | BT7: 17 | BU7: 18 | BV7: 19 | BW7: 20 | BX7: 21 | BY7: 22 | BZ7: =IF(ISERROR(DATEVALUE(BY7+1 & " "&TEXT($AW7,"Mmmm") & " " & $F7)),"∙",BY7+1) -> 23 | CA7: 24 | CB7: 25 | CC7: 26 | CD7: 27 | CE7: 28 | CF7: ∙ | CG7: ∙ | CH7: ∙ | CI7: =SunsetTime(A7, -41.2865, 174.7762, 13) -> 2026-01-05T19:58:15.390 | CJ7: =ExcelToJD(CI7-CN7/24) -> 2461045.79 | CK7: =NewMoonPrevious(CI7 - CN7/24) -> 2461029.573 | CL7: 16.21781048 | CM7: =_xlfn.IFS( CL7<1,"Whiro", CL7<2,"Tirea", CL7<3,"Ohata", CL7<4,"Ōuenuku", CL7<5,"Okoro", CL7<6,"Tamatea-kai-ariki", CL7<7,"Tamatea-wananga", CL7<8,"Tamatea-ā-āio", CL7<9,"Tamatea-whakapau", CL7<10,"Huna", CL7<11,"Airoa", CL7<12,"Hotu", CL7<13,"Māwharu", CL7<14,"Atua whakahaehae", CL7<15,"Ōhua", CL7<16,"Ōturu", CL7<17,"Rākaunui", CL7<18,"Rākaumatohi", CL7<19,"Takiraua", CL7<20,"Oike", CL7<21,"Korekore", CL7<22,"Korekore tuarua", CL7<23,"Korekore piri ki Tangaroa", CL7<24,"Tangaroa ā-mua", CL7<25,"Tangaroa ā-roto", CL7<26,"Tangaroa ata kiokio", CL7<27,"Ōtāne", CL7<28,"Ōrongonui", CL7<29,"Maurea", CL7<30,"Mutuwhenua" ) -> Rākaunui | CN7: =LookupTimezoneOffset(A7) -> 13 | CO7: 2026-01-06
A8: 2026-01-07 | B8: 7 o | C8: 8 o | D8: =LOOKUP(VALUE(TEXT(A8,"M")),{1,2,3,4,5,6,7,8,9,10,11,12},{"Kohitātea","Hui‑tanguru","Poutū‑te‑rangi","Paengawhāwhā","Haratua","Pipiri","Hōngongoi","Here‑turi‑kōkā","Mahuru","Whiringa‑ā‑nuku","Whiringa‑ā‑rangi","Hakihea"}) -> Kohitātea | E8: Kohitātea | F8: 2026 | G8: 2026 | H8: =LOOKUP(WEEKDAY(A8),{1,2,3,4,5,6,7},{"Rātapu","Rāhina","Rātū","Rāapa","Rāpare","Rāmere","Rāhoroi ","Rātapu"}) -> Rāapa | I8: Rāpare | J8: 2026-01-01 | N8: 1 | O8: 2 | P8: 3 | Q8: 4 | R8: 5 | S8: 6 | T8: 7 | U8: 8 | V8: 9 | W8: 10 | X8: 11 | Y8: 12 | Z8: 13 | AA8: 14 | AB8: 15 | AC8: 16 | AD8: 17 | AE8: 18 | AF8: 19 | AG8: 20 | AH8: 21 | AI8: 22 | AJ8: 23 | AK8: 24 | AL8: 25 | AM8: =IF(ISERROR(DATEVALUE(AL8+1 & " "&TEXT($A8,"Mmmm") & " " & $F8))," ",AL8+1) -> 26 | AN8: 27 | AO8: 28 | AP8: 29 | AQ8: 30 | AR8: 31 | AV8: =LOOKUP(VALUE(TEXT(AW8,"M")),{1,2,3,4,5,6,7,8,9,10,11,12},{"Kohitātea","Hui‑tanguru","Poutū‑te‑rangi","Paengawhāwhā","Haratua","Pipiri","Hōngongoi","Here‑turi‑kōkā","Mahuru","Whiringa‑ā‑nuku","Whiringa‑ā‑rangi","Hakihea"}) -> Hui‑tanguru | AW8: 46054 | BD8: 1 | BE8: 2 | BF8: 3 | BG8: 4 | BH8: 5 | BI8: 6 | BJ8: 7 | BK8: 8 | BL8: 9 | BM8: 10 | BN8: 11 | BO8: 12 | BP8: 13 | BQ8: 14 | BR8: 15 | BS8: 16 | BT8: 17 | BU8: 18 | BV8: 19 | BW8: 20 | BX8: 21 | BY8: 22 | BZ8: =IF(ISERROR(DATEVALUE(BY8+1 & " "&TEXT($AW8,"Mmmm") & " " & $F8)),"∙",BY8+1) -> 23 | CA8: 24 | CB8: 25 | CC8: 26 | CD8: 27 | CE8: 28 | CF8: ∙ | CG8: ∙ | CH8: ∙ | CI8: =SunsetTime(A8, -41.2865, 174.7762, 13) -> 2026-01-06T19:58:12.367 | CJ8: =ExcelToJD(CI8-CN8/24) -> 2461046.79 | CK8: =NewMoonPrevious(CI8 - CN8/24) -> 2461029.573 | CL8: 17.2177755 | CM8: =_xlfn.IFS( CL8<1,"Whiro", CL8<2,"Tirea", CL8<3,"Ohata", CL8<4,"Ōuenuku", CL8<5,"Okoro", CL8<6,"Tamatea-kai-ariki", CL8<7,"Tamatea-wananga", CL8<8,"Tamatea-ā-āio", CL8<9,"Tamatea-whakapau", CL8<10,"Huna", CL8<11,"Airoa", CL8<12,"Hotu", CL8<13,"Māwharu", CL8<14,"Atua whakahaehae", CL8<15,"Ōhua", CL8<16,"Ōturu", CL8<17,"Rākaunui", CL8<18,"Rākaumatohi", CL8<19,"Takiraua", CL8<20,"Oike", CL8<21,"Korekore", CL8<22,"Korekore tuarua", CL8<23,"Korekore piri ki Tangaroa", CL8<24,"Tangaroa ā-mua", CL8<25,"Tangaroa ā-roto", CL8<26,"Tangaroa ata kiokio", CL8<27,"Ōtāne", CL8<28,"Ōrongonui", CL8<29,"Maurea", CL8<30,"Mutuwhenua" ) -> Rākaumatohi | CN8: =LookupTimezoneOffset(A8) -> 13 | CO8: 2026-01-07
A9: 2026-01-08 | B9: 8 o | C9: 9 o | D9: =LOOKUP(VALUE(TEXT(A9,"M")),{1,2,3,4,5,6,7,8,9,10,11,12},{"Kohitātea","Hui‑tanguru","Poutū‑te‑rangi","Paengawhāwhā","Haratua","Pipiri","Hōngongoi","Here‑turi‑kōkā","Mahuru","Whiringa‑ā‑nuku","Whiringa‑ā‑rangi","Hakihea"}) -> Kohitātea | E9: Kohitātea | F9: 2026 | G9: 2026 | H9: =LOOKUP(WEEKDAY(A9),{1,2,3,4,5,6,7},{"Rātapu","Rāhina","Rātū","Rāapa","Rāpare","Rāmere","Rāhoroi ","Rātapu"}) -> Rāpare | I9: Rāmere | J9: 2026-01-01 | N9: 1 | O9: 2 | P9: 3 | Q9: 4 | R9: 5 | S9: 6 | T9: 7 | U9: 8 | V9: 9 | W9: 10 | X9: 11 | Y9: 12 | Z9: 13 | AA9: 14 | AB9: 15 | AC9: 16 | AD9: 17 | AE9: 18 | AF9: 19 | AG9: 20 | AH9: 21 | AI9: 22 | AJ9: 23 | AK9: 24 | AL9: 25 | AM9: =IF(ISERROR(DATEVALUE(AL9+1 & " "&TEXT($A9,"Mmmm") & " " & $F9))," ",AL9+1) -> 26 | AN9: 27 | AO9: 28 | AP9: 29 | AQ9: 30 | AR9: 31 | AV9: =LOOKUP(VALUE(TEXT(AW9,"M")),{1,2,3,4,5,6,7,8,9,10,11,12},{"Kohitātea","Hui‑tanguru","Poutū‑te‑rangi","Paengawhāwhā","Haratua","Pipiri","Hōngongoi","Here‑turi‑kōkā","Mahuru","Whiringa‑ā‑nuku","Whiringa‑ā‑rangi","Hakihea"}) -> Hui‑tanguru | AW9: 46054 | BD9: 1 | BE9: 2 | BF9: 3 | BG9: 4 | BH9: 5 | BI9: 6 | BJ9: 7 | BK9: 8 | BL9: 9 | BM9: 10 | BN9: 11 | BO9: 12 | BP9: 13 | BQ9: 14 | BR9: 15 | BS9: 16 | BT9: 17 | BU9: 18 | BV9: 19 | BW9: 20 | BX9: 21 | BY9: 22 | BZ9: =IF(ISERROR(DATEVALUE(BY9+1 & " "&TEXT($AW9,"Mmmm") & " " & $F9)),"∙",BY9+1) -> 23 | CA9: 24 | CB9: 25 | CC9: 26 | CD9: 27 | CE9: 28 | CF9: ∙ | CG9: ∙ | CH9: ∙ | CI9: =SunsetTime(A9, -41.2865, 174.7762, 13) -> 2026-01-07T19:58:07.115 | CJ9: =ExcelToJD(CI9-CN9/24) -> 2461047.79 | CK9: =NewMoonPrevious(CI9 - CN9/24) -> 2461029.573 | CL9: 18.21771472 | CM9: =_xlfn.IFS( CL9<1,"Whiro", CL9<2,"Tirea", CL9<3,"Ohata", CL9<4,"Ōuenuku", CL9<5,"Okoro", CL9<6,"Tamatea-kai-ariki", CL9<7,"Tamatea-wananga", CL9<8,"Tamatea-ā-āio", CL9<9,"Tamatea-whakapau", CL9<10,"Huna", CL9<11,"Airoa", CL9<12,"Hotu", CL9<13,"Māwharu", CL9<14,"Atua whakahaehae", CL9<15,"Ōhua", CL9<16,"Ōturu", CL9<17,"Rākaunui", CL9<18,"Rākaumatohi", CL9<19,"Takiraua", CL9<20,"Oike", CL9<21,"Korekore", CL9<22,"Korekore tuarua", CL9<23,"Korekore piri ki Tangaroa", CL9<24,"Tangaroa ā-mua", CL9<25,"Tangaroa ā-roto", CL9<26,"Tangaroa ata kiokio", CL9<27,"Ōtāne", CL9<28,"Ōrongonui", CL9<29,"Maurea", CL9<30,"Mutuwhenua" ) -> Takiraua | CN9: =LookupTimezoneOffset(A9) -> 13 | CO9: 2026-01-08
A10: 2026-01-09 | B10: 9 o | C10: 10 o | D10: =LOOKUP(VALUE(TEXT(A10,"M")),{1,2,3,4,5,6,7,8,9,10,11,12},{"Kohitātea","Hui‑tanguru","Poutū‑te‑rangi","Paengawhāwhā","Haratua","Pipiri","Hōngongoi","Here‑turi‑kōkā","Mahuru","Whiringa‑ā‑nuku","Whiringa‑ā‑rangi","Hakihea"}) -> Kohitātea | E10: Kohitātea | F10: 2026 | G10: 2026 | H10: =LOOKUP(WEEKDAY(A10),{1,2,3,4,5,6,7},{"Rātapu","Rāhina","Rātū","Rāapa","Rāpare","Rāmere","Rāhoroi ","Rātapu"}) -> Rāmere | I10: Rāhoroi | J10: 2026-01-01 | N10: 1 | O10: 2 | P10: 3 | Q10: 4 | R10: 5 | S10: 6 | T10: 7 | U10: 8 | V10: 9 | W10: 10 | X10: 11 | Y10: 12 | Z10: 13 | AA10: 14 | AB10: 15 | AC10: 16 | AD10: 17 | AE10: 18 | AF10: 19 | AG10: 20 | AH10: 21 | AI10: 22 | AJ10: 23 | AK10: 24 | AL10: 25 | AM10: =IF(ISERROR(DATEVALUE(AL10+1 & " "&TEXT($A10,"Mmmm") & " " & $F10))," ",AL10+1) -> 26 | AN10: 27 | AO10: 28 | AP10: 29 | AQ10: 30 | AR10: 31 | AV10: =LOOKUP(VALUE(TEXT(AW10,"M")),{1,2,3,4,5,6,7,8,9,10,11,12},{"Kohitātea","Hui‑tanguru","Poutū‑te‑rangi","Paengawhāwhā","Haratua","Pipiri","Hōngongoi","Here‑turi‑kōkā","Mahuru","Whiringa‑ā‑nuku","Whiringa‑ā‑rangi","Hakihea"}) -> Hui‑tanguru | AW10: 46054 | BD10: 1 | BE10: 2 | BF10: 3 | BG10: 4 | BH10: 5 | BI10: 6 | BJ10: 7 | BK10: 8 | BL10: 9 | BM10: 10 | BN10: 11 | BO10: 12 | BP10: 13 | BQ10: 14 | BR10: 15 | BS10: 16 | BT10: 17 | BU10: 18 | BV10: 19 | BW10: 20 | BX10: 21 | BY10: 22 | BZ10: =IF(ISERROR(DATEVALUE(BY10+1 & " "&TEXT($AW10,"Mmmm") & " " & $F10)),"∙",BY10+1) -> 23 | CA10: 24 | CB10: 25 | CC10: 26 | CD10: 27 | CE10: 28 | CF10: ∙ | CG10: ∙ | CH10: ∙ | CI10: =SunsetTime(A10, -41.2865, 174.7762, 13) -> 2026-01-08T19:57:59.639 | CJ10: =ExcelToJD(CI10-CN10/24) -> 2461048.79 | CK10: =NewMoonPrevious(CI10 - CN10/24) -> 2461029.573 | CL10: 19.21762818 | CM10: =_xlfn.IFS( CL10<1,"Whiro", CL10<2,"Tirea", CL10<3,"Ohata", CL10<4,"Ōuenuku", CL10<5,"Okoro", CL10<6,"Tamatea-kai-ariki", CL10<7,"Tamatea-wananga", CL10<8,"Tamatea-ā-āio", CL10<9,"Tamatea-whakapau", CL10<10,"Huna", CL10<11,"Airoa", CL10<12,"Hotu", CL10<13,"Māwharu", CL10<14,"Atua whakahaehae", CL10<15,"Ōhua", CL10<16,"Ōturu", CL10<17,"Rākaunui", CL10<18,"Rākaumatohi", CL10<19,"Takiraua", CL10<20,"Oike", CL10<21,"Korekore", CL10<22,"Korekore tuarua", CL10<23,"Korekore piri ki Tangaroa", CL10<24,"Tangaroa ā-mua", CL10<25,"Tangaroa ā-roto", CL10<26,"Tangaroa ata kiokio", CL10<27,"Ōtāne", CL10<28,"Ōrongonui", CL10<29,"Maurea", CL10<30,"Mutuwhenua" ) -> Oike | CN10: =LookupTimezoneOffset(A10) -> 13 | CO10: 2026-01-09
A11: 2026-01-10 | B11: 10 o | C11: 11 o | D11: =LOOKUP(VALUE(TEXT(A11,"M")),{1,2,3,4,5,6,7,8,9,10,11,12},{"Kohitātea","Hui‑tanguru","Poutū‑te‑rangi","Paengawhāwhā","Haratua","Pipiri","Hōngongoi","Here‑turi‑kōkā","Mahuru","Whiringa‑ā‑nuku","Whiringa‑ā‑rangi","Hakihea"}) -> Kohitātea | E11: Kohitātea | F11: 2026 | G11: 2026 | H11: =LOOKUP(WEEKDAY(A11),{1,2,3,4,5,6,7},{"Rātapu","Rāhina","Rātū","Rāapa","Rāpare","Rāmere","Rāhoroi ","Rātapu"}) -> Rāhoroi | I11: Rātapu | J11: 2026-01-01 | N11: 1 | O11: 2 | P11: 3 | Q11: 4 | R11: 5 | S11: 6 | T11: 7 | U11: 8 | V11: 9 | W11: 10 | X11: 11 | Y11: 12 | Z11: 13 | AA11: 14 | AB11: 15 | AC11: 16 | AD11: 17 | AE11: 18 | AF11: 19 | AG11: 20 | AH11: 21 | AI11: 22 | AJ11: 23 | AK11: 24 | AL11: 25 | AM11: =IF(ISERROR(DATEVALUE(AL11+1 & " "&TEXT($A11,"Mmmm") & " " & $F11))," ",AL11+1) -> 26 | AN11: 27 | AO11: 28 | AP11: 29 | AQ11: 30 | AR11: 31 | AV11: =LOOKUP(VALUE(TEXT(AW11,"M")),{1,2,3,4,5,6,7,8,9,10,11,12},{"Kohitātea","Hui‑tanguru","Poutū‑te‑rangi","Paengawhāwhā","Haratua","Pipiri","Hōngongoi","Here‑turi‑kōkā","Mahuru","Whiringa‑ā‑nuku","Whiringa‑ā‑rangi","Hakihea"}) -> Hui‑tanguru | AW11: 46054 | BD11: 1 | BE11: 2 | BF11: 3 | BG11: 4 | BH11: 5 | BI11: 6 | BJ11: 7 | BK11: 8 | BL11: 9 | BM11: 10 | BN11: 11 | BO11: 12 | BP11: 13 | BQ11: 14 | BR11: 15 | BS11: 16 | BT11: 17 | BU11: 18 | BV11: 19 | BW11: 20 | BX11: 21 | BY11: 22 | BZ11: =IF(ISERROR(DATEVALUE(BY11+1 & " "&TEXT($AW11,"Mmmm") & " " & $F11)),"∙",BY11+1) -> 23 | CA11: 24 | CB11: 25 | CC11: 26 | CD11: 27 | CE11: 28 | CF11: ∙ | CG11: ∙ | CH11: ∙ | CI11: =SunsetTime(A11, -41.2865, 174.7762, 13) -> 2026-01-09T19:57:49.943 | CJ11: =ExcelToJD(CI11-CN11/24) -> 2461049.79 | CK11: =NewMoonPrevious(CI11 - CN11/24) -> 2461029.573 | CL11: 20.21751597 | CM11: =_xlfn.IFS( CL11<1,"Whiro", CL11<2,"Tirea", CL11<3,"Ohata", CL11<4,"Ōuenuku", CL11<5,"Okoro", CL11<6,"Tamatea-kai-ariki", CL11<7,"Tamatea-wananga", CL11<8,"Tamatea-ā-āio", CL11<9,"Tamatea-whakapau", CL11<10,"Huna", CL11<11,"Airoa", CL11<12,"Hotu", CL11<13,"Māwharu", CL11<14,"Atua whakahaehae", CL11<15,"Ōhua", CL11<16,"Ōturu", CL11<17,"Rākaunui", CL11<18,"Rākaumatohi", CL11<19,"Takiraua", CL11<20,"Oike", CL11<21,"Korekore", CL11<22,"Korekore tuarua", CL11<23,"Korekore piri ki Tangaroa", CL11<24,"Tangaroa ā-mua", CL11<25,"Tangaroa ā-roto", CL11<26,"Tangaroa ata kiokio", CL11<27,"Ōtāne", CL11<28,"Ōrongonui", CL11<29,"Maurea", CL11<30,"Mutuwhenua" ) -> Korekore | CN11: =LookupTimezoneOffset(A11) -> 13 | CO11: 2026-01-10
A12: 2026-01-11 | B12: 11 o | C12: 12 o | D12: =LOOKUP(VALUE(TEXT(A12,"M")),{1,2,3,4,5,6,7,8,9,10,11,12},{"Kohitātea","Hui‑tanguru","Poutū‑te‑rangi","Paengawhāwhā","Haratua","Pipiri","Hōngongoi","Here‑turi‑kōkā","Mahuru","Whiringa‑ā‑nuku","Whiringa‑ā‑rangi","Hakihea"}) -> Kohitātea | E12: Kohitātea | F12: 2026 | G12: 2026 | H12: =LOOKUP(WEEKDAY(A12),{1,2,3,4,5,6,7},{"Rātapu","Rāhina","Rātū","Rāapa","Rāpare","Rāmere","Rāhoroi ","Rātapu"}) -> Rātapu | I12: Rāhina | J12: 2026-01-01 | N12: 1 | O12: 2 | P12: 3 | Q12: 4 | R12: 5 | S12: 6 | T12: 7 | U12: 8 | V12: 9 | W12: 10 | X12: 11 | Y12: 12 | Z12: 13 | AA12: 14 | AB12: 15 | AC12: 16 | AD12: 17 | AE12: 18 | AF12: 19 | AG12: 20 | AH12: 21 | AI12: 22 | AJ12: 23 | AK12: 24 | AL12: 25 | AM12: =IF(ISERROR(DATEVALUE(AL12+1 & " "&TEXT($A12,"Mmmm") & " " & $F12))," ",AL12+1) -> 26 | AN12: 27 | AO12: 28 | AP12: 29 | AQ12: 30 | AR12: 31 | AV12: =LOOKUP(VALUE(TEXT(AW12,"M")),{1,2,3,4,5,6,7,8,9,10,11,12},{"Kohitātea","Hui‑tanguru","Poutū‑te‑rangi","Paengawhāwhā","Haratua","Pipiri","Hōngongoi","Here‑turi‑kōkā","Mahuru","Whiringa‑ā‑nuku","Whiringa‑ā‑rangi","Hakihea"}) -> Hui‑tanguru | AW12: 46054 | BD12: 1 | BE12: 2 | BF12: 3 | BG12: 4 | BH12: 5 | BI12: 6 | BJ12: 7 | BK12: 8 | BL12: 9 | BM12: 10 | BN12: 11 | BO12: 12 | BP12: 13 | BQ12: 14 | BR12: 15 | BS12: 16 | BT12: 17 | BU12: 18 | BV12: 19 | BW12: 20 | BX12: 21 | BY12: 22 | BZ12: =IF(ISERROR(DATEVALUE(BY12+1 & " "&TEXT($AW12,"Mmmm") & " " & $F12)),"∙",BY12+1) -> 23 | CA12: 24 | CB12: 25 | CC12: 26 | CD12: 27 | CE12: 28 | CF12: ∙ | CG12: ∙ | CH12: ∙ | CI12: =SunsetTime(A12, -41.2865, 174.7762, 13) -> 2026-01-10T19:57:38.037 | CJ12: =ExcelToJD(CI12-CN12/24) -> 2461050.79 | CK12: =NewMoonPrevious(CI12 - CN12/24) -> 2461029.573 | CL12: 21.21737817 | CM12: =_xlfn.IFS( CL12<1,"Whiro", CL12<2,"Tirea", CL12<3,"Ohata", CL12<4,"Ōuenuku", CL12<5,"Okoro", CL12<6,"Tamatea-kai-ariki", CL12<7,"Tamatea-wananga", CL12<8,"Tamatea-ā-āio", CL12<9,"Tamatea-whakapau", CL12<10,"Huna", CL12<11,"Airoa", CL12<12,"Hotu", CL12<13,"Māwharu", CL12<14,"Atua whakahaehae", CL12<15,"Ōhua", CL12<16,"Ōturu", CL12<17,"Rākaunui", CL12<18,"Rākaumatohi", CL12<19,"Takiraua", CL12<20,"Oike", CL12<21,"Korekore", CL12<22,"Korekore tuarua", CL12<23,"Korekore piri ki Tangaroa", CL12<24,"Tangaroa ā-mua", CL12<25,"Tangaroa ā-roto", CL12<26,"Tangaroa ata kiokio", CL12<27,"Ōtāne", CL12<28,"Ōrongonui", CL12<29,"Maurea", CL12<30,"Mutuwhenua" ) -> Korekore tuarua | CN12: =LookupTimezoneOffset(A12) -> 13 | CO12: 2026-01-11
A13: 2026-01-12 | B13: 12 o | C13: 13 o | D13: =LOOKUP(VALUE(TEXT(A13,"M")),{1,2,3,4,5,6,7,8,9,10,11,12},{"Kohitātea","Hui‑tanguru","Poutū‑te‑rangi","Paengawhāwhā","Haratua","Pipiri","Hōngongoi","Here‑turi‑kōkā","Mahuru","Whiringa‑ā‑nuku","Whiringa‑ā‑rangi","Hakihea"}) -> Kohitātea | E13: Kohitātea | F13: 2026 | G13: 2026 | H13: =LOOKUP(WEEKDAY(A13),{1,2,3,4,5,6,7},{"Rātapu","Rāhina","Rātū","Rāapa","Rāpare","Rāmere","Rāhoroi ","Rātapu"}) -> Rāhina | I13: Rātū | J13: 2026-01-01 | N13: 1 | O13: 2 | P13: 3 | Q13: 4 | R13: 5 | S13: 6 | T13: 7 | U13: 8 | V13: 9 | W13: 10 | X13: 11 | Y13: 12 | Z13: 13 | AA13: 14 | AB13: 15 | AC13: 16 | AD13: 17 | AE13: 18 | AF13: 19 | AG13: 20 | AH13: 21 | AI13: 22 | AJ13: 23 | AK13: 24 | AL13: 25 | AM13: =IF(ISERROR(DATEVALUE(AL13+1 & " "&TEXT($A13,"Mmmm") & " " & $F13))," ",AL13+1) -> 26 | AN13: 27 | AO13: 28 | AP13: 29 | AQ13: 30 | AR13: 31 | AV13: =LOOKUP(VALUE(TEXT(AW13,"M")),{1,2,3,4,5,6,7,8,9,10,11,12},{"Kohitātea","Hui‑tanguru","Poutū‑te‑rangi","Paengawhāwhā","Haratua","Pipiri","Hōngongoi","Here‑turi‑kōkā","Mahuru","Whiringa‑ā‑nuku","Whiringa‑ā‑rangi","Hakihea"}) -> Hui‑tanguru | AW13: 46054 | BD13: 1 | BE13: 2 | BF13: 3 | BG13: 4 | BH13: 5 | BI13: 6 | BJ13: 7 | BK13: 8 | BL13: 9 | BM13: 10 | BN13: 11 | BO13: 12 | BP13: 13 | BQ13: 14 | BR13: 15 | BS13: 16 | BT13: 17 | BU13: 18 | BV13: 19 | BW13: 20 | BX13: 21 | BY13: 22 | BZ13: =IF(ISERROR(DATEVALUE(BY13+1 & " "&TEXT($AW13,"Mmmm") & " " & $F13)),"∙",BY13+1) -> 23 | CA13: 24 | CB13: 25 | CC13: 26 | CD13: 27 | CE13: 28 | CF13: ∙ | CG13: ∙ | CH13: ∙ | CI13: =SunsetTime(A13, -41.2865, 174.7762, 13) -> 2026-01-11T19:57:23.931 | CJ13: =ExcelToJD(CI13-CN13/24) -> 2461051.79 | CK13: =NewMoonPrevious(CI13 - CN13/24) -> 2461029.573 | CL13: 22.21721489 | CM13: =_xlfn.IFS( CL13<1,"Whiro", CL13<2,"Tirea", CL13<3,"Ohata", CL13<4,"Ōuenuku", CL13<5,"Okoro", CL13<6,"Tamatea-kai-ariki", CL13<7,"Tamatea-wananga", CL13<8,"Tamatea-ā-āio", CL13<9,"Tamatea-whakapau", CL13<10,"Huna", CL13<11,"Airoa", CL13<12,"Hotu", CL13<13,"Māwharu", CL13<14,"Atua whakahaehae", CL13<15,"Ōhua", CL13<16,"Ōturu", CL13<17,"Rākaunui", CL13<18,"Rākaumatohi", CL13<19,"Takiraua", CL13<20,"Oike", CL13<21,"Korekore", CL13<22,"Korekore tuarua", CL13<23,"Korekore piri ki Tangaroa", CL13<24,"Tangaroa ā-mua", CL13<25,"Tangaroa ā-roto", CL13<26,"Tangaroa ata kiokio", CL13<27,"Ōtāne", CL13<28,"Ōrongonui", CL13<29,"Maurea", CL13<30,"Mutuwhenua" ) -> Korekore piri ki Tangaroa | CN13: =LookupTimezoneOffset(A13) -> 13 | CO13: 2026-01-12
A14: 2026-01-13 | B14: 13 o | C14: 14 o | D14: =LOOKUP(VALUE(TEXT(A14,"M")),{1,2,3,4,5,6,7,8,9,10,11,12},{"Kohitātea","Hui‑tanguru","Poutū‑te‑rangi","Paengawhāwhā","Haratua","Pipiri","Hōngongoi","Here‑turi‑kōkā","Mahuru","Whiringa‑ā‑nuku","Whiringa‑ā‑rangi","Hakihea"}) -> Kohitātea | E14: Kohitātea | F14: 2026 | G14: 2026 | H14: =LOOKUP(WEEKDAY(A14),{1,2,3,4,5,6,7},{"Rātapu","Rāhina","Rātū","Rāapa","Rāpare","Rāmere","Rāhoroi ","Rātapu"}) -> Rātū | I14: Rāapa | J14: 2026-01-01 | N14: 1 | O14: 2 | P14: 3 | Q14: 4 | R14: 5 | S14: 6 | T14: 7 | U14: 8 | V14: 9 | W14: 10 | X14: 11 | Y14: 12 | Z14: 13 | AA14: 14 | AB14: 15 | AC14: 16 | AD14: 17 | AE14: 18 | AF14: 19 | AG14: 20 | AH14: 21 | AI14: 22 | AJ14: 23 | AK14: 24 | AL14: 25 | AM14: =IF(ISERROR(DATEVALUE(AL14+1 & " "&TEXT($A14,"Mmmm") & " " & $F14))," ",AL14+1) -> 26 | AN14: 27 | AO14: 28 | AP14: 29 | AQ14: 30 | AR14: 31 | AV14: =LOOKUP(VALUE(TEXT(AW14,"M")),{1,2,3,4,5,6,7,8,9,10,11,12},{"Kohitātea","Hui‑tanguru","Poutū‑te‑rangi","Paengawhāwhā","Haratua","Pipiri","Hōngongoi","Here‑turi‑kōkā","Mahuru","Whiringa‑ā‑nuku","Whiringa‑ā‑rangi","Hakihea"}) -> Hui‑tanguru | AW14: 46054 | BD14: 1 | BE14: 2 | BF14: 3 | BG14: 4 | BH14: 5 | BI14: 6 | BJ14: 7 | BK14: 8 | BL14: 9 | BM14: 10 | BN14: 11 | BO14: 12 | BP14: 13 | BQ14: 14 | BR14: 15 | BS14: 16 | BT14: 17 | BU14: 18 | BV14: 19 | BW14: 20 | BX14: 21 | BY14: 22 | BZ14: =IF(ISERROR(DATEVALUE(BY14+1 & " "&TEXT($AW14,"Mmmm") & " " & $F14)),"∙",BY14+1) -> 23 | CA14: 24 | CB14: 25 | CC14: 26 | CD14: 27 | CE14: 28 | CF14: ∙ | CG14: ∙ | CH14: ∙ | CI14: =SunsetTime(A14, -41.2865, 174.7762, 13) -> 2026-01-12T19:57:07.634 | CJ14: =ExcelToJD(CI14-CN14/24) -> 2461052.79 | CK14: =NewMoonPrevious(CI14 - CN14/24) -> 2461029.573 | CL14: 23.21702627 | CM14: =_xlfn.IFS( CL14<1,"Whiro", CL14<2,"Tirea", CL14<3,"Ohata", CL14<4,"Ōuenuku", CL14<5,"Okoro", CL14<6,"Tamatea-kai-ariki", CL14<7,"Tamatea-wananga", CL14<8,"Tamatea-ā-āio", CL14<9,"Tamatea-whakapau", CL14<10,"Huna", CL14<11,"Airoa", CL14<12,"Hotu", CL14<13,"Māwharu", CL14<14,"Atua whakahaehae", CL14<15,"Ōhua", CL14<16,"Ōturu", CL14<17,"Rākaunui", CL14<18,"Rākaumatohi", CL14<19,"Takiraua", CL14<20,"Oike", CL14<21,"Korekore", CL14<22,"Korekore tuarua", CL14<23,"Korekore piri ki Tangaroa", CL14<24,"Tangaroa ā-mua", CL14<25,"Tangaroa ā-roto", CL14<26,"Tangaroa ata kiokio", CL14<27,"Ōtāne", CL14<28,"Ōrongonui", CL14<29,"Maurea", CL14<30,"Mutuwhenua" ) -> Tangaroa ā-mua | CN14: =LookupTimezoneOffset(A14) -> 13 | CO14: 2026-01-13
A15: 2026-01-14 | B15: 14 o | C15: 15 o | D15: =LOOKUP(VALUE(TEXT(A15,"M")),{1,2,3,4,5,6,7,8,9,10,11,12},{"Kohitātea","Hui‑tanguru","Poutū‑te‑rangi","Paengawhāwhā","Haratua","Pipiri","Hōngongoi","Here‑turi‑kōkā","Mahuru","Whiringa‑ā‑nuku","Whiringa‑ā‑rangi","Hakihea"}) -> Kohitātea | E15: Kohitātea | F15: 2026 | G15: 2026 | H15: =LOOKUP(WEEKDAY(A15),{1,2,3,4,5,6,7},{"Rātapu","Rāhina","Rātū","Rāapa","Rāpare","Rāmere","Rāhoroi ","Rātapu"}) -> Rāapa | I15: Rāpare | J15: 2026-01-01 | N15: 1 | O15: 2 | P15: 3 | Q15: 4 | R15: 5 | S15: 6 | T15: 7 | U15: 8 | V15: 9 | W15: 10 | X15: 11 | Y15: 12 | Z15: 13 | AA15: 14 | AB15: 15 | AC15: 16 | AD15: 17 | AE15: 18 | AF15: 19 | AG15: 20 | AH15: 21 | AI15: 22 | AJ15: 23 | AK15: 24 | AL15: 25 | AM15: =IF(ISERROR(DATEVALUE(AL15+1 & " "&TEXT($A15,"Mmmm") & " " & $F15))," ",AL15+1) -> 26 | AN15: 27 | AO15: 28 | AP15: 29 | AQ15: 30 | AR15: 31 | AV15: =LOOKUP(VALUE(TEXT(AW15,"M")),{1,2,3,4,5,6,7,8,9,10,11,12},{"Kohitātea","Hui‑tanguru","Poutū‑te‑rangi","Paengawhāwhā","Haratua","Pipiri","Hōngongoi","Here‑turi‑kōkā","Mahuru","Whiringa‑ā‑nuku","Whiringa‑ā‑rangi","Hakihea"}) -> Hui‑tanguru | AW15: 46054 | BD15: 1 | BE15: 2 | BF15: 3 | BG15: 4 | BH15: 5 | BI15: 6 | BJ15: 7 | BK15: 8 | BL15: 9 | BM15: 10 | BN15: 11 | BO15: 12 | BP15: 13 | BQ15: 14 | BR15: 15 | BS15: 16 | BT15: 17 | BU15: 18 | BV15: 19 | BW15: 20 | BX15: 21 | BY15: 22 | BZ15: =IF(ISERROR(DATEVALUE(BY15+1 & " "&TEXT($AW15,"Mmmm") & " " & $F15)),"∙",BY15+1) -> 23 | CA15: 24 | CB15: 25 | CC15: 26 | CD15: 27 | CE15: 28 | CF15: ∙ | CG15: ∙ | CH15: ∙ | CI15: =SunsetTime(A15, -41.2865, 174.7762, 13) -> 2026-01-13T19:56:49.160 | CJ15: =ExcelToJD(CI15-CN15/24) -> 2461053.789 | CK15: =NewMoonPrevious(CI15 - CN15/24) -> 2461029.573 | CL15: 24.21681246 | CM15: =_xlfn.IFS( CL15<1,"Whiro", CL15<2,"Tirea", CL15<3,"Ohata", CL15<4,"Ōuenuku", CL15<5,"Okoro", CL15<6,"Tamatea-kai-ariki", CL15<7,"Tamatea-wananga", CL15<8,"Tamatea-ā-āio", CL15<9,"Tamatea-whakapau", CL15<10,"Huna", CL15<11,"Airoa", CL15<12,"Hotu", CL15<13,"Māwharu", CL15<14,"Atua whakahaehae", CL15<15,"Ōhua", CL15<16,"Ōturu", CL15<17,"Rākaunui", CL15<18,"Rākaumatohi", CL15<19,"Takiraua", CL15<20,"Oike", CL15<21,"Korekore", CL15<22,"Korekore tuarua", CL15<23,"Korekore piri ki Tangaroa", CL15<24,"Tangaroa ā-mua", CL15<25,"Tangaroa ā-roto", CL15<26,"Tangaroa ata kiokio", CL15<27,"Ōtāne", CL15<28,"Ōrongonui", CL15<29,"Maurea", CL15<30,"Mutuwhenua" ) -> Tangaroa ā-roto | CN15: =LookupTimezoneOffset(A15) -> 13 | CO15: 2026-01-14
A16: 2026-01-15 | B16: 15 o | C16: 16 o | D16: =LOOKUP(VALUE(TEXT(A16,"M")),{1,2,3,4,5,6,7,8,9,10,11,12},{"Kohitātea","Hui‑tanguru","Poutū‑te‑rangi","Paengawhāwhā","Haratua","Pipiri","Hōngongoi","Here‑turi‑kōkā","Mahuru","Whiringa‑ā‑nuku","Whiringa‑ā‑rangi","Hakihea"}) -> Kohitātea | E16: Kohitātea | F16: 2026 | G16: 2026 | H16: =LOOKUP(WEEKDAY(A16),{1,2,3,4,5,6,7},{"Rātapu","Rāhina","Rātū","Rāapa","Rāpare","Rāmere","Rāhoroi ","Rātapu"}) -> Rāpare | I16: Rāmere | J16: 2026-01-01 | N16: 1 | O16: 2 | P16: 3 | Q16: 4 | R16: 5 | S16: 6 | T16: 7 | U16: 8 | V16: 9 | W16: 10 | X16: 11 | Y16: 12 | Z16: 13 | AA16: 14 | AB16: 15 | AC16: 16 | AD16: 17 | AE16: 18 | AF16: 19 | AG16: 20 | AH16: 21 | AI16: 22 | AJ16: 23 | AK16: 24 | AL16: 25 | AM16: =IF(ISERROR(DATEVALUE(AL16+1 & " "&TEXT($A16,"Mmmm") & " " & $F16))," ",AL16+1) -> 26 | AN16: 27 | AO16: 28 | AP16: 29 | AQ16: 30 | AR16: 31 | AV16: =LOOKUP(VALUE(TEXT(AW16,"M")),{1,2,3,4,5,6,7,8,9,10,11,12},{"Kohitātea","Hui‑tanguru","Poutū‑te‑rangi","Paengawhāwhā","Haratua","Pipiri","Hōngongoi","Here‑turi‑kōkā","Mahuru","Whiringa‑ā‑nuku","Whiringa‑ā‑rangi","Hakihea"}) -> Hui‑tanguru | AW16: 46054 | BD16: 1 | BE16: 2 | BF16: 3 | BG16: 4 | BH16: 5 | BI16: 6 | BJ16: 7 | BK16: 8 | BL16: 9 | BM16: 10 | BN16: 11 | BO16: 12 | BP16: 13 | BQ16: 14 | BR16: 15 | BS16: 16 | BT16: 17 | BU16: 18 | BV16: 19 | BW16: 20 | BX16: 21 | BY16: 22 | BZ16: =IF(ISERROR(DATEVALUE(BY16+1 & " "&TEXT($AW16,"Mmmm") & " " & $F16)),"∙",BY16+1) -> 23 | CA16: 24 | CB16: 25 | CC16: 26 | CD16: 27 | CE16: 28 | CF16: ∙ | CG16: ∙ | CH16: ∙ | CI16: =SunsetTime(A16, -41.2865, 174.7762, 13) -> 2026-01-14T19:56:28.523 | CJ16: =ExcelToJD(CI16-CN16/24) -> 2461054.789 | CK16: =NewMoonPrevious(CI16 - CN16/24) -> 2461029.573 | CL16: 25.2165736 | CM16: =_xlfn.IFS( CL16<1,"Whiro", CL16<2,"Tirea", CL16<3,"Ohata", CL16<4,"Ōuenuku", CL16<5,"Okoro", CL16<6,"Tamatea-kai-ariki", CL16<7,"Tamatea-wananga", CL16<8,"Tamatea-ā-āio", CL16<9,"Tamatea-whakapau", CL16<10,"Huna", CL16<11,"Airoa", CL16<12,"Hotu", CL16<13,"Māwharu", CL16<14,"Atua whakahaehae", CL16<15,"Ōhua", CL16<16,"Ōturu", CL16<17,"Rākaunui", CL16<18,"Rākaumatohi", CL16<19,"Takiraua", CL16<20,"Oike", CL16<21,"Korekore", CL16<22,"Korekore tuarua", CL16<23,"Korekore piri ki Tangaroa", CL16<24,"Tangaroa ā-mua", CL16<25,"Tangaroa ā-roto", CL16<26,"Tangaroa ata kiokio", CL16<27,"Ōtāne", CL16<28,"Ōrongonui", CL16<29,"Maurea", CL16<30,"Mutuwhenua" ) -> Tangaroa ata kiokio | CN16: =LookupTimezoneOffset(A16) -> 13 | CO16: 2026-01-15
A17: 2026-01-16 | B17: 16 o | C17: 17 o | D17: =LOOKUP(VALUE(TEXT(A17,"M")),{1,2,3,4,5,6,7,8,9,10,11,12},{"Kohitātea","Hui‑tanguru","Poutū‑te‑rangi","Paengawhāwhā","Haratua","Pipiri","Hōngongoi","Here‑turi‑kōkā","Mahuru","Whiringa‑ā‑nuku","Whiringa‑ā‑rangi","Hakihea"}) -> Kohitātea | E17: Kohitātea | F17: =TEXT(A17,"YYYY") -> 2026 | G17: 2026 | H17: =LOOKUP(WEEKDAY(A17),{1,2,3,4,5,6,7},{"Rātapu","Rāhina","Rātū","Rāapa","Rāpare","Rāmere","Rāhoroi ","Rātapu"}) -> Rāmere | I17: Rāhoroi | J17: 2026-01-01 | N17: 1 | O17: 2 | P17: 3 | Q17: 4 | R17: 5 | S17: 6 | T17: 7 | U17: 8 | V17: 9 | W17: 10 | X17: 11 | Y17: 12 | Z17: 13 | AA17: 14 | AB17: 15 | AC17: 16 | AD17: 17 | AE17: 18 | AF17: 19 | AG17: 20 | AH17: 21 | AI17: 22 | AJ17: 23 | AK17: 24 | AL17: 25 | AM17: =IF(ISERROR(DATEVALUE(AL17+1 & " "&TEXT($A17,"Mmmm") & " " & $F17))," ",AL17+1) -> 26 | AN17: 27 | AO17: 28 | AP17: 29 | AQ17: 30 | AR17: 31 | AV17: =LOOKUP(VALUE(TEXT(AW17,"M")),{1,2,3,4,5,6,7,8,9,10,11,12},{"Kohitātea","Hui‑tanguru","Poutū‑te‑rangi","Paengawhāwhā","Haratua","Pipiri","Hōngongoi","Here‑turi‑kōkā","Mahuru","Whiringa‑ā‑nuku","Whiringa‑ā‑rangi","Hakihea"}) -> Hui‑tanguru | AW17: 46054 | BD17: 1 | BE17: 2 | BF17: 3 | BG17: 4 | BH17: 5 | BI17: 6 | BJ17: 7 | BK17: 8 | BL17: 9 | BM17: 10 | BN17: 11 | BO17: 12 | BP17: 13 | BQ17: 14 | BR17: 15 | BS17: 16 | BT17: 17 | BU17: 18 | BV17: 19 | BW17: 20 | BX17: 21 | BY17: 22 | BZ17: =IF(ISERROR(DATEVALUE(BY17+1 & " "&TEXT($AW17,"Mmmm") & " " & $F17)),"∙",BY17+1) -> 23 | CA17: 24 | CB17: 25 | CC17: 26 | CD17: 27 | CE17: 28 | CF17: ∙ | CG17: ∙ | CH17: ∙ | CI17: =SunsetTime(A17, -41.2865, 174.7762, 13) -> 2026-01-15T19:56:05.739 | CJ17: =ExcelToJD(CI17-CN17/24) -> 2461055.789 | CK17: =NewMoonPrevious(CI17 - CN17/24) -> 2461029.573 | CL17: 26.21630989 | CM17: =_xlfn.IFS( CL17<1,"Whiro", CL17<2,"Tirea", CL17<3,"Ohata", CL17<4,"Ōuenuku", CL17<5,"Okoro", CL17<6,"Tamatea-kai-ariki", CL17<7,"Tamatea-wananga", CL17<8,"Tamatea-ā-āio", CL17<9,"Tamatea-whakapau", CL17<10,"Huna", CL17<11,"Airoa", CL17<12,"Hotu", CL17<13,"Māwharu", CL17<14,"Atua whakahaehae", CL17<15,"Ōhua", CL17<16,"Ōturu", CL17<17,"Rākaunui", CL17<18,"Rākaumatohi", CL17<19,"Takiraua", CL17<20,"Oike", CL17<21,"Korekore", CL17<22,"Korekore tuarua", CL17<23,"Korekore piri ki Tangaroa", CL17<24,"Tangaroa ā-mua", CL17<25,"Tangaroa ā-roto", CL17<26,"Tangaroa ata kiokio", CL17<27,"Ōtāne", CL17<28,"Ōrongonui", CL17<29,"Maurea", CL17<30,"Mutuwhenua" ) -> Ōtāne | CN17: =LookupTimezoneOffset(A17) -> 13 | CO17: 2026-01-16
A18: 2026-01-17 | B18: 17 o | C18: 18 o | D18: =LOOKUP(VALUE(TEXT(A18,"M")),{1,2,3,4,5,6,7,8,9,10,11,12},{"Kohitātea","Hui‑tanguru","Poutū‑te‑rangi","Paengawhāwhā","Haratua","Pipiri","Hōngongoi","Here‑turi‑kōkā","Mahuru","Whiringa‑ā‑nuku","Whiringa‑ā‑rangi","Hakihea"}) -> Kohitātea | E18: Kohitātea | F18: =TEXT(A18,"YYYY") -> 2026 | G18: 2026 | H18: =LOOKUP(WEEKDAY(A18),{1,2,3,4,5,6,7},{"Rātapu","Rāhina","Rātū","Rāapa","Rāpare","Rāmere","Rāhoroi ","Rātapu"}) -> Rāhoroi | I18: Rātapu | J18: 2026-01-01 | N18: 1 | O18: 2 | P18: 3 | Q18: 4 | R18: 5 | S18: 6 | T18: 7 | U18: 8 | V18: 9 | W18: 10 | X18: 11 | Y18: 12 | Z18: 13 | AA18: 14 | AB18: 15 | AC18: 16 | AD18: 17 | AE18: 18 | AF18: 19 | AG18: 20 | AH18: 21 | AI18: 22 | AJ18: 23 | AK18: 24 | AL18: 25 | AM18: =IF(ISERROR(DATEVALUE(AL18+1 & " "&TEXT($A18,"Mmmm") & " " & $F18))," ",AL18+1) -> 26 | AN18: 27 | AO18: 28 | AP18: 29 | AQ18: 30 | AR18: 31 | AV18: =LOOKUP(VALUE(TEXT(AW18,"M")),{1,2,3,4,5,6,7,8,9,10,11,12},{"Kohitātea","Hui‑tanguru","Poutū‑te‑rangi","Paengawhāwhā","Haratua","Pipiri","Hōngongoi","Here‑turi‑kōkā","Mahuru","Whiringa‑ā‑nuku","Whiringa‑ā‑rangi","Hakihea"}) -> Hui‑tanguru | AW18: 46054 | BD18: 1 | BE18: 2 | BF18: 3 | BG18: 4 | BH18: 5 | BI18: 6 | BJ18: 7 | BK18: 8 | BL18: 9 | BM18: 10 | BN18: 11 | BO18: 12 | BP18: 13 | BQ18: 14 | BR18: 15 | BS18: 16 | BT18: 17 | BU18: 18 | BV18: 19 | BW18: 20 | BX18: 21 | BY18: 22 | BZ18: =IF(ISERROR(DATEVALUE(BY18+1 & " "&TEXT($AW18,"Mmmm") & " " & $F18)),"∙",BY18+1) -> 23 | CA18: 24 | CB18: 25 | CC18: 26 | CD18: 27 | CE18: 28 | CF18: ∙ | CG18: ∙ | CH18: ∙ | CI18: =SunsetTime(A18, -41.2865, 174.7762, 13) -> 2026-01-16T19:55:40.823 | CJ18: =ExcelToJD(CI18-CN18/24) -> 2461056.789 | CK18: =NewMoonPrevious(CI18 - CN18/24) -> 2461029.573 | CL18: 27.21602151 | CM18: =_xlfn.IFS( CL18<1,"Whiro", CL18<2,"Tirea", CL18<3,"Ohata", CL18<4,"Ōuenuku", CL18<5,"Okoro", CL18<6,"Tamatea-kai-ariki", CL18<7,"Tamatea-wananga", CL18<8,"Tamatea-ā-āio", CL18<9,"Tamatea-whakapau", CL18<10,"Huna", CL18<11,"Airoa", CL18<12,"Hotu", CL18<13,"Māwharu", CL18<14,"Atua whakahaehae", CL18<15,"Ōhua", CL18<16,"Ōturu", CL18<17,"Rākaunui", CL18<18,"Rākaumatohi", CL18<19,"Takiraua", CL18<20,"Oike", CL18<21,"Korekore", CL18<22,"Korekore tuarua", CL18<23,"Korekore piri ki Tangaroa", CL18<24,"Tangaroa ā-mua", CL18<25,"Tangaroa ā-roto", CL18<26,"Tangaroa ata kiokio", CL18<27,"Ōtāne", CL18<28,"Ōrongonui", CL18<29,"Maurea", CL18<30,"Mutuwhenua" ) -> Ōrongonui | CN18: =LookupTimezoneOffset(A18) -> 13 | CO18: 2026-01-17
A19: 2026-01-18 | B19: 18 o | C19: 19 o | D19: =LOOKUP(VALUE(TEXT(A19,"M")),{1,2,3,4,5,6,7,8,9,10,11,12},{"Kohitātea","Hui‑tanguru","Poutū‑te‑rangi","Paengawhāwhā","Haratua","Pipiri","Hōngongoi","Here‑turi‑kōkā","Mahuru","Whiringa‑ā‑nuku","Whiringa‑ā‑rangi","Hakihea"}) -> Kohitātea | E19: Kohitātea | F19: 2026 | G19: 2026 | H19: =LOOKUP(WEEKDAY(A19),{1,2,3,4,5,6,7},{"Rātapu","Rāhina","Rātū","Rāapa","Rāpare","Rāmere","Rāhoroi ","Rātapu"}) -> Rātapu | I19: Rāhina | J19: 2026-01-01 | N19: 1 | O19: 2 | P19: 3 | Q19: 4 | R19: 5 | S19: 6 | T19: 7 | U19: 8 | V19: 9 | W19: 10 | X19: 11 | Y19: 12 | Z19: 13 | AA19: 14 | AB19: 15 | AC19: 16 | AD19: 17 | AE19: 18 | AF19: 19 | AG19: 20 | AH19: 21 | AI19: 22 | AJ19: 23 | AK19: 24 | AL19: 25 | AM19: =IF(ISERROR(DATEVALUE(AL19+1 & " "&TEXT($A19,"Mmmm") & " " & $F19))," ",AL19+1) -> 26 | AN19: 27 | AO19: 28 | AP19: 29 | AQ19: 30 | AR19: 31 | AV19: =LOOKUP(VALUE(TEXT(AW19,"M")),{1,2,3,4,5,6,7,8,9,10,11,12},{"Kohitātea","Hui‑tanguru","Poutū‑te‑rangi","Paengawhāwhā","Haratua","Pipiri","Hōngongoi","Here‑turi‑kōkā","Mahuru","Whiringa‑ā‑nuku","Whiringa‑ā‑rangi","Hakihea"}) -> Hui‑tanguru | AW19: 46054 | BD19: 1 | BE19: 2 | BF19: 3 | BG19: 4 | BH19: 5 | BI19: 6 | BJ19: 7 | BK19: 8 | BL19: 9 | BM19: 10 | BN19: 11 | BO19: 12 | BP19: 13 | BQ19: 14 | BR19: 15 | BS19: 16 | BT19: 17 | BU19: 18 | BV19: 19 | BW19: 20 | BX19: 21 | BY19: 22 | BZ19: =IF(ISERROR(DATEVALUE(BY19+1 & " "&TEXT($AW19,"Mmmm") & " " & $F19)),"∙",BY19+1) -> 23 | CA19: 24 | CB19: 25 | CC19: 26 | CD19: 27 | CE19: 28 | CF19: ∙ | CG19: ∙ | CH19: ∙ | CI19: =SunsetTime(A19, -41.2865, 174.7762, 13) -> 2026-01-17T19:55:13.794 | CJ19: =ExcelToJD(CI19-CN19/24) -> 2461057.788 | CK19: =NewMoonPrevious(CI19 - CN19/24) -> 2461029.573 | CL19: 28.21570868 | CM19: =_xlfn.IFS( CL19<1,"Whiro", CL19<2,"Tirea", CL19<3,"Ohata", CL19<4,"Ōuenuku", CL19<5,"Okoro", CL19<6,"Tamatea-kai-ariki", CL19<7,"Tamatea-wananga", CL19<8,"Tamatea-ā-āio", CL19<9,"Tamatea-whakapau", CL19<10,"Huna", CL19<11,"Airoa", CL19<12,"Hotu", CL19<13,"Māwharu", CL19<14,"Atua whakahaehae", CL19<15,"Ōhua", CL19<16,"Ōturu", CL19<17,"Rākaunui", CL19<18,"Rākaumatohi", CL19<19,"Takiraua", CL19<20,"Oike", CL19<21,"Korekore", CL19<22,"Korekore tuarua", CL19<23,"Korekore piri ki Tangaroa", CL19<24,"Tangaroa ā-mua", CL19<25,"Tangaroa ā-roto", CL19<26,"Tangaroa ata kiokio", CL19<27,"Ōtāne", CL19<28,"Ōrongonui", CL19<29,"Maurea", CL19<30,"Mutuwhenua" ) -> Maurea | CN19: =LookupTimezoneOffset(A19) -> 13 | CO19: 2026-01-18
A20: 2026-01-19 | B20: 19 o | C20: 20 o | D20: =LOOKUP(VALUE(TEXT(A20,"M")),{1,2,3,4,5,6,7,8,9,10,11,12},{"Kohitātea","Hui‑tanguru","Poutū‑te‑rangi","Paengawhāwhā","Haratua","Pipiri","Hōngongoi","Here‑turi‑kōkā","Mahuru","Whiringa‑ā‑nuku","Whiringa‑ā‑rangi","Hakihea"}) -> Kohitātea | E20: Kohitātea | F20: 2026 | G20: 2026 | H20: =LOOKUP(WEEKDAY(A20),{1,2,3,4,5,6,7},{"Rātapu","Rāhina","Rātū","Rāapa","Rāpare","Rāmere","Rāhoroi ","Rātapu"}) -> Rāhina | I20: Rātū | J20: 2026-01-01 | N20: 1 | O20: 2 | P20: 3 | Q20: 4 | R20: 5 | S20: 6 | T20: 7 | U20: 8 | V20: 9 | W20: 10 | X20: 11 | Y20: 12 | Z20: 13 | AA20: 14 | AB20: 15 | AC20: 16 | AD20: 17 | AE20: 18 | AF20: 19 | AG20: 20 | AH20: 21 | AI20: 22 | AJ20: 23 | AK20: 24 | AL20: 25 | AM20: =IF(ISERROR(DATEVALUE(AL20+1 & " "&TEXT($A20,"Mmmm") & " " & $F20))," ",AL20+1) -> 26 | AN20: 27 | AO20: 28 | AP20: 29 | AQ20: 30 | AR20: 31 | AV20: =LOOKUP(VALUE(TEXT(AW20,"M")),{1,2,3,4,5,6,7,8,9,10,11,12},{"Kohitātea","Hui‑tanguru","Poutū‑te‑rangi","Paengawhāwhā","Haratua","Pipiri","Hōngongoi","Here‑turi‑kōkā","Mahuru","Whiringa‑ā‑nuku","Whiringa‑ā‑rangi","Hakihea"}) -> Hui‑tanguru | AW20: 46054 | BD20: 1 | BE20: 2 | BF20: 3 | BG20: 4 | BH20: 5 | BI20: 6 | BJ20: 7 | BK20: 8 | BL20: 9 | BM20: 10 | BN20: 11 | BO20: 12 | BP20: 13 | BQ20: 14 | BR20: 15 | BS20: 16 | BT20: 17 | BU20: 18 | BV20: 19 | BW20: 20 | BX20: 21 | BY20: 22 | BZ20: =IF(ISERROR(DATEVALUE(BY20+1 & " "&TEXT($AW20,"Mmmm") & " " & $F20)),"∙",BY20+1) -> 23 | CA20: 24 | CB20: 25 | CC20: 26 | CD20: 27 | CE20: 28 | CF20: ∙ | CG20: ∙ | CH20: ∙ | CI20: =SunsetTime(A20, -41.2865, 174.7762, 13) -> 2026-01-18T19:54:44.670 | CJ20: =ExcelToJD(CI20-CN20/24) -> 2461058.788 | CK20: =NewMoonPrevious(CI20 - CN20/24) -> 2461029.573 | CL20: 29.2153716 | CM20: =_xlfn.IFS( CL20<1,"Whiro", CL20<2,"Tirea", CL20<3,"Ohata", CL20<4,"Ōuenuku", CL20<5,"Okoro", CL20<6,"Tamatea-kai-ariki", CL20<7,"Tamatea-wananga", CL20<8,"Tamatea-ā-āio", CL20<9,"Tamatea-whakapau", CL20<10,"Huna", CL20<11,"Airoa", CL20<12,"Hotu", CL20<13,"Māwharu", CL20<14,"Atua whakahaehae", CL20<15,"Ōhua", CL20<16,"Ōturu", CL20<17,"Rākaunui", CL20<18,"Rākaumatohi", CL20<19,"Takiraua", CL20<20,"Oike", CL20<21,"Korekore", CL20<22,"Korekore tuarua", CL20<23,"Korekore piri ki Tangaroa", CL20<24,"Tangaroa ā-mua", CL20<25,"Tangaroa ā-roto", CL20<26,"Tangaroa ata kiokio", CL20<27,"Ōtāne", CL20<28,"Ōrongonui", CL20<29,"Maurea", CL20<30,"Mutuwhenua" ) -> Mutuwhenua | CN20: =LookupTimezoneOffset(A20) -> 13 | CO20: 2026-01-19
A21: 2026-01-20 | B21: 20 o | C21: 21 o | D21: =LOOKUP(VALUE(TEXT(A21,"M")),{1,2,3,4,5,6,7,8,9,10,11,12},{"Kohitātea","Hui‑tanguru","Poutū‑te‑rangi","Paengawhāwhā","Haratua","Pipiri","Hōngongoi","Here‑turi‑kōkā","Mahuru","Whiringa‑ā‑nuku","Whiringa‑ā‑rangi","Hakihea"}) -> Kohitātea | E21: Kohitātea | F21: 2026 | G21: 2026 | H21: =LOOKUP(WEEKDAY(A21),{1,2,3,4,5,6,7},{"Rātapu","Rāhina","Rātū","Rāapa","Rāpare","Rāmere","Rāhoroi ","Rātapu"}) -> Rātū | I21: Rāapa | J21: 2026-01-01 | N21: 1 | O21: 2 | P21: 3 | Q21: 4 | R21: 5 | S21: 6 | T21: 7 | U21: 8 | V21: 9 | W21: 10 | X21: 11 | Y21: 12 | Z21: 13 | AA21: 14 | AB21: 15 | AC21: 16 | AD21: 17 | AE21: 18 | AF21: 19 | AG21: 20 | AH21: 21 | AI21: 22 | AJ21: 23 | AK21: 24 | AL21: 25 | AM21: =IF(ISERROR(DATEVALUE(AL21+1 & " "&TEXT($A21,"Mmmm") & " " & $F21))," ",AL21+1) -> 26 | AN21: 27 | AO21: 28 | AP21: 29 | AQ21: 30 | AR21: 31 | AV21: =LOOKUP(VALUE(TEXT(AW21,"M")),{1,2,3,4,5,6,7,8,9,10,11,12},{"Kohitātea","Hui‑tanguru","Poutū‑te‑rangi","Paengawhāwhā","Haratua","Pipiri","Hōngongoi","Here‑turi‑kōkā","Mahuru","Whiringa‑ā‑nuku","Whiringa‑ā‑rangi","Hakihea"}) -> Hui‑tanguru | AW21: 46054 | BD21: 1 | BE21: 2 | BF21: 3 | BG21: 4 | BH21: 5 | BI21: 6 | BJ21: 7 | BK21: 8 | BL21: 9 | BM21: 10 | BN21: 11 | BO21: 12 | BP21: 13 | BQ21: 14 | BR21: 15 | BS21: 16 | BT21: 17 | BU21: 18 | BV21: 19 | BW21: 20 | BX21: 21 | BY21: 22 | BZ21: =IF(ISERROR(DATEVALUE(BY21+1 & " "&TEXT($AW21,"Mmmm") & " " & $F21)),"∙",BY21+1) -> 23 | CA21: 24 | CB21: 25 | CC21: 26 | CD21: 27 | CE21: 28 | CF21: ∙ | CG21: ∙ | CH21: ∙ | CI21: =SunsetTime(A21, -41.2865, 174.7762, 13) -> 2026-01-19T19:54:13.472 | CJ21: =ExcelToJD(CI21-CN21/24) -> 2461059.788 | CK21: =NewMoonPrevious(CI21 - CN21/24) -> 2461059.329 | CL21: 0.4589982447 | CM21: =_xlfn.IFS( CL21<1,"Whiro", CL21<2,"Tirea", CL21<3,"Ohata", CL21<4,"Ōuenuku", CL21<5,"Okoro", CL21<6,"Tamatea-kai-ariki", CL21<7,"Tamatea-wananga", CL21<8,"Tamatea-ā-āio", CL21<9,"Tamatea-whakapau", CL21<10,"Huna", CL21<11,"Airoa", CL21<12,"Hotu", CL21<13,"Māwharu", CL21<14,"Atua whakahaehae", CL21<15,"Ōhua", CL21<16,"Ōturu", CL21<17,"Rākaunui", CL21<18,"Rākaumatohi", CL21<19,"Takiraua", CL21<20,"Oike", CL21<21,"Korekore", CL21<22,"Korekore tuarua", CL21<23,"Korekore piri ki Tangaroa", CL21<24,"Tangaroa ā-mua", CL21<25,"Tangaroa ā-roto", CL21<26,"Tangaroa ata kiokio", CL21<27,"Ōtāne", CL21<28,"Ōrongonui", CL21<29,"Maurea", CL21<30,"Mutuwhenua" ) -> Whiro | CN21: =LookupTimezoneOffset(A21) -> 13 | CO21: 2026-01-20
A22: 2026-01-21 | B22: 21 o | C22: 22 o | D22: =LOOKUP(VALUE(TEXT(A22,"M")),{1,2,3,4,5,6,7,8,9,10,11,12},{"Kohitātea","Hui‑tanguru","Poutū‑te‑rangi","Paengawhāwhā","Haratua","Pipiri","Hōngongoi","Here‑turi‑kōkā","Mahuru","Whiringa‑ā‑nuku","Whiringa‑ā‑rangi","Hakihea"}) -> Kohitātea | E22: Kohitātea | F22: 2026 | G22: 2026 | H22: =LOOKUP(WEEKDAY(A22),{1,2,3,4,5,6,7},{"Rātapu","Rāhina","Rātū","Rāapa","Rāpare","Rāmere","Rāhoroi ","Rātapu"}) -> Rāapa | I22: Rāpare | J22: 2026-01-01 | N22: 1 | O22: 2 | P22: 3 | Q22: 4 | R22: 5 | S22: 6 | T22: 7 | U22: 8 | V22: 9 | W22: 10 | X22: 11 | Y22: 12 | Z22: 13 | AA22: 14 | AB22: 15 | AC22: 16 | AD22: 17 | AE22: 18 | AF22: 19 | AG22: 20 | AH22: 21 | AI22: 22 | AJ22: 23 | AK22: 24 | AL22: 25 | AM22: =IF(ISERROR(DATEVALUE(AL22+1 & " "&TEXT($A22,"Mmmm") & " " & $F22))," ",AL22+1) -> 26 | AN22: 27 | AO22: 28 | AP22: 29 | AQ22: 30 | AR22: 31 | AV22: =LOOKUP(VALUE(TEXT(AW22,"M")),{1,2,3,4,5,6,7,8,9,10,11,12},{"Kohitātea","Hui‑tanguru","Poutū‑te‑rangi","Paengawhāwhā","Haratua","Pipiri","Hōngongoi","Here‑turi‑kōkā","Mahuru","Whiringa‑ā‑nuku","Whiringa‑ā‑rangi","Hakihea"}) -> Hui‑tanguru | AW22: 46054 | BD22: 1 | BE22: 2 | BF22: 3 | BG22: 4 | BH22: 5 | BI22: 6 | BJ22: 7 | BK22: 8 | BL22: 9 | BM22: 10 | BN22: 11 | BO22: 12 | BP22: 13 | BQ22: 14 | BR22: 15 | BS22: 16 | BT22: 17 | BU22: 18 | BV22: 19 | BW22: 20 | BX22: 21 | BY22: 22 | BZ22: =IF(ISERROR(DATEVALUE(BY22+1 & " "&TEXT($AW22,"Mmmm") & " " & $F22)),"∙",BY22+1) -> 23 | CA22: 24 | CB22: 25 | CC22: 26 | CD22: 27 | CE22: 28 | CF22: ∙ | CG22: ∙ | CH22: ∙ | CI22: =SunsetTime(A22, -41.2865, 174.7762, 13) -> 2026-01-20T19:53:40.221 | CJ22: =ExcelToJD(CI22-CN22/24) -> 2461060.787 | CK22: =NewMoonPrevious(CI22 - CN22/24) -> 2461059.329 | CL22: 1.458613391 | CM22: =_xlfn.IFS( CL22<1,"Whiro", CL22<2,"Tirea", CL22<3,"Ohata", CL22<4,"Ōuenuku", CL22<5,"Okoro", CL22<6,"Tamatea-kai-ariki", CL22<7,"Tamatea-wananga", CL22<8,"Tamatea-ā-āio", CL22<9,"Tamatea-whakapau", CL22<10,"Huna", CL22<11,"Airoa", CL22<12,"Hotu", CL22<13,"Māwharu", CL22<14,"Atua whakahaehae", CL22<15,"Ōhua", CL22<16,"Ōturu", CL22<17,"Rākaunui", CL22<18,"Rākaumatohi", CL22<19,"Takiraua", CL22<20,"Oike", CL22<21,"Korekore", CL22<22,"Korekore tuarua", CL22<23,"Korekore piri ki Tangaroa", CL22<24,"Tangaroa ā-mua", CL22<25,"Tangaroa ā-roto", CL22<26,"Tangaroa ata kiokio", CL22<27,"Ōtāne", CL22<28,"Ōrongonui", CL22<29,"Maurea", CL22<30,"Mutuwhenua" ) -> Tirea | CN22: =LookupTimezoneOffset(A22) -> 13 | CO22: 2026-01-21
A23: 2026-01-22 | B23: 22 o | C23: 23 o | D23: =LOOKUP(VALUE(TEXT(A23,"M")),{1,2,3,4,5,6,7,8,9,10,11,12},{"Kohitātea","Hui‑tanguru","Poutū‑te‑rangi","Paengawhāwhā","Haratua","Pipiri","Hōngongoi","Here‑turi‑kōkā","Mahuru","Whiringa‑ā‑nuku","Whiringa‑ā‑rangi","Hakihea"}) -> Kohitātea | E23: Kohitātea | F23: 2026 | G23: 2026 | H23: =LOOKUP(WEEKDAY(A23),{1,2,3,4,5,6,7},{"Rātapu","Rāhina","Rātū","Rāapa","Rāpare","Rāmere","Rāhoroi ","Rātapu"}) -> Rāpare | I23: Rāmere | J23: 2026-01-01 | N23: 1 | O23: 2 | P23: 3 | Q23: 4 | R23: 5 | S23: 6 | T23: 7 | U23: 8 | V23: 9 | W23: 10 | X23: 11 | Y23: 12 | Z23: 13 | AA23: 14 | AB23: 15 | AC23: 16 | AD23: 17 | AE23: 18 | AF23: 19 | AG23: 20 | AH23: 21 | AI23: 22 | AJ23: 23 | AK23: 24 | AL23: 25 | AM23: =IF(ISERROR(DATEVALUE(AL23+1 & " "&TEXT($A23,"Mmmm") & " " & $F23))," ",AL23+1) -> 26 | AN23: 27 | AO23: 28 | AP23: 29 | AQ23: 30 | AR23: 31 | AV23: =LOOKUP(VALUE(TEXT(AW23,"M")),{1,2,3,4,5,6,7,8,9,10,11,12},{"Kohitātea","Hui‑tanguru","Poutū‑te‑rangi","Paengawhāwhā","Haratua","Pipiri","Hōngongoi","Here‑turi‑kōkā","Mahuru","Whiringa‑ā‑nuku","Whiringa‑ā‑rangi","Hakihea"}) -> Hui‑tanguru | AW23: 46054 | BD23: 1 | BE23: 2 | BF23: 3 | BG23: 4 | BH23: 5 | BI23: 6 | BJ23: 7 | BK23: 8 | BL23: 9 | BM23: 10 | BN23: 11 | BO23: 12 | BP23: 13 | BQ23: 14 | BR23: 15 | BS23: 16 | BT23: 17 | BU23: 18 | BV23: 19 | BW23: 20 | BX23: 21 | BY23: 22 | BZ23: =IF(ISERROR(DATEVALUE(BY23+1 & " "&TEXT($AW23,"Mmmm") & " " & $F23)),"∙",BY23+1) -> 23 | CA23: 24 | CB23: 25 | CC23: 26 | CD23: 27 | CE23: 28 | CF23: ∙ | CG23: ∙ | CH23: ∙ | CI23: =SunsetTime(A23, -41.2865, 174.7762, 13) -> 2026-01-21T19:52:20.024 | CJ23: =ExcelToJD(CI23-CN23/24) -> 2461061.786 | CK23: =NewMoonPrevious(CI23 - CN23/24) -> 2461059.329 | CL23: 2.457685188 | CM23: =_xlfn.IFS( CL23<1,"Whiro", CL23<2,"Tirea", CL23<3,"Ohata", CL23<4,"Ōuenuku", CL23<5,"Okoro", CL23<6,"Tamatea-kai-ariki", CL23<7,"Tamatea-wananga", CL23<8,"Tamatea-ā-āio", CL23<9,"Tamatea-whakapau", CL23<10,"Huna", CL23<11,"Airoa", CL23<12,"Hotu", CL23<13,"Māwharu", CL23<14,"Atua whakahaehae", CL23<15,"Ōhua", CL23<16,"Ōturu", CL23<17,"Rākaunui", CL23<18,"Rākaumatohi", CL23<19,"Takiraua", CL23<20,"Oike", CL23<21,"Korekore", CL23<22,"Korekore tuarua", CL23<23,"Korekore piri ki Tangaroa", CL23<24,"Tangaroa ā-mua", CL23<25,"Tangaroa ā-roto", CL23<26,"Tangaroa ata kiokio", CL23<27,"Ōtāne", CL23<28,"Ōrongonui", CL23<29,"Maurea", CL23<30,"Mutuwhenua" ) -> Ohata | CN23: =LookupTimezoneOffset(A23) -> 13 | CO23: 2026-01-22
A24: 2026-01-23 | B24: 23 o | C24: 24 o | D24: =LOOKUP(VALUE(TEXT(A24,"M")),{1,2,3,4,5,6,7,8,9,10,11,12},{"Kohitātea","Hui‑tanguru","Poutū‑te‑rangi","Paengawhāwhā","Haratua","Pipiri","Hōngongoi","Here‑turi‑kōkā","Mahuru","Whiringa‑ā‑nuku","Whiringa‑ā‑rangi","Hakihea"}) -> Kohitātea | E24: Kohitātea | F24: 2026 | G24: 2026 | H24: =LOOKUP(WEEKDAY(A24),{1,2,3,4,5,6,7},{"Rātapu","Rāhina","Rātū","Rāapa","Rāpare","Rāmere","Rāhoroi ","Rātapu"}) -> Rāmere | I24: Rāhoroi | J24: 2026-01-01 | N24: 1 | O24: 2 | P24: 3 | Q24: 4 | R24: 5 | S24: 6 | T24: 7 | U24: 8 | V24: 9 | W24: 10 | X24: 11 | Y24: 12 | Z24: 13 | AA24: 14 | AB24: 15 | AC24: 16 | AD24: 17 | AE24: 18 | AF24: 19 | AG24: 20 | AH24: 21 | AI24: 22 | AJ24: 23 | AK24: 24 | AL24: 25 | AM24: =IF(ISERROR(DATEVALUE(AL24+1 & " "&TEXT($A24,"Mmmm") & " " & $F24))," ",AL24+1) -> 26 | AN24: 27 | AO24: 28 | AP24: 29 | AQ24: 30 | AR24: 31 | AV24: =LOOKUP(VALUE(TEXT(AW24,"M")),{1,2,3,4,5,6,7,8,9,10,11,12},{"Kohitātea","Hui‑tanguru","Poutū‑te‑rangi","Paengawhāwhā","Haratua","Pipiri","Hōngongoi","Here‑turi‑kōkā","Mahuru","Whiringa‑ā‑nuku","Whiringa‑ā‑rangi","Hakihea"}) -> Hui‑tanguru | AW24: 46054 | BD24: 1 | BE24: 2 | BF24: 3 | BG24: 4 | BH24: 5 | BI24: 6 | BJ24: 7 | BK24: 8 | BL24: 9 | BM24: 10 | BN24: 11 | BO24: 12 | BP24: 13 | BQ24: 14 | BR24: 15 | BS24: 16 | BT24: 17 | BU24: 18 | BV24: 19 | BW24: 20 | BX24: 21 | BY24: 22 | BZ24: =IF(ISERROR(DATEVALUE(BY24+1 & " "&TEXT($AW24,"Mmmm") & " " & $F24)),"∙",BY24+1) -> 23 | CA24: 24 | CB24: 25 | CC24: 26 | CD24: 27 | CE24: 28 | CF24: ∙ | CG24: ∙ | CH24: ∙ | CI24: =SunsetTime(A24, -41.2865, 174.7762, 13) -> 2026-01-22T19:51:40.790 | CJ24: =ExcelToJD(CI24-CN24/24) -> 2461062.786 | CK24: =NewMoonPrevious(CI24 - CN24/24) -> 2461059.329 | CL24: 3.457231094 | CM24: =_xlfn.IFS( CL24<1,"Whiro", CL24<2,"Tirea", CL24<3,"Ohata", CL24<4,"Ōuenuku", CL24<5,"Okoro", CL24<6,"Tamatea-kai-ariki", CL24<7,"Tamatea-wananga", CL24<8,"Tamatea-ā-āio", CL24<9,"Tamatea-whakapau", CL24<10,"Huna", CL24<11,"Airoa", CL24<12,"Hotu", CL24<13,"Māwharu", CL24<14,"Atua whakahaehae", CL24<15,"Ōhua", CL24<16,"Ōturu", CL24<17,"Rākaunui", CL24<18,"Rākaumatohi", CL24<19,"Takiraua", CL24<20,"Oike", CL24<21,"Korekore", CL24<22,"Korekore tuarua", CL24<23,"Korekore piri ki Tangaroa", CL24<24,"Tangaroa ā-mua", CL24<25,"Tangaroa ā-roto", CL24<26,"Tangaroa ata kiokio", CL24<27,"Ōtāne", CL24<28,"Ōrongonui", CL24<29,"Maurea", CL24<30,"Mutuwhenua" ) -> Ōuenuku | CN24: =LookupTimezoneOffset(A24) -> 13 | CO24: 2026-01-23
A25: 2026-01-24 | B25: 24 o | C25: 25 o | D25: =LOOKUP(VALUE(TEXT(A25,"M")),{1,2,3,4,5,6,7,8,9,10,11,12},{"Kohitātea","Hui‑tanguru","Poutū‑te‑rangi","Paengawhāwhā","Haratua","Pipiri","Hōngongoi","Here‑turi‑kōkā","Mahuru","Whiringa‑ā‑nuku","Whiringa‑ā‑rangi","Hakihea"}) -> Kohitātea | E25: Kohitātea | F25: 2026 | G25: 2026 | H25: =LOOKUP(WEEKDAY(A25),{1,2,3,4,5,6,7},{"Rātapu","Rāhina","Rātū","Rāapa","Rāpare","Rāmere","Rāhoroi ","Rātapu"}) -> Rāhoroi | I25: Rātapu | J25: 2026-01-01 | N25: 1 | O25: 2 | P25: 3 | Q25: 4 | R25: 5 | S25: 6 | T25: 7 | U25: 8 | V25: 9 | W25: 10 | X25: 11 | Y25: 12 | Z25: 13 | AA25: 14 | AB25: 15 | AC25: 16 | AD25: 17 | AE25: 18 | AF25: 19 | AG25: 20 | AH25: 21 | AI25: 22 | AJ25: 23 | AK25: 24 | AL25: 25 | AM25: =IF(ISERROR(DATEVALUE(AL25+1 & " "&TEXT($A25,"Mmmm") & " " & $F25))," ",AL25+1) -> 26 | AN25: 27 | AO25: 28 | AP25: 29 | AQ25: 30 | AR25: 31 | AV25: =LOOKUP(VALUE(TEXT(AW25,"M")),{1,2,3,4,5,6,7,8,9,10,11,12},{"Kohitātea","Hui‑tanguru","Poutū‑te‑rangi","Paengawhāwhā","Haratua","Pipiri","Hōngongoi","Here‑turi‑kōkā","Mahuru","Whiringa‑ā‑nuku","Whiringa‑ā‑rangi","Hakihea"}) -> Hui‑tanguru | AW25: 46054 | BD25: 1 | BE25: 2 | BF25: 3 | BG25: 4 | BH25: 5 | BI25: 6 | BJ25: 7 | BK25: 8 | BL25: 9 | BM25: 10 | BN25: 11 | BO25: 12 | BP25: 13 | BQ25: 14 | BR25: 15 | BS25: 16 | BT25: 17 | BU25: 18 | BV25: 19 | BW25: 20 | BX25: 21 | BY25: 22 | BZ25: =IF(ISERROR(DATEVALUE(BY25+1 & " "&TEXT($AW25,"Mmmm") & " " & $F25)),"∙",BY25+1) -> 23 | CA25: 24 | CB25: 25 | CC25: 26 | CD25: 27 | CE25: 28 | CF25: ∙ | CG25: ∙ | CH25: ∙ | CI25: =SunsetTime(A25, -41.2865, 174.7762, 13) -> 2026-01-23T19:50:59.598 | CJ25: =ExcelToJD(CI25-CN25/24) -> 2461063.785 | CK25: =NewMoonPrevious(CI25 - CN25/24) -> 2461059.329 | CL25: 4.45675433 | CM25: =_xlfn.IFS( CL25<1,"Whiro", CL25<2,"Tirea", CL25<3,"Ohata", CL25<4,"Ōuenuku", CL25<5,"Okoro", CL25<6,"Tamatea-kai-ariki", CL25<7,"Tamatea-wananga", CL25<8,"Tamatea-ā-āio", CL25<9,"Tamatea-whakapau", CL25<10,"Huna", CL25<11,"Airoa", CL25<12,"Hotu", CL25<13,"Māwharu", CL25<14,"Atua whakahaehae", CL25<15,"Ōhua", CL25<16,"Ōturu", CL25<17,"Rākaunui", CL25<18,"Rākaumatohi", CL25<19,"Takiraua", CL25<20,"Oike", CL25<21,"Korekore", CL25<22,"Korekore tuarua", CL25<23,"Korekore piri ki Tangaroa", CL25<24,"Tangaroa ā-mua", CL25<25,"Tangaroa ā-roto", CL25<26,"Tangaroa ata kiokio", CL25<27,"Ōtāne", CL25<28,"Ōrongonui", CL25<29,"Maurea", CL25<30,"Mutuwhenua" ) -> Okoro | CN25: =LookupTimezoneOffset(A25) -> 13 | CO25: 2026-01-24
A26: 2026-01-25 | B26: 25 o | C26: 26 o | D26: =LOOKUP(VALUE(TEXT(A26,"M")),{1,2,3,4,5,6,7,8,9,10,11,12},{"Kohitātea","Hui‑tanguru","Poutū‑te‑rangi","Paengawhāwhā","Haratua","Pipiri","Hōngongoi","Here‑turi‑kōkā","Mahuru","Whiringa‑ā‑nuku","Whiringa‑ā‑rangi","Hakihea"}) -> Kohitātea | E26: Kohitātea | F26: 2026 | G26: 2026 | H26: =LOOKUP(WEEKDAY(A26),{1,2,3,4,5,6,7},{"Rātapu","Rāhina","Rātū","Rāapa","Rāpare","Rāmere","Rāhoroi ","Rātapu"}) -> Rātapu | I26: Rāhina | J26: 2026-01-01 | N26: 1 | O26: 2 | P26: 3 | Q26: 4 | R26: 5 | S26: 6 | T26: 7 | U26: 8 | V26: 9 | W26: 10 | X26: 11 | Y26: 12 | Z26: 13 | AA26: 14 | AB26: 15 | AC26: 16 | AD26: 17 | AE26: 18 | AF26: 19 | AG26: 20 | AH26: 21 | AI26: 22 | AJ26: 23 | AK26: 24 | AL26: 25 | AM26: =IF(ISERROR(DATEVALUE(AL26+1 & " "&TEXT($A26,"Mmmm") & " " & $F26))," ",AL26+1) -> 26 | AN26: 27 | AO26: 28 | AP26: 29 | AQ26: 30 | AR26: 31 | AV26: =LOOKUP(VALUE(TEXT(AW26,"M")),{1,2,3,4,5,6,7,8,9,10,11,12},{"Kohitātea","Hui‑tanguru","Poutū‑te‑rangi","Paengawhāwhā","Haratua","Pipiri","Hōngongoi","Here‑turi‑kōkā","Mahuru","Whiringa‑ā‑nuku","Whiringa‑ā‑rangi","Hakihea"}) -> Hui‑tanguru | AW26: 46054 | BD26: 1 | BE26: 2 | BF26: 3 | BG26: 4 | BH26: 5 | BI26: 6 | BJ26: 7 | BK26: 8 | BL26: 9 | BM26: 10 | BN26: 11 | BO26: 12 | BP26: 13 | BQ26: 14 | BR26: 15 | BS26: 16 | BT26: 17 | BU26: 18 | BV26: 19 | BW26: 20 | BX26: 21 | BY26: 22 | BZ26: =IF(ISERROR(DATEVALUE(BY26+1 & " "&TEXT($AW26,"Mmmm") & " " & $F26)),"∙",BY26+1) -> 23 | CA26: 24 | CB26: 25 | CC26: 26 | CD26: 27 | CE26: 28 | CF26: ∙ | CG26: ∙ | CH26: ∙ | CI26: =SunsetTime(A26, -41.2865, 174.7762, 13) -> 2026-01-24T19:50:16.472 | CJ26: =ExcelToJD(CI26-CN26/24) -> 2461064.785 | CK26: =NewMoonPrevious(CI26 - CN26/24) -> 2461059.329 | CL26: 5.456255184 | CM26: =_xlfn.IFS( CL26<1,"Whiro", CL26<2,"Tirea", CL26<3,"Ohata", CL26<4,"Ōuenuku", CL26<5,"Okoro", CL26<6,"Tamatea-kai-ariki", CL26<7,"Tamatea-wananga", CL26<8,"Tamatea-ā-āio", CL26<9,"Tamatea-whakapau", CL26<10,"Huna", CL26<11,"Airoa", CL26<12,"Hotu", CL26<13,"Māwharu", CL26<14,"Atua whakahaehae", CL26<15,"Ōhua", CL26<16,"Ōturu", CL26<17,"Rākaunui", CL26<18,"Rākaumatohi", CL26<19,"Takiraua", CL26<20,"Oike", CL26<21,"Korekore", CL26<22,"Korekore tuarua", CL26<23,"Korekore piri ki Tangaroa", CL26<24,"Tangaroa ā-mua", CL26<25,"Tangaroa ā-roto", CL26<26,"Tangaroa ata kiokio", CL26<27,"Ōtāne", CL26<28,"Ōrongonui", CL26<29,"Maurea", CL26<30,"Mutuwhenua" ) -> Tamatea-kai-ariki | CN26: =LookupTimezoneOffset(A26) -> 13 | CO26: 2026-01-25
A27: 2026-01-26 | B27: 26 o | C27: 27 o | D27: =LOOKUP(VALUE(TEXT(A27,"M")),{1,2,3,4,5,6,7,8,9,10,11,12},{"Kohitātea","Hui‑tanguru","Poutū‑te‑rangi","Paengawhāwhā","Haratua","Pipiri","Hōngongoi","Here‑turi‑kōkā","Mahuru","Whiringa‑ā‑nuku","Whiringa‑ā‑rangi","Hakihea"}) -> Kohitātea | E27: Kohitātea | F27: 2026 | G27: 2026 | H27: =LOOKUP(WEEKDAY(A27),{1,2,3,4,5,6,7},{"Rātapu","Rāhina","Rātū","Rāapa","Rāpare","Rāmere","Rāhoroi ","Rātapu"}) -> Rāhina | I27: Rātū | J27: 2026-01-01 | N27: 1 | O27: 2 | P27: 3 | Q27: 4 | R27: 5 | S27: 6 | T27: 7 | U27: 8 | V27: 9 | W27: 10 | X27: 11 | Y27: 12 | Z27: 13 | AA27: 14 | AB27: 15 | AC27: 16 | AD27: 17 | AE27: 18 | AF27: 19 | AG27: 20 | AH27: 21 | AI27: 22 | AJ27: 23 | AK27: 24 | AL27: 25 | AM27: =IF(ISERROR(DATEVALUE(AL27+1 & " "&TEXT($A27,"Mmmm") & " " & $F27))," ",AL27+1) -> 26 | AN27: 27 | AO27: 28 | AP27: 29 | AQ27: 30 | AR27: 31 | AV27: =LOOKUP(VALUE(TEXT(AW27,"M")),{1,2,3,4,5,6,7,8,9,10,11,12},{"Kohitātea","Hui‑tanguru","Poutū‑te‑rangi","Paengawhāwhā","Haratua","Pipiri","Hōngongoi","Here‑turi‑kōkā","Mahuru","Whiringa‑ā‑nuku","Whiringa‑ā‑rangi","Hakihea"}) -> Hui‑tanguru | AW27: 46054 | BD27: 1 | BE27: 2 | BF27: 3 | BG27: 4 | BH27: 5 | BI27: 6 | BJ27: 7 | BK27: 8 | BL27: 9 | BM27: 10 | BN27: 11 | BO27: 12 | BP27: 13 | BQ27: 14 | BR27: 15 | BS27: 16 | BT27: 17 | BU27: 18 | BV27: 19 | BW27: 20 | BX27: 21 | BY27: 22 | BZ27: =IF(ISERROR(DATEVALUE(BY27+1 & " "&TEXT($AW27,"Mmmm") & " " & $F27)),"∙",BY27+1) -> 23 | CA27: 24 | CB27: 25 | CC27: 26 | CD27: 27 | CE27: 28 | CF27: ∙ | CG27: ∙ | CH27: ∙ | CI27: =SunsetTime(A27, -41.2865, 174.7762, 13) -> 2026-01-25T19:49:31.438 | CJ27: =ExcelToJD(CI27-CN27/24) -> 2461065.784 | CK27: =NewMoonPrevious(CI27 - CN27/24) -> 2461059.329 | CL27: 6.455733955 | CM27: =_xlfn.IFS( CL27<1,"Whiro", CL27<2,"Tirea", CL27<3,"Ohata", CL27<4,"Ōuenuku", CL27<5,"Okoro", CL27<6,"Tamatea-kai-ariki", CL27<7,"Tamatea-wananga", CL27<8,"Tamatea-ā-āio", CL27<9,"Tamatea-whakapau", CL27<10,"Huna", CL27<11,"Airoa", CL27<12,"Hotu", CL27<13,"Māwharu", CL27<14,"Atua whakahaehae", CL27<15,"Ōhua", CL27<16,"Ōturu", CL27<17,"Rākaunui", CL27<18,"Rākaumatohi", CL27<19,"Takiraua", CL27<20,"Oike", CL27<21,"Korekore", CL27<22,"Korekore tuarua", CL27<23,"Korekore piri ki Tangaroa", CL27<24,"Tangaroa ā-mua", CL27<25,"Tangaroa ā-roto", CL27<26,"Tangaroa ata kiokio", CL27<27,"Ōtāne", CL27<28,"Ōrongonui", CL27<29,"Maurea", CL27<30,"Mutuwhenua" ) -> Tamatea-wananga | CN27: =LookupTimezoneOffset(A27) -> 13 | CO27: 2026-01-26
A28: 2026-01-27 | B28: 27 o | C28: 28 o | D28: =LOOKUP(VALUE(TEXT(A28,"M")),{1,2,3,4,5,6,7,8,9,10,11,12},{"Kohitātea","Hui‑tanguru","Poutū‑te‑rangi","Paengawhāwhā","Haratua","Pipiri","Hōngongoi","Here‑turi‑kōkā","Mahuru","Whiringa‑ā‑nuku","Whiringa‑ā‑rangi","Hakihea"}) -> Kohitātea | E28: Kohitātea | F28: 2026 | G28: 2026 | H28: =LOOKUP(WEEKDAY(A28),{1,2,3,4,5,6,7},{"Rātapu","Rāhina","Rātū","Rāapa","Rāpare","Rāmere","Rāhoroi ","Rātapu"}) -> Rātū | I28: Rāapa | J28: 2026-01-01 | N28: 1 | O28: 2 | P28: 3 | Q28: 4 | R28: 5 | S28: 6 | T28: 7 | U28: 8 | V28: 9 | W28: 10 | X28: 11 | Y28: 12 | Z28: 13 | AA28: 14 | AB28: 15 | AC28: 16 | AD28: 17 | AE28: 18 | AF28: 19 | AG28: 20 | AH28: 21 | AI28: 22 | AJ28: 23 | AK28: 24 | AL28: 25 | AM28: =IF(ISERROR(DATEVALUE(AL28+1 & " "&TEXT($A28,"Mmmm") & " " & $F28))," ",AL28+1) -> 26 | AN28: 27 | AO28: 28 | AP28: 29 | AQ28: 30 | AR28: 31 | AV28: =LOOKUP(VALUE(TEXT(AW28,"M")),{1,2,3,4,5,6,7,8,9,10,11,12},{"Kohitātea","Hui‑tanguru","Poutū‑te‑rangi","Paengawhāwhā","Haratua","Pipiri","Hōngongoi","Here‑turi‑kōkā","Mahuru","Whiringa‑ā‑nuku","Whiringa‑ā‑rangi","Hakihea"}) -> Hui‑tanguru | AW28: 46054 | BD28: 1 | BE28: 2 | BF28: 3 | BG28: 4 | BH28: 5 | BI28: 6 | BJ28: 7 | BK28: 8 | BL28: 9 | BM28: 10 | BN28: 11 | BO28: 12 | BP28: 13 | BQ28: 14 | BR28: 15 | BS28: 16 | BT28: 17 | BU28: 18 | BV28: 19 | BW28: 20 | BX28: 21 | BY28: 22 | BZ28: =IF(ISERROR(DATEVALUE(BY28+1 & " "&TEXT($AW28,"Mmmm") & " " & $F28)),"∙",BY28+1) -> 23 | CA28: 24 | CB28: 25 | CC28: 26 | CD28: 27 | CE28: 28 | CF28: ∙ | CG28: ∙ | CH28: ∙ | CI28: =SunsetTime(A28, -41.2865, 174.7762, 13) -> 2026-01-26T19:48:44.521 | CJ28: =ExcelToJD(CI28-CN28/24) -> 2461066.784 | CK28: =NewMoonPrevious(CI28 - CN28/24) -> 2461059.329 | CL28: 7.455190944 | CM28: =_xlfn.IFS( CL28<1,"Whiro", CL28<2,"Tirea", CL28<3,"Ohata", CL28<4,"Ōuenuku", CL28<5,"Okoro", CL28<6,"Tamatea-kai-ariki", CL28<7,"Tamatea-wananga", CL28<8,"Tamatea-ā-āio", CL28<9,"Tamatea-whakapau", CL28<10,"Huna", CL28<11,"Airoa", CL28<12,"Hotu", CL28<13,"Māwharu", CL28<14,"Atua whakahaehae", CL28<15,"Ōhua", CL28<16,"Ōturu", CL28<17,"Rākaunui", CL28<18,"Rākaumatohi", CL28<19,"Takiraua", CL28<20,"Oike", CL28<21,"Korekore", CL28<22,"Korekore tuarua", CL28<23,"Korekore piri ki Tangaroa", CL28<24,"Tangaroa ā-mua", CL28<25,"Tangaroa ā-roto", CL28<26,"Tangaroa ata kiokio", CL28<27,"Ōtāne", CL28<28,"Ōrongonui", CL28<29,"Maurea", CL28<30,"Mutuwhenua" ) -> Tamatea-ā-āio | CN28: =LookupTimezoneOffset(A28) -> 13 | CO28: 2026-01-27
A29: 2026-01-28 | B29: 28 o | C29: 29 o | D29: =LOOKUP(VALUE(TEXT(A29,"M")),{1,2,3,4,5,6,7,8,9,10,11,12},{"Kohitātea","Hui‑tanguru","Poutū‑te‑rangi","Paengawhāwhā","Haratua","Pipiri","Hōngongoi","Here‑turi‑kōkā","Mahuru","Whiringa‑ā‑nuku","Whiringa‑ā‑rangi","Hakihea"}) -> Kohitātea | E29: Kohitātea | F29: 2026 | G29: 2026 | H29: =LOOKUP(WEEKDAY(A29),{1,2,3,4,5,6,7},{"Rātapu","Rāhina","Rātū","Rāapa","Rāpare","Rāmere","Rāhoroi ","Rātapu"}) -> Rāapa | I29: Rāpare | J29: 2026-01-01 | N29: 1 | O29: 2 | P29: 3 | Q29: 4 | R29: 5 | S29: 6 | T29: 7 | U29: 8 | V29: 9 | W29: 10 | X29: 11 | Y29: 12 | Z29: 13 | AA29: 14 | AB29: 15 | AC29: 16 | AD29: 17 | AE29: 18 | AF29: 19 | AG29: 20 | AH29: 21 | AI29: 22 | AJ29: 23 | AK29: 24 | AL29: 25 | AM29: =IF(ISERROR(DATEVALUE(AL29+1 & " "&TEXT($A29,"Mmmm") & " " & $F29))," ",AL29+1) -> 26 | AN29: 27 | AO29: 28 | AP29: 29 | AQ29: 30 | AR29: 31 | AV29: =LOOKUP(VALUE(TEXT(AW29,"M")),{1,2,3,4,5,6,7,8,9,10,11,12},{"Kohitātea","Hui‑tanguru","Poutū‑te‑rangi","Paengawhāwhā","Haratua","Pipiri","Hōngongoi","Here‑turi‑kōkā","Mahuru","Whiringa‑ā‑nuku","Whiringa‑ā‑rangi","Hakihea"}) -> Hui‑tanguru | AW29: 46054 | BD29: 1 | BE29: 2 | BF29: 3 | BG29: 4 | BH29: 5 | BI29: 6 | BJ29: 7 | BK29: 8 | BL29: 9 | BM29: 10 | BN29: 11 | BO29: 12 | BP29: 13 | BQ29: 14 | BR29: 15 | BS29: 16 | BT29: 17 | BU29: 18 | BV29: 19 | BW29: 20 | BX29: 21 | BY29: 22 | BZ29: =IF(ISERROR(DATEVALUE(BY29+1 & " "&TEXT($AW29,"Mmmm") & " " & $F29)),"∙",BY29+1) -> 23 | CA29: 24 | CB29: 25 | CC29: 26 | CD29: 27 | CE29: 28 | CF29: ∙ | CG29: ∙ | CH29: ∙ | CI29: =SunsetTime(A29, -41.2865, 174.7762, 13) -> 2026-01-27T19:47:55.750 | CJ29: =ExcelToJD(CI29-CN29/24) -> 2461067.783 | CK29: =NewMoonPrevious(CI29 - CN29/24) -> 2461059.329 | CL29: 8.454626461 | CM29: =_xlfn.IFS( CL29<1,"Whiro", CL29<2,"Tirea", CL29<3,"Ohata", CL29<4,"Ōuenuku", CL29<5,"Okoro", CL29<6,"Tamatea-kai-ariki", CL29<7,"Tamatea-wananga", CL29<8,"Tamatea-ā-āio", CL29<9,"Tamatea-whakapau", CL29<10,"Huna", CL29<11,"Airoa", CL29<12,"Hotu", CL29<13,"Māwharu", CL29<14,"Atua whakahaehae", CL29<15,"Ōhua", CL29<16,"Ōturu", CL29<17,"Rākaunui", CL29<18,"Rākaumatohi", CL29<19,"Takiraua", CL29<20,"Oike", CL29<21,"Korekore", CL29<22,"Korekore tuarua", CL29<23,"Korekore piri ki Tangaroa", CL29<24,"Tangaroa ā-mua", CL29<25,"Tangaroa ā-roto", CL29<26,"Tangaroa ata kiokio", CL29<27,"Ōtāne", CL29<28,"Ōrongonui", CL29<29,"Maurea", CL29<30,"Mutuwhenua" ) -> Tamatea-whakapau | CN29: =LookupTimezoneOffset(A29) -> 13 | CO29: 2026-01-28
A30: 2026-01-29 | B30: 29 o | C30: 30 o | D30: =LOOKUP(VALUE(TEXT(A30,"M")),{1,2,3,4,5,6,7,8,9,10,11,12},{"Kohitātea","Hui‑tanguru","Poutū‑te‑rangi","Paengawhāwhā","Haratua","Pipiri","Hōngongoi","Here‑turi‑kōkā","Mahuru","Whiringa‑ā‑nuku","Whiringa‑ā‑rangi","Hakihea"}) -> Kohitātea | E30: Kohitātea | F30: 2026 | G30: 2026 | H30: =LOOKUP(WEEKDAY(A30),{1,2,3,4,5,6,7},{"Rātapu","Rāhina","Rātū","Rāapa","Rāpare","Rāmere","Rāhoroi ","Rātapu"}) -> Rāpare | I30: Rāmere | J30: 2026-01-01 | N30: 1 | O30: 2 | P30: 3 | Q30: 4 | R30: 5 | S30: 6 | T30: 7 | U30: 8 | V30: 9 | W30: 10 | X30: 11 | Y30: 12 | Z30: 13 | AA30: 14 | AB30: 15 | AC30: 16 | AD30: 17 | AE30: 18 | AF30: 19 | AG30: 20 | AH30: 21 | AI30: 22 | AJ30: 23 | AK30: 24 | AL30: 25 | AM30: =IF(ISERROR(DATEVALUE(AL30+1 & " "&TEXT($A30,"Mmmm") & " " & $F30))," ",AL30+1) -> 26 | AN30: 27 | AO30: 28 | AP30: 29 | AQ30: 30 | AR30: 31 | AV30: =LOOKUP(VALUE(TEXT(AW30,"M")),{1,2,3,4,5,6,7,8,9,10,11,12},{"Kohitātea","Hui‑tanguru","Poutū‑te‑rangi","Paengawhāwhā","Haratua","Pipiri","Hōngongoi","Here‑turi‑kōkā","Mahuru","Whiringa‑ā‑nuku","Whiringa‑ā‑rangi","Hakihea"}) -> Hui‑tanguru | AW30: 46054 | BD30: 1 | BE30: 2 | BF30: 3 | BG30: 4 | BH30: 5 | BI30: 6 | BJ30: 7 | BK30: 8 | BL30: 9 | BM30: 10 | BN30: 11 | BO30: 12 | BP30: 13 | BQ30: 14 | BR30: 15 | BS30: 16 | BT30: 17 | BU30: 18 | BV30: 19 | BW30: 20 | BX30: 21 | BY30: 22 | BZ30: =IF(ISERROR(DATEVALUE(BY30+1 & " "&TEXT($AW30,"Mmmm") & " " & $F30)),"∙",BY30+1) -> 23 | CA30: 24 | CB30: 25 | CC30: 26 | CD30: 27 | CE30: 28 | CF30: ∙ | CG30: ∙ | CH30: ∙ | CI30: =SunsetTime(A30, -41.2865, 174.7762, 13) -> 2026-01-28T19:47:05.151 | CJ30: =ExcelToJD(CI30-CN30/24) -> 2461068.783 | CK30: =NewMoonPrevious(CI30 - CN30/24) -> 2461059.329 | CL30: 9.454040819 | CM30: =_xlfn.IFS( CL30<1,"Whiro", CL30<2,"Tirea", CL30<3,"Ohata", CL30<4,"Ōuenuku", CL30<5,"Okoro", CL30<6,"Tamatea-kai-ariki", CL30<7,"Tamatea-wananga", CL30<8,"Tamatea-ā-āio", CL30<9,"Tamatea-whakapau", CL30<10,"Huna", CL30<11,"Airoa", CL30<12,"Hotu", CL30<13,"Māwharu", CL30<14,"Atua whakahaehae", CL30<15,"Ōhua", CL30<16,"Ōturu", CL30<17,"Rākaunui", CL30<18,"Rākaumatohi", CL30<19,"Takiraua", CL30<20,"Oike", CL30<21,"Korekore", CL30<22,"Korekore tuarua", CL30<23,"Korekore piri ki Tangaroa", CL30<24,"Tangaroa ā-mua", CL30<25,"Tangaroa ā-roto", CL30<26,"Tangaroa ata kiokio", CL30<27,"Ōtāne", CL30<28,"Ōrongonui", CL30<29,"Maurea", CL30<30,"Mutuwhenua" ) -> Huna | CN30: =LookupTimezoneOffset(A30) -> 13 | CO30: 2026-01-29
A31: 2026-01-30 | B31: 30 o | C31: 31 o | D31: =LOOKUP(VALUE(TEXT(A31,"M")),{1,2,3,4,5,6,7,8,9,10,11,12},{"Kohitātea","Hui‑tanguru","Poutū‑te‑rangi","Paengawhāwhā","Haratua","Pipiri","Hōngongoi","Here‑turi‑kōkā","Mahuru","Whiringa‑ā‑nuku","Whiringa‑ā‑rangi","Hakihea"}) -> Kohitātea | E31: Kohitātea | F31: 2026 | G31: 2026 | H31: =LOOKUP(WEEKDAY(A31),{1,2,3,4,5,6,7},{"Rātapu","Rāhina","Rātū","Rāapa","Rāpare","Rāmere","Rāhoroi ","Rātapu"}) -> Rāmere | I31: Rāhoroi | J31: 2026-01-01 | N31: 1 | O31: 2 | P31: 3 | Q31: 4 | R31: 5 | S31: 6 | T31: 7 | U31: 8 | V31: 9 | W31: 10 | X31: 11 | Y31: 12 | Z31: 13 | AA31: 14 | AB31: 15 | AC31: 16 | AD31: 17 | AE31: 18 | AF31: 19 | AG31: 20 | AH31: 21 | AI31: 22 | AJ31: 23 | AK31: 24 | AL31: 25 | AM31: =IF(ISERROR(DATEVALUE(AL31+1 & " "&TEXT($A31,"Mmmm") & " " & $F31))," ",AL31+1) -> 26 | AN31: 27 | AO31: 28 | AP31: 29 | AQ31: 30 | AR31: 31 | AV31: =LOOKUP(VALUE(TEXT(AW31,"M")),{1,2,3,4,5,6,7,8,9,10,11,12},{"Kohitātea","Hui‑tanguru","Poutū‑te‑rangi","Paengawhāwhā","Haratua","Pipiri","Hōngongoi","Here‑turi‑kōkā","Mahuru","Whiringa‑ā‑nuku","Whiringa‑ā‑rangi","Hakihea"}) -> Hui‑tanguru | AW31: 46054 | BD31: 1 | BE31: 2 | BF31: 3 | BG31: 4 | BH31: 5 | BI31: 6 | BJ31: 7 | BK31: 8 | BL31: 9 | BM31: 10 | BN31: 11 | BO31: 12 | BP31: 13 | BQ31: 14 | BR31: 15 | BS31: 16 | BT31: 17 | BU31: 18 | BV31: 19 | BW31: 20 | BX31: 21 | BY31: 22 | BZ31: =IF(ISERROR(DATEVALUE(BY31+1 & " "&TEXT($AW31,"Mmmm") & " " & $F31)),"∙",BY31+1) -> 23 | CA31: 24 | CB31: 25 | CC31: 26 | CD31: 27 | CE31: 28 | CF31: ∙ | CG31: ∙ | CH31: ∙ | CI31: =SunsetTime(A31, -41.2865, 174.7762, 13) -> 2026-01-29T19:46:12.751 | CJ31: =ExcelToJD(CI31-CN31/24) -> 2461069.782 | CK31: =NewMoonPrevious(CI31 - CN31/24) -> 2461059.329 | CL31: 10.45343434 | CM31: =_xlfn.IFS( CL31<1,"Whiro", CL31<2,"Tirea", CL31<3,"Ohata", CL31<4,"Ōuenuku", CL31<5,"Okoro", CL31<6,"Tamatea-kai-ariki", CL31<7,"Tamatea-wananga", CL31<8,"Tamatea-ā-āio", CL31<9,"Tamatea-whakapau", CL31<10,"Huna", CL31<11,"Airoa", CL31<12,"Hotu", CL31<13,"Māwharu", CL31<14,"Atua whakahaehae", CL31<15,"Ōhua", CL31<16,"Ōturu", CL31<17,"Rākaunui", CL31<18,"Rākaumatohi", CL31<19,"Takiraua", CL31<20,"Oike", CL31<21,"Korekore", CL31<22,"Korekore tuarua", CL31<23,"Korekore piri ki Tangaroa", CL31<24,"Tangaroa ā-mua", CL31<25,"Tangaroa ā-roto", CL31<26,"Tangaroa ata kiokio", CL31<27,"Ōtāne", CL31<28,"Ōrongonui", CL31<29,"Maurea", CL31<30,"Mutuwhenua" ) -> Airoa | CN31: =LookupTimezoneOffset(A31) -> 13 | CO31: 2026-01-30
A32: 2026-01-31 | B32: 31 o | C32: 1 o | D32: =LOOKUP(VALUE(TEXT(A32,"M")),{1,2,3,4,5,6,7,8,9,10,11,12},{"Kohitātea","Hui‑tanguru","Poutū‑te‑rangi","Paengawhāwhā","Haratua","Pipiri","Hōngongoi","Here‑turi‑kōkā","Mahuru","Whiringa‑ā‑nuku","Whiringa‑ā‑rangi","Hakihea"}) -> Kohitātea | E32: Hui‑tanguru | F32: 2026 | G32: 2026 | H32: =LOOKUP(WEEKDAY(A32),{1,2,3,4,5,6,7},{"Rātapu","Rāhina","Rātū","Rāapa","Rāpare","Rāmere","Rāhoroi ","Rātapu"}) -> Rāhoroi | I32: Rātapu | J32: 2026-01-01 | N32: 1 | O32: 2 | P32: 3 | Q32: 4 | R32: 5 | S32: 6 | T32: 7 | U32: 8 | V32: 9 | W32: 10 | X32: 11 | Y32: 12 | Z32: 13 | AA32: 14 | AB32: 15 | AC32: 16 | AD32: 17 | AE32: 18 | AF32: 19 | AG32: 20 | AH32: 21 | AI32: 22 | AJ32: 23 | AK32: 24 | AL32: 25 | AM32: =IF(ISERROR(DATEVALUE(AL32+1 & " "&TEXT($A32,"Mmmm") & " " & $F32))," ",AL32+1) -> 26 | AN32: 27 | AO32: 28 | AP32: 29 | AQ32: 30 | AR32: 31 | AV32: =LOOKUP(VALUE(TEXT(AW32,"M")),{1,2,3,4,5,6,7,8,9,10,11,12},{"Kohitātea","Hui‑tanguru","Poutū‑te‑rangi","Paengawhāwhā","Haratua","Pipiri","Hōngongoi","Here‑turi‑kōkā","Mahuru","Whiringa‑ā‑nuku","Whiringa‑ā‑rangi","Hakihea"}) -> Hui‑tanguru | AW32: 46054 | BD32: 1 | BE32: 2 | BF32: 3 | BG32: 4 | BH32: 5 | BI32: 6 | BJ32: 7 | BK32: 8 | BL32: 9 | BM32: 10 | BN32: 11 | BO32: 12 | BP32: 13 | BQ32: 14 | BR32: 15 | BS32: 16 | BT32: 17 | BU32: 18 | BV32: 19 | BW32: 20 | BX32: 21 | BY32: 22 | BZ32: =IF(ISERROR(DATEVALUE(BY32+1 & " "&TEXT($AW32,"Mmmm") & " " & $F32)),"∙",BY32+1) -> 23 | CA32: 24 | CB32: 25 | CC32: 26 | CD32: 27 | CE32: 28 | CF32: ∙ | CG32: ∙ | CH32: ∙ | CI32: =SunsetTime(A32, -41.2865, 174.7762, 13) -> 2026-01-30T19:45:18.579 | CJ32: =ExcelToJD(CI32-CN32/24) -> 2461070.781 | CK32: =NewMoonPrevious(CI32 - CN32/24) -> 2461059.329 | CL32: 11.45280735 | CM32: =_xlfn.IFS( CL32<1,"Whiro", CL32<2,"Tirea", CL32<3,"Ohata", CL32<4,"Ōuenuku", CL32<5,"Okoro", CL32<6,"Tamatea-kai-ariki", CL32<7,"Tamatea-wananga", CL32<8,"Tamatea-ā-āio", CL32<9,"Tamatea-whakapau", CL32<10,"Huna", CL32<11,"Airoa", CL32<12,"Hotu", CL32<13,"Māwharu", CL32<14,"Atua whakahaehae", CL32<15,"Ōhua", CL32<16,"Ōturu", CL32<17,"Rākaunui", CL32<18,"Rākaumatohi", CL32<19,"Takiraua", CL32<20,"Oike", CL32<21,"Korekore", CL32<22,"Korekore tuarua", CL32<23,"Korekore piri ki Tangaroa", CL32<24,"Tangaroa ā-mua", CL32<25,"Tangaroa ā-roto", CL32<26,"Tangaroa ata kiokio", CL32<27,"Ōtāne", CL32<28,"Ōrongonui", CL32<29,"Maurea", CL32<30,"Mutuwhenua" ) -> Hotu | CN32: =LookupTimezoneOffset(A32) -> 13 | CO32: 2026-01-31
A33: 2026-02-01 | B33: 1 o | C33: 2 o | D33: =LOOKUP(VALUE(TEXT(A33,"M")),{1,2,3,4,5,6,7,8,9,10,11,12},{"Kohitātea","Hui‑tanguru","Poutū‑te‑rangi","Paengawhāwhā","Haratua","Pipiri","Hōngongoi","Here‑turi‑kōkā","Mahuru","Whiringa‑ā‑nuku","Whiringa‑ā‑rangi","Hakihea"}) -> Hui‑tanguru | E33: Hui‑tanguru | F33: 2026 | G33: 2026 | H33: =LOOKUP(WEEKDAY(A33),{1,2,3,4,5,6,7},{"Rātapu","Rāhina","Rātū","Rāapa","Rāpare","Rāmere","Rāhoroi ","Rātapu"}) -> Rātapu | I33: Rāhina | J33: 2026-02-01 | Q33: 1 | R33: 2 | S33: 3 | T33: 4 | U33: 5 | V33: 6 | W33: 7 | X33: 8 | Y33: 9 | Z33: 10 | AA33: 11 | AB33: 12 | AC33: 13 | AD33: 14 | AE33: 15 | AF33: 16 | AG33: 17 | AH33: 18 | AI33: 19 | AJ33: 20 | AK33: 21 | AL33: 22 | AM33: =IF(ISERROR(DATEVALUE(AL33+1 & " "&TEXT($A33,"Mmmm") & " " & $F33))," ",AL33+1) -> 23 | AN33: 24 | AO33: 25 | AP33: 26 | AQ33: 27 | AR33: 28 | AV33: =LOOKUP(VALUE(TEXT(AW33,"M")),{1,2,3,4,5,6,7,8,9,10,11,12},{"Kohitātea","Hui‑tanguru","Poutū‑te‑rangi","Paengawhāwhā","Haratua","Pipiri","Hōngongoi","Here‑turi‑kōkā","Mahuru","Whiringa‑ā‑nuku","Whiringa‑ā‑rangi","Hakihea"}) -> Poutū‑te‑rangi | AW33: 46082 | BD33: 1 | BE33: 2 | BF33: 3 | BG33: 4 | BH33: 5 | BI33: 6 | BJ33: 7 | BK33: 8 | BL33: 9 | BM33: 10 | BN33: 11 | BO33: 12 | BP33: 13 | BQ33: 14 | BR33: 15 | BS33: 16 | BT33: 17 | BU33: 18 | BV33: 19 | BW33: 20 | BX33: 21 | BY33: 22 | BZ33: =IF(ISERROR(DATEVALUE(BY33+1 & " "&TEXT($AW33,"Mmmm") & " " & $F33)),"∙",BY33+1) -> 23 | CA33: 24 | CB33: 25 | CC33: 26 | CD33: 27 | CE33: 28 | CF33: 29 | CG33: 30 | CH33: 31 | CI33: =SunsetTime(A33, -41.2865, 174.7762, 13) -> 2026-01-31T19:44:22.663 | CJ33: =ExcelToJD(CI33-CN33/24) -> 2461071.781 | CK33: =NewMoonPrevious(CI33 - CN33/24) -> 2461059.329 | CL33: 12.45216017 | CM33: =_xlfn.IFS( CL33<1,"Whiro", CL33<2,"Tirea", CL33<3,"Ohata", CL33<4,"Ōuenuku", CL33<5,"Okoro", CL33<6,"Tamatea-kai-ariki", CL33<7,"Tamatea-wananga", CL33<8,"Tamatea-ā-āio", CL33<9,"Tamatea-whakapau", CL33<10,"Huna", CL33<11,"Airoa", CL33<12,"Hotu", CL33<13,"Māwharu", CL33<14,"Atua whakahaehae", CL33<15,"Ōhua", CL33<16,"Ōturu", CL33<17,"Rākaunui", CL33<18,"Rākaumatohi", CL33<19,"Takiraua", CL33<20,"Oike", CL33<21,"Korekore", CL33<22,"Korekore tuarua", CL33<23,"Korekore piri ki Tangaroa", CL33<24,"Tangaroa ā-mua", CL33<25,"Tangaroa ā-roto", CL33<26,"Tangaroa ata kiokio", CL33<27,"Ōtāne", CL33<28,"Ōrongonui", CL33<29,"Maurea", CL33<30,"Mutuwhenua" ) -> Māwharu | CN33: =LookupTimezoneOffset(A33) -> 13 | CO33: 2026-02-01
A34: 2026-02-02 | B34: 2 o | C34: 3 o | D34: =LOOKUP(VALUE(TEXT(A34,"M")),{1,2,3,4,5,6,7,8,9,10,11,12},{"Kohitātea","Hui‑tanguru","Poutū‑te‑rangi","Paengawhāwhā","Haratua","Pipiri","Hōngongoi","Here‑turi‑kōkā","Mahuru","Whiringa‑ā‑nuku","Whiringa‑ā‑rangi","Hakihea"}) -> Hui‑tanguru | E34: Hui‑tanguru | F34: 2026 | G34: 2026 | H34: =LOOKUP(WEEKDAY(A34),{1,2,3,4,5,6,7},{"Rātapu","Rāhina","Rātū","Rāapa","Rāpare","Rāmere","Rāhoroi ","Rātapu"}) -> Rāhina | I34: Rātū | J34: 2026-02-01 | Q34: 1 | R34: 2 | S34: 3 | T34: 4 | U34: 5 | V34: 6 | W34: 7 | X34: 8 | Y34: 9 | Z34: 10 | AA34: 11 | AB34: 12 | AC34: 13 | AD34: 14 | AE34: 15 | AF34: 16 | AG34: 17 | AH34: 18 | AI34: 19 | AJ34: 20 | AK34: 21 | AL34: 22 | AM34: =IF(ISERROR(DATEVALUE(AL34+1 & " "&TEXT($A34,"Mmmm") & " " & $F34))," ",AL34+1) -> 23 | AN34: 24 | AO34: 25 | AP34: 26 | AQ34: 27 | AR34: 28 | AV34: =LOOKUP(VALUE(TEXT(AW34,"M")),{1,2,3,4,5,6,7,8,9,10,11,12},{"Kohitātea","Hui‑tanguru","Poutū‑te‑rangi","Paengawhāwhā","Haratua","Pipiri","Hōngongoi","Here‑turi‑kōkā","Mahuru","Whiringa‑ā‑nuku","Whiringa‑ā‑rangi","Hakihea"}) -> Poutū‑te‑rangi | AW34: 46082 | BD34: 1 | BE34: 2 | BF34: 3 | BG34: 4 | BH34: 5 | BI34: 6 | BJ34: 7 | BK34: 8 | BL34: 9 | BM34: 10 | BN34: 11 | BO34: 12 | BP34: 13 | BQ34: 14 | BR34: 15 | BS34: 16 | BT34: 17 | BU34: 18 | BV34: 19 | BW34: 20 | BX34: 21 | BY34: 22 | BZ34: =IF(ISERROR(DATEVALUE(BY34+1 & " "&TEXT($AW34,"Mmmm") & " " & $F34)),"∙",BY34+1) -> 23 | CA34: 24 | CB34: 25 | CC34: 26 | CD34: 27 | CE34: 28 | CF34: 29 | CG34: 30 | CH34: 31 | CI34: =SunsetTime(A34, -41.2865, 174.7762, 13) -> 2026-02-01T19:43:25.031 | CJ34: =ExcelToJD(CI34-CN34/24) -> 2461072.78 | CK34: =NewMoonPrevious(CI34 - CN34/24) -> 2461059.329 | CL34: 13.45149314 | CM34: =_xlfn.IFS( CL34<1,"Whiro", CL34<2,"Tirea", CL34<3,"Ohata", CL34<4,"Ōuenuku", CL34<5,"Okoro", CL34<6,"Tamatea-kai-ariki", CL34<7,"Tamatea-wananga", CL34<8,"Tamatea-ā-āio", CL34<9,"Tamatea-whakapau", CL34<10,"Huna", CL34<11,"Airoa", CL34<12,"Hotu", CL34<13,"Māwharu", CL34<14,"Atua whakahaehae", CL34<15,"Ōhua", CL34<16,"Ōturu", CL34<17,"Rākaunui", CL34<18,"Rākaumatohi", CL34<19,"Takiraua", CL34<20,"Oike", CL34<21,"Korekore", CL34<22,"Korekore tuarua", CL34<23,"Korekore piri ki Tangaroa", CL34<24,"Tangaroa ā-mua", CL34<25,"Tangaroa ā-roto", CL34<26,"Tangaroa ata kiokio", CL34<27,"Ōtāne", CL34<28,"Ōrongonui", CL34<29,"Maurea", CL34<30,"Mutuwhenua" ) -> Atua whakahaehae | CN34: =LookupTimezoneOffset(A34) -> 13 | CO34: 2026-02-02
A35: 2026-02-03 | B35: 3 o | C35: 4 o | D35: =LOOKUP(VALUE(TEXT(A35,"M")),{1,2,3,4,5,6,7,8,9,10,11,12},{"Kohitātea","Hui‑tanguru","Poutū‑te‑rangi","Paengawhāwhā","Haratua","Pipiri","Hōngongoi","Here‑turi‑kōkā","Mahuru","Whiringa‑ā‑nuku","Whiringa‑ā‑rangi","Hakihea"}) -> Hui‑tanguru | E35: Hui‑tanguru | F35: 2026 | G35: 2026 | H35: =LOOKUP(WEEKDAY(A35),{1,2,3,4,5,6,7},{"Rātapu","Rāhina","Rātū","Rāapa","Rāpare","Rāmere","Rāhoroi ","Rātapu"}) -> Rātū | I35: Rāapa | J35: 2026-02-01 | Q35: 1 | R35: 2 | S35: 3 | T35: 4 | U35: 5 | V35: 6 | W35: 7 | X35: 8 | Y35: 9 | Z35: 10 | AA35: 11 | AB35: 12 | AC35: 13 | AD35: 14 | AE35: 15 | AF35: 16 | AG35: 17 | AH35: 18 | AI35: 19 | AJ35: 20 | AK35: 21 | AL35: 22 | AM35: =IF(ISERROR(DATEVALUE(AL35+1 & " "&TEXT($A35,"Mmmm") & " " & $F35))," ",AL35+1) -> 23 | AN35: 24 | AO35: 25 | AP35: 26 | AQ35: 27 | AR35: 28 | AV35: =LOOKUP(VALUE(TEXT(AW35,"M")),{1,2,3,4,5,6,7,8,9,10,11,12},{"Kohitātea","Hui‑tanguru","Poutū‑te‑rangi","Paengawhāwhā","Haratua","Pipiri","Hōngongoi","Here‑turi‑kōkā","Mahuru","Whiringa‑ā‑nuku","Whiringa‑ā‑rangi","Hakihea"}) -> Poutū‑te‑rangi | AW35: 46082 | BD35: 1 | BE35: 2 | BF35: 3 | BG35: 4 | BH35: 5 | BI35: 6 | BJ35: 7 | BK35: 8 | BL35: 9 | BM35: 10 | BN35: 11 | BO35: 12 | BP35: 13 | BQ35: 14 | BR35: 15 | BS35: 16 | BT35: 17 | BU35: 18 | BV35: 19 | BW35: 20 | BX35: 21 | BY35: 22 | BZ35: =IF(ISERROR(DATEVALUE(BY35+1 & " "&TEXT($AW35,"Mmmm") & " " & $F35)),"∙",BY35+1) -> 23 | CA35: 24 | CB35: 25 | CC35: 26 | CD35: 27 | CE35: 28 | CF35: 29 | CG35: 30 | CH35: 31 | CI35: =SunsetTime(A35, -41.2865, 174.7762, 13) -> 2026-02-02T19:42:25.714 | CJ35: =ExcelToJD(CI35-CN35/24) -> 2461073.779 | CK35: =NewMoonPrevious(CI35 - CN35/24) -> 2461059.329 | CL35: 14.4508066 | CM35: =_xlfn.IFS( CL35<1,"Whiro", CL35<2,"Tirea", CL35<3,"Ohata", CL35<4,"Ōuenuku", CL35<5,"Okoro", CL35<6,"Tamatea-kai-ariki", CL35<7,"Tamatea-wananga", CL35<8,"Tamatea-ā-āio", CL35<9,"Tamatea-whakapau", CL35<10,"Huna", CL35<11,"Airoa", CL35<12,"Hotu", CL35<13,"Māwharu", CL35<14,"Atua whakahaehae", CL35<15,"Ōhua", CL35<16,"Ōturu", CL35<17,"Rākaunui", CL35<18,"Rākaumatohi", CL35<19,"Takiraua", CL35<20,"Oike", CL35<21,"Korekore", CL35<22,"Korekore tuarua", CL35<23,"Korekore piri ki Tangaroa", CL35<24,"Tangaroa ā-mua", CL35<25,"Tangaroa ā-roto", CL35<26,"Tangaroa ata kiokio", CL35<27,"Ōtāne", CL35<28,"Ōrongonui", CL35<29,"Maurea", CL35<30,"Mutuwhenua" ) -> Ōhua | CN35: =LookupTimezoneOffset(A35) -> 13
A36: 2026-02-04 | B36: 4 o | C36: 5 o | D36: =LOOKUP(VALUE(TEXT(A36,"M")),{1,2,3,4,5,6,7,8,9,10,11,12},{"Kohitātea","Hui‑tanguru","Poutū‑te‑rangi","Paengawhāwhā","Haratua","Pipiri","Hōngongoi","Here‑turi‑kōkā","Mahuru","Whiringa‑ā‑nuku","Whiringa‑ā‑rangi","Hakihea"}) -> Hui‑tanguru | E36: Hui‑tanguru | F36: 2026 | G36: 2026 | H36: =LOOKUP(WEEKDAY(A36),{1,2,3,4,5,6,7},{"Rātapu","Rāhina","Rātū","Rāapa","Rāpare","Rāmere","Rāhoroi ","Rātapu"}) -> Rāapa | I36: Rāpare | J36: 2026-02-01 | Q36: 1 | R36: 2 | S36: 3 | T36: 4 | U36: 5 | V36: 6 | W36: 7 | X36: 8 | Y36: 9 | Z36: 10 | AA36: 11 | AB36: 12 | AC36: 13 | AD36: 14 | AE36: 15 | AF36: 16 | AG36: 17 | AH36: 18 | AI36: 19 | AJ36: 20 | AK36: 21 | AL36: 22 | AM36: =IF(ISERROR(DATEVALUE(AL36+1 & " "&TEXT($A36,"Mmmm") & " " & $F36))," ",AL36+1) -> 23 | AN36: 24 | AO36: 25 | AP36: 26 | AQ36: 27 | AR36: 28 | AV36: =LOOKUP(VALUE(TEXT(AW36,"M")),{1,2,3,4,5,6,7,8,9,10,11,12},{"Kohitātea","Hui‑tanguru","Poutū‑te‑rangi","Paengawhāwhā","Haratua","Pipiri","Hōngongoi","Here‑turi‑kōkā","Mahuru","Whiringa‑ā‑nuku","Whiringa‑ā‑rangi","Hakihea"}) -> Poutū‑te‑rangi | AW36: 46082 | BD36: 1 | BE36: 2 | BF36: 3 | BG36: 4 | BH36: 5 | BI36: 6 | BJ36: 7 | BK36: 8 | BL36: 9 | BM36: 10 | BN36: 11 | BO36: 12 | BP36: 13 | BQ36: 14 | BR36: 15 | BS36: 16 | BT36: 17 | BU36: 18 | BV36: 19 | BW36: 20 | BX36: 21 | BY36: 22 | BZ36: =IF(ISERROR(DATEVALUE(BY36+1 & " "&TEXT($AW36,"Mmmm") & " " & $F36)),"∙",BY36+1) -> 23 | CA36: 24 | CB36: 25 | CC36: 26 | CD36: 27 | CE36: 28 | CF36: 29 | CG36: 30 | CH36: 31 | CI36: =SunsetTime(A36, -41.2865, 174.7762, 13) -> 2026-02-03T19:41:24.740 | CJ36: =ExcelToJD(CI36-CN36/24) -> 2461074.779 | CK36: =NewMoonPrevious(CI36 - CN36/24) -> 2461059.329 | CL36: 15.45010088 | CM36: =_xlfn.IFS( CL36<1,"Whiro", CL36<2,"Tirea", CL36<3,"Ohata", CL36<4,"Ōuenuku", CL36<5,"Okoro", CL36<6,"Tamatea-kai-ariki", CL36<7,"Tamatea-wananga", CL36<8,"Tamatea-ā-āio", CL36<9,"Tamatea-whakapau", CL36<10,"Huna", CL36<11,"Airoa", CL36<12,"Hotu", CL36<13,"Māwharu", CL36<14,"Atua whakahaehae", CL36<15,"Ōhua", CL36<16,"Ōturu", CL36<17,"Rākaunui", CL36<18,"Rākaumatohi", CL36<19,"Takiraua", CL36<20,"Oike", CL36<21,"Korekore", CL36<22,"Korekore tuarua", CL36<23,"Korekore piri ki Tangaroa", CL36<24,"Tangaroa ā-mua", CL36<25,"Tangaroa ā-roto", CL36<26,"Tangaroa ata kiokio", CL36<27,"Ōtāne", CL36<28,"Ōrongonui", CL36<29,"Maurea", CL36<30,"Mutuwhenua" ) -> Ōturu | CN36: =LookupTimezoneOffset(A36) -> 13
A37: 2026-02-05 | B37: 5 o | C37: 6 o | D37: =LOOKUP(VALUE(TEXT(A37,"M")),{1,2,3,4,5,6,7,8,9,10,11,12},{"Kohitātea","Hui‑tanguru","Poutū‑te‑rangi","Paengawhāwhā","Haratua","Pipiri","Hōngongoi","Here‑turi‑kōkā","Mahuru","Whiringa‑ā‑nuku","Whiringa‑ā‑rangi","Hakihea"}) -> Hui‑tanguru | E37: Hui‑tanguru | F37: 2026 | G37: 2026 | H37: =LOOKUP(WEEKDAY(A37),{1,2,3,4,5,6,7},{"Rātapu","Rāhina","Rātū","Rāapa","Rāpare","Rāmere","Rāhoroi ","Rātapu"}) -> Rāpare | I37: Rāmere | J37: 2026-02-01 | Q37: 1 | R37: 2 | S37: 3 | T37: 4 | U37: 5 | V37: 6 | W37: 7 | X37: 8 | Y37: 9 | Z37: 10 | AA37: 11 | AB37: 12 | AC37: 13 | AD37: 14 | AE37: 15 | AF37: 16 | AG37: 17 | AH37: 18 | AI37: 19 | AJ37: 20 | AK37: 21 | AL37: 22 | AM37: =IF(ISERROR(DATEVALUE(AL37+1 & " "&TEXT($A37,"Mmmm") & " " & $F37))," ",AL37+1) -> 23 | AN37: 24 | AO37: 25 | AP37: 26 | AQ37: 27 | AR37: 28 | AV37: =LOOKUP(VALUE(TEXT(AW37,"M")),{1,2,3,4,5,6,7,8,9,10,11,12},{"Kohitātea","Hui‑tanguru","Poutū‑te‑rangi","Paengawhāwhā","Haratua","Pipiri","Hōngongoi","Here‑turi‑kōkā","Mahuru","Whiringa‑ā‑nuku","Whiringa‑ā‑rangi","Hakihea"}) -> Poutū‑te‑rangi | AW37: 46082 | BD37: 1 | BE37: 2 | BF37: 3 | BG37: 4 | BH37: 5 | BI37: 6 | BJ37: 7 | BK37: 8 | BL37: 9 | BM37: 10 | BN37: 11 | BO37: 12 | BP37: 13 | BQ37: 14 | BR37: 15 | BS37: 16 | BT37: 17 | BU37: 18 | BV37: 19 | BW37: 20 | BX37: 21 | BY37: 22 | BZ37: =IF(ISERROR(DATEVALUE(BY37+1 & " "&TEXT($AW37,"Mmmm") & " " & $F37)),"∙",BY37+1) -> 23 | CA37: 24 | CB37: 25 | CC37: 26 | CD37: 27 | CE37: 28 | CF37: 29 | CG37: 30 | CH37: 31 | CI37: =SunsetTime(A37, -41.2865, 174.7762, 13) -> 2026-02-04T19:40:22.139 | CJ37: =ExcelToJD(CI37-CN37/24) -> 2461075.778 | CK37: =NewMoonPrevious(CI37 - CN37/24) -> 2461059.329 | CL37: 16.44937634 | CM37: =_xlfn.IFS( CL37<1,"Whiro", CL37<2,"Tirea", CL37<3,"Ohata", CL37<4,"Ōuenuku", CL37<5,"Okoro", CL37<6,"Tamatea-kai-ariki", CL37<7,"Tamatea-wananga", CL37<8,"Tamatea-ā-āio", CL37<9,"Tamatea-whakapau", CL37<10,"Huna", CL37<11,"Airoa", CL37<12,"Hotu", CL37<13,"Māwharu", CL37<14,"Atua whakahaehae", CL37<15,"Ōhua", CL37<16,"Ōturu", CL37<17,"Rākaunui", CL37<18,"Rākaumatohi", CL37<19,"Takiraua", CL37<20,"Oike", CL37<21,"Korekore", CL37<22,"Korekore tuarua", CL37<23,"Korekore piri ki Tangaroa", CL37<24,"Tangaroa ā-mua", CL37<25,"Tangaroa ā-roto", CL37<26,"Tangaroa ata kiokio", CL37<27,"Ōtāne", CL37<28,"Ōrongonui", CL37<29,"Maurea", CL37<30,"Mutuwhenua" ) -> Rākaunui | CN37: =LookupTimezoneOffset(A37) -> 13
A38: 2026-02-06 | B38: 6 o | C38: 7 o | D38: =LOOKUP(VALUE(TEXT(A38,"M")),{1,2,3,4,5,6,7,8,9,10,11,12},{"Kohitātea","Hui‑tanguru","Poutū‑te‑rangi","Paengawhāwhā","Haratua","Pipiri","Hōngongoi","Here‑turi‑kōkā","Mahuru","Whiringa‑ā‑nuku","Whiringa‑ā‑rangi","Hakihea"}) -> Hui‑tanguru | E38: Hui‑tanguru | F38: 2026 | G38: 2026 | H38: =LOOKUP(WEEKDAY(A38),{1,2,3,4,5,6,7},{"Rātapu","Rāhina","Rātū","Rāapa","Rāpare","Rāmere","Rāhoroi ","Rātapu"}) -> Rāmere | I38: Rāhoroi | J38: 2026-02-01 | Q38: 1 | R38: 2 | S38: 3 | T38: 4 | U38: 5 | V38: 6 | W38: 7 | X38: 8 | Y38: 9 | Z38: 10 | AA38: 11 | AB38: 12 | AC38: 13 | AD38: 14 | AE38: 15 | AF38: 16 | AG38: 17 | AH38: 18 | AI38: 19 | AJ38: 20 | AK38: 21 | AL38: 22 | AM38: =IF(ISERROR(DATEVALUE(AL38+1 & " "&TEXT($A38,"Mmmm") & " " & $F38))," ",AL38+1) -> 23 | AN38: 24 | AO38: 25 | AP38: 26 | AQ38: 27 | AR38: 28 | AV38: =LOOKUP(VALUE(TEXT(AW38,"M")),{1,2,3,4,5,6,7,8,9,10,11,12},{"Kohitātea","Hui‑tanguru","Poutū‑te‑rangi","Paengawhāwhā","Haratua","Pipiri","Hōngongoi","Here‑turi‑kōkā","Mahuru","Whiringa‑ā‑nuku","Whiringa‑ā‑rangi","Hakihea"}) -> Poutū‑te‑rangi | AW38: 46082 | BD38: 1 | BE38: 2 | BF38: 3 | BG38: 4 | BH38: 5 | BI38: 6 | BJ38: 7 | BK38: 8 | BL38: 9 | BM38: 10 | BN38: 11 | BO38: 12 | BP38: 13 | BQ38: 14 | BR38: 15 | BS38: 16 | BT38: 17 | BU38: 18 | BV38: 19 | BW38: 20 | BX38: 21 | BY38: 22 | BZ38: =IF(ISERROR(DATEVALUE(BY38+1 & " "&TEXT($AW38,"Mmmm") & " " & $F38)),"∙",BY38+1) -> 23 | CA38: 24 | CB38: 25 | CC38: 26 | CD38: 27 | CE38: 28 | CF38: 29 | CG38: 30 | CH38: 31 | CI38: =SunsetTime(A38, -41.2865, 174.7762, 13) -> 2026-02-05T19:39:17.941 | CJ38: =ExcelToJD(CI38-CN38/24) -> 2461076.777 | CK38: =NewMoonPrevious(CI38 - CN38/24) -> 2461059.329 | CL38: 17.4486333 | CM38: =_xlfn.IFS( CL38<1,"Whiro", CL38<2,"Tirea", CL38<3,"Ohata", CL38<4,"Ōuenuku", CL38<5,"Okoro", CL38<6,"Tamatea-kai-ariki", CL38<7,"Tamatea-wananga", CL38<8,"Tamatea-ā-āio", CL38<9,"Tamatea-whakapau", CL38<10,"Huna", CL38<11,"Airoa", CL38<12,"Hotu", CL38<13,"Māwharu", CL38<14,"Atua whakahaehae", CL38<15,"Ōhua", CL38<16,"Ōturu", CL38<17,"Rākaunui", CL38<18,"Rākaumatohi", CL38<19,"Takiraua", CL38<20,"Oike", CL38<21,"Korekore", CL38<22,"Korekore tuarua", CL38<23,"Korekore piri ki Tangaroa", CL38<24,"Tangaroa ā-mua", CL38<25,"Tangaroa ā-roto", CL38<26,"Tangaroa ata kiokio", CL38<27,"Ōtāne", CL38<28,"Ōrongonui", CL38<29,"Maurea", CL38<30,"Mutuwhenua" ) -> Rākaumatohi | CN38: =LookupTimezoneOffset(A38) -> 13
A39: 2026-02-07 | B39: 7 o | C39: 8 o | D39: =LOOKUP(VALUE(TEXT(A39,"M")),{1,2,3,4,5,6,7,8,9,10,11,12},{"Kohitātea","Hui‑tanguru","Poutū‑te‑rangi","Paengawhāwhā","Haratua","Pipiri","Hōngongoi","Here‑turi‑kōkā","Mahuru","Whiringa‑ā‑nuku","Whiringa‑ā‑rangi","Hakihea"}) -> Hui‑tanguru | E39: Hui‑tanguru | F39: 2026 | G39: 2026 | H39: =LOOKUP(WEEKDAY(A39),{1,2,3,4,5,6,7},{"Rātapu","Rāhina","Rātū","Rāapa","Rāpare","Rāmere","Rāhoroi ","Rātapu"}) -> Rāhoroi | I39: Rātapu | J39: 2026-02-01 | Q39: 1 | R39: 2 | S39: 3 | T39: 4 | U39: 5 | V39: 6 | W39: 7 | X39: 8 | Y39: 9 | Z39: 10 | AA39: 11 | AB39: 12 | AC39: 13 | AD39: 14 | AE39: 15 | AF39: 16 | AG39: 17 | AH39: 18 | AI39: 19 | AJ39: 20 | AK39: 21 | AL39: 22 | AM39: =IF(ISERROR(DATEVALUE(AL39+1 & " "&TEXT($A39,"Mmmm") & " " & $F39))," ",AL39+1) -> 23 | AN39: 24 | AO39: 25 | AP39: 26 | AQ39: 27 | AR39: 28 | AV39: =LOOKUP(VALUE(TEXT(AW39,"M")),{1,2,3,4,5,6,7,8,9,10,11,12},{"Kohitātea","Hui‑tanguru","Poutū‑te‑rangi","Paengawhāwhā","Haratua","Pipiri","Hōngongoi","Here‑turi‑kōkā","Mahuru","Whiringa‑ā‑nuku","Whiringa‑ā‑rangi","Hakihea"}) -> Poutū‑te‑rangi | AW39: 46082 | BD39: 1 | BE39: 2 | BF39: 3 | BG39: 4 | BH39: 5 | BI39: 6 | BJ39: 7 | BK39: 8 | BL39: 9 | BM39: 10 | BN39: 11 | BO39: 12 | BP39: 13 | BQ39: 14 | BR39: 15 | BS39: 16 | BT39: 17 | BU39: 18 | BV39: 19 | BW39: 20 | BX39: 21 | BY39: 22 | BZ39: =IF(ISERROR(DATEVALUE(BY39+1 & " "&TEXT($AW39,"Mmmm") & " " & $F39)),"∙",BY39+1) -> 23 | CA39: 24 | CB39: 25 | CC39: 26 | CD39: 27 | CE39: 28 | CF39: 29 | CG39: 30 | CH39: 31 | CI39: =SunsetTime(A39, -41.2865, 174.7762, 13) -> 2026-02-06T19:38:12.176 | CJ39: =ExcelToJD(CI39-CN39/24) -> 2461077.777 | CK39: =NewMoonPrevious(CI39 - CN39/24) -> 2461059.329 | CL39: 18.44787213 | CM39: =_xlfn.IFS( CL39<1,"Whiro", CL39<2,"Tirea", CL39<3,"Ohata", CL39<4,"Ōuenuku", CL39<5,"Okoro", CL39<6,"Tamatea-kai-ariki", CL39<7,"Tamatea-wananga", CL39<8,"Tamatea-ā-āio", CL39<9,"Tamatea-whakapau", CL39<10,"Huna", CL39<11,"Airoa", CL39<12,"Hotu", CL39<13,"Māwharu", CL39<14,"Atua whakahaehae", CL39<15,"Ōhua", CL39<16,"Ōturu", CL39<17,"Rākaunui", CL39<18,"Rākaumatohi", CL39<19,"Takiraua", CL39<20,"Oike", CL39<21,"Korekore", CL39<22,"Korekore tuarua", CL39<23,"Korekore piri ki Tangaroa", CL39<24,"Tangaroa ā-mua", CL39<25,"Tangaroa ā-roto", CL39<26,"Tangaroa ata kiokio", CL39<27,"Ōtāne", CL39<28,"Ōrongonui", CL39<29,"Maurea", CL39<30,"Mutuwhenua" ) -> Takiraua | CN39: =LookupTimezoneOffset(A39) -> 13
A40: 2026-02-08 | B40: 8 o | C40: 9 o | D40: =LOOKUP(VALUE(TEXT(A40,"M")),{1,2,3,4,5,6,7,8,9,10,11,12},{"Kohitātea","Hui‑tanguru","Poutū‑te‑rangi","Paengawhāwhā","Haratua","Pipiri","Hōngongoi","Here‑turi‑kōkā","Mahuru","Whiringa‑ā‑nuku","Whiringa‑ā‑rangi","Hakihea"}) -> Hui‑tanguru | E40: Hui‑tanguru | F40: 2026 | G40: 2026 | H40: =LOOKUP(WEEKDAY(A40),{1,2,3,4,5,6,7},{"Rātapu","Rāhina","Rātū","Rāapa","Rāpare","Rāmere","Rāhoroi ","Rātapu"}) -> Rātapu | I40: Rāhina | J40: 2026-02-01 | Q40: 1 | R40: 2 | S40: 3 | T40: 4 | U40: 5 | V40: 6 | W40: 7 | X40: 8 | Y40: 9 | Z40: 10 | AA40: 11 | AB40: 12 | AC40: 13 | AD40: 14 | AE40: 15 | AF40: 16 | AG40: 17 | AH40: 18 | AI40: 19 | AJ40: 20 | AK40: 21 | AL40: 22 | AM40: =IF(ISERROR(DATEVALUE(AL40+1 & " "&TEXT($A40,"Mmmm") & " " & $F40))," ",AL40+1) -> 23 | AN40: 24 | AO40: 25 | AP40: 26 | AQ40: 27 | AR40: 28 | AV40: =LOOKUP(VALUE(TEXT(AW40,"M")),{1,2,3,4,5,6,7,8,9,10,11,12},{"Kohitātea","Hui‑tanguru","Poutū‑te‑rangi","Paengawhāwhā","Haratua","Pipiri","Hōngongoi","Here‑turi‑kōkā","Mahuru","Whiringa‑ā‑nuku","Whiringa‑ā‑rangi","Hakihea"}) -> Poutū‑te‑rangi | AW40: 46082 | BD40: 1 | BE40: 2 | BF40: 3 | BG40: 4 | BH40: 5 | BI40: 6 | BJ40: 7 | BK40: 8 | BL40: 9 | BM40: 10 | BN40: 11 | BO40: 12 | BP40: 13 | BQ40: 14 | BR40: 15 | BS40: 16 | BT40: 17 | BU40: 18 | BV40: 19 | BW40: 20 | BX40: 21 | BY40: 22 | BZ40: =IF(ISERROR(DATEVALUE(BY40+1 & " "&TEXT($AW40,"Mmmm") & " " & $F40)),"∙",BY40+1) -> 23 | CA40: 24 | CB40: 25 | CC40: 26 | CD40: 27 | CE40: 28 | CF40: 29 | CG40: 30 | CH40: 31 | CI40: =SunsetTime(A40, -41.2865, 174.7762, 13) -> 2026-02-07T19:37:04.874 | CJ40: =ExcelToJD(CI40-CN40/24) -> 2461078.776 | CK40: =NewMoonPrevious(CI40 - CN40/24) -> 2461059.329 | CL40: 19.44709318 | CM40: =_xlfn.IFS( CL40<1,"Whiro", CL40<2,"Tirea", CL40<3,"Ohata", CL40<4,"Ōuenuku", CL40<5,"Okoro", CL40<6,"Tamatea-kai-ariki", CL40<7,"Tamatea-wananga", CL40<8,"Tamatea-ā-āio", CL40<9,"Tamatea-whakapau", CL40<10,"Huna", CL40<11,"Airoa", CL40<12,"Hotu", CL40<13,"Māwharu", CL40<14,"Atua whakahaehae", CL40<15,"Ōhua", CL40<16,"Ōturu", CL40<17,"Rākaunui", CL40<18,"Rākaumatohi", CL40<19,"Takiraua", CL40<20,"Oike", CL40<21,"Korekore", CL40<22,"Korekore tuarua", CL40<23,"Korekore piri ki Tangaroa", CL40<24,"Tangaroa ā-mua", CL40<25,"Tangaroa ā-roto", CL40<26,"Tangaroa ata kiokio", CL40<27,"Ōtāne", CL40<28,"Ōrongonui", CL40<29,"Maurea", CL40<30,"Mutuwhenua" ) -> Oike | CN40: =LookupTimezoneOffset(A40) -> 13
A41: 2026-02-09 | B41: 9 o | C41: 10 o | D41: =LOOKUP(VALUE(TEXT(A41,"M")),{1,2,3,4,5,6,7,8,9,10,11,12},{"Kohitātea","Hui‑tanguru","Poutū‑te‑rangi","Paengawhāwhā","Haratua","Pipiri","Hōngongoi","Here‑turi‑kōkā","Mahuru","Whiringa‑ā‑nuku","Whiringa‑ā‑rangi","Hakihea"}) -> Hui‑tanguru | E41: Hui‑tanguru | F41: 2026 | G41: 2026 | H41: =LOOKUP(WEEKDAY(A41),{1,2,3,4,5,6,7},{"Rātapu","Rāhina","Rātū","Rāapa","Rāpare","Rāmere","Rāhoroi ","Rātapu"}) -> Rāhina | I41: Rātū | J41: 2026-02-01 | Q41: 1 | R41: 2 | S41: 3 | T41: 4 | U41: 5 | V41: 6 | W41: 7 | X41: 8 | Y41: 9 | Z41: 10 | AA41: 11 | AB41: 12 | AC41: 13 | AD41: 14 | AE41: 15 | AF41: 16 | AG41: 17 | AH41: 18 | AI41: 19 | AJ41: 20 | AK41: 21 | AL41: 22 | AM41: =IF(ISERROR(DATEVALUE(AL41+1 & " "&TEXT($A41,"Mmmm") & " " & $F41))," ",AL41+1) -> 23 | AN41: 24 | AO41: 25 | AP41: 26 | AQ41: 27 | AR41: 28 | AV41: =LOOKUP(VALUE(TEXT(AW41,"M")),{1,2,3,4,5,6,7,8,9,10,11,12},{"Kohitātea","Hui‑tanguru","Poutū‑te‑rangi","Paengawhāwhā","Haratua","Pipiri","Hōngongoi","Here‑turi‑kōkā","Mahuru","Whiringa‑ā‑nuku","Whiringa‑ā‑rangi","Hakihea"}) -> Poutū‑te‑rangi | AW41: 46082 | BD41: 1 | BE41: 2 | BF41: 3 | BG41: 4 | BH41: 5 | BI41: 6 | BJ41: 7 | BK41: 8 | BL41: 9 | BM41: 10 | BN41: 11 | BO41: 12 | BP41: 13 | BQ41: 14 | BR41: 15 | BS41: 16 | BT41: 17 | BU41: 18 | BV41: 19 | BW41: 20 | BX41: 21 | BY41: 22 | BZ41: =IF(ISERROR(DATEVALUE(BY41+1 & " "&TEXT($AW41,"Mmmm") & " " & $F41)),"∙",BY41+1) -> 23 | CA41: 24 | CB41: 25 | CC41: 26 | CD41: 27 | CE41: 28 | CF41: 29 | CG41: 30 | CH41: 31 | CI41: =SunsetTime(A41, -41.2865, 174.7762, 13) -> 2026-02-08T19:35:56.066 | CJ41: =ExcelToJD(CI41-CN41/24) -> 2461079.775 | CK41: =NewMoonPrevious(CI41 - CN41/24) -> 2461059.329 | CL41: 20.44629679 | CM41: =_xlfn.IFS( CL41<1,"Whiro", CL41<2,"Tirea", CL41<3,"Ohata", CL41<4,"Ōuenuku", CL41<5,"Okoro", CL41<6,"Tamatea-kai-ariki", CL41<7,"Tamatea-wananga", CL41<8,"Tamatea-ā-āio", CL41<9,"Tamatea-whakapau", CL41<10,"Huna", CL41<11,"Airoa", CL41<12,"Hotu", CL41<13,"Māwharu", CL41<14,"Atua whakahaehae", CL41<15,"Ōhua", CL41<16,"Ōturu", CL41<17,"Rākaunui", CL41<18,"Rākaumatohi", CL41<19,"Takiraua", CL41<20,"Oike", CL41<21,"Korekore", CL41<22,"Korekore tuarua", CL41<23,"Korekore piri ki Tangaroa", CL41<24,"Tangaroa ā-mua", CL41<25,"Tangaroa ā-roto", CL41<26,"Tangaroa ata kiokio", CL41<27,"Ōtāne", CL41<28,"Ōrongonui", CL41<29,"Maurea", CL41<30,"Mutuwhenua" ) -> Korekore | CN41: =LookupTimezoneOffset(A41) -> 13
A42: 2026-02-10 | B42: 10 o | C42: 11 o | D42: =LOOKUP(VALUE(TEXT(A42,"M")),{1,2,3,4,5,6,7,8,9,10,11,12},{"Kohitātea","Hui‑tanguru","Poutū‑te‑rangi","Paengawhāwhā","Haratua","Pipiri","Hōngongoi","Here‑turi‑kōkā","Mahuru","Whiringa‑ā‑nuku","Whiringa‑ā‑rangi","Hakihea"}) -> Hui‑tanguru | E42: Hui‑tanguru | F42: 2026 | G42: 2026 | H42: =LOOKUP(WEEKDAY(A42),{1,2,3,4,5,6,7},{"Rātapu","Rāhina","Rātū","Rāapa","Rāpare","Rāmere","Rāhoroi ","Rātapu"}) -> Rātū | I42: Rāapa | J42: 2026-02-01 | Q42: 1 | R42: 2 | S42: 3 | T42: 4 | U42: 5 | V42: 6 | W42: 7 | X42: 8 | Y42: 9 | Z42: 10 | AA42: 11 | AB42: 12 | AC42: 13 | AD42: 14 | AE42: 15 | AF42: 16 | AG42: 17 | AH42: 18 | AI42: 19 | AJ42: 20 | AK42: 21 | AL42: 22 | AM42: =IF(ISERROR(DATEVALUE(AL42+1 & " "&TEXT($A42,"Mmmm") & " " & $F42))," ",AL42+1) -> 23 | AN42: 24 | AO42: 25 | AP42: 26 | AQ42: 27 | AR42: 28 | AV42: =LOOKUP(VALUE(TEXT(AW42,"M")),{1,2,3,4,5,6,7,8,9,10,11,12},{"Kohitātea","Hui‑tanguru","Poutū‑te‑rangi","Paengawhāwhā","Haratua","Pipiri","Hōngongoi","Here‑turi‑kōkā","Mahuru","Whiringa‑ā‑nuku","Whiringa‑ā‑rangi","Hakihea"}) -> Poutū‑te‑rangi | AW42: 46082 | BD42: 1 | BE42: 2 | BF42: 3 | BG42: 4 | BH42: 5 | BI42: 6 | BJ42: 7 | BK42: 8 | BL42: 9 | BM42: 10 | BN42: 11 | BO42: 12 | BP42: 13 | BQ42: 14 | BR42: 15 | BS42: 16 | BT42: 17 | BU42: 18 | BV42: 19 | BW42: 20 | BX42: 21 | BY42: 22 | BZ42: =IF(ISERROR(DATEVALUE(BY42+1 & " "&TEXT($AW42,"Mmmm") & " " & $F42)),"∙",BY42+1) -> 23 | CA42: 24 | CB42: 25 | CC42: 26 | CD42: 27 | CE42: 28 | CF42: 29 | CG42: 30 | CH42: 31 | CI42: =SunsetTime(A42, -41.2865, 174.7762, 13) -> 2026-02-09T19:34:45.783 | CJ42: =ExcelToJD(CI42-CN42/24) -> 2461080.774 | CK42: =NewMoonPrevious(CI42 - CN42/24) -> 2461059.329 | CL42: 21.44548333 | CM42: =_xlfn.IFS( CL42<1,"Whiro", CL42<2,"Tirea", CL42<3,"Ohata", CL42<4,"Ōuenuku", CL42<5,"Okoro", CL42<6,"Tamatea-kai-ariki", CL42<7,"Tamatea-wananga", CL42<8,"Tamatea-ā-āio", CL42<9,"Tamatea-whakapau", CL42<10,"Huna", CL42<11,"Airoa", CL42<12,"Hotu", CL42<13,"Māwharu", CL42<14,"Atua whakahaehae", CL42<15,"Ōhua", CL42<16,"Ōturu", CL42<17,"Rākaunui", CL42<18,"Rākaumatohi", CL42<19,"Takiraua", CL42<20,"Oike", CL42<21,"Korekore", CL42<22,"Korekore tuarua", CL42<23,"Korekore piri ki Tangaroa", CL42<24,"Tangaroa ā-mua", CL42<25,"Tangaroa ā-roto", CL42<26,"Tangaroa ata kiokio", CL42<27,"Ōtāne", CL42<28,"Ōrongonui", CL42<29,"Maurea", CL42<30,"Mutuwhenua" ) -> Korekore tuarua | CN42: =LookupTimezoneOffset(A42) -> 13
A43: 2026-02-11 | B43: 11 o | C43: 12 o | D43: =LOOKUP(VALUE(TEXT(A43,"M")),{1,2,3,4,5,6,7,8,9,10,11,12},{"Kohitātea","Hui‑tanguru","Poutū‑te‑rangi","Paengawhāwhā","Haratua","Pipiri","Hōngongoi","Here‑turi‑kōkā","Mahuru","Whiringa‑ā‑nuku","Whiringa‑ā‑rangi","Hakihea"}) -> Hui‑tanguru | E43: Hui‑tanguru | F43: 2026 | G43: 2026 | H43: =LOOKUP(WEEKDAY(A43),{1,2,3,4,5,6,7},{"Rātapu","Rāhina","Rātū","Rāapa","Rāpare","Rāmere","Rāhoroi ","Rātapu"}) -> Rāapa | I43: Rāpare | J43: 2026-02-01 | Q43: 1 | R43: 2 | S43: 3 | T43: 4 | U43: 5 | V43: 6 | W43: 7 | X43: 8 | Y43: 9 | Z43: 10 | AA43: 11 | AB43: 12 | AC43: 13 | AD43: 14 | AE43: 15 | AF43: 16 | AG43: 17 | AH43: 18 | AI43: 19 | AJ43: 20 | AK43: 21 | AL43: 22 | AM43: =IF(ISERROR(DATEVALUE(AL43+1 & " "&TEXT($A43,"Mmmm") & " " & $F43))," ",AL43+1) -> 23 | AN43: 24 | AO43: 25 | AP43: 26 | AQ43: 27 | AR43: 28 | AV43: =LOOKUP(VALUE(TEXT(AW43,"M")),{1,2,3,4,5,6,7,8,9,10,11,12},{"Kohitātea","Hui‑tanguru","Poutū‑te‑rangi","Paengawhāwhā","Haratua","Pipiri","Hōngongoi","Here‑turi‑kōkā","Mahuru","Whiringa‑ā‑nuku","Whiringa‑ā‑rangi","Hakihea"}) -> Poutū‑te‑rangi | AW43: 46082 | BD43: 1 | BE43: 2 | BF43: 3 | BG43: 4 | BH43: 5 | BI43: 6 | BJ43: 7 | BK43: 8 | BL43: 9 | BM43: 10 | BN43: 11 | BO43: 12 | BP43: 13 | BQ43: 14 | BR43: 15 | BS43: 16 | BT43: 17 | BU43: 18 | BV43: 19 | BW43: 20 | BX43: 21 | BY43: 22 | BZ43: =IF(ISERROR(DATEVALUE(BY43+1 & " "&TEXT($AW43,"Mmmm") & " " & $F43)),"∙",BY43+1) -> 23 | CA43: 24 | CB43: 25 | CC43: 26 | CD43: 27 | CE43: 28 | CF43: 29 | CG43: 30 | CH43: 31 | CI43: =SunsetTime(A43, -41.2865, 174.7762, 13) -> 2026-02-10T19:33:34.055 | CJ43: =ExcelToJD(CI43-CN43/24) -> 2461081.773 | CK43: =NewMoonPrevious(CI43 - CN43/24) -> 2461059.329 | CL43: 22.44465314 | CM43: =_xlfn.IFS( CL43<1,"Whiro", CL43<2,"Tirea", CL43<3,"Ohata", CL43<4,"Ōuenuku", CL43<5,"Okoro", CL43<6,"Tamatea-kai-ariki", CL43<7,"Tamatea-wananga", CL43<8,"Tamatea-ā-āio", CL43<9,"Tamatea-whakapau", CL43<10,"Huna", CL43<11,"Airoa", CL43<12,"Hotu", CL43<13,"Māwharu", CL43<14,"Atua whakahaehae", CL43<15,"Ōhua", CL43<16,"Ōturu", CL43<17,"Rākaunui", CL43<18,"Rākaumatohi", CL43<19,"Takiraua", CL43<20,"Oike", CL43<21,"Korekore", CL43<22,"Korekore tuarua", CL43<23,"Korekore piri ki Tangaroa", CL43<24,"Tangaroa ā-mua", CL43<25,"Tangaroa ā-roto", CL43<26,"Tangaroa ata kiokio", CL43<27,"Ōtāne", CL43<28,"Ōrongonui", CL43<29,"Maurea", CL43<30,"Mutuwhenua" ) -> Korekore piri ki Tangaroa | CN43: =LookupTimezoneOffset(A43) -> 13
A44: 2026-02-12 | B44: 12 o | C44: 13 o | D44: =LOOKUP(VALUE(TEXT(A44,"M")),{1,2,3,4,5,6,7,8,9,10,11,12},{"Kohitātea","Hui‑tanguru","Poutū‑te‑rangi","Paengawhāwhā","Haratua","Pipiri","Hōngongoi","Here‑turi‑kōkā","Mahuru","Whiringa‑ā‑nuku","Whiringa‑ā‑rangi","Hakihea"}) -> Hui‑tanguru | E44: Hui‑tanguru | F44: 2026 | G44: 2026 | H44: =LOOKUP(WEEKDAY(A44),{1,2,3,4,5,6,7},{"Rātapu","Rāhina","Rātū","Rāapa","Rāpare","Rāmere","Rāhoroi ","Rātapu"}) -> Rāpare | I44: Rāmere | J44: 2026-02-01 | Q44: 1 | R44: 2 | S44: 3 | T44: 4 | U44: 5 | V44: 6 | W44: 7 | X44: 8 | Y44: 9 | Z44: 10 | AA44: 11 | AB44: 12 | AC44: 13 | AD44: 14 | AE44: 15 | AF44: 16 | AG44: 17 | AH44: 18 | AI44: 19 | AJ44: 20 | AK44: 21 | AL44: 22 | AM44: =IF(ISERROR(DATEVALUE(AL44+1 & " "&TEXT($A44,"Mmmm") & " " & $F44))," ",AL44+1) -> 23 | AN44: 24 | AO44: 25 | AP44: 26 | AQ44: 27 | AR44: 28 | AV44: =LOOKUP(VALUE(TEXT(AW44,"M")),{1,2,3,4,5,6,7,8,9,10,11,12},{"Kohitātea","Hui‑tanguru","Poutū‑te‑rangi","Paengawhāwhā","Haratua","Pipiri","Hōngongoi","Here‑turi‑kōkā","Mahuru","Whiringa‑ā‑nuku","Whiringa‑ā‑rangi","Hakihea"}) -> Poutū‑te‑rangi | AW44: 46082 | BD44: 1 | BE44: 2 | BF44: 3 | BG44: 4 | BH44: 5 | BI44: 6 | BJ44: 7 | BK44: 8 | BL44: 9 | BM44: 10 | BN44: 11 | BO44: 12 | BP44: 13 | BQ44: 14 | BR44: 15 | BS44: 16 | BT44: 17 | BU44: 18 | BV44: 19 | BW44: 20 | BX44: 21 | BY44: 22 | BZ44: =IF(ISERROR(DATEVALUE(BY44+1 & " "&TEXT($AW44,"Mmmm") & " " & $F44)),"∙",BY44+1) -> 23 | CA44: 24 | CB44: 25 | CC44: 26 | CD44: 27 | CE44: 28 | CF44: 29 | CG44: 30 | CH44: 31 | CI44: =SunsetTime(A44, -41.2865, 174.7762, 13) -> 2026-02-11T19:32:20.913 | CJ44: =ExcelToJD(CI44-CN44/24) -> 2461082.772 | CK44: =NewMoonPrevious(CI44 - CN44/24) -> 2461059.329 | CL44: 23.44380659 | CM44: =_xlfn.IFS( CL44<1,"Whiro", CL44<2,"Tirea", CL44<3,"Ohata", CL44<4,"Ōuenuku", CL44<5,"Okoro", CL44<6,"Tamatea-kai-ariki", CL44<7,"Tamatea-wananga", CL44<8,"Tamatea-ā-āio", CL44<9,"Tamatea-whakapau", CL44<10,"Huna", CL44<11,"Airoa", CL44<12,"Hotu", CL44<13,"Māwharu", CL44<14,"Atua whakahaehae", CL44<15,"Ōhua", CL44<16,"Ōturu", CL44<17,"Rākaunui", CL44<18,"Rākaumatohi", CL44<19,"Takiraua", CL44<20,"Oike", CL44<21,"Korekore", CL44<22,"Korekore tuarua", CL44<23,"Korekore piri ki Tangaroa", CL44<24,"Tangaroa ā-mua", CL44<25,"Tangaroa ā-roto", CL44<26,"Tangaroa ata kiokio", CL44<27,"Ōtāne", CL44<28,"Ōrongonui", CL44<29,"Maurea", CL44<30,"Mutuwhenua" ) -> Tangaroa ā-mua | CN44: =LookupTimezoneOffset(A44) -> 13
A45: 2026-02-13 | B45: 13 o | C45: 14 o | D45: =LOOKUP(VALUE(TEXT(A45,"M")),{1,2,3,4,5,6,7,8,9,10,11,12},{"Kohitātea","Hui‑tanguru","Poutū‑te‑rangi","Paengawhāwhā","Haratua","Pipiri","Hōngongoi","Here‑turi‑kōkā","Mahuru","Whiringa‑ā‑nuku","Whiringa‑ā‑rangi","Hakihea"}) -> Hui‑tanguru | E45: Hui‑tanguru | F45: 2026 | G45: 2026 | H45: =LOOKUP(WEEKDAY(A45),{1,2,3,4,5,6,7},{"Rātapu","Rāhina","Rātū","Rāapa","Rāpare","Rāmere","Rāhoroi ","Rātapu"}) -> Rāmere | I45: Rāhoroi | J45: 2026-02-01 | Q45: 1 | R45: 2 | S45: 3 | T45: 4 | U45: 5 | V45: 6 | W45: 7 | X45: 8 | Y45: 9 | Z45: 10 | AA45: 11 | AB45: 12 | AC45: 13 | AD45: 14 | AE45: 15 | AF45: 16 | AG45: 17 | AH45: 18 | AI45: 19 | AJ45: 20 | AK45: 21 | AL45: 22 | AM45: =IF(ISERROR(DATEVALUE(AL45+1 & " "&TEXT($A45,"Mmmm") & " " & $F45))," ",AL45+1) -> 23 | AN45: 24 | AO45: 25 | AP45: 26 | AQ45: 27 | AR45: 28 | AV45: =LOOKUP(VALUE(TEXT(AW45,"M")),{1,2,3,4,5,6,7,8,9,10,11,12},{"Kohitātea","Hui‑tanguru","Poutū‑te‑rangi","Paengawhāwhā","Haratua","Pipiri","Hōngongoi","Here‑turi‑kōkā","Mahuru","Whiringa‑ā‑nuku","Whiringa‑ā‑rangi","Hakihea"}) -> Poutū‑te‑rangi | AW45: 46082 | BD45: 1 | BE45: 2 | BF45: 3 | BG45: 4 | BH45: 5 | BI45: 6 | BJ45: 7 | BK45: 8 | BL45: 9 | BM45: 10 | BN45: 11 | BO45: 12 | BP45: 13 | BQ45: 14 | BR45: 15 | BS45: 16 | BT45: 17 | BU45: 18 | BV45: 19 | BW45: 20 | BX45: 21 | BY45: 22 | BZ45: =IF(ISERROR(DATEVALUE(BY45+1 & " "&TEXT($AW45,"Mmmm") & " " & $F45)),"∙",BY45+1) -> 23 | CA45: 24 | CB45: 25 | CC45: 26 | CD45: 27 | CE45: 28 | CF45: 29 | CG45: 30 | CH45: 31 | CI45: =SunsetTime(A45, -41.2865, 174.7762, 13) -> 2026-02-12T19:31:06.389 | CJ45: =ExcelToJD(CI45-CN45/24) -> 2461083.772 | CK45: =NewMoonPrevious(CI45 - CN45/24) -> 2461059.329 | CL45: 24.44294405 | CM45: =_xlfn.IFS( CL45<1,"Whiro", CL45<2,"Tirea", CL45<3,"Ohata", CL45<4,"Ōuenuku", CL45<5,"Okoro", CL45<6,"Tamatea-kai-ariki", CL45<7,"Tamatea-wananga", CL45<8,"Tamatea-ā-āio", CL45<9,"Tamatea-whakapau", CL45<10,"Huna", CL45<11,"Airoa", CL45<12,"Hotu", CL45<13,"Māwharu", CL45<14,"Atua whakahaehae", CL45<15,"Ōhua", CL45<16,"Ōturu", CL45<17,"Rākaunui", CL45<18,"Rākaumatohi", CL45<19,"Takiraua", CL45<20,"Oike", CL45<21,"Korekore", CL45<22,"Korekore tuarua", CL45<23,"Korekore piri ki Tangaroa", CL45<24,"Tangaroa ā-mua", CL45<25,"Tangaroa ā-roto", CL45<26,"Tangaroa ata kiokio", CL45<27,"Ōtāne", CL45<28,"Ōrongonui", CL45<29,"Maurea", CL45<30,"Mutuwhenua" ) -> Tangaroa ā-roto | CN45: =LookupTimezoneOffset(A45) -> 13
A46: 2026-02-14 | B46: 14 o | C46: 15 o | D46: =LOOKUP(VALUE(TEXT(A46,"M")),{1,2,3,4,5,6,7,8,9,10,11,12},{"Kohitātea","Hui‑tanguru","Poutū‑te‑rangi","Paengawhāwhā","Haratua","Pipiri","Hōngongoi","Here‑turi‑kōkā","Mahuru","Whiringa‑ā‑nuku","Whiringa‑ā‑rangi","Hakihea"}) -> Hui‑tanguru | E46: Hui‑tanguru | F46: 2026 | G46: 2026 | H46: =LOOKUP(WEEKDAY(A46),{1,2,3,4,5,6,7},{"Rātapu","Rāhina","Rātū","Rāapa","Rāpare","Rāmere","Rāhoroi ","Rātapu"}) -> Rāhoroi | I46: Rātapu | J46: 2026-02-01 | Q46: 1 | R46: 2 | S46: 3 | T46: 4 | U46: 5 | V46: 6 | W46: 7 | X46: 8 | Y46: 9 | Z46: 10 | AA46: 11 | AB46: 12 | AC46: 13 | AD46: 14 | AE46: 15 | AF46: 16 | AG46: 17 | AH46: 18 | AI46: 19 | AJ46: 20 | AK46: 21 | AL46: 22 | AM46: =IF(ISERROR(DATEVALUE(AL46+1 & " "&TEXT($A46,"Mmmm") & " " & $F46))," ",AL46+1) -> 23 | AN46: 24 | AO46: 25 | AP46: 26 | AQ46: 27 | AR46: 28 | AV46: =LOOKUP(VALUE(TEXT(AW46,"M")),{1,2,3,4,5,6,7,8,9,10,11,12},{"Kohitātea","Hui‑tanguru","Poutū‑te‑rangi","Paengawhāwhā","Haratua","Pipiri","Hōngongoi","Here‑turi‑kōkā","Mahuru","Whiringa‑ā‑nuku","Whiringa‑ā‑rangi","Hakihea"}) -> Poutū‑te‑rangi | AW46: 46082 | BD46: 1 | BE46: 2 | BF46: 3 | BG46: 4 | BH46: 5 | BI46: 6 | BJ46: 7 | BK46: 8 | BL46: 9 | BM46: 10 | BN46: 11 | BO46: 12 | BP46: 13 | BQ46: 14 | BR46: 15 | BS46: 16 | BT46: 17 | BU46: 18 | BV46: 19 | BW46: 20 | BX46: 21 | BY46: 22 | BZ46: =IF(ISERROR(DATEVALUE(BY46+1 & " "&TEXT($AW46,"Mmmm") & " " & $F46)),"∙",BY46+1) -> 23 | CA46: 24 | CB46: 25 | CC46: 26 | CD46: 27 | CE46: 28 | CF46: 29 | CG46: 30 | CH46: 31 | CI46: =SunsetTime(A46, -41.2865, 174.7762, 13) -> 2026-02-13T19:29:50.514 | CJ46: =ExcelToJD(CI46-CN46/24) -> 2461084.771 | CK46: =NewMoonPrevious(CI46 - CN46/24) -> 2461059.329 | CL46: 25.44206586 | CM46: =_xlfn.IFS( CL46<1,"Whiro", CL46<2,"Tirea", CL46<3,"Ohata", CL46<4,"Ōuenuku", CL46<5,"Okoro", CL46<6,"Tamatea-kai-ariki", CL46<7,"Tamatea-wananga", CL46<8,"Tamatea-ā-āio", CL46<9,"Tamatea-whakapau", CL46<10,"Huna", CL46<11,"Airoa", CL46<12,"Hotu", CL46<13,"Māwharu", CL46<14,"Atua whakahaehae", CL46<15,"Ōhua", CL46<16,"Ōturu", CL46<17,"Rākaunui", CL46<18,"Rākaumatohi", CL46<19,"Takiraua", CL46<20,"Oike", CL46<21,"Korekore", CL46<22,"Korekore tuarua", CL46<23,"Korekore piri ki Tangaroa", CL46<24,"Tangaroa ā-mua", CL46<25,"Tangaroa ā-roto", CL46<26,"Tangaroa ata kiokio", CL46<27,"Ōtāne", CL46<28,"Ōrongonui", CL46<29,"Maurea", CL46<30,"Mutuwhenua" ) -> Tangaroa ata kiokio | CN46: =LookupTimezoneOffset(A46) -> 13
A47: 2026-02-15 | B47: 15 o | C47: 16 o | D47: =LOOKUP(VALUE(TEXT(A47,"M")),{1,2,3,4,5,6,7,8,9,10,11,12},{"Kohitātea","Hui‑tanguru","Poutū‑te‑rangi","Paengawhāwhā","Haratua","Pipiri","Hōngongoi","Here‑turi‑kōkā","Mahuru","Whiringa‑ā‑nuku","Whiringa‑ā‑rangi","Hakihea"}) -> Hui‑tanguru | E47: Hui‑tanguru | F47: 2026 | G47: 2026 | H47: =LOOKUP(WEEKDAY(A47),{1,2,3,4,5,6,7},{"Rātapu","Rāhina","Rātū","Rāapa","Rāpare","Rāmere","Rāhoroi ","Rātapu"}) -> Rātapu | I47: Rāhina | J47: 2026-02-01 | Q47: 1 | R47: 2 | S47: 3 | T47: 4 | U47: 5 | V47: 6 | W47: 7 | X47: 8 | Y47: 9 | Z47: 10 | AA47: 11 | AB47: 12 | AC47: 13 | AD47: 14 | AE47: 15 | AF47: 16 | AG47: 17 | AH47: 18 | AI47: 19 | AJ47: 20 | AK47: 21 | AL47: 22 | AM47: =IF(ISERROR(DATEVALUE(AL47+1 & " "&TEXT($A47,"Mmmm") & " " & $F47))," ",AL47+1) -> 23 | AN47: 24 | AO47: 25 | AP47: 26 | AQ47: 27 | AR47: 28 | AV47: =LOOKUP(VALUE(TEXT(AW47,"M")),{1,2,3,4,5,6,7,8,9,10,11,12},{"Kohitātea","Hui‑tanguru","Poutū‑te‑rangi","Paengawhāwhā","Haratua","Pipiri","Hōngongoi","Here‑turi‑kōkā","Mahuru","Whiringa‑ā‑nuku","Whiringa‑ā‑rangi","Hakihea"}) -> Poutū‑te‑rangi | AW47: 46082 | BD47: 1 | BE47: 2 | BF47: 3 | BG47: 4 | BH47: 5 | BI47: 6 | BJ47: 7 | BK47: 8 | BL47: 9 | BM47: 10 | BN47: 11 | BO47: 12 | BP47: 13 | BQ47: 14 | BR47: 15 | BS47: 16 | BT47: 17 | BU47: 18 | BV47: 19 | BW47: 20 | BX47: 21 | BY47: 22 | BZ47: =IF(ISERROR(DATEVALUE(BY47+1 & " "&TEXT($AW47,"Mmmm") & " " & $F47)),"∙",BY47+1) -> 23 | CA47: 24 | CB47: 25 | CC47: 26 | CD47: 27 | CE47: 28 | CF47: 29 | CG47: 30 | CH47: 31 | CI47: =SunsetTime(A47, -41.2865, 174.7762, 13) -> 2026-02-14T19:28:33.319 | CJ47: =ExcelToJD(CI47-CN47/24) -> 2461085.77 | CK47: =NewMoonPrevious(CI47 - CN47/24) -> 2461059.329 | CL47: 26.4411724 | CM47: =_xlfn.IFS( CL47<1,"Whiro", CL47<2,"Tirea", CL47<3,"Ohata", CL47<4,"Ōuenuku", CL47<5,"Okoro", CL47<6,"Tamatea-kai-ariki", CL47<7,"Tamatea-wananga", CL47<8,"Tamatea-ā-āio", CL47<9,"Tamatea-whakapau", CL47<10,"Huna", CL47<11,"Airoa", CL47<12,"Hotu", CL47<13,"Māwharu", CL47<14,"Atua whakahaehae", CL47<15,"Ōhua", CL47<16,"Ōturu", CL47<17,"Rākaunui", CL47<18,"Rākaumatohi", CL47<19,"Takiraua", CL47<20,"Oike", CL47<21,"Korekore", CL47<22,"Korekore tuarua", CL47<23,"Korekore piri ki Tangaroa", CL47<24,"Tangaroa ā-mua", CL47<25,"Tangaroa ā-roto", CL47<26,"Tangaroa ata kiokio", CL47<27,"Ōtāne", CL47<28,"Ōrongonui", CL47<29,"Maurea", CL47<30,"Mutuwhenua" ) -> Ōtāne | CN47: =LookupTimezoneOffset(A47) -> 13
A48: 2026-02-16 | B48: 16 o | C48: 17 o | D48: =LOOKUP(VALUE(TEXT(A48,"M")),{1,2,3,4,5,6,7,8,9,10,11,12},{"Kohitātea","Hui‑tanguru","Poutū‑te‑rangi","Paengawhāwhā","Haratua","Pipiri","Hōngongoi","Here‑turi‑kōkā","Mahuru","Whiringa‑ā‑nuku","Whiringa‑ā‑rangi","Hakihea"}) -> Hui‑tanguru | E48: Hui‑tanguru | F48: 2026 | G48: 2026 | H48: =LOOKUP(WEEKDAY(A48),{1,2,3,4,5,6,7},{"Rātapu","Rāhina","Rātū","Rāapa","Rāpare","Rāmere","Rāhoroi ","Rātapu"}) -> Rāhina | I48: Rātū | J48: 2026-02-01 | Q48: 1 | R48: 2 | S48: 3 | T48: 4 | U48: 5 | V48: 6 | W48: 7 | X48: 8 | Y48: 9 | Z48: 10 | AA48: 11 | AB48: 12 | AC48: 13 | AD48: 14 | AE48: 15 | AF48: 16 | AG48: 17 | AH48: 18 | AI48: 19 | AJ48: 20 | AK48: 21 | AL48: 22 | AM48: =IF(ISERROR(DATEVALUE(AL48+1 & " "&TEXT($A48,"Mmmm") & " " & $F48))," ",AL48+1) -> 23 | AN48: 24 | AO48: 25 | AP48: 26 | AQ48: 27 | AR48: 28 | AV48: =LOOKUP(VALUE(TEXT(AW48,"M")),{1,2,3,4,5,6,7,8,9,10,11,12},{"Kohitātea","Hui‑tanguru","Poutū‑te‑rangi","Paengawhāwhā","Haratua","Pipiri","Hōngongoi","Here‑turi‑kōkā","Mahuru","Whiringa‑ā‑nuku","Whiringa‑ā‑rangi","Hakihea"}) -> Poutū‑te‑rangi | AW48: 46082 | BD48: 1 | BE48: 2 | BF48: 3 | BG48: 4 | BH48: 5 | BI48: 6 | BJ48: 7 | BK48: 8 | BL48: 9 | BM48: 10 | BN48: 11 | BO48: 12 | BP48: 13 | BQ48: 14 | BR48: 15 | BS48: 16 | BT48: 17 | BU48: 18 | BV48: 19 | BW48: 20 | BX48: 21 | BY48: 22 | BZ48: =IF(ISERROR(DATEVALUE(BY48+1 & " "&TEXT($AW48,"Mmmm") & " " & $F48)),"∙",BY48+1) -> 23 | CA48: 24 | CB48: 25 | CC48: 26 | CD48: 27 | CE48: 28 | CF48: 29 | CG48: 30 | CH48: 31 | CI48: =SunsetTime(A48, -41.2865, 174.7762, 13) -> 2026-02-15T19:27:14.836 | CJ48: =ExcelToJD(CI48-CN48/24) -> 2461086.769 | CK48: =NewMoonPrevious(CI48 - CN48/24) -> 2461059.329 | CL48: 27.44026403 | CM48: =_xlfn.IFS( CL48<1,"Whiro", CL48<2,"Tirea", CL48<3,"Ohata", CL48<4,"Ōuenuku", CL48<5,"Okoro", CL48<6,"Tamatea-kai-ariki", CL48<7,"Tamatea-wananga", CL48<8,"Tamatea-ā-āio", CL48<9,"Tamatea-whakapau", CL48<10,"Huna", CL48<11,"Airoa", CL48<12,"Hotu", CL48<13,"Māwharu", CL48<14,"Atua whakahaehae", CL48<15,"Ōhua", CL48<16,"Ōturu", CL48<17,"Rākaunui", CL48<18,"Rākaumatohi", CL48<19,"Takiraua", CL48<20,"Oike", CL48<21,"Korekore", CL48<22,"Korekore tuarua", CL48<23,"Korekore piri ki Tangaroa", CL48<24,"Tangaroa ā-mua", CL48<25,"Tangaroa ā-roto", CL48<26,"Tangaroa ata kiokio", CL48<27,"Ōtāne", CL48<28,"Ōrongonui", CL48<29,"Maurea", CL48<30,"Mutuwhenua" ) -> Ōrongonui | CN48: =LookupTimezoneOffset(A48) -> 13
A49: 2026-02-17 | B49: 17 o | C49: 18 o | D49: =LOOKUP(VALUE(TEXT(A49,"M")),{1,2,3,4,5,6,7,8,9,10,11,12},{"Kohitātea","Hui‑tanguru","Poutū‑te‑rangi","Paengawhāwhā","Haratua","Pipiri","Hōngongoi","Here‑turi‑kōkā","Mahuru","Whiringa‑ā‑nuku","Whiringa‑ā‑rangi","Hakihea"}) -> Hui‑tanguru | E49: Hui‑tanguru | F49: 2026 | G49: 2026 | H49: =LOOKUP(WEEKDAY(A49),{1,2,3,4,5,6,7},{"Rātapu","Rāhina","Rātū","Rāapa","Rāpare","Rāmere","Rāhoroi ","Rātapu"}) -> Rātū | I49: Rāapa | J49: 2026-02-01 | Q49: 1 | R49: 2 | S49: 3 | T49: 4 | U49: 5 | V49: 6 | W49: 7 | X49: 8 | Y49: 9 | Z49: 10 | AA49: 11 | AB49: 12 | AC49: 13 | AD49: 14 | AE49: 15 | AF49: 16 | AG49: 17 | AH49: 18 | AI49: 19 | AJ49: 20 | AK49: 21 | AL49: 22 | AM49: =IF(ISERROR(DATEVALUE(AL49+1 & " "&TEXT($A49,"Mmmm") & " " & $F49))," ",AL49+1) -> 23 | AN49: 24 | AO49: 25 | AP49: 26 | AQ49: 27 | AR49: 28 | AV49: =LOOKUP(VALUE(TEXT(AW49,"M")),{1,2,3,4,5,6,7,8,9,10,11,12},{"Kohitātea","Hui‑tanguru","Poutū‑te‑rangi","Paengawhāwhā","Haratua","Pipiri","Hōngongoi","Here‑turi‑kōkā","Mahuru","Whiringa‑ā‑nuku","Whiringa‑ā‑rangi","Hakihea"}) -> Poutū‑te‑rangi | AW49: 46082 | BD49: 1 | BE49: 2 | BF49: 3 | BG49: 4 | BH49: 5 | BI49: 6 | BJ49: 7 | BK49: 8 | BL49: 9 | BM49: 10 | BN49: 11 | BO49: 12 | BP49: 13 | BQ49: 14 | BR49: 15 | BS49: 16 | BT49: 17 | BU49: 18 | BV49: 19 | BW49: 20 | BX49: 21 | BY49: 22 | BZ49: =IF(ISERROR(DATEVALUE(BY49+1 & " "&TEXT($AW49,"Mmmm") & " " & $F49)),"∙",BY49+1) -> 23 | CA49: 24 | CB49: 25 | CC49: 26 | CD49: 27 | CE49: 28 | CF49: 29 | CG49: 30 | CH49: 31 | CI49: =SunsetTime(A49, -41.2865, 174.7762, 13) -> 2026-02-16T19:25:55.097 | CJ49: =ExcelToJD(CI49-CN49/24) -> 2461087.768 | CK49: =NewMoonPrevious(CI49 - CN49/24) -> 2461059.329 | CL49: 28.43934112 | CM49: =_xlfn.IFS( CL49<1,"Whiro", CL49<2,"Tirea", CL49<3,"Ohata", CL49<4,"Ōuenuku", CL49<5,"Okoro", CL49<6,"Tamatea-kai-ariki", CL49<7,"Tamatea-wananga", CL49<8,"Tamatea-ā-āio", CL49<9,"Tamatea-whakapau", CL49<10,"Huna", CL49<11,"Airoa", CL49<12,"Hotu", CL49<13,"Māwharu", CL49<14,"Atua whakahaehae", CL49<15,"Ōhua", CL49<16,"Ōturu", CL49<17,"Rākaunui", CL49<18,"Rākaumatohi", CL49<19,"Takiraua", CL49<20,"Oike", CL49<21,"Korekore", CL49<22,"Korekore tuarua", CL49<23,"Korekore piri ki Tangaroa", CL49<24,"Tangaroa ā-mua", CL49<25,"Tangaroa ā-roto", CL49<26,"Tangaroa ata kiokio", CL49<27,"Ōtāne", CL49<28,"Ōrongonui", CL49<29,"Maurea", CL49<30,"Mutuwhenua" ) -> Maurea | CN49: =LookupTimezoneOffset(A49) -> 13
A50: 2026-02-18 | B50: 18 o | C50: 19 o | D50: =LOOKUP(VALUE(TEXT(A50,"M")),{1,2,3,4,5,6,7,8,9,10,11,12},{"Kohitātea","Hui‑tanguru","Poutū‑te‑rangi","Paengawhāwhā","Haratua","Pipiri","Hōngongoi","Here‑turi‑kōkā","Mahuru","Whiringa‑ā‑nuku","Whiringa‑ā‑rangi","Hakihea"}) -> Hui‑tanguru | E50: Hui‑tanguru | F50: 2026 | G50: 2026 | H50: =LOOKUP(WEEKDAY(A50),{1,2,3,4,5,6,7},{"Rātapu","Rāhina","Rātū","Rāapa","Rāpare","Rāmere","Rāhoroi ","Rātapu"}) -> Rāapa | I50: Rāpare | J50: 2026-02-01 | Q50: 1 | R50: 2 | S50: 3 | T50: 4 | U50: 5 | V50: 6 | W50: 7 | X50: 8 | Y50: 9 | Z50: 10 | AA50: 11 | AB50: 12 | AC50: 13 | AD50: 14 | AE50: 15 | AF50: 16 | AG50: 17 | AH50: 18 | AI50: 19 | AJ50: 20 | AK50: 21 | AL50: 22 | AM50: =IF(ISERROR(DATEVALUE(AL50+1 & " "&TEXT($A50,"Mmmm") & " " & $F50))," ",AL50+1) -> 23 | AN50: 24 | AO50: 25 | AP50: 26 | AQ50: 27 | AR50: 28 | AV50: =LOOKUP(VALUE(TEXT(AW50,"M")),{1,2,3,4,5,6,7,8,9,10,11,12},{"Kohitātea","Hui‑tanguru","Poutū‑te‑rangi","Paengawhāwhā","Haratua","Pipiri","Hōngongoi","Here‑turi‑kōkā","Mahuru","Whiringa‑ā‑nuku","Whiringa‑ā‑rangi","Hakihea"}) -> Poutū‑te‑rangi | AW50: 46082 | BD50: 1 | BE50: 2 | BF50: 3 | BG50: 4 | BH50: 5 | BI50: 6 | BJ50: 7 | BK50: 8 | BL50: 9 | BM50: 10 | BN50: 11 | BO50: 12 | BP50: 13 | BQ50: 14 | BR50: 15 | BS50: 16 | BT50: 17 | BU50: 18 | BV50: 19 | BW50: 20 | BX50: 21 | BY50: 22 | BZ50: =IF(ISERROR(DATEVALUE(BY50+1 & " "&TEXT($AW50,"Mmmm") & " " & $F50)),"∙",BY50+1) -> 23 | CA50: 24 | CB50: 25 | CC50: 26 | CD50: 27 | CE50: 28 | CF50: 29 | CG50: 30 | CH50: 31 | CI50: =SunsetTime(A50, -41.2865, 174.7762, 13) -> 2026-02-17T19:24:34.133 | CJ50: =ExcelToJD(CI50-CN50/24) -> 2461088.767 | CK50: =NewMoonPrevious(CI50 - CN50/24) -> 2461089.002 | CL50: -0.2346028974 | CM50: =_xlfn.IFS( CL50<1,"Whiro", CL50<2,"Tirea", CL50<3,"Ohata", CL50<4,"Ōuenuku", CL50<5,"Okoro", CL50<6,"Tamatea-kai-ariki", CL50<7,"Tamatea-wananga", CL50<8,"Tamatea-ā-āio", CL50<9,"Tamatea-whakapau", CL50<10,"Huna", CL50<11,"Airoa", CL50<12,"Hotu", CL50<13,"Māwharu", CL50<14,"Atua whakahaehae", CL50<15,"Ōhua", CL50<16,"Ōturu", CL50<17,"Rākaunui", CL50<18,"Rākaumatohi", CL50<19,"Takiraua", CL50<20,"Oike", CL50<21,"Korekore", CL50<22,"Korekore tuarua", CL50<23,"Korekore piri ki Tangaroa", CL50<24,"Tangaroa ā-mua", CL50<25,"Tangaroa ā-roto", CL50<26,"Tangaroa ata kiokio", CL50<27,"Ōtāne", CL50<28,"Ōrongonui", CL50<29,"Maurea", CL50<30,"Mutuwhenua" ) -> Whiro | CN50: =LookupTimezoneOffset(A50) -> 13
A51: 2026-02-19 | B51: 19 o | C51: 20 o | D51: =LOOKUP(VALUE(TEXT(A51,"M")),{1,2,3,4,5,6,7,8,9,10,11,12},{"Kohitātea","Hui‑tanguru","Poutū‑te‑rangi","Paengawhāwhā","Haratua","Pipiri","Hōngongoi","Here‑turi‑kōkā","Mahuru","Whiringa‑ā‑nuku","Whiringa‑ā‑rangi","Hakihea"}) -> Hui‑tanguru | E51: Hui‑tanguru | F51: 2026 | G51: 2026 | H51: =LOOKUP(WEEKDAY(A51),{1,2,3,4,5,6,7},{"Rātapu","Rāhina","Rātū","Rāapa","Rāpare","Rāmere","Rāhoroi ","Rātapu"}) -> Rāpare | I51: Rāmere | J51: 2026-02-01 | Q51: 1 | R51: 2 | S51: 3 | T51: 4 | U51: 5 | V51: 6 | W51: 7 | X51: 8 | Y51: 9 | Z51: 10 | AA51: 11 | AB51: 12 | AC51: 13 | AD51: 14 | AE51: 15 | AF51: 16 | AG51: 17 | AH51: 18 | AI51: 19 | AJ51: 20 | AK51: 21 | AL51: 22 | AM51: =IF(ISERROR(DATEVALUE(AL51+1 & " "&TEXT($A51,"Mmmm") & " " & $F51))," ",AL51+1) -> 23 | AN51: 24 | AO51: 25 | AP51: 26 | AQ51: 27 | AR51: 28 | AV51: =LOOKUP(VALUE(TEXT(AW51,"M")),{1,2,3,4,5,6,7,8,9,10,11,12},{"Kohitātea","Hui‑tanguru","Poutū‑te‑rangi","Paengawhāwhā","Haratua","Pipiri","Hōngongoi","Here‑turi‑kōkā","Mahuru","Whiringa‑ā‑nuku","Whiringa‑ā‑rangi","Hakihea"}) -> Poutū‑te‑rangi | AW51: 46082 | BD51: 1 | BE51: 2 | BF51: 3 | BG51: 4 | BH51: 5 | BI51: 6 | BJ51: 7 | BK51: 8 | BL51: 9 | BM51: 10 | BN51: 11 | BO51: 12 | BP51: 13 | BQ51: 14 | BR51: 15 | BS51: 16 | BT51: 17 | BU51: 18 | BV51: 19 | BW51: 20 | BX51: 21 | BY51: 22 | BZ51: =IF(ISERROR(DATEVALUE(BY51+1 & " "&TEXT($AW51,"Mmmm") & " " & $F51)),"∙",BY51+1) -> 23 | CA51: 24 | CB51: 25 | CC51: 26 | CD51: 27 | CE51: 28 | CF51: 29 | CG51: 30 | CH51: 31 | CI51: =SunsetTime(A51, -41.2865, 174.7762, 13) -> 2026-02-18T19:23:11.976 | CJ51: =ExcelToJD(CI51-CN51/24) -> 2461089.766 | CK51: =NewMoonPrevious(CI51 - CN51/24) -> 2461089.002 | CL51: 0.7644462143 | CM51: =_xlfn.IFS( CL51<1,"Whiro", CL51<2,"Tirea", CL51<3,"Ohata", CL51<4,"Ōuenuku", CL51<5,"Okoro", CL51<6,"Tamatea-kai-ariki", CL51<7,"Tamatea-wananga", CL51<8,"Tamatea-ā-āio", CL51<9,"Tamatea-whakapau", CL51<10,"Huna", CL51<11,"Airoa", CL51<12,"Hotu", CL51<13,"Māwharu", CL51<14,"Atua whakahaehae", CL51<15,"Ōhua", CL51<16,"Ōturu", CL51<17,"Rākaunui", CL51<18,"Rākaumatohi", CL51<19,"Takiraua", CL51<20,"Oike", CL51<21,"Korekore", CL51<22,"Korekore tuarua", CL51<23,"Korekore piri ki Tangaroa", CL51<24,"Tangaroa ā-mua", CL51<25,"Tangaroa ā-roto", CL51<26,"Tangaroa ata kiokio", CL51<27,"Ōtāne", CL51<28,"Ōrongonui", CL51<29,"Maurea", CL51<30,"Mutuwhenua" ) -> Whiro | CN51: =LookupTimezoneOffset(A51) -> 13
A52: 2026-02-20 | B52: 20 o | C52: 21 o | D52: =LOOKUP(VALUE(TEXT(A52,"M")),{1,2,3,4,5,6,7,8,9,10,11,12},{"Kohitātea","Hui‑tanguru","Poutū‑te‑rangi","Paengawhāwhā","Haratua","Pipiri","Hōngongoi","Here‑turi‑kōkā","Mahuru","Whiringa‑ā‑nuku","Whiringa‑ā‑rangi","Hakihea"}) -> Hui‑tanguru | E52: Hui‑tanguru | F52: 2026 | G52: 2026 | H52: =LOOKUP(WEEKDAY(A52),{1,2,3,4,5,6,7},{"Rātapu","Rāhina","Rātū","Rāapa","Rāpare","Rāmere","Rāhoroi ","Rātapu"}) -> Rāmere | I52: Rāhoroi | J52: 2026-02-01 | Q52: 1 | R52: 2 | S52: 3 | T52: 4 | U52: 5 | V52: 6 | W52: 7 | X52: 8 | Y52: 9 | Z52: 10 | AA52: 11 | AB52: 12 | AC52: 13 | AD52: 14 | AE52: 15 | AF52: 16 | AG52: 17 | AH52: 18 | AI52: 19 | AJ52: 20 | AK52: 21 | AL52: 22 | AM52: =IF(ISERROR(DATEVALUE(AL52+1 & " "&TEXT($A52,"Mmmm") & " " & $F52))," ",AL52+1) -> 23 | AN52: 24 | AO52: 25 | AP52: 26 | AQ52: 27 | AR52: 28 | AV52: =LOOKUP(VALUE(TEXT(AW52,"M")),{1,2,3,4,5,6,7,8,9,10,11,12},{"Kohitātea","Hui‑tanguru","Poutū‑te‑rangi","Paengawhāwhā","Haratua","Pipiri","Hōngongoi","Here‑turi‑kōkā","Mahuru","Whiringa‑ā‑nuku","Whiringa‑ā‑rangi","Hakihea"}) -> Poutū‑te‑rangi | AW52: 46082 | BD52: 1 | BE52: 2 | BF52: 3 | BG52: 4 | BH52: 5 | BI52: 6 | BJ52: 7 | BK52: 8 | BL52: 9 | BM52: 10 | BN52: 11 | BO52: 12 | BP52: 13 | BQ52: 14 | BR52: 15 | BS52: 16 | BT52: 17 | BU52: 18 | BV52: 19 | BW52: 20 | BX52: 21 | BY52: 22 | BZ52: =IF(ISERROR(DATEVALUE(BY52+1 & " "&TEXT($AW52,"Mmmm") & " " & $F52)),"∙",BY52+1) -> 23 | CA52: 24 | CB52: 25 | CC52: 26 | CD52: 27 | CE52: 28 | CF52: 29 | CG52: 30 | CH52: 31 | CI52: =SunsetTime(A52, -41.2865, 174.7762, 13) -> 2026-02-19T19:21:48.659 | CJ52: =ExcelToJD(CI52-CN52/24) -> 2461090.765 | CK52: =NewMoonPrevious(CI52 - CN52/24) -> 2461089.002 | CL52: 1.763481893 | CM52: =_xlfn.IFS( CL52<1,"Whiro", CL52<2,"Tirea", CL52<3,"Ohata", CL52<4,"Ōuenuku", CL52<5,"Okoro", CL52<6,"Tamatea-kai-ariki", CL52<7,"Tamatea-wananga", CL52<8,"Tamatea-ā-āio", CL52<9,"Tamatea-whakapau", CL52<10,"Huna", CL52<11,"Airoa", CL52<12,"Hotu", CL52<13,"Māwharu", CL52<14,"Atua whakahaehae", CL52<15,"Ōhua", CL52<16,"Ōturu", CL52<17,"Rākaunui", CL52<18,"Rākaumatohi", CL52<19,"Takiraua", CL52<20,"Oike", CL52<21,"Korekore", CL52<22,"Korekore tuarua", CL52<23,"Korekore piri ki Tangaroa", CL52<24,"Tangaroa ā-mua", CL52<25,"Tangaroa ā-roto", CL52<26,"Tangaroa ata kiokio", CL52<27,"Ōtāne", CL52<28,"Ōrongonui", CL52<29,"Maurea", CL52<30,"Mutuwhenua" ) -> Tirea | CN52: =LookupTimezoneOffset(A52) -> 13
A53: 2026-02-21 | B53: 21 o | C53: 22 o | D53: =LOOKUP(VALUE(TEXT(A53,"M")),{1,2,3,4,5,6,7,8,9,10,11,12},{"Kohitātea","Hui‑tanguru","Poutū‑te‑rangi","Paengawhāwhā","Haratua","Pipiri","Hōngongoi","Here‑turi‑kōkā","Mahuru","Whiringa‑ā‑nuku","Whiringa‑ā‑rangi","Hakihea"}) -> Hui‑tanguru | E53: Hui‑tanguru | F53: 2026 | G53: 2026 | H53: =LOOKUP(WEEKDAY(A53),{1,2,3,4,5,6,7},{"Rātapu","Rāhina","Rātū","Rāapa","Rāpare","Rāmere","Rāhoroi ","Rātapu"}) -> Rāhoroi | I53: Rātapu | J53: 2026-02-01 | Q53: 1 | R53: 2 | S53: 3 | T53: 4 | U53: 5 | V53: 6 | W53: 7 | X53: 8 | Y53: 9 | Z53: 10 | AA53: 11 | AB53: 12 | AC53: 13 | AD53: 14 | AE53: 15 | AF53: 16 | AG53: 17 | AH53: 18 | AI53: 19 | AJ53: 20 | AK53: 21 | AL53: 22 | AM53: =IF(ISERROR(DATEVALUE(AL53+1 & " "&TEXT($A53,"Mmmm") & " " & $F53))," ",AL53+1) -> 23 | AN53: 24 | AO53: 25 | AP53: 26 | AQ53: 27 | AR53: 28 | AV53: =LOOKUP(VALUE(TEXT(AW53,"M")),{1,2,3,4,5,6,7,8,9,10,11,12},{"Kohitātea","Hui‑tanguru","Poutū‑te‑rangi","Paengawhāwhā","Haratua","Pipiri","Hōngongoi","Here‑turi‑kōkā","Mahuru","Whiringa‑ā‑nuku","Whiringa‑ā‑rangi","Hakihea"}) -> Poutū‑te‑rangi | AW53: 46082 | BD53: 1 | BE53: 2 | BF53: 3 | BG53: 4 | BH53: 5 | BI53: 6 | BJ53: 7 | BK53: 8 | BL53: 9 | BM53: 10 | BN53: 11 | BO53: 12 | BP53: 13 | BQ53: 14 | BR53: 15 | BS53: 16 | BT53: 17 | BU53: 18 | BV53: 19 | BW53: 20 | BX53: 21 | BY53: 22 | BZ53: =IF(ISERROR(DATEVALUE(BY53+1 & " "&TEXT($AW53,"Mmmm") & " " & $F53)),"∙",BY53+1) -> 23 | CA53: 24 | CB53: 25 | CC53: 26 | CD53: 27 | CE53: 28 | CF53: 29 | CG53: 30 | CH53: 31 | CI53: =SunsetTime(A53, -41.2865, 174.7762, 13) -> 2026-02-20T19:20:24.213 | CJ53: =ExcelToJD(CI53-CN53/24) -> 2461091.764 | CK53: =NewMoonPrevious(CI53 - CN53/24) -> 2461089.002 | CL53: 2.762504511 | CM53: =_xlfn.IFS( CL53<1,"Whiro", CL53<2,"Tirea", CL53<3,"Ohata", CL53<4,"Ōuenuku", CL53<5,"Okoro", CL53<6,"Tamatea-kai-ariki", CL53<7,"Tamatea-wananga", CL53<8,"Tamatea-ā-āio", CL53<9,"Tamatea-whakapau", CL53<10,"Huna", CL53<11,"Airoa", CL53<12,"Hotu", CL53<13,"Māwharu", CL53<14,"Atua whakahaehae", CL53<15,"Ōhua", CL53<16,"Ōturu", CL53<17,"Rākaunui", CL53<18,"Rākaumatohi", CL53<19,"Takiraua", CL53<20,"Oike", CL53<21,"Korekore", CL53<22,"Korekore tuarua", CL53<23,"Korekore piri ki Tangaroa", CL53<24,"Tangaroa ā-mua", CL53<25,"Tangaroa ā-roto", CL53<26,"Tangaroa ata kiokio", CL53<27,"Ōtāne", CL53<28,"Ōrongonui", CL53<29,"Maurea", CL53<30,"Mutuwhenua" ) -> Ohata | CN53: =LookupTimezoneOffset(A53) -> 13
A54: 2026-02-22 | B54: 22 o | C54: 23 o | D54: =LOOKUP(VALUE(TEXT(A54,"M")),{1,2,3,4,5,6,7,8,9,10,11,12},{"Kohitātea","Hui‑tanguru","Poutū‑te‑rangi","Paengawhāwhā","Haratua","Pipiri","Hōngongoi","Here‑turi‑kōkā","Mahuru","Whiringa‑ā‑nuku","Whiringa‑ā‑rangi","Hakihea"}) -> Hui‑tanguru | E54: Hui‑tanguru | F54: 2026 | G54: 2026 | H54: =LOOKUP(WEEKDAY(A54),{1,2,3,4,5,6,7},{"Rātapu","Rāhina","Rātū","Rāapa","Rāpare","Rāmere","Rāhoroi ","Rātapu"}) -> Rātapu | I54: Rāhina | J54: 2026-02-01 | Q54: 1 | R54: 2 | S54: 3 | T54: 4 | U54: 5 | V54: 6 | W54: 7 | X54: 8 | Y54: 9 | Z54: 10 | AA54: 11 | AB54: 12 | AC54: 13 | AD54: 14 | AE54: 15 | AF54: 16 | AG54: 17 | AH54: 18 | AI54: 19 | AJ54: 20 | AK54: 21 | AL54: 22 | AM54: =IF(ISERROR(DATEVALUE(AL54+1 & " "&TEXT($A54,"Mmmm") & " " & $F54))," ",AL54+1) -> 23 | AN54: 24 | AO54: 25 | AP54: 26 | AQ54: 27 | AR54: 28 | AV54: =LOOKUP(VALUE(TEXT(AW54,"M")),{1,2,3,4,5,6,7,8,9,10,11,12},{"Kohitātea","Hui‑tanguru","Poutū‑te‑rangi","Paengawhāwhā","Haratua","Pipiri","Hōngongoi","Here‑turi‑kōkā","Mahuru","Whiringa‑ā‑nuku","Whiringa‑ā‑rangi","Hakihea"}) -> Poutū‑te‑rangi | AW54: 46082 | BD54: 1 | BE54: 2 | BF54: 3 | BG54: 4 | BH54: 5 | BI54: 6 | BJ54: 7 | BK54: 8 | BL54: 9 | BM54: 10 | BN54: 11 | BO54: 12 | BP54: 13 | BQ54: 14 | BR54: 15 | BS54: 16 | BT54: 17 | BU54: 18 | BV54: 19 | BW54: 20 | BX54: 21 | BY54: 22 | BZ54: =IF(ISERROR(DATEVALUE(BY54+1 & " "&TEXT($AW54,"Mmmm") & " " & $F54)),"∙",BY54+1) -> 23 | CA54: 24 | CB54: 25 | CC54: 26 | CD54: 27 | CE54: 28 | CF54: 29 | CG54: 30 | CH54: 31 | CI54: =SunsetTime(A54, -41.2865, 174.7762, 13) -> 2026-02-21T19:18:58.671 | CJ54: =ExcelToJD(CI54-CN54/24) -> 2461092.763 | CK54: =NewMoonPrevious(CI54 - CN54/24) -> 2461089.002 | CL54: 3.761514443 | CM54: =_xlfn.IFS( CL54<1,"Whiro", CL54<2,"Tirea", CL54<3,"Ohata", CL54<4,"Ōuenuku", CL54<5,"Okoro", CL54<6,"Tamatea-kai-ariki", CL54<7,"Tamatea-wananga", CL54<8,"Tamatea-ā-āio", CL54<9,"Tamatea-whakapau", CL54<10,"Huna", CL54<11,"Airoa", CL54<12,"Hotu", CL54<13,"Māwharu", CL54<14,"Atua whakahaehae", CL54<15,"Ōhua", CL54<16,"Ōturu", CL54<17,"Rākaunui", CL54<18,"Rākaumatohi", CL54<19,"Takiraua", CL54<20,"Oike", CL54<21,"Korekore", CL54<22,"Korekore tuarua", CL54<23,"Korekore piri ki Tangaroa", CL54<24,"Tangaroa ā-mua", CL54<25,"Tangaroa ā-roto", CL54<26,"Tangaroa ata kiokio", CL54<27,"Ōtāne", CL54<28,"Ōrongonui", CL54<29,"Maurea", CL54<30,"Mutuwhenua" ) -> Ōuenuku | CN54: =LookupTimezoneOffset(A54) -> 13
A55: 2026-02-23 | B55: 23 o | C55: 24 o | D55: =LOOKUP(VALUE(TEXT(A55,"M")),{1,2,3,4,5,6,7,8,9,10,11,12},{"Kohitātea","Hui‑tanguru","Poutū‑te‑rangi","Paengawhāwhā","Haratua","Pipiri","Hōngongoi","Here‑turi‑kōkā","Mahuru","Whiringa‑ā‑nuku","Whiringa‑ā‑rangi","Hakihea"}) -> Hui‑tanguru | E55: Hui‑tanguru | F55: 2026 | G55: 2026 | H55: =LOOKUP(WEEKDAY(A55),{1,2,3,4,5,6,7},{"Rātapu","Rāhina","Rātū","Rāapa","Rāpare","Rāmere","Rāhoroi ","Rātapu"}) -> Rāhina | I55: Rātū | J55: 2026-02-01 | Q55: 1 | R55: 2 | S55: 3 | T55: 4 | U55: 5 | V55: 6 | W55: 7 | X55: 8 | Y55: 9 | Z55: 10 | AA55: 11 | AB55: 12 | AC55: 13 | AD55: 14 | AE55: 15 | AF55: 16 | AG55: 17 | AH55: 18 | AI55: 19 | AJ55: 20 | AK55: 21 | AL55: 22 | AM55: =IF(ISERROR(DATEVALUE(AL55+1 & " "&TEXT($A55,"Mmmm") & " " & $F55))," ",AL55+1) -> 23 | AN55: 24 | AO55: 25 | AP55: 26 | AQ55: 27 | AR55: 28 | AV55: =LOOKUP(VALUE(TEXT(AW55,"M")),{1,2,3,4,5,6,7,8,9,10,11,12},{"Kohitātea","Hui‑tanguru","Poutū‑te‑rangi","Paengawhāwhā","Haratua","Pipiri","Hōngongoi","Here‑turi‑kōkā","Mahuru","Whiringa‑ā‑nuku","Whiringa‑ā‑rangi","Hakihea"}) -> Poutū‑te‑rangi | AW55: 46082 | BD55: 1 | BE55: 2 | BF55: 3 | BG55: 4 | BH55: 5 | BI55: 6 | BJ55: 7 | BK55: 8 | BL55: 9 | BM55: 10 | BN55: 11 | BO55: 12 | BP55: 13 | BQ55: 14 | BR55: 15 | BS55: 16 | BT55: 17 | BU55: 18 | BV55: 19 | BW55: 20 | BX55: 21 | BY55: 22 | BZ55: =IF(ISERROR(DATEVALUE(BY55+1 & " "&TEXT($AW55,"Mmmm") & " " & $F55)),"∙",BY55+1) -> 23 | CA55: 24 | CB55: 25 | CC55: 26 | CD55: 27 | CE55: 28 | CF55: 29 | CG55: 30 | CH55: 31 | CI55: =SunsetTime(A55, -41.2865, 174.7762, 13) -> 2026-02-22T19:17:32.065 | CJ55: =ExcelToJD(CI55-CN55/24) -> 2461093.762 | CK55: =NewMoonPrevious(CI55 - CN55/24) -> 2461089.002 | CL55: 4.760512062 | CM55: =_xlfn.IFS( CL55<1,"Whiro", CL55<2,"Tirea", CL55<3,"Ohata", CL55<4,"Ōuenuku", CL55<5,"Okoro", CL55<6,"Tamatea-kai-ariki", CL55<7,"Tamatea-wananga", CL55<8,"Tamatea-ā-āio", CL55<9,"Tamatea-whakapau", CL55<10,"Huna", CL55<11,"Airoa", CL55<12,"Hotu", CL55<13,"Māwharu", CL55<14,"Atua whakahaehae", CL55<15,"Ōhua", CL55<16,"Ōturu", CL55<17,"Rākaunui", CL55<18,"Rākaumatohi", CL55<19,"Takiraua", CL55<20,"Oike", CL55<21,"Korekore", CL55<22,"Korekore tuarua", CL55<23,"Korekore piri ki Tangaroa", CL55<24,"Tangaroa ā-mua", CL55<25,"Tangaroa ā-roto", CL55<26,"Tangaroa ata kiokio", CL55<27,"Ōtāne", CL55<28,"Ōrongonui", CL55<29,"Maurea", CL55<30,"Mutuwhenua" ) -> Okoro | CN55: =LookupTimezoneOffset(A55) -> 13
A56: 2026-02-24 | B56: 24 o | C56: 25 o | D56: =LOOKUP(VALUE(TEXT(A56,"M")),{1,2,3,4,5,6,7,8,9,10,11,12},{"Kohitātea","Hui‑tanguru","Poutū‑te‑rangi","Paengawhāwhā","Haratua","Pipiri","Hōngongoi","Here‑turi‑kōkā","Mahuru","Whiringa‑ā‑nuku","Whiringa‑ā‑rangi","Hakihea"}) -> Hui‑tanguru | E56: Hui‑tanguru | F56: 2026 | G56: 2026 | H56: =LOOKUP(WEEKDAY(A56),{1,2,3,4,5,6,7},{"Rātapu","Rāhina","Rātū","Rāapa","Rāpare","Rāmere","Rāhoroi ","Rātapu"}) -> Rātū | I56: Rāapa | J56: 2026-02-01 | Q56: 1 | R56: 2 | S56: 3 | T56: 4 | U56: 5 | V56: 6 | W56: 7 | X56: 8 | Y56: 9 | Z56: 10 | AA56: 11 | AB56: 12 | AC56: 13 | AD56: 14 | AE56: 15 | AF56: 16 | AG56: 17 | AH56: 18 | AI56: 19 | AJ56: 20 | AK56: 21 | AL56: 22 | AM56: =IF(ISERROR(DATEVALUE(AL56+1 & " "&TEXT($A56,"Mmmm") & " " & $F56))," ",AL56+1) -> 23 | AN56: 24 | AO56: 25 | AP56: 26 | AQ56: 27 | AR56: 28 | AV56: =LOOKUP(VALUE(TEXT(AW56,"M")),{1,2,3,4,5,6,7,8,9,10,11,12},{"Kohitātea","Hui‑tanguru","Poutū‑te‑rangi","Paengawhāwhā","Haratua","Pipiri","Hōngongoi","Here‑turi‑kōkā","Mahuru","Whiringa‑ā‑nuku","Whiringa‑ā‑rangi","Hakihea"}) -> Poutū‑te‑rangi | AW56: 46082 | BD56: 1 | BE56: 2 | BF56: 3 | BG56: 4 | BH56: 5 | BI56: 6 | BJ56: 7 | BK56: 8 | BL56: 9 | BM56: 10 | BN56: 11 | BO56: 12 | BP56: 13 | BQ56: 14 | BR56: 15 | BS56: 16 | BT56: 17 | BU56: 18 | BV56: 19 | BW56: 20 | BX56: 21 | BY56: 22 | BZ56: =IF(ISERROR(DATEVALUE(BY56+1 & " "&TEXT($AW56,"Mmmm") & " " & $F56)),"∙",BY56+1) -> 23 | CA56: 24 | CB56: 25 | CC56: 26 | CD56: 27 | CE56: 28 | CF56: 29 | CG56: 30 | CH56: 31 | CI56: =SunsetTime(A56, -41.2865, 174.7762, 13) -> 2026-02-23T19:17:32.065 | CJ56: =ExcelToJD(CI56-CN56/24) -> 2461094.762 | CK56: =NewMoonPrevious(CI56 - CN56/24) -> 2461089.002 | CL56: 5.760512062 | CM56: =_xlfn.IFS( CL56<1,"Whiro", CL56<2,"Tirea", CL56<3,"Ohata", CL56<4,"Ōuenuku", CL56<5,"Okoro", CL56<6,"Tamatea-kai-ariki", CL56<7,"Tamatea-wananga", CL56<8,"Tamatea-ā-āio", CL56<9,"Tamatea-whakapau", CL56<10,"Huna", CL56<11,"Airoa", CL56<12,"Hotu", CL56<13,"Māwharu", CL56<14,"Atua whakahaehae", CL56<15,"Ōhua", CL56<16,"Ōturu", CL56<17,"Rākaunui", CL56<18,"Rākaumatohi", CL56<19,"Takiraua", CL56<20,"Oike", CL56<21,"Korekore", CL56<22,"Korekore tuarua", CL56<23,"Korekore piri ki Tangaroa", CL56<24,"Tangaroa ā-mua", CL56<25,"Tangaroa ā-roto", CL56<26,"Tangaroa ata kiokio", CL56<27,"Ōtāne", CL56<28,"Ōrongonui", CL56<29,"Maurea", CL56<30,"Mutuwhenua" ) -> Tamatea-kai-ariki | CN56: =LookupTimezoneOffset(A56) -> 13
A57: 2026-02-25 | B57: 25 o | C57: 26 o | D57: =LOOKUP(VALUE(TEXT(A57,"M")),{1,2,3,4,5,6,7,8,9,10,11,12},{"Kohitātea","Hui‑tanguru","Poutū‑te‑rangi","Paengawhāwhā","Haratua","Pipiri","Hōngongoi","Here‑turi‑kōkā","Mahuru","Whiringa‑ā‑nuku","Whiringa‑ā‑rangi","Hakihea"}) -> Hui‑tanguru | E57: Hui‑tanguru | F57: 2026 | G57: 2026 | H57: =LOOKUP(WEEKDAY(A57),{1,2,3,4,5,6,7},{"Rātapu","Rāhina","Rātū","Rāapa","Rāpare","Rāmere","Rāhoroi ","Rātapu"}) -> Rāapa | I57: Rāpare | J57: 2026-02-01 | Q57: 1 | R57: 2 | S57: 3 | T57: 4 | U57: 5 | V57: 6 | W57: 7 | X57: 8 | Y57: 9 | Z57: 10 | AA57: 11 | AB57: 12 | AC57: 13 | AD57: 14 | AE57: 15 | AF57: 16 | AG57: 17 | AH57: 18 | AI57: 19 | AJ57: 20 | AK57: 21 | AL57: 22 | AM57: =IF(ISERROR(DATEVALUE(AL57+1 & " "&TEXT($A57,"Mmmm") & " " & $F57))," ",AL57+1) -> 23 | AN57: 24 | AO57: 25 | AP57: 26 | AQ57: 27 | AR57: 28 | AV57: =LOOKUP(VALUE(TEXT(AW57,"M")),{1,2,3,4,5,6,7,8,9,10,11,12},{"Kohitātea","Hui‑tanguru","Poutū‑te‑rangi","Paengawhāwhā","Haratua","Pipiri","Hōngongoi","Here‑turi‑kōkā","Mahuru","Whiringa‑ā‑nuku","Whiringa‑ā‑rangi","Hakihea"}) -> Poutū‑te‑rangi | AW57: 46082 | BD57: 1 | BE57: 2 | BF57: 3 | BG57: 4 | BH57: 5 | BI57: 6 | BJ57: 7 | BK57: 8 | BL57: 9 | BM57: 10 | BN57: 11 | BO57: 12 | BP57: 13 | BQ57: 14 | BR57: 15 | BS57: 16 | BT57: 17 | BU57: 18 | BV57: 19 | BW57: 20 | BX57: 21 | BY57: 22 | BZ57: =IF(ISERROR(DATEVALUE(BY57+1 & " "&TEXT($AW57,"Mmmm") & " " & $F57)),"∙",BY57+1) -> 23 | CA57: 24 | CB57: 25 | CC57: 26 | CD57: 27 | CE57: 28 | CF57: 29 | CG57: 30 | CH57: 31 | CI57: =SunsetTime(A57, -41.2865, 174.7762, 13) -> 2026-02-24T19:16:04.428 | CJ57: =ExcelToJD(CI57-CN57/24) -> 2461095.761 | CK57: =NewMoonPrevious(CI57 - CN57/24) -> 2461089.002 | CL57: 6.759497747 | CM57: =_xlfn.IFS( CL57<1,"Whiro", CL57<2,"Tirea", CL57<3,"Ohata", CL57<4,"Ōuenuku", CL57<5,"Okoro", CL57<6,"Tamatea-kai-ariki", CL57<7,"Tamatea-wananga", CL57<8,"Tamatea-ā-āio", CL57<9,"Tamatea-whakapau", CL57<10,"Huna", CL57<11,"Airoa", CL57<12,"Hotu", CL57<13,"Māwharu", CL57<14,"Atua whakahaehae", CL57<15,"Ōhua", CL57<16,"Ōturu", CL57<17,"Rākaunui", CL57<18,"Rākaumatohi", CL57<19,"Takiraua", CL57<20,"Oike", CL57<21,"Korekore", CL57<22,"Korekore tuarua", CL57<23,"Korekore piri ki Tangaroa", CL57<24,"Tangaroa ā-mua", CL57<25,"Tangaroa ā-roto", CL57<26,"Tangaroa ata kiokio", CL57<27,"Ōtāne", CL57<28,"Ōrongonui", CL57<29,"Maurea", CL57<30,"Mutuwhenua" ) -> Tamatea-wananga | CN57: =LookupTimezoneOffset(A57) -> 13
A58: 2026-02-26 | B58: 26 o | C58: 27 o | D58: =LOOKUP(VALUE(TEXT(A58,"M")),{1,2,3,4,5,6,7,8,9,10,11,12},{"Kohitātea","Hui‑tanguru","Poutū‑te‑rangi","Paengawhāwhā","Haratua","Pipiri","Hōngongoi","Here‑turi‑kōkā","Mahuru","Whiringa‑ā‑nuku","Whiringa‑ā‑rangi","Hakihea"}) -> Hui‑tanguru | E58: Hui‑tanguru | F58: 2026 | G58: 2026 | H58: =LOOKUP(WEEKDAY(A58),{1,2,3,4,5,6,7},{"Rātapu","Rāhina","Rātū","Rāapa","Rāpare","Rāmere","Rāhoroi ","Rātapu"}) -> Rāpare | I58: Rāmere | J58: 2026-02-01 | Q58: 1 | R58: 2 | S58: 3 | T58: 4 | U58: 5 | V58: 6 | W58: 7 | X58: 8 | Y58: 9 | Z58: 10 | AA58: 11 | AB58: 12 | AC58: 13 | AD58: 14 | AE58: 15 | AF58: 16 | AG58: 17 | AH58: 18 | AI58: 19 | AJ58: 20 | AK58: 21 | AL58: 22 | AM58: =IF(ISERROR(DATEVALUE(AL58+1 & " "&TEXT($A58,"Mmmm") & " " & $F58))," ",AL58+1) -> 23 | AN58: 24 | AO58: 25 | AP58: 26 | AQ58: 27 | AR58: 28 | AV58: =LOOKUP(VALUE(TEXT(AW58,"M")),{1,2,3,4,5,6,7,8,9,10,11,12},{"Kohitātea","Hui‑tanguru","Poutū‑te‑rangi","Paengawhāwhā","Haratua","Pipiri","Hōngongoi","Here‑turi‑kōkā","Mahuru","Whiringa‑ā‑nuku","Whiringa‑ā‑rangi","Hakihea"}) -> Poutū‑te‑rangi | AW58: 46082 | BD58: 1 | BE58: 2 | BF58: 3 | BG58: 4 | BH58: 5 | BI58: 6 | BJ58: 7 | BK58: 8 | BL58: 9 | BM58: 10 | BN58: 11 | BO58: 12 | BP58: 13 | BQ58: 14 | BR58: 15 | BS58: 16 | BT58: 17 | BU58: 18 | BV58: 19 | BW58: 20 | BX58: 21 | BY58: 22 | BZ58: =IF(ISERROR(DATEVALUE(BY58+1 & " "&TEXT($AW58,"Mmmm") & " " & $F58)),"∙",BY58+1) -> 23 | CA58: 24 | CB58: 25 | CC58: 26 | CD58: 27 | CE58: 28 | CF58: 29 | CG58: 30 | CH58: 31 | CI58: =SunsetTime(A58, -41.2865, 174.7762, 13) -> 2026-02-25T19:14:35.793 | CJ58: =ExcelToJD(CI58-CN58/24) -> 2461096.76 | CK58: =NewMoonPrevious(CI58 - CN58/24) -> 2461089.002 | CL58: 7.758471875 | CM58: =_xlfn.IFS( CL58<1,"Whiro", CL58<2,"Tirea", CL58<3,"Ohata", CL58<4,"Ōuenuku", CL58<5,"Okoro", CL58<6,"Tamatea-kai-ariki", CL58<7,"Tamatea-wananga", CL58<8,"Tamatea-ā-āio", CL58<9,"Tamatea-whakapau", CL58<10,"Huna", CL58<11,"Airoa", CL58<12,"Hotu", CL58<13,"Māwharu", CL58<14,"Atua whakahaehae", CL58<15,"Ōhua", CL58<16,"Ōturu", CL58<17,"Rākaunui", CL58<18,"Rākaumatohi", CL58<19,"Takiraua", CL58<20,"Oike", CL58<21,"Korekore", CL58<22,"Korekore tuarua", CL58<23,"Korekore piri ki Tangaroa", CL58<24,"Tangaroa ā-mua", CL58<25,"Tangaroa ā-roto", CL58<26,"Tangaroa ata kiokio", CL58<27,"Ōtāne", CL58<28,"Ōrongonui", CL58<29,"Maurea", CL58<30,"Mutuwhenua" ) -> Tamatea-ā-āio | CN58: =LookupTimezoneOffset(A58) -> 13
A59: 2026-02-27 | B59: 27 o | C59: 28 o | D59: =LOOKUP(VALUE(TEXT(A59,"M")),{1,2,3,4,5,6,7,8,9,10,11,12},{"Kohitātea","Hui‑tanguru","Poutū‑te‑rangi","Paengawhāwhā","Haratua","Pipiri","Hōngongoi","Here‑turi‑kōkā","Mahuru","Whiringa‑ā‑nuku","Whiringa‑ā‑rangi","Hakihea"}) -> Hui‑tanguru | E59: Hui‑tanguru | F59: 2026 | G59: 2026 | H59: =LOOKUP(WEEKDAY(A59),{1,2,3,4,5,6,7},{"Rātapu","Rāhina","Rātū","Rāapa","Rāpare","Rāmere","Rāhoroi ","Rātapu"}) -> Rāmere | I59: Rāhoroi | J59: 2026-02-01 | Q59: 1 | R59: 2 | S59: 3 | T59: 4 | U59: 5 | V59: 6 | W59: 7 | X59: 8 | Y59: 9 | Z59: 10 | AA59: 11 | AB59: 12 | AC59: 13 | AD59: 14 | AE59: 15 | AF59: 16 | AG59: 17 | AH59: 18 | AI59: 19 | AJ59: 20 | AK59: 21 | AL59: 22 | AM59: =IF(ISERROR(DATEVALUE(AL59+1 & " "&TEXT($A59,"Mmmm") & " " & $F59))," ",AL59+1) -> 23 | AN59: 24 | AO59: 25 | AP59: 26 | AQ59: 27 | AR59: 28 | AV59: =LOOKUP(VALUE(TEXT(AW59,"M")),{1,2,3,4,5,6,7,8,9,10,11,12},{"Kohitātea","Hui‑tanguru","Poutū‑te‑rangi","Paengawhāwhā","Haratua","Pipiri","Hōngongoi","Here‑turi‑kōkā","Mahuru","Whiringa‑ā‑nuku","Whiringa‑ā‑rangi","Hakihea"}) -> Poutū‑te‑rangi | AW59: 46082 | BD59: 1 | BE59: 2 | BF59: 3 | BG59: 4 | BH59: 5 | BI59: 6 | BJ59: 7 | BK59: 8 | BL59: 9 | BM59: 10 | BN59: 11 | BO59: 12 | BP59: 13 | BQ59: 14 | BR59: 15 | BS59: 16 | BT59: 17 | BU59: 18 | BV59: 19 | BW59: 20 | BX59: 21 | BY59: 22 | BZ59: =IF(ISERROR(DATEVALUE(BY59+1 & " "&TEXT($AW59,"Mmmm") & " " & $F59)),"∙",BY59+1) -> 23 | CA59: 24 | CB59: 25 | CC59: 26 | CD59: 27 | CE59: 28 | CF59: 29 | CG59: 30 | CH59: 31 | CI59: =SunsetTime(A59, -41.2865, 174.7762, 13) -> 2026-02-26T19:13:06.192 | CJ59: =ExcelToJD(CI59-CN59/24) -> 2461097.759 | CK59: =NewMoonPrevious(CI59 - CN59/24) -> 2461089.002 | CL59: 8.757434824 | CM59: =_xlfn.IFS( CL59<1,"Whiro", CL59<2,"Tirea", CL59<3,"Ohata", CL59<4,"Ōuenuku", CL59<5,"Okoro", CL59<6,"Tamatea-kai-ariki", CL59<7,"Tamatea-wananga", CL59<8,"Tamatea-ā-āio", CL59<9,"Tamatea-whakapau", CL59<10,"Huna", CL59<11,"Airoa", CL59<12,"Hotu", CL59<13,"Māwharu", CL59<14,"Atua whakahaehae", CL59<15,"Ōhua", CL59<16,"Ōturu", CL59<17,"Rākaunui", CL59<18,"Rākaumatohi", CL59<19,"Takiraua", CL59<20,"Oike", CL59<21,"Korekore", CL59<22,"Korekore tuarua", CL59<23,"Korekore piri ki Tangaroa", CL59<24,"Tangaroa ā-mua", CL59<25,"Tangaroa ā-roto", CL59<26,"Tangaroa ata kiokio", CL59<27,"Ōtāne", CL59<28,"Ōrongonui", CL59<29,"Maurea", CL59<30,"Mutuwhenua" ) -> Tamatea-whakapau | CN59: =LookupTimezoneOffset(A59) -> 13
A60: 2026-02-28 | B60: 28 o | C60: 1 o | D60: =LOOKUP(VALUE(TEXT(A60,"M")),{1,2,3,4,5,6,7,8,9,10,11,12},{"Kohitātea","Hui‑tanguru","Poutū‑te‑rangi","Paengawhāwhā","Haratua","Pipiri","Hōngongoi","Here‑turi‑kōkā","Mahuru","Whiringa‑ā‑nuku","Whiringa‑ā‑rangi","Hakihea"}) -> Hui‑tanguru | E60: Poutū‑te‑rangi | F60: 2026 | G60: 2026 | H60: =LOOKUP(WEEKDAY(A60),{1,2,3,4,5,6,7},{"Rātapu","Rāhina","Rātū","Rāapa","Rāpare","Rāmere","Rāhoroi ","Rātapu"}) -> Rāhoroi | I60: Rātapu | J60: 2026-02-01 | Q60: 1 | R60: 2 | S60: 3 | T60: 4 | U60: 5 | V60: 6 | W60: 7 | X60: 8 | Y60: 9 | Z60: 10 | AA60: 11 | AB60: 12 | AC60: 13 | AD60: 14 | AE60: 15 | AF60: 16 | AG60: 17 | AH60: 18 | AI60: 19 | AJ60: 20 | AK60: 21 | AL60: 22 | AM60: =IF(ISERROR(DATEVALUE(AL60+1 & " "&TEXT($A60,"Mmmm") & " " & $F60))," ",AL60+1) -> 23 | AN60: 24 | AO60: 25 | AP60: 26 | AQ60: 27 | AR60: 28 | AV60: =LOOKUP(VALUE(TEXT(AW60,"M")),{1,2,3,4,5,6,7,8,9,10,11,12},{"Kohitātea","Hui‑tanguru","Poutū‑te‑rangi","Paengawhāwhā","Haratua","Pipiri","Hōngongoi","Here‑turi‑kōkā","Mahuru","Whiringa‑ā‑nuku","Whiringa‑ā‑rangi","Hakihea"}) -> Poutū‑te‑rangi | AW60: 46082 | BD60: 1 | BE60: 2 | BF60: 3 | BG60: 4 | BH60: 5 | BI60: 6 | BJ60: 7 | BK60: 8 | BL60: 9 | BM60: 10 | BN60: 11 | BO60: 12 | BP60: 13 | BQ60: 14 | BR60: 15 | BS60: 16 | BT60: 17 | BU60: 18 | BV60: 19 | BW60: 20 | BX60: 21 | BY60: 22 | BZ60: =IF(ISERROR(DATEVALUE(BY60+1 & " "&TEXT($AW60,"Mmmm") & " " & $F60)),"∙",BY60+1) -> 23 | CA60: 24 | CB60: 25 | CC60: 26 | CD60: 27 | CE60: 28 | CF60: 29 | CG60: 30 | CH60: 31 | CI60: =SunsetTime(A60, -41.2865, 174.7762, 13) -> 2026-02-27T19:11:35.658 | CJ60: =ExcelToJD(CI60-CN60/24) -> 2461098.758 | CK60: =NewMoonPrevious(CI60 - CN60/24) -> 2461089.002 | CL60: 9.756386977 | CM60: =_xlfn.IFS( CL60<1,"Whiro", CL60<2,"Tirea", CL60<3,"Ohata", CL60<4,"Ōuenuku", CL60<5,"Okoro", CL60<6,"Tamatea-kai-ariki", CL60<7,"Tamatea-wananga", CL60<8,"Tamatea-ā-āio", CL60<9,"Tamatea-whakapau", CL60<10,"Huna", CL60<11,"Airoa", CL60<12,"Hotu", CL60<13,"Māwharu", CL60<14,"Atua whakahaehae", CL60<15,"Ōhua", CL60<16,"Ōturu", CL60<17,"Rākaunui", CL60<18,"Rākaumatohi", CL60<19,"Takiraua", CL60<20,"Oike", CL60<21,"Korekore", CL60<22,"Korekore tuarua", CL60<23,"Korekore piri ki Tangaroa", CL60<24,"Tangaroa ā-mua", CL60<25,"Tangaroa ā-roto", CL60<26,"Tangaroa ata kiokio", CL60<27,"Ōtāne", CL60<28,"Ōrongonui", CL60<29,"Maurea", CL60<30,"Mutuwhenua" ) -> Huna | CN60: =LookupTimezoneOffset(A60) -> 13
A61: 2026-03-01 | B61: 1 o | C61: 2 o | D61: =LOOKUP(VALUE(TEXT(A61,"M")),{1,2,3,4,5,6,7,8,9,10,11,12},{"Kohitātea","Hui‑tanguru","Poutū‑te‑rangi","Paengawhāwhā","Haratua","Pipiri","Hōngongoi","Here‑turi‑kōkā","Mahuru","Whiringa‑ā‑nuku","Whiringa‑ā‑rangi","Hakihea"}) -> Poutū‑te‑rangi | E61: Poutū‑te‑rangi | F61: 2026 | G61: 2026 | H61: =LOOKUP(WEEKDAY(A61),{1,2,3,4,5,6,7},{"Rātapu","Rāhina","Rātū","Rāapa","Rāpare","Rāmere","Rāhoroi ","Rātapu"}) -> Rātapu | I61: Rāhina | J61: 2026-03-01 | Q61: 1 | R61: 2 | S61: 3 | T61: 4 | U61: 5 | V61: 6 | W61: 7 | X61: 8 | Y61: 9 | Z61: 10 | AA61: 11 | AB61: 12 | AC61: 13 | AD61: 14 | AE61: 15 | AF61: 16 | AG61: 17 | AH61: 18 | AI61: 19 | AJ61: 20 | AK61: 21 | AL61: 22 | AM61: =IF(ISERROR(DATEVALUE(AL61+1 & " "&TEXT($A61,"Mmmm") & " " & $F61))," ",AL61+1) -> 23 | AN61: 24 | AO61: 25 | AP61: 26 | AQ61: 27 | AR61: 28 | AS61: 29 | AT61: 30 | AU61: 31 | AV61: =LOOKUP(VALUE(TEXT(AW61,"M")),{1,2,3,4,5,6,7,8,9,10,11,12},{"Kohitātea","Hui‑tanguru","Poutū‑te‑rangi","Paengawhāwhā","Haratua","Pipiri","Hōngongoi","Here‑turi‑kōkā","Mahuru","Whiringa‑ā‑nuku","Whiringa‑ā‑rangi","Hakihea"}) -> Paengawhāwhā | AW61: 46113 | AZ61: 1 | BA61: 2 | BB61: 3 | BC61: 4 | BD61: 5 | BE61: 6 | BF61: 7 | BG61: 8 | BH61: 9 | BI61: 10 | BJ61: 11 | BK61: 12 | BL61: 13 | BM61: 14 | BN61: 15 | BO61: 16 | BP61: 17 | BQ61: 18 | BR61: 19 | BS61: 20 | BT61: 21 | BU61: 22 | BV61: 23 | BW61: 24 | BX61: 25 | BY61: 26 | BZ61: =IF(ISERROR(DATEVALUE(BY61+1 & " "&TEXT($AW61,"Mmmm") & " " & $F61)),"∙",BY61+1) -> 27 | CA61: 28 | CB61: 29 | CC61: 30 | CD61: ∙ | CE61: ∙ | CF61: ∙ | CG61: ∙ | CH61: ∙ | CI61: =SunsetTime(A61, -41.2865, 174.7762, 13) -> 2026-02-28T19:08:27.282 | CJ61: =ExcelToJD(CI61-CN61/24) -> 2461099.756 | CK61: =NewMoonPrevious(CI61 - CN61/24) -> 2461089.002 | CL61: 10.7542067 | CM61: =_xlfn.IFS( CL61<1,"Whiro", CL61<2,"Tirea", CL61<3,"Ohata", CL61<4,"Ōuenuku", CL61<5,"Okoro", CL61<6,"Tamatea-kai-ariki", CL61<7,"Tamatea-wananga", CL61<8,"Tamatea-ā-āio", CL61<9,"Tamatea-whakapau", CL61<10,"Huna", CL61<11,"Airoa", CL61<12,"Hotu", CL61<13,"Māwharu", CL61<14,"Atua whakahaehae", CL61<15,"Ōhua", CL61<16,"Ōturu", CL61<17,"Rākaunui", CL61<18,"Rākaumatohi", CL61<19,"Takiraua", CL61<20,"Oike", CL61<21,"Korekore", CL61<22,"Korekore tuarua", CL61<23,"Korekore piri ki Tangaroa", CL61<24,"Tangaroa ā-mua", CL61<25,"Tangaroa ā-roto", CL61<26,"Tangaroa ata kiokio", CL61<27,"Ōtāne", CL61<28,"Ōrongonui", CL61<29,"Maurea", CL61<30,"Mutuwhenua" ) -> Airoa | CN61: =LookupTimezoneOffset(A61) -> 13
A62: 2026-03-02 | B62: 2 o | C62: 3 o | D62: =LOOKUP(VALUE(TEXT(A62,"M")),{1,2,3,4,5,6,7,8,9,10,11,12},{"Kohitātea","Hui‑tanguru","Poutū‑te‑rangi","Paengawhāwhā","Haratua","Pipiri","Hōngongoi","Here‑turi‑kōkā","Mahuru","Whiringa‑ā‑nuku","Whiringa‑ā‑rangi","Hakihea"}) -> Poutū‑te‑rangi | E62: Poutū‑te‑rangi | F62: 2026 | G62: 2026 | H62: =LOOKUP(WEEKDAY(A62),{1,2,3,4,5,6,7},{"Rātapu","Rāhina","Rātū","Rāapa","Rāpare","Rāmere","Rāhoroi ","Rātapu"}) -> Rāhina | I62: Rātū | J62: 2026-03-01 | Q62: 1 | R62: 2 | S62: 3 | T62: 4 | U62: 5 | V62: 6 | W62: 7 | X62: 8 | Y62: 9 | Z62: 10 | AA62: 11 | AB62: 12 | AC62: 13 | AD62: 14 | AE62: 15 | AF62: 16 | AG62: 17 | AH62: 18 | AI62: 19 | AJ62: 20 | AK62: 21 | AL62: 22 | AM62: =IF(ISERROR(DATEVALUE(AL62+1 & " "&TEXT($A62,"Mmmm") & " " & $F62))," ",AL62+1) -> 23 | AN62: 24 | AO62: 25 | AP62: 26 | AQ62: 27 | AR62: 28 | AS62: 29 | AT62: 30 | AU62: 31 | AV62: =LOOKUP(VALUE(TEXT(AW62,"M")),{1,2,3,4,5,6,7,8,9,10,11,12},{"Kohitātea","Hui‑tanguru","Poutū‑te‑rangi","Paengawhāwhā","Haratua","Pipiri","Hōngongoi","Here‑turi‑kōkā","Mahuru","Whiringa‑ā‑nuku","Whiringa‑ā‑rangi","Hakihea"}) -> Paengawhāwhā | AW62: 46113 | AZ62: 1 | BA62: 2 | BB62: 3 | BC62: 4 | BD62: 5 | BE62: 6 | BF62: 7 | BG62: 8 | BH62: 9 | BI62: 10 | BJ62: 11 | BK62: 12 | BL62: 13 | BM62: 14 | BN62: 15 | BO62: 16 | BP62: 17 | BQ62: 18 | BR62: 19 | BS62: 20 | BT62: 21 | BU62: 22 | BV62: 23 | BW62: 24 | BX62: 25 | BY62: 26 | BZ62: =IF(ISERROR(DATEVALUE(BY62+1 & " "&TEXT($AW62,"Mmmm") & " " & $F62)),"∙",BY62+1) -> 27 | CA62: 28 | CB62: 29 | CC62: 30 | CD62: ∙ | CE62: ∙ | CF62: ∙ | CG62: ∙ | CH62: ∙ | CI62: =SunsetTime(A62, -41.2865, 174.7762, 13) -> 2026-03-01T19:06:54.263 | CJ62: =ExcelToJD(CI62-CN62/24) -> 2461100.755 | CK62: =NewMoonPrevious(CI62 - CN62/24) -> 2461089.002 | CL62: 11.75313009 | CM62: =_xlfn.IFS( CL62<1,"Whiro", CL62<2,"Tirea", CL62<3,"Ohata", CL62<4,"Ōuenuku", CL62<5,"Okoro", CL62<6,"Tamatea-kai-ariki", CL62<7,"Tamatea-wananga", CL62<8,"Tamatea-ā-āio", CL62<9,"Tamatea-whakapau", CL62<10,"Huna", CL62<11,"Airoa", CL62<12,"Hotu", CL62<13,"Māwharu", CL62<14,"Atua whakahaehae", CL62<15,"Ōhua", CL62<16,"Ōturu", CL62<17,"Rākaunui", CL62<18,"Rākaumatohi", CL62<19,"Takiraua", CL62<20,"Oike", CL62<21,"Korekore", CL62<22,"Korekore tuarua", CL62<23,"Korekore piri ki Tangaroa", CL62<24,"Tangaroa ā-mua", CL62<25,"Tangaroa ā-roto", CL62<26,"Tangaroa ata kiokio", CL62<27,"Ōtāne", CL62<28,"Ōrongonui", CL62<29,"Maurea", CL62<30,"Mutuwhenua" ) -> Hotu | CN62: =LookupTimezoneOffset(A62) -> 13
A63: 2026-03-03 | B63: 3 o | C63: 4 o | D63: =LOOKUP(VALUE(TEXT(A63,"M")),{1,2,3,4,5,6,7,8,9,10,11,12},{"Kohitātea","Hui‑tanguru","Poutū‑te‑rangi","Paengawhāwhā","Haratua","Pipiri","Hōngongoi","Here‑turi‑kōkā","Mahuru","Whiringa‑ā‑nuku","Whiringa‑ā‑rangi","Hakihea"}) -> Poutū‑te‑rangi | E63: Poutū‑te‑rangi | F63: 2026 | G63: 2026 | H63: =LOOKUP(WEEKDAY(A63),{1,2,3,4,5,6,7},{"Rātapu","Rāhina","Rātū","Rāapa","Rāpare","Rāmere","Rāhoroi ","Rātapu"}) -> Rātū | I63: Rāapa | J63: 2026-03-01 | Q63: 1 | R63: 2 | S63: 3 | T63: 4 | U63: 5 | V63: 6 | W63: 7 | X63: 8 | Y63: 9 | Z63: 10 | AA63: 11 | AB63: 12 | AC63: 13 | AD63: 14 | AE63: 15 | AF63: 16 | AG63: 17 | AH63: 18 | AI63: 19 | AJ63: 20 | AK63: 21 | AL63: 22 | AM63: =IF(ISERROR(DATEVALUE(AL63+1 & " "&TEXT($A63,"Mmmm") & " " & $F63))," ",AL63+1) -> 23 | AN63: 24 | AO63: 25 | AP63: 26 | AQ63: 27 | AR63: 28 | AS63: 29 | AT63: 30 | AU63: 31 | AV63: =LOOKUP(VALUE(TEXT(AW63,"M")),{1,2,3,4,5,6,7,8,9,10,11,12},{"Kohitātea","Hui‑tanguru","Poutū‑te‑rangi","Paengawhāwhā","Haratua","Pipiri","Hōngongoi","Here‑turi‑kōkā","Mahuru","Whiringa‑ā‑nuku","Whiringa‑ā‑rangi","Hakihea"}) -> Paengawhāwhā | AW63: 46113 | AZ63: 1 | BA63: 2 | BB63: 3 | BC63: 4 | BD63: 5 | BE63: 6 | BF63: 7 | BG63: 8 | BH63: 9 | BI63: 10 | BJ63: 11 | BK63: 12 | BL63: 13 | BM63: 14 | BN63: 15 | BO63: 16 | BP63: 17 | BQ63: 18 | BR63: 19 | BS63: 20 | BT63: 21 | BU63: 22 | BV63: 23 | BW63: 24 | BX63: 25 | BY63: 26 | BZ63: =IF(ISERROR(DATEVALUE(BY63+1 & " "&TEXT($AW63,"Mmmm") & " " & $F63)),"∙",BY63+1) -> 27 | CA63: 28 | CB63: 29 | CC63: 30 | CD63: ∙ | CE63: ∙ | CF63: ∙ | CG63: ∙ | CH63: ∙ | CI63: =SunsetTime(A63, -41.2865, 174.7762, 13) -> 2026-03-02T19:05:20.444 | CJ63: =ExcelToJD(CI63-CN63/24) -> 2461101.754 | CK63: =NewMoonPrevious(CI63 - CN63/24) -> 2461089.002 | CL63: 12.75204422 | CM63: =_xlfn.IFS( CL63<1,"Whiro", CL63<2,"Tirea", CL63<3,"Ohata", CL63<4,"Ōuenuku", CL63<5,"Okoro", CL63<6,"Tamatea-kai-ariki", CL63<7,"Tamatea-wananga", CL63<8,"Tamatea-ā-āio", CL63<9,"Tamatea-whakapau", CL63<10,"Huna", CL63<11,"Airoa", CL63<12,"Hotu", CL63<13,"Māwharu", CL63<14,"Atua whakahaehae", CL63<15,"Ōhua", CL63<16,"Ōturu", CL63<17,"Rākaunui", CL63<18,"Rākaumatohi", CL63<19,"Takiraua", CL63<20,"Oike", CL63<21,"Korekore", CL63<22,"Korekore tuarua", CL63<23,"Korekore piri ki Tangaroa", CL63<24,"Tangaroa ā-mua", CL63<25,"Tangaroa ā-roto", CL63<26,"Tangaroa ata kiokio", CL63<27,"Ōtāne", CL63<28,"Ōrongonui", CL63<29,"Maurea", CL63<30,"Mutuwhenua" ) -> Māwharu | CN63: =LookupTimezoneOffset(A63) -> 13
A64: 2026-03-04 | B64: 4 o | C64: 5 o | D64: =LOOKUP(VALUE(TEXT(A64,"M")),{1,2,3,4,5,6,7,8,9,10,11,12},{"Kohitātea","Hui‑tanguru","Poutū‑te‑rangi","Paengawhāwhā","Haratua","Pipiri","Hōngongoi","Here‑turi‑kōkā","Mahuru","Whiringa‑ā‑nuku","Whiringa‑ā‑rangi","Hakihea"}) -> Poutū‑te‑rangi | E64: Poutū‑te‑rangi | F64: 2026 | G64: 2026 | H64: =LOOKUP(WEEKDAY(A64),{1,2,3,4,5,6,7},{"Rātapu","Rāhina","Rātū","Rāapa","Rāpare","Rāmere","Rāhoroi ","Rātapu"}) -> Rāapa | I64: Rāpare | J64: 2026-03-01 | Q64: 1 | R64: 2 | S64: 3 | T64: 4 | U64: 5 | V64: 6 | W64: 7 | X64: 8 | Y64: 9 | Z64: 10 | AA64: 11 | AB64: 12 | AC64: 13 | AD64: 14 | AE64: 15 | AF64: 16 | AG64: 17 | AH64: 18 | AI64: 19 | AJ64: 20 | AK64: 21 | AL64: 22 | AM64: =IF(ISERROR(DATEVALUE(AL64+1 & " "&TEXT($A64,"Mmmm") & " " & $F64))," ",AL64+1) -> 23 | AN64: 24 | AO64: 25 | AP64: 26 | AQ64: 27 | AR64: 28 | AS64: 29 | AT64: 30 | AU64: 31 | AV64: =LOOKUP(VALUE(TEXT(AW64,"M")),{1,2,3,4,5,6,7,8,9,10,11,12},{"Kohitātea","Hui‑tanguru","Poutū‑te‑rangi","Paengawhāwhā","Haratua","Pipiri","Hōngongoi","Here‑turi‑kōkā","Mahuru","Whiringa‑ā‑nuku","Whiringa‑ā‑rangi","Hakihea"}) -> Paengawhāwhā | AW64: 46113 | AZ64: 1 | BA64: 2 | BB64: 3 | BC64: 4 | BD64: 5 | BE64: 6 | BF64: 7 | BG64: 8 | BH64: 9 | BI64: 10 | BJ64: 11 | BK64: 12 | BL64: 13 | BM64: 14 | BN64: 15 | BO64: 16 | BP64: 17 | BQ64: 18 | BR64: 19 | BS64: 20 | BT64: 21 | BU64: 22 | BV64: 23 | BW64: 24 | BX64: 25 | BY64: 26 | BZ64: =IF(ISERROR(DATEVALUE(BY64+1 & " "&TEXT($AW64,"Mmmm") & " " & $F64)),"∙",BY64+1) -> 27 | CA64: 28 | CB64: 29 | CC64: 30 | CD64: ∙ | CE64: ∙ | CF64: ∙ | CG64: ∙ | CH64: ∙ | CI64: =SunsetTime(A64, -41.2865, 174.7762, 13) -> 2026-03-03T19:03:45.860 | CJ64: =ExcelToJD(CI64-CN64/24) -> 2461102.753 | CK64: =NewMoonPrevious(CI64 - CN64/24) -> 2461089.002 | CL64: 13.7509495 | CM64: =_xlfn.IFS( CL64<1,"Whiro", CL64<2,"Tirea", CL64<3,"Ohata", CL64<4,"Ōuenuku", CL64<5,"Okoro", CL64<6,"Tamatea-kai-ariki", CL64<7,"Tamatea-wananga", CL64<8,"Tamatea-ā-āio", CL64<9,"Tamatea-whakapau", CL64<10,"Huna", CL64<11,"Airoa", CL64<12,"Hotu", CL64<13,"Māwharu", CL64<14,"Atua whakahaehae", CL64<15,"Ōhua", CL64<16,"Ōturu", CL64<17,"Rākaunui", CL64<18,"Rākaumatohi", CL64<19,"Takiraua", CL64<20,"Oike", CL64<21,"Korekore", CL64<22,"Korekore tuarua", CL64<23,"Korekore piri ki Tangaroa", CL64<24,"Tangaroa ā-mua", CL64<25,"Tangaroa ā-roto", CL64<26,"Tangaroa ata kiokio", CL64<27,"Ōtāne", CL64<28,"Ōrongonui", CL64<29,"Maurea", CL64<30,"Mutuwhenua" ) -> Atua whakahaehae | CN64: =LookupTimezoneOffset(A64) -> 13
A65: 2026-03-05 | B65: 5 o | C65: 6 o | D65: =LOOKUP(VALUE(TEXT(A65,"M")),{1,2,3,4,5,6,7,8,9,10,11,12},{"Kohitātea","Hui‑tanguru","Poutū‑te‑rangi","Paengawhāwhā","Haratua","Pipiri","Hōngongoi","Here‑turi‑kōkā","Mahuru","Whiringa‑ā‑nuku","Whiringa‑ā‑rangi","Hakihea"}) -> Poutū‑te‑rangi | E65: Poutū‑te‑rangi | F65: 2026 | G65: 2026 | H65: =LOOKUP(WEEKDAY(A65),{1,2,3,4,5,6,7},{"Rātapu","Rāhina","Rātū","Rāapa","Rāpare","Rāmere","Rāhoroi ","Rātapu"}) -> Rāpare | I65: Rāmere | J65: 2026-03-01 | Q65: 1 | R65: 2 | S65: 3 | T65: 4 | U65: 5 | V65: 6 | W65: 7 | X65: 8 | Y65: 9 | Z65: 10 | AA65: 11 | AB65: 12 | AC65: 13 | AD65: 14 | AE65: 15 | AF65: 16 | AG65: 17 | AH65: 18 | AI65: 19 | AJ65: 20 | AK65: 21 | AL65: 22 | AM65: =IF(ISERROR(DATEVALUE(AL65+1 & " "&TEXT($A65,"Mmmm") & " " & $F65))," ",AL65+1) -> 23 | AN65: 24 | AO65: 25 | AP65: 26 | AQ65: 27 | AR65: 28 | AS65: 29 | AT65: 30 | AU65: 31 | AV65: =LOOKUP(VALUE(TEXT(AW65,"M")),{1,2,3,4,5,6,7,8,9,10,11,12},{"Kohitātea","Hui‑tanguru","Poutū‑te‑rangi","Paengawhāwhā","Haratua","Pipiri","Hōngongoi","Here‑turi‑kōkā","Mahuru","Whiringa‑ā‑nuku","Whiringa‑ā‑rangi","Hakihea"}) -> Paengawhāwhā | AW65: 46113 | AZ65: 1 | BA65: 2 | BB65: 3 | BC65: 4 | BD65: 5 | BE65: 6 | BF65: 7 | BG65: 8 | BH65: 9 | BI65: 10 | BJ65: 11 | BK65: 12 | BL65: 13 | BM65: 14 | BN65: 15 | BO65: 16 | BP65: 17 | BQ65: 18 | BR65: 19 | BS65: 20 | BT65: 21 | BU65: 22 | BV65: 23 | BW65: 24 | BX65: 25 | BY65: 26 | BZ65: =IF(ISERROR(DATEVALUE(BY65+1 & " "&TEXT($AW65,"Mmmm") & " " & $F65)),"∙",BY65+1) -> 27 | CA65: 28 | CB65: 29 | CC65: 30 | CD65: ∙ | CE65: ∙ | CF65: ∙ | CG65: ∙ | CH65: ∙ | CI65: =SunsetTime(A65, -41.2865, 174.7762, 13) -> 2026-03-04T19:02:10.544 | CJ65: =ExcelToJD(CI65-CN65/24) -> 2461103.752 | CK65: =NewMoonPrevious(CI65 - CN65/24) -> 2461089.002 | CL65: 14.74984631 | CM65: =_xlfn.IFS( CL65<1,"Whiro", CL65<2,"Tirea", CL65<3,"Ohata", CL65<4,"Ōuenuku", CL65<5,"Okoro", CL65<6,"Tamatea-kai-ariki", CL65<7,"Tamatea-wananga", CL65<8,"Tamatea-ā-āio", CL65<9,"Tamatea-whakapau", CL65<10,"Huna", CL65<11,"Airoa", CL65<12,"Hotu", CL65<13,"Māwharu", CL65<14,"Atua whakahaehae", CL65<15,"Ōhua", CL65<16,"Ōturu", CL65<17,"Rākaunui", CL65<18,"Rākaumatohi", CL65<19,"Takiraua", CL65<20,"Oike", CL65<21,"Korekore", CL65<22,"Korekore tuarua", CL65<23,"Korekore piri ki Tangaroa", CL65<24,"Tangaroa ā-mua", CL65<25,"Tangaroa ā-roto", CL65<26,"Tangaroa ata kiokio", CL65<27,"Ōtāne", CL65<28,"Ōrongonui", CL65<29,"Maurea", CL65<30,"Mutuwhenua" ) -> Ōhua | CN65: =LookupTimezoneOffset(A65) -> 13
A66: 2026-03-06 | B66: 6 o | C66: 7 o | D66: =LOOKUP(VALUE(TEXT(A66,"M")),{1,2,3,4,5,6,7,8,9,10,11,12},{"Kohitātea","Hui‑tanguru","Poutū‑te‑rangi","Paengawhāwhā","Haratua","Pipiri","Hōngongoi","Here‑turi‑kōkā","Mahuru","Whiringa‑ā‑nuku","Whiringa‑ā‑rangi","Hakihea"}) -> Poutū‑te‑rangi | E66: Poutū‑te‑rangi | F66: 2026 | G66: 2026 | H66: =LOOKUP(WEEKDAY(A66),{1,2,3,4,5,6,7},{"Rātapu","Rāhina","Rātū","Rāapa","Rāpare","Rāmere","Rāhoroi ","Rātapu"}) -> Rāmere | I66: Rāhoroi | J66: 2026-03-01 | Q66: 1 | R66: 2 | S66: 3 | T66: 4 | U66: 5 | V66: 6 | W66: 7 | X66: 8 | Y66: 9 | Z66: 10 | AA66: 11 | AB66: 12 | AC66: 13 | AD66: 14 | AE66: 15 | AF66: 16 | AG66: 17 | AH66: 18 | AI66: 19 | AJ66: 20 | AK66: 21 | AL66: 22 | AM66: =IF(ISERROR(DATEVALUE(AL66+1 & " "&TEXT($A66,"Mmmm") & " " & $F66))," ",AL66+1) -> 23 | AN66: 24 | AO66: 25 | AP66: 26 | AQ66: 27 | AR66: 28 | AS66: 29 | AT66: 30 | AU66: 31 | AV66: =LOOKUP(VALUE(TEXT(AW66,"M")),{1,2,3,4,5,6,7,8,9,10,11,12},{"Kohitātea","Hui‑tanguru","Poutū‑te‑rangi","Paengawhāwhā","Haratua","Pipiri","Hōngongoi","Here‑turi‑kōkā","Mahuru","Whiringa‑ā‑nuku","Whiringa‑ā‑rangi","Hakihea"}) -> Paengawhāwhā | AW66: 46113 | AZ66: 1 | BA66: 2 | BB66: 3 | BC66: 4 | BD66: =IF(WEEKDAY(AW66)<8,CHOOSE(WEEKDAY($AW66),1,7,6,5,4,3,2),"∙") -> 5 | BE66: 6 | BF66: =BE66+1 -> 7 | BG66: =BF66+1 -> 8 | BH66: =BG66+1 -> 9 | BI66: =BH66+1 -> 10 | BJ66: =BI66+1 -> 11 | BK66: =BJ66+1 -> 12 | BL66: =BK66+1 -> 13 | BM66: =BL66+1 -> 14 | BN66: =BM66+1 -> 15 | BO66: =BN66+1 -> 16 | BP66: =BO66+1 -> 17 | BQ66: =BP66+1 -> 18 | BR66: =BQ66+1 -> 19 | BS66: =BR66+1 -> 20 | BT66: =BS66+1 -> 21 | BU66: =BT66+1 -> 22 | BV66: =BU66+1 -> 23 | BW66: =BV66+1 -> 24 | BX66: =BW66+1 -> 25 | BY66: =BX66+1 -> 26 | BZ66: =IF(ISERROR(DATEVALUE(BY66+1 & " "&TEXT($AW66,"Mmmm") & " " & $F66)),"∙",BY66+1) -> 27 | CA66: 28 | CB66: 29 | CC66: 30 | CD66: ∙ | CE66: ∙ | CF66: ∙ | CG66: ∙ | CH66: ∙ | CI66: =SunsetTime(A66, -41.2865, 174.7762, 13) -> 2026-03-05T19:00:34.530 | CJ66: =ExcelToJD(CI66-CN66/24) -> 2461104.75 | CK66: =NewMoonPrevious(CI66 - CN66/24) -> 2461089.002 | CL66: 15.74873503 | CM66: =_xlfn.IFS( CL66<1,"Whiro", CL66<2,"Tirea", CL66<3,"Ohata", CL66<4,"Ōuenuku", CL66<5,"Okoro", CL66<6,"Tamatea-kai-ariki", CL66<7,"Tamatea-wananga", CL66<8,"Tamatea-ā-āio", CL66<9,"Tamatea-whakapau", CL66<10,"Huna", CL66<11,"Airoa", CL66<12,"Hotu", CL66<13,"Māwharu", CL66<14,"Atua whakahaehae", CL66<15,"Ōhua", CL66<16,"Ōturu", CL66<17,"Rākaunui", CL66<18,"Rākaumatohi", CL66<19,"Takiraua", CL66<20,"Oike", CL66<21,"Korekore", CL66<22,"Korekore tuarua", CL66<23,"Korekore piri ki Tangaroa", CL66<24,"Tangaroa ā-mua", CL66<25,"Tangaroa ā-roto", CL66<26,"Tangaroa ata kiokio", CL66<27,"Ōtāne", CL66<28,"Ōrongonui", CL66<29,"Maurea", CL66<30,"Mutuwhenua" ) -> Ōturu | CN66: =LookupTimezoneOffset(A66) -> 13
A67: 2026-03-07 | B67: =DAY(A67)&" o" -> 7 o | C67: =B68 -> 8 o | D67: =LOOKUP(VALUE(TEXT(A67,"M")),{1,2,3,4,5,6,7,8,9,10,11,12},{"Kohitātea","Hui‑tanguru","Poutū‑te‑rangi","Paengawhāwhā","Haratua","Pipiri","Hōngongoi","Here‑turi‑kōkā","Mahuru","Whiringa‑ā‑nuku","Whiringa‑ā‑rangi","Hakihea"}) -> Poutū‑te‑rangi | E67: =D68 -> Poutū‑te‑rangi | F67: 2026 | G67: =F68 -> 2026 | H67: =LOOKUP(WEEKDAY(A67),{1,2,3,4,5,6,7},{"Rātapu","Rāhina","Rātū","Rāapa","Rāpare","Rāmere","Rāhoroi ","Rātapu"}) -> Rāhoroi | I67: =H68 -> Rātapu | J67: =DATEVALUE("1" & " "&TEXT(A67,"Mmmm") & " " & F67) -> 2026-03-01 | K67: =IF(WEEKDAY($J67)=2,1," ") ->  | L67: =IF(AND((WEEKDAY(J67)<4),(WEEKDAY(J67)>1)),CHOOSE(WEEKDAY($J67),3,2,1,7,6,5,4)," ") ->  | M67: =IF(AND((WEEKDAY(J67)<5),(WEEKDAY(J67)>1)),CHOOSE(WEEKDAY($J67),4,3,2,1,7,6,5)," ") ->  | N67: =IF(AND((WEEKDAY(J67)<6),(WEEKDAY(J67)>1)),CHOOSE(WEEKDAY($J67),5,4,3,2,1,7,6)," ") ->  | O67: =IF(AND((WEEKDAY(J67)<7),(WEEKDAY(J67)>1)),CHOOSE(WEEKDAY($J67),6,5,4,3,2,1,7)," ") ->  | P67: =IF(AND((WEEKDAY(J67)<8),(WEEKDAY(J67)>1)),CHOOSE(WEEKDAY($J67),7,6,5,4,3,2,1)," ") ->  | Q67: =IF(WEEKDAY(J67)<8,CHOOSE(WEEKDAY($J67),1,7,6,5,4,3,2)," ") -> 1 | R67: =Q67+1 -> 2 | S67: =R67+1 -> 3 | T67: =S67+1 -> 4 | U67: =T67+1 -> 5 | V67: =U67+1 -> 6 | W67: =V67+1 -> 7 | X67: =W67+1 -> 8 | Y67: =X67+1 -> 9 | Z67: =Y67+1 -> 10 | AA67: =Z67+1 -> 11 | AB67: =AA67+1 -> 12 | AC67: =AB67+1 -> 13 | AD67: =AC67+1 -> 14 | AE67: =AD67+1 -> 15 | AF67: =AE67+1 -> 16 | AG67: =AF67+1 -> 17 | AH67: =AG67+1 -> 18 | AI67: =AH67+1 -> 19 | AJ67: =AI67+1 -> 20 | AK67: =AJ67+1 -> 21 | AL67: =AK67+1 -> 22 | AM67: =IF(ISERROR(DATEVALUE(AL67+1 & " "&TEXT($A67,"Mmmm") & " " & $F67))," ",AL67+1) -> 23 | AN67: 24 | AO67: 25 | AP67: 26 | AQ67: 27 | AR67: 28 | AS67: 29 | AT67: 30 | AU67: 31 | AV67: =LOOKUP(VALUE(TEXT(AW67,"M")),{1,2,3,4,5,6,7,8,9,10,11,12},{"Kohitātea","Hui‑tanguru","Poutū‑te‑rangi","Paengawhāwhā","Haratua","Pipiri","Hōngongoi","Here‑turi‑kōkā","Mahuru","Whiringa‑ā‑nuku","Whiringa‑ā‑rangi","Hakihea"}) -> Paengawhāwhā | AW67: =DATE(YEAR(A67),MONTH(A67)+1,DAY(1)) -> 46113 | AX67: =IF(WEEKDAY(AW67)=2,1," ") ->  | AY67: =IF(AND((WEEKDAY(AW67)<4),(WEEKDAY(AW67)>1)),CHOOSE(WEEKDAY($AW67),3,2,1,7,6,5,4)," ") ->  | AZ67: =IF(AND((WEEKDAY(AW67)<5),(WEEKDAY(AW67)>1)),CHOOSE(WEEKDAY($AW67),4,3,2,1,7,6,5)," ") -> 1 | BA67: =IF(AND((WEEKDAY(AW67)<6),(WEEKDAY(AW67)>1)),CHOOSE(WEEKDAY($AW67),5,4,3,2,1,7,6)," ") -> 2 | BB67: =IF(AND((WEEKDAY(AW67)<7),(WEEKDAY(AW67)>1)),CHOOSE(WEEKDAY($AW67),6,5,4,3,2,1,7)," ") -> 3 | BC67: =IF(AND((WEEKDAY(AW67)<8),(WEEKDAY(AW67)>1)),CHOOSE(WEEKDAY($AW67),7,6,5,4,3,2,1)," ") -> 4 | BD67: 5 | BE67: =BD67+1 -> 6 | BF67: 7 | BG67: 8 | BH67: 9 | BI67: 10 | BJ67: 11 | BK67: 12 | BL67: 13 | BM67: 14 | BN67: 15 | BO67: 16 | BP67: 17 | BQ67: 18 | BR67: 19 | BS67: 20 | BT67: 21 | BU67: 22 | BV67: 23 | BW67: 24 | BX67: 25 | BY67: 26 | BZ67: =IF(ISERROR(DATEVALUE(BY67+1 & " "&TEXT($AW67,"Mmmm") & " " & $F67)),"∙",BY67+1) -> 27 | CA67: 28 | CB67: 29 | CC67: 30 | CD67: ∙ | CE67: ∙ | CF67: ∙ | CG67: ∙ | CH67: ∙ | CI67: =SunsetTime(A67, -41.2865, 174.7762, 13) -> 2026-03-06T18:58:57.852 | CJ67: =ExcelToJD(CI67-CN67/24) -> 2461105.749 | CK67: =NewMoonPrevious(CI67 - CN67/24) -> 2461089.002 | CL67: =CJ67-CK67 -> 16.74761607 | CM67: =_xlfn.IFS( CL67<1,"Whiro", CL67<2,"Tirea", CL67<3,"Ohata", CL67<4,"Ōuenuku", CL67<5,"Okoro", CL67<6,"Tamatea-kai-ariki", CL67<7,"Tamatea-wananga", CL67<8,"Tamatea-ā-āio", CL67<9,"Tamatea-whakapau", CL67<10,"Huna", CL67<11,"Airoa", CL67<12,"Hotu", CL67<13,"Māwharu", CL67<14,"Atua whakahaehae", CL67<15,"Ōhua", CL67<16,"Ōturu", CL67<17,"Rākaunui", CL67<18,"Rākaumatohi", CL67<19,"Takiraua", CL67<20,"Oike", CL67<21,"Korekore", CL67<22,"Korekore tuarua", CL67<23,"Korekore piri ki Tangaroa", CL67<24,"Tangaroa ā-mua", CL67<25,"Tangaroa ā-roto", CL67<26,"Tangaroa ata kiokio", CL67<27,"Ōtāne", CL67<28,"Ōrongonui", CL67<29,"Maurea", CL67<30,"Mutuwhenua" ) -> Rākaunui | CN67: =LookupTimezoneOffset(A67) -> 13
A68: =A67+1 -> 2026-03-08 | B68: 8 o | C68: 9 o | D68: =LOOKUP(VALUE(TEXT(A68,"M")),{1,2,3,4,5,6,7,8,9,10,11,12},{"Kohitātea","Hui‑tanguru","Poutū‑te‑rangi","Paengawhāwhā","Haratua","Pipiri","Hōngongoi","Here‑turi‑kōkā","Mahuru","Whiringa‑ā‑nuku","Whiringa‑ā‑rangi","Hakihea"}) -> Poutū‑te‑rangi | E68: Poutū‑te‑rangi | F68: 2026 | G68: 2026 | H68: =LOOKUP(WEEKDAY(A68),{1,2,3,4,5,6,7},{"Rātapu","Rāhina","Rātū","Rāapa","Rāpare","Rāmere","Rāhoroi ","Rātapu"}) -> Rātapu | I68: Rāhina | J68: 2026-03-01 | Q68: 1 | R68: 2 | S68: 3 | T68: 4 | U68: 5 | V68: 6 | W68: 7 | X68: 8 | Y68: 9 | Z68: 10 | AA68: 11 | AB68: 12 | AC68: 13 | AD68: 14 | AE68: 15 | AF68: 16 | AG68: 17 | AH68: 18 | AI68: 19 | AJ68: 20 | AK68: 21 | AL68: 22 | AM68: =IF(ISERROR(DATEVALUE(AL68+1 & " "&TEXT($A68,"Mmmm") & " " & $F68))," ",AL68+1) -> 23 | AN68: 24 | AO68: 25 | AP68: 26 | AQ68: 27 | AR68: 28 | AS68: 29 | AT68: 30 | AU68: 31 | AV68: =LOOKUP(VALUE(TEXT(AW68,"M")),{1,2,3,4,5,6,7,8,9,10,11,12},{"Kohitātea","Hui‑tanguru","Poutū‑te‑rangi","Paengawhāwhā","Haratua","Pipiri","Hōngongoi","Here‑turi‑kōkā","Mahuru","Whiringa‑ā‑nuku","Whiringa‑ā‑rangi","Hakihea"}) -> Paengawhāwhā | AW68: 46113 | AZ68: 1 | BA68: 2 | BB68: 3 | BC68: 4 | BD68: 5 | BE68: 6 | BF68: 7 | BG68: 8 | BH68: 9 | BI68: 10 | BJ68: 11 | BK68: 12 | BL68: 13 | BM68: 14 | BN68: 15 | BO68: 16 | BP68: 17 | BQ68: 18 | BR68: 19 | BS68: 20 | BT68: 21 | BU68: 22 | BV68: 23 | BW68: 24 | BX68: 25 | BY68: 26 | BZ68: =IF(ISERROR(DATEVALUE(BY68+1 & " "&TEXT($AW68,"Mmmm") & " " & $F68)),"∙",BY68+1) -> 27 | CA68: 28 | CB68: 29 | CC68: 30 | CD68: ∙ | CE68: ∙ | CF68: ∙ | CG68: ∙ | CH68: ∙ | CI68: =SunsetTime(A68, -41.2865, 174.7762, 13) -> 2026-03-07T18:57:20.543 | CJ68: =ExcelToJD(CI68-CN68/24) -> 2461106.748 | CK68: =NewMoonPrevious(CI68 - CN68/24) -> 2461089.002 | CL68: 17.74648981 | CM68: =_xlfn.IFS( CL68<1,"Whiro", CL68<2,"Tirea", CL68<3,"Ohata", CL68<4,"Ōuenuku", CL68<5,"Okoro", CL68<6,"Tamatea-kai-ariki", CL68<7,"Tamatea-wananga", CL68<8,"Tamatea-ā-āio", CL68<9,"Tamatea-whakapau", CL68<10,"Huna", CL68<11,"Airoa", CL68<12,"Hotu", CL68<13,"Māwharu", CL68<14,"Atua whakahaehae", CL68<15,"Ōhua", CL68<16,"Ōturu", CL68<17,"Rākaunui", CL68<18,"Rākaumatohi", CL68<19,"Takiraua", CL68<20,"Oike", CL68<21,"Korekore", CL68<22,"Korekore tuarua", CL68<23,"Korekore piri ki Tangaroa", CL68<24,"Tangaroa ā-mua", CL68<25,"Tangaroa ā-roto", CL68<26,"Tangaroa ata kiokio", CL68<27,"Ōtāne", CL68<28,"Ōrongonui", CL68<29,"Maurea", CL68<30,"Mutuwhenua" ) -> Rākaumatohi | CN68: =LookupTimezoneOffset(A68) -> 13
A69: 2026-03-09 | B69: 9 o | C69: 10 o | D69: =LOOKUP(VALUE(TEXT(A69,"M")),{1,2,3,4,5,6,7,8,9,10,11,12},{"Kohitātea","Hui‑tanguru","Poutū‑te‑rangi","Paengawhāwhā","Haratua","Pipiri","Hōngongoi","Here‑turi‑kōkā","Mahuru","Whiringa‑ā‑nuku","Whiringa‑ā‑rangi","Hakihea"}) -> Poutū‑te‑rangi | E69: Poutū‑te‑rangi | F69: 2026 | G69: 2026 | H69: =LOOKUP(WEEKDAY(A69),{1,2,3,4,5,6,7},{"Rātapu","Rāhina","Rātū","Rāapa","Rāpare","Rāmere","Rāhoroi ","Rātapu"}) -> Rāhina | I69: Rātū | J69: 2026-03-01 | Q69: 1 | R69: 2 | S69: 3 | T69: 4 | U69: 5 | V69: 6 | W69: 7 | X69: 8 | Y69: 9 | Z69: 10 | AA69: 11 | AB69: 12 | AC69: 13 | AD69: 14 | AE69: 15 | AF69: 16 | AG69: 17 | AH69: 18 | AI69: 19 | AJ69: 20 | AK69: 21 | AL69: 22 | AM69: =IF(ISERROR(DATEVALUE(AL69+1 & " "&TEXT($A69,"Mmmm") & " " & $F69))," ",AL69+1) -> 23 | AN69: 24 | AO69: 25 | AP69: 26 | AQ69: 27 | AR69: 28 | AS69: 29 | AT69: 30 | AU69: 31 | AV69: =LOOKUP(VALUE(TEXT(AW69,"M")),{1,2,3,4,5,6,7,8,9,10,11,12},{"Kohitātea","Hui‑tanguru","Poutū‑te‑rangi","Paengawhāwhā","Haratua","Pipiri","Hōngongoi","Here‑turi‑kōkā","Mahuru","Whiringa‑ā‑nuku","Whiringa‑ā‑rangi","Hakihea"}) -> Paengawhāwhā | AW69: 46113 | AZ69: 1 | BA69: 2 | BB69: 3 | BC69: 4 | BD69: 5 | BE69: 6 | BF69: 7 | BG69: 8 | BH69: 9 | BI69: 10 | BJ69: 11 | BK69: 12 | BL69: 13 | BM69: 14 | BN69: 15 | BO69: 16 | BP69: 17 | BQ69: 18 | BR69: 19 | BS69: 20 | BT69: 21 | BU69: 22 | BV69: 23 | BW69: 24 | BX69: 25 | BY69: 26 | BZ69: =IF(ISERROR(DATEVALUE(BY69+1 & " "&TEXT($AW69,"Mmmm") & " " & $F69)),"∙",BY69+1) -> 27 | CA69: 28 | CB69: 29 | CC69: 30 | CD69: ∙ | CE69: ∙ | CF69: ∙ | CG69: ∙ | CH69: ∙ | CI69: =SunsetTime(A69, -41.2865, 174.7762, 13) -> 2026-03-08T18:55:42.637 | CJ69: =ExcelToJD(CI69-CN69/24) -> 2461107.747 | CK69: =NewMoonPrevious(CI69 - CN69/24) -> 2461089.002 | CL69: 18.74535665 | CM69: =_xlfn.IFS( CL69<1,"Whiro", CL69<2,"Tirea", CL69<3,"Ohata", CL69<4,"Ōuenuku", CL69<5,"Okoro", CL69<6,"Tamatea-kai-ariki", CL69<7,"Tamatea-wananga", CL69<8,"Tamatea-ā-āio", CL69<9,"Tamatea-whakapau", CL69<10,"Huna", CL69<11,"Airoa", CL69<12,"Hotu", CL69<13,"Māwharu", CL69<14,"Atua whakahaehae", CL69<15,"Ōhua", CL69<16,"Ōturu", CL69<17,"Rākaunui", CL69<18,"Rākaumatohi", CL69<19,"Takiraua", CL69<20,"Oike", CL69<21,"Korekore", CL69<22,"Korekore tuarua", CL69<23,"Korekore piri ki Tangaroa", CL69<24,"Tangaroa ā-mua", CL69<25,"Tangaroa ā-roto", CL69<26,"Tangaroa ata kiokio", CL69<27,"Ōtāne", CL69<28,"Ōrongonui", CL69<29,"Maurea", CL69<30,"Mutuwhenua" ) -> Takiraua | CN69: =LookupTimezoneOffset(A69) -> 13
A70: 2026-03-10 | B70: 10 o | C70: 11 o | D70: =LOOKUP(VALUE(TEXT(A70,"M")),{1,2,3,4,5,6,7,8,9,10,11,12},{"Kohitātea","Hui‑tanguru","Poutū‑te‑rangi","Paengawhāwhā","Haratua","Pipiri","Hōngongoi","Here‑turi‑kōkā","Mahuru","Whiringa‑ā‑nuku","Whiringa‑ā‑rangi","Hakihea"}) -> Poutū‑te‑rangi | E70: Poutū‑te‑rangi | F70: 2026 | G70: 2026 | H70: =LOOKUP(WEEKDAY(A70),{1,2,3,4,5,6,7},{"Rātapu","Rāhina","Rātū","Rāapa","Rāpare","Rāmere","Rāhoroi ","Rātapu"}) -> Rātū | I70: Rāapa | J70: 2026-03-01 | Q70: 1 | R70: 2 | S70: 3 | T70: 4 | U70: 5 | V70: 6 | W70: 7 | X70: 8 | Y70: 9 | Z70: 10 | AA70: 11 | AB70: 12 | AC70: 13 | AD70: 14 | AE70: 15 | AF70: 16 | AG70: 17 | AH70: 18 | AI70: 19 | AJ70: 20 | AK70: 21 | AL70: 22 | AM70: =IF(ISERROR(DATEVALUE(AL70+1 & " "&TEXT($A70,"Mmmm") & " " & $F70))," ",AL70+1) -> 23 | AN70: 24 | AO70: 25 | AP70: 26 | AQ70: 27 | AR70: 28 | AS70: 29 | AT70: 30 | AU70: 31 | AV70: =LOOKUP(VALUE(TEXT(AW70,"M")),{1,2,3,4,5,6,7,8,9,10,11,12},{"Kohitātea","Hui‑tanguru","Poutū‑te‑rangi","Paengawhāwhā","Haratua","Pipiri","Hōngongoi","Here‑turi‑kōkā","Mahuru","Whiringa‑ā‑nuku","Whiringa‑ā‑rangi","Hakihea"}) -> Paengawhāwhā | AW70: 46113 | AZ70: 1 | BA70: 2 | BB70: 3 | BC70: 4 | BD70: 5 | BE70: 6 | BF70: 7 | BG70: 8 | BH70: 9 | BI70: 10 | BJ70: 11 | BK70: 12 | BL70: 13 | BM70: 14 | BN70: 15 | BO70: 16 | BP70: 17 | BQ70: 18 | BR70: 19 | BS70: 20 | BT70: 21 | BU70: 22 | BV70: 23 | BW70: 24 | BX70: 25 | BY70: 26 | BZ70: =IF(ISERROR(DATEVALUE(BY70+1 & " "&TEXT($AW70,"Mmmm") & " " & $F70)),"∙",BY70+1) -> 27 | CA70: 28 | CB70: 29 | CC70: 30 | CD70: ∙ | CE70: ∙ | CF70: ∙ | CG70: ∙ | CH70: ∙ | CI70: =SunsetTime(A70, -41.2865, 174.7762, 13) -> 2026-03-09T18:54:04.170 | CJ70: =ExcelToJD(CI70-CN70/24) -> 2461108.746 | CK70: =NewMoonPrevious(CI70 - CN70/24) -> 2461089.002 | CL70: 19.74421697 | CM70: =_xlfn.IFS( CL70<1,"Whiro", CL70<2,"Tirea", CL70<3,"Ohata", CL70<4,"Ōuenuku", CL70<5,"Okoro", CL70<6,"Tamatea-kai-ariki", CL70<7,"Tamatea-wananga", CL70<8,"Tamatea-ā-āio", CL70<9,"Tamatea-whakapau", CL70<10,"Huna", CL70<11,"Airoa", CL70<12,"Hotu", CL70<13,"Māwharu", CL70<14,"Atua whakahaehae", CL70<15,"Ōhua", CL70<16,"Ōturu", CL70<17,"Rākaunui", CL70<18,"Rākaumatohi", CL70<19,"Takiraua", CL70<20,"Oike", CL70<21,"Korekore", CL70<22,"Korekore tuarua", CL70<23,"Korekore piri ki Tangaroa", CL70<24,"Tangaroa ā-mua", CL70<25,"Tangaroa ā-roto", CL70<26,"Tangaroa ata kiokio", CL70<27,"Ōtāne", CL70<28,"Ōrongonui", CL70<29,"Maurea", CL70<30,"Mutuwhenua" ) -> Oike | CN70: =LookupTimezoneOffset(A70) -> 13
A71: 2026-03-11 | B71: 11 o | C71: 12 o | D71: =LOOKUP(VALUE(TEXT(A71,"M")),{1,2,3,4,5,6,7,8,9,10,11,12},{"Kohitātea","Hui‑tanguru","Poutū‑te‑rangi","Paengawhāwhā","Haratua","Pipiri","Hōngongoi","Here‑turi‑kōkā","Mahuru","Whiringa‑ā‑nuku","Whiringa‑ā‑rangi","Hakihea"}) -> Poutū‑te‑rangi | E71: Poutū‑te‑rangi | F71: 2026 | G71: 2026 | H71: =LOOKUP(WEEKDAY(A71),{1,2,3,4,5,6,7},{"Rātapu","Rāhina","Rātū","Rāapa","Rāpare","Rāmere","Rāhoroi ","Rātapu"}) -> Rāapa | I71: Rāpare | J71: 2026-03-01 | Q71: 1 | R71: 2 | S71: 3 | T71: 4 | U71: 5 | V71: 6 | W71: 7 | X71: 8 | Y71: 9 | Z71: 10 | AA71: 11 | AB71: 12 | AC71: 13 | AD71: 14 | AE71: 15 | AF71: 16 | AG71: 17 | AH71: 18 | AI71: 19 | AJ71: 20 | AK71: 21 | AL71: 22 | AM71: =IF(ISERROR(DATEVALUE(AL71+1 & " "&TEXT($A71,"Mmmm") & " " & $F71))," ",AL71+1) -> 23 | AN71: 24 | AO71: 25 | AP71: 26 | AQ71: 27 | AR71: 28 | AS71: 29 | AT71: 30 | AU71: 31 | AV71: =LOOKUP(VALUE(TEXT(AW71,"M")),{1,2,3,4,5,6,7,8,9,10,11,12},{"Kohitātea","Hui‑tanguru","Poutū‑te‑rangi","Paengawhāwhā","Haratua","Pipiri","Hōngongoi","Here‑turi‑kōkā","Mahuru","Whiringa‑ā‑nuku","Whiringa‑ā‑rangi","Hakihea"}) -> Paengawhāwhā | AW71: 46113 | AZ71: 1 | BA71: 2 | BB71: 3 | BC71: 4 | BD71: 5 | BE71: 6 | BF71: 7 | BG71: 8 | BH71: 9 | BI71: 10 | BJ71: 11 | BK71: 12 | BL71: 13 | BM71: 14 | BN71: 15 | BO71: 16 | BP71: 17 | BQ71: 18 | BR71: 19 | BS71: 20 | BT71: 21 | BU71: 22 | BV71: 23 | BW71: 24 | BX71: 25 | BY71: 26 | BZ71: =IF(ISERROR(DATEVALUE(BY71+1 & " "&TEXT($AW71,"Mmmm") & " " & $F71)),"∙",BY71+1) -> 27 | CA71: 28 | CB71: 29 | CC71: 30 | CD71: ∙ | CE71: ∙ | CF71: ∙ | CG71: ∙ | CH71: ∙ | CI71: =SunsetTime(A71, -41.2865, 174.7762, 13) -> 2026-03-10T18:52:25.173 | CJ71: =ExcelToJD(CI71-CN71/24) -> 2461109.745 | CK71: =NewMoonPrevious(CI71 - CN71/24) -> 2461089.002 | CL71: 20.74307118 | CM71: =_xlfn.IFS( CL71<1,"Whiro", CL71<2,"Tirea", CL71<3,"Ohata", CL71<4,"Ōuenuku", CL71<5,"Okoro", CL71<6,"Tamatea-kai-ariki", CL71<7,"Tamatea-wananga", CL71<8,"Tamatea-ā-āio", CL71<9,"Tamatea-whakapau", CL71<10,"Huna", CL71<11,"Airoa", CL71<12,"Hotu", CL71<13,"Māwharu", CL71<14,"Atua whakahaehae", CL71<15,"Ōhua", CL71<16,"Ōturu", CL71<17,"Rākaunui", CL71<18,"Rākaumatohi", CL71<19,"Takiraua", CL71<20,"Oike", CL71<21,"Korekore", CL71<22,"Korekore tuarua", CL71<23,"Korekore piri ki Tangaroa", CL71<24,"Tangaroa ā-mua", CL71<25,"Tangaroa ā-roto", CL71<26,"Tangaroa ata kiokio", CL71<27,"Ōtāne", CL71<28,"Ōrongonui", CL71<29,"Maurea", CL71<30,"Mutuwhenua" ) -> Korekore | CN71: =LookupTimezoneOffset(A71) -> 13
A72: 2026-03-12 | B72: 12 o | C72: 13 o | D72: =LOOKUP(VALUE(TEXT(A72,"M")),{1,2,3,4,5,6,7,8,9,10,11,12},{"Kohitātea","Hui‑tanguru","Poutū‑te‑rangi","Paengawhāwhā","Haratua","Pipiri","Hōngongoi","Here‑turi‑kōkā","Mahuru","Whiringa‑ā‑nuku","Whiringa‑ā‑rangi","Hakihea"}) -> Poutū‑te‑rangi | E72: Poutū‑te‑rangi | F72: 2026 | G72: 2026 | H72: =LOOKUP(WEEKDAY(A72),{1,2,3,4,5,6,7},{"Rātapu","Rāhina","Rātū","Rāapa","Rāpare","Rāmere","Rāhoroi ","Rātapu"}) -> Rāpare | I72: Rāmere | J72: 2026-03-01 | Q72: 1 | R72: 2 | S72: 3 | T72: 4 | U72: 5 | V72: 6 | W72: 7 | X72: 8 | Y72: 9 | Z72: 10 | AA72: 11 | AB72: 12 | AC72: 13 | AD72: 14 | AE72: 15 | AF72: 16 | AG72: 17 | AH72: 18 | AI72: 19 | AJ72: 20 | AK72: 21 | AL72: 22 | AM72: =IF(ISERROR(DATEVALUE(AL72+1 & " "&TEXT($A72,"Mmmm") & " " & $F72))," ",AL72+1) -> 23 | AN72: 24 | AO72: 25 | AP72: 26 | AQ72: 27 | AR72: 28 | AS72: 29 | AT72: 30 | AU72: 31 | AV72: =LOOKUP(VALUE(TEXT(AW72,"M")),{1,2,3,4,5,6,7,8,9,10,11,12},{"Kohitātea","Hui‑tanguru","Poutū‑te‑rangi","Paengawhāwhā","Haratua","Pipiri","Hōngongoi","Here‑turi‑kōkā","Mahuru","Whiringa‑ā‑nuku","Whiringa‑ā‑rangi","Hakihea"}) -> Paengawhāwhā | AW72: 46113 | AZ72: 1 | BA72: 2 | BB72: 3 | BC72: 4 | BD72: 5 | BE72: 6 | BF72: 7 | BG72: 8 | BH72: 9 | BI72: 10 | BJ72: 11 | BK72: 12 | BL72: 13 | BM72: 14 | BN72: 15 | BO72: 16 | BP72: 17 | BQ72: 18 | BR72: 19 | BS72: 20 | BT72: 21 | BU72: 22 | BV72: 23 | BW72: 24 | BX72: 25 | BY72: 26 | BZ72: =IF(ISERROR(DATEVALUE(BY72+1 & " "&TEXT($AW72,"Mmmm") & " " & $F72)),"∙",BY72+1) -> 27 | CA72: 28 | CB72: 29 | CC72: 30 | CD72: ∙ | CE72: ∙ | CF72: ∙ | CG72: ∙ | CH72: ∙ | CI72: =SunsetTime(A72, -41.2865, 174.7762, 13) -> 2026-03-11T18:50:45.683 | CJ72: =ExcelToJD(CI72-CN72/24) -> 2461110.744 | CK72: =NewMoonPrevious(CI72 - CN72/24) -> 2461089.002 | CL72: 21.74191968 | CM72: =_xlfn.IFS( CL72<1,"Whiro", CL72<2,"Tirea", CL72<3,"Ohata", CL72<4,"Ōuenuku", CL72<5,"Okoro", CL72<6,"Tamatea-kai-ariki", CL72<7,"Tamatea-wananga", CL72<8,"Tamatea-ā-āio", CL72<9,"Tamatea-whakapau", CL72<10,"Huna", CL72<11,"Airoa", CL72<12,"Hotu", CL72<13,"Māwharu", CL72<14,"Atua whakahaehae", CL72<15,"Ōhua", CL72<16,"Ōturu", CL72<17,"Rākaunui", CL72<18,"Rākaumatohi", CL72<19,"Takiraua", CL72<20,"Oike", CL72<21,"Korekore", CL72<22,"Korekore tuarua", CL72<23,"Korekore piri ki Tangaroa", CL72<24,"Tangaroa ā-mua", CL72<25,"Tangaroa ā-roto", CL72<26,"Tangaroa ata kiokio", CL72<27,"Ōtāne", CL72<28,"Ōrongonui", CL72<29,"Maurea", CL72<30,"Mutuwhenua" ) -> Korekore tuarua | CN72: =LookupTimezoneOffset(A72) -> 13
A73: 2026-03-13 | B73: 13 o | C73: 14 o | D73: =LOOKUP(VALUE(TEXT(A73,"M")),{1,2,3,4,5,6,7,8,9,10,11,12},{"Kohitātea","Hui‑tanguru","Poutū‑te‑rangi","Paengawhāwhā","Haratua","Pipiri","Hōngongoi","Here‑turi‑kōkā","Mahuru","Whiringa‑ā‑nuku","Whiringa‑ā‑rangi","Hakihea"}) -> Poutū‑te‑rangi | E73: Poutū‑te‑rangi | F73: 2026 | G73: 2026 | H73: =LOOKUP(WEEKDAY(A73),{1,2,3,4,5,6,7},{"Rātapu","Rāhina","Rātū","Rāapa","Rāpare","Rāmere","Rāhoroi ","Rātapu"}) -> Rāmere | I73: Rāhoroi | J73: 2026-03-01 | Q73: 1 | R73: 2 | S73: 3 | T73: 4 | U73: 5 | V73: 6 | W73: 7 | X73: 8 | Y73: 9 | Z73: 10 | AA73: 11 | AB73: 12 | AC73: 13 | AD73: 14 | AE73: 15 | AF73: 16 | AG73: 17 | AH73: 18 | AI73: 19 | AJ73: 20 | AK73: 21 | AL73: 22 | AM73: =IF(ISERROR(DATEVALUE(AL73+1 & " "&TEXT($A73,"Mmmm") & " " & $F73))," ",AL73+1) -> 23 | AN73: 24 | AO73: 25 | AP73: 26 | AQ73: 27 | AR73: 28 | AS73: 29 | AT73: 30 | AU73: 31 | AV73: =LOOKUP(VALUE(TEXT(AW73,"M")),{1,2,3,4,5,6,7,8,9,10,11,12},{"Kohitātea","Hui‑tanguru","Poutū‑te‑rangi","Paengawhāwhā","Haratua","Pipiri","Hōngongoi","Here‑turi‑kōkā","Mahuru","Whiringa‑ā‑nuku","Whiringa‑ā‑rangi","Hakihea"}) -> Paengawhāwhā | AW73: 46113 | AZ73: 1 | BA73: 2 | BB73: 3 | BC73: 4 | BD73: 5 | BE73: 6 | BF73: 7 | BG73: 8 | BH73: 9 | BI73: 10 | BJ73: 11 | BK73: 12 | BL73: 13 | BM73: 14 | BN73: 15 | BO73: 16 | BP73: 17 | BQ73: 18 | BR73: 19 | BS73: 20 | BT73: 21 | BU73: 22 | BV73: 23 | BW73: 24 | BX73: 25 | BY73: 26 | BZ73: =IF(ISERROR(DATEVALUE(BY73+1 & " "&TEXT($AW73,"Mmmm") & " " & $F73)),"∙",BY73+1) -> 27 | CA73: 28 | CB73: 29 | CC73: 30 | CD73: ∙ | CE73: ∙ | CF73: ∙ | CG73: ∙ | CH73: ∙ | CI73: =SunsetTime(A73, -41.2865, 174.7762, 13) -> 2026-03-12T18:49:05.734 | CJ73: =ExcelToJD(CI73-CN73/24) -> 2461111.742 | CK73: =NewMoonPrevious(CI73 - CN73/24) -> 2461089.002 | CL73: 22.74076285 | CM73: =_xlfn.IFS( CL73<1,"Whiro", CL73<2,"Tirea", CL73<3,"Ohata", CL73<4,"Ōuenuku", CL73<5,"Okoro", CL73<6,"Tamatea-kai-ariki", CL73<7,"Tamatea-wananga", CL73<8,"Tamatea-ā-āio", CL73<9,"Tamatea-whakapau", CL73<10,"Huna", CL73<11,"Airoa", CL73<12,"Hotu", CL73<13,"Māwharu", CL73<14,"Atua whakahaehae", CL73<15,"Ōhua", CL73<16,"Ōturu", CL73<17,"Rākaunui", CL73<18,"Rākaumatohi", CL73<19,"Takiraua", CL73<20,"Oike", CL73<21,"Korekore", CL73<22,"Korekore tuarua", CL73<23,"Korekore piri ki Tangaroa", CL73<24,"Tangaroa ā-mua", CL73<25,"Tangaroa ā-roto", CL73<26,"Tangaroa ata kiokio", CL73<27,"Ōtāne", CL73<28,"Ōrongonui", CL73<29,"Maurea", CL73<30,"Mutuwhenua" ) -> Korekore piri ki Tangaroa | CN73: =LookupTimezoneOffset(A73) -> 13
A74: 2026-03-14 | B74: 14 o | C74: 15 o | D74: =LOOKUP(VALUE(TEXT(A74,"M")),{1,2,3,4,5,6,7,8,9,10,11,12},{"Kohitātea","Hui‑tanguru","Poutū‑te‑rangi","Paengawhāwhā","Haratua","Pipiri","Hōngongoi","Here‑turi‑kōkā","Mahuru","Whiringa‑ā‑nuku","Whiringa‑ā‑rangi","Hakihea"}) -> Poutū‑te‑rangi | E74: Poutū‑te‑rangi | F74: 2026 | G74: 2026 | H74: =LOOKUP(WEEKDAY(A74),{1,2,3,4,5,6,7},{"Rātapu","Rāhina","Rātū","Rāapa","Rāpare","Rāmere","Rāhoroi ","Rātapu"}) -> Rāhoroi | I74: Rātapu | J74: 2026-03-01 | Q74: 1 | R74: 2 | S74: 3 | T74: 4 | U74: 5 | V74: 6 | W74: 7 | X74: 8 | Y74: 9 | Z74: 10 | AA74: 11 | AB74: 12 | AC74: 13 | AD74: 14 | AE74: 15 | AF74: 16 | AG74: 17 | AH74: 18 | AI74: 19 | AJ74: 20 | AK74: 21 | AL74: 22 | AM74: =IF(ISERROR(DATEVALUE(AL74+1 & " "&TEXT($A74,"Mmmm") & " " & $F74))," ",AL74+1) -> 23 | AN74: 24 | AO74: 25 | AP74: 26 | AQ74: 27 | AR74: 28 | AS74: 29 | AT74: 30 | AU74: 31 | AV74: =LOOKUP(VALUE(TEXT(AW74,"M")),{1,2,3,4,5,6,7,8,9,10,11,12},{"Kohitātea","Hui‑tanguru","Poutū‑te‑rangi","Paengawhāwhā","Haratua","Pipiri","Hōngongoi","Here‑turi‑kōkā","Mahuru","Whiringa‑ā‑nuku","Whiringa‑ā‑rangi","Hakihea"}) -> Paengawhāwhā | AW74: 46113 | AZ74: 1 | BA74: 2 | BB74: 3 | BC74: 4 | BD74: 5 | BE74: 6 | BF74: 7 | BG74: 8 | BH74: 9 | BI74: 10 | BJ74: 11 | BK74: 12 | BL74: 13 | BM74: 14 | BN74: 15 | BO74: 16 | BP74: 17 | BQ74: 18 | BR74: 19 | BS74: 20 | BT74: 21 | BU74: 22 | BV74: 23 | BW74: 24 | BX74: 25 | BY74: 26 | BZ74: =IF(ISERROR(DATEVALUE(BY74+1 & " "&TEXT($AW74,"Mmmm") & " " & $F74)),"∙",BY74+1) -> 27 | CA74: 28 | CB74: 29 | CC74: 30 | CD74: ∙ | CE74: ∙ | CF74: ∙ | CG74: ∙ | CH74: ∙ | CI74: =SunsetTime(A74, -41.2865, 174.7762, 13) -> 2026-03-13T18:47:25.359 | CJ74: =ExcelToJD(CI74-CN74/24) -> 2461112.741 | CK74: =NewMoonPrevious(CI74 - CN74/24) -> 2461089.002 | CL74: 23.73960111 | CM74: =_xlfn.IFS( CL74<1,"Whiro", CL74<2,"Tirea", CL74<3,"Ohata", CL74<4,"Ōuenuku", CL74<5,"Okoro", CL74<6,"Tamatea-kai-ariki", CL74<7,"Tamatea-wananga", CL74<8,"Tamatea-ā-āio", CL74<9,"Tamatea-whakapau", CL74<10,"Huna", CL74<11,"Airoa", CL74<12,"Hotu", CL74<13,"Māwharu", CL74<14,"Atua whakahaehae", CL74<15,"Ōhua", CL74<16,"Ōturu", CL74<17,"Rākaunui", CL74<18,"Rākaumatohi", CL74<19,"Takiraua", CL74<20,"Oike", CL74<21,"Korekore", CL74<22,"Korekore tuarua", CL74<23,"Korekore piri ki Tangaroa", CL74<24,"Tangaroa ā-mua", CL74<25,"Tangaroa ā-roto", CL74<26,"Tangaroa ata kiokio", CL74<27,"Ōtāne", CL74<28,"Ōrongonui", CL74<29,"Maurea", CL74<30,"Mutuwhenua" ) -> Tangaroa ā-mua | CN74: =LookupTimezoneOffset(A74) -> 13
A75: 2026-03-15 | B75: 15 o | C75: 16 o | D75: =LOOKUP(VALUE(TEXT(A75,"M")),{1,2,3,4,5,6,7,8,9,10,11,12},{"Kohitātea","Hui‑tanguru","Poutū‑te‑rangi","Paengawhāwhā","Haratua","Pipiri","Hōngongoi","Here‑turi‑kōkā","Mahuru","Whiringa‑ā‑nuku","Whiringa‑ā‑rangi","Hakihea"}) -> Poutū‑te‑rangi | E75: Poutū‑te‑rangi | F75: 2026 | G75: 2026 | H75: =LOOKUP(WEEKDAY(A75),{1,2,3,4,5,6,7},{"Rātapu","Rāhina","Rātū","Rāapa","Rāpare","Rāmere","Rāhoroi ","Rātapu"}) -> Rātapu | I75: Rāhina | J75: 2026-03-01 | Q75: 1 | R75: 2 | S75: 3 | T75: 4 | U75: 5 | V75: 6 | W75: 7 | X75: 8 | Y75: 9 | Z75: 10 | AA75: 11 | AB75: 12 | AC75: 13 | AD75: 14 | AE75: 15 | AF75: 16 | AG75: 17 | AH75: 18 | AI75: 19 | AJ75: 20 | AK75: 21 | AL75: 22 | AM75: =IF(ISERROR(DATEVALUE(AL75+1 & " "&TEXT($A75,"Mmmm") & " " & $F75))," ",AL75+1) -> 23 | AN75: 24 | AO75: 25 | AP75: 26 | AQ75: 27 | AR75: 28 | AS75: 29 | AT75: 30 | AU75: 31 | AV75: =LOOKUP(VALUE(TEXT(AW75,"M")),{1,2,3,4,5,6,7,8,9,10,11,12},{"Kohitātea","Hui‑tanguru","Poutū‑te‑rangi","Paengawhāwhā","Haratua","Pipiri","Hōngongoi","Here‑turi‑kōkā","Mahuru","Whiringa‑ā‑nuku","Whiringa‑ā‑rangi","Hakihea"}) -> Paengawhāwhā | AW75: 46113 | AZ75: 1 | BA75: 2 | BB75: 3 | BC75: 4 | BD75: 5 | BE75: 6 | BF75: 7 | BG75: 8 | BH75: 9 | BI75: 10 | BJ75: 11 | BK75: 12 | BL75: 13 | BM75: 14 | BN75: 15 | BO75: 16 | BP75: 17 | BQ75: 18 | BR75: 19 | BS75: 20 | BT75: 21 | BU75: 22 | BV75: 23 | BW75: 24 | BX75: 25 | BY75: 26 | BZ75: =IF(ISERROR(DATEVALUE(BY75+1 & " "&TEXT($AW75,"Mmmm") & " " & $F75)),"∙",BY75+1) -> 27 | CA75: 28 | CB75: 29 | CC75: 30 | CD75: ∙ | CE75: ∙ | CF75: ∙ | CG75: ∙ | CH75: ∙ | CI75: =SunsetTime(A75, -41.2865, 174.7762, 13) -> 2026-03-14T18:45:44.593 | CJ75: =ExcelToJD(CI75-CN75/24) -> 2461113.74 | CK75: =NewMoonPrevious(CI75 - CN75/24) -> 2461089.002 | CL75: 24.73843484 | CM75: =_xlfn.IFS( CL75<1,"Whiro", CL75<2,"Tirea", CL75<3,"Ohata", CL75<4,"Ōuenuku", CL75<5,"Okoro", CL75<6,"Tamatea-kai-ariki", CL75<7,"Tamatea-wananga", CL75<8,"Tamatea-ā-āio", CL75<9,"Tamatea-whakapau", CL75<10,"Huna", CL75<11,"Airoa", CL75<12,"Hotu", CL75<13,"Māwharu", CL75<14,"Atua whakahaehae", CL75<15,"Ōhua", CL75<16,"Ōturu", CL75<17,"Rākaunui", CL75<18,"Rākaumatohi", CL75<19,"Takiraua", CL75<20,"Oike", CL75<21,"Korekore", CL75<22,"Korekore tuarua", CL75<23,"Korekore piri ki Tangaroa", CL75<24,"Tangaroa ā-mua", CL75<25,"Tangaroa ā-roto", CL75<26,"Tangaroa ata kiokio", CL75<27,"Ōtāne", CL75<28,"Ōrongonui", CL75<29,"Maurea", CL75<30,"Mutuwhenua" ) -> Tangaroa ā-roto | CN75: =LookupTimezoneOffset(A75) -> 13
A76: 2026-03-16 | B76: 16 o | C76: 17 o | D76: =LOOKUP(VALUE(TEXT(A76,"M")),{1,2,3,4,5,6,7,8,9,10,11,12},{"Kohitātea","Hui‑tanguru","Poutū‑te‑rangi","Paengawhāwhā","Haratua","Pipiri","Hōngongoi","Here‑turi‑kōkā","Mahuru","Whiringa‑ā‑nuku","Whiringa‑ā‑rangi","Hakihea"}) -> Poutū‑te‑rangi | E76: Poutū‑te‑rangi | F76: 2026 | G76: 2026 | H76: =LOOKUP(WEEKDAY(A76),{1,2,3,4,5,6,7},{"Rātapu","Rāhina","Rātū","Rāapa","Rāpare","Rāmere","Rāhoroi ","Rātapu"}) -> Rāhina | I76: Rātū | J76: 2026-03-01 | Q76: 1 | R76: 2 | S76: 3 | T76: 4 | U76: 5 | V76: 6 | W76: 7 | X76: 8 | Y76: 9 | Z76: 10 | AA76: 11 | AB76: 12 | AC76: 13 | AD76: 14 | AE76: 15 | AF76: 16 | AG76: 17 | AH76: 18 | AI76: 19 | AJ76: 20 | AK76: 21 | AL76: 22 | AM76: =IF(ISERROR(DATEVALUE(AL76+1 & " "&TEXT($A76,"Mmmm") & " " & $F76))," ",AL76+1) -> 23 | AN76: 24 | AO76: 25 | AP76: 26 | AQ76: 27 | AR76: 28 | AS76: 29 | AT76: 30 | AU76: 31 | AV76: =LOOKUP(VALUE(TEXT(AW76,"M")),{1,2,3,4,5,6,7,8,9,10,11,12},{"Kohitātea","Hui‑tanguru","Poutū‑te‑rangi","Paengawhāwhā","Haratua","Pipiri","Hōngongoi","Here‑turi‑kōkā","Mahuru","Whiringa‑ā‑nuku","Whiringa‑ā‑rangi","Hakihea"}) -> Paengawhāwhā | AW76: 46113 | AZ76: 1 | BA76: 2 | BB76: 3 | BC76: 4 | BD76: 5 | BE76: 6 | BF76: 7 | BG76: 8 | BH76: 9 | BI76: 10 | BJ76: 11 | BK76: 12 | BL76: 13 | BM76: 14 | BN76: 15 | BO76: 16 | BP76: 17 | BQ76: 18 | BR76: 19 | BS76: 20 | BT76: 21 | BU76: 22 | BV76: 23 | BW76: 24 | BX76: 25 | BY76: 26 | BZ76: =IF(ISERROR(DATEVALUE(BY76+1 & " "&TEXT($AW76,"Mmmm") & " " & $F76)),"∙",BY76+1) -> 27 | CA76: 28 | CB76: 29 | CC76: 30 | CD76: ∙ | CE76: ∙ | CF76: ∙ | CG76: ∙ | CH76: ∙ | CI76: =SunsetTime(A76, -41.2865, 174.7762, 13) -> 2026-03-15T18:44:03.472 | CJ76: =ExcelToJD(CI76-CN76/24) -> 2461114.739 | CK76: =NewMoonPrevious(CI76 - CN76/24) -> 2461089.002 | CL76: 25.73726445 | CM76: =_xlfn.IFS( CL76<1,"Whiro", CL76<2,"Tirea", CL76<3,"Ohata", CL76<4,"Ōuenuku", CL76<5,"Okoro", CL76<6,"Tamatea-kai-ariki", CL76<7,"Tamatea-wananga", CL76<8,"Tamatea-ā-āio", CL76<9,"Tamatea-whakapau", CL76<10,"Huna", CL76<11,"Airoa", CL76<12,"Hotu", CL76<13,"Māwharu", CL76<14,"Atua whakahaehae", CL76<15,"Ōhua", CL76<16,"Ōturu", CL76<17,"Rākaunui", CL76<18,"Rākaumatohi", CL76<19,"Takiraua", CL76<20,"Oike", CL76<21,"Korekore", CL76<22,"Korekore tuarua", CL76<23,"Korekore piri ki Tangaroa", CL76<24,"Tangaroa ā-mua", CL76<25,"Tangaroa ā-roto", CL76<26,"Tangaroa ata kiokio", CL76<27,"Ōtāne", CL76<28,"Ōrongonui", CL76<29,"Maurea", CL76<30,"Mutuwhenua" ) -> Tangaroa ata kiokio | CN76: =LookupTimezoneOffset(A76) -> 13
A77: 2026-03-17 | B77: 17 o | C77: 18 o | D77: =LOOKUP(VALUE(TEXT(A77,"M")),{1,2,3,4,5,6,7,8,9,10,11,12},{"Kohitātea","Hui‑tanguru","Poutū‑te‑rangi","Paengawhāwhā","Haratua","Pipiri","Hōngongoi","Here‑turi‑kōkā","Mahuru","Whiringa‑ā‑nuku","Whiringa‑ā‑rangi","Hakihea"}) -> Poutū‑te‑rangi | E77: Poutū‑te‑rangi | F77: 2026 | G77: 2026 | H77: =LOOKUP(WEEKDAY(A77),{1,2,3,4,5,6,7},{"Rātapu","Rāhina","Rātū","Rāapa","Rāpare","Rāmere","Rāhoroi ","Rātapu"}) -> Rātū | I77: Rāapa | J77: 2026-03-01 | Q77: 1 | R77: 2 | S77: 3 | T77: 4 | U77: 5 | V77: 6 | W77: 7 | X77: 8 | Y77: 9 | Z77: 10 | AA77: 11 | AB77: 12 | AC77: 13 | AD77: 14 | AE77: 15 | AF77: 16 | AG77: 17 | AH77: 18 | AI77: 19 | AJ77: 20 | AK77: 21 | AL77: 22 | AM77: =IF(ISERROR(DATEVALUE(AL77+1 & " "&TEXT($A77,"Mmmm") & " " & $F77))," ",AL77+1) -> 23 | AN77: 24 | AO77: 25 | AP77: 26 | AQ77: 27 | AR77: 28 | AS77: 29 | AT77: 30 | AU77: 31 | AV77: =LOOKUP(VALUE(TEXT(AW77,"M")),{1,2,3,4,5,6,7,8,9,10,11,12},{"Kohitātea","Hui‑tanguru","Poutū‑te‑rangi","Paengawhāwhā","Haratua","Pipiri","Hōngongoi","Here‑turi‑kōkā","Mahuru","Whiringa‑ā‑nuku","Whiringa‑ā‑rangi","Hakihea"}) -> Paengawhāwhā | AW77: 46113 | AZ77: 1 | BA77: 2 | BB77: 3 | BC77: 4 | BD77: 5 | BE77: 6 | BF77: 7 | BG77: 8 | BH77: 9 | BI77: 10 | BJ77: 11 | BK77: 12 | BL77: 13 | BM77: 14 | BN77: 15 | BO77: 16 | BP77: 17 | BQ77: 18 | BR77: 19 | BS77: 20 | BT77: 21 | BU77: 22 | BV77: 23 | BW77: 24 | BX77: 25 | BY77: 26 | BZ77: =IF(ISERROR(DATEVALUE(BY77+1 & " "&TEXT($AW77,"Mmmm") & " " & $F77)),"∙",BY77+1) -> 27 | CA77: 28 | CB77: 29 | CC77: 30 | CD77: ∙ | CE77: ∙ | CF77: ∙ | CG77: ∙ | CH77: ∙ | CI77: =SunsetTime(A77, -41.2865, 174.7762, 13) -> 2026-03-16T18:42:22.029 | CJ77: =ExcelToJD(CI77-CN77/24) -> 2461115.738 | CK77: =NewMoonPrevious(CI77 - CN77/24) -> 2461089.002 | CL77: 26.73609034 | CM77: =_xlfn.IFS( CL77<1,"Whiro", CL77<2,"Tirea", CL77<3,"Ohata", CL77<4,"Ōuenuku", CL77<5,"Okoro", CL77<6,"Tamatea-kai-ariki", CL77<7,"Tamatea-wananga", CL77<8,"Tamatea-ā-āio", CL77<9,"Tamatea-whakapau", CL77<10,"Huna", CL77<11,"Airoa", CL77<12,"Hotu", CL77<13,"Māwharu", CL77<14,"Atua whakahaehae", CL77<15,"Ōhua", CL77<16,"Ōturu", CL77<17,"Rākaunui", CL77<18,"Rākaumatohi", CL77<19,"Takiraua", CL77<20,"Oike", CL77<21,"Korekore", CL77<22,"Korekore tuarua", CL77<23,"Korekore piri ki Tangaroa", CL77<24,"Tangaroa ā-mua", CL77<25,"Tangaroa ā-roto", CL77<26,"Tangaroa ata kiokio", CL77<27,"Ōtāne", CL77<28,"Ōrongonui", CL77<29,"Maurea", CL77<30,"Mutuwhenua" ) -> Ōtāne | CN77: =LookupTimezoneOffset(A77) -> 13
A78: 2026-03-18 | B78: 18 o | C78: 19 o | D78: =LOOKUP(VALUE(TEXT(A78,"M")),{1,2,3,4,5,6,7,8,9,10,11,12},{"Kohitātea","Hui‑tanguru","Poutū‑te‑rangi","Paengawhāwhā","Haratua","Pipiri","Hōngongoi","Here‑turi‑kōkā","Mahuru","Whiringa‑ā‑nuku","Whiringa‑ā‑rangi","Hakihea"}) -> Poutū‑te‑rangi | E78: Poutū‑te‑rangi | F78: 2026 | G78: 2026 | H78: =LOOKUP(WEEKDAY(A78),{1,2,3,4,5,6,7},{"Rātapu","Rāhina","Rātū","Rāapa","Rāpare","Rāmere","Rāhoroi ","Rātapu"}) -> Rāapa | I78: Rāpare | J78: 2026-03-01 | Q78: 1 | R78: 2 | S78: 3 | T78: 4 | U78: 5 | V78: 6 | W78: 7 | X78: 8 | Y78: 9 | Z78: 10 | AA78: 11 | AB78: 12 | AC78: 13 | AD78: 14 | AE78: 15 | AF78: 16 | AG78: 17 | AH78: 18 | AI78: 19 | AJ78: 20 | AK78: 21 | AL78: 22 | AM78: =IF(ISERROR(DATEVALUE(AL78+1 & " "&TEXT($A78,"Mmmm") & " " & $F78))," ",AL78+1) -> 23 | AN78: 24 | AO78: 25 | AP78: 26 | AQ78: 27 | AR78: 28 | AS78: 29 | AT78: 30 | AU78: 31 | AV78: =LOOKUP(VALUE(TEXT(AW78,"M")),{1,2,3,4,5,6,7,8,9,10,11,12},{"Kohitātea","Hui‑tanguru","Poutū‑te‑rangi","Paengawhāwhā","Haratua","Pipiri","Hōngongoi","Here‑turi‑kōkā","Mahuru","Whiringa‑ā‑nuku","Whiringa‑ā‑rangi","Hakihea"}) -> Paengawhāwhā | AW78: 46113 | AZ78: 1 | BA78: 2 | BB78: 3 | BC78: 4 | BD78: 5 | BE78: 6 | BF78: 7 | BG78: 8 | BH78: 9 | BI78: 10 | BJ78: 11 | BK78: 12 | BL78: 13 | BM78: 14 | BN78: 15 | BO78: 16 | BP78: 17 | BQ78: 18 | BR78: 19 | BS78: 20 | BT78: 21 | BU78: 22 | BV78: 23 | BW78: 24 | BX78: 25 | BY78: 26 | BZ78: =IF(ISERROR(DATEVALUE(BY78+1 & " "&TEXT($AW78,"Mmmm") & " " & $F78)),"∙",BY78+1) -> 27 | CA78: 28 | CB78: 29 | CC78: 30 | CD78: ∙ | CE78: ∙ | CF78: ∙ | CG78: ∙ | CH78: ∙ | CI78: =SunsetTime(A78, -41.2865, 174.7762, 13) -> 2026-03-17T18:40:40.299 | CJ78: =ExcelToJD(CI78-CN78/24) -> 2461116.737 | CK78: =NewMoonPrevious(CI78 - CN78/24) -> 2461089.002 | CL78: 27.73491292 | CM78: =_xlfn.IFS( CL78<1,"Whiro", CL78<2,"Tirea", CL78<3,"Ohata", CL78<4,"Ōuenuku", CL78<5,"Okoro", CL78<6,"Tamatea-kai-ariki", CL78<7,"Tamatea-wananga", CL78<8,"Tamatea-ā-āio", CL78<9,"Tamatea-whakapau", CL78<10,"Huna", CL78<11,"Airoa", CL78<12,"Hotu", CL78<13,"Māwharu", CL78<14,"Atua whakahaehae", CL78<15,"Ōhua", CL78<16,"Ōturu", CL78<17,"Rākaunui", CL78<18,"Rākaumatohi", CL78<19,"Takiraua", CL78<20,"Oike", CL78<21,"Korekore", CL78<22,"Korekore tuarua", CL78<23,"Korekore piri ki Tangaroa", CL78<24,"Tangaroa ā-mua", CL78<25,"Tangaroa ā-roto", CL78<26,"Tangaroa ata kiokio", CL78<27,"Ōtāne", CL78<28,"Ōrongonui", CL78<29,"Maurea", CL78<30,"Mutuwhenua" ) -> Ōrongonui | CN78: =LookupTimezoneOffset(A78) -> 13
A79: 2026-03-19 | B79: 19 o | C79: 20 o | D79: =LOOKUP(VALUE(TEXT(A79,"M")),{1,2,3,4,5,6,7,8,9,10,11,12},{"Kohitātea","Hui‑tanguru","Poutū‑te‑rangi","Paengawhāwhā","Haratua","Pipiri","Hōngongoi","Here‑turi‑kōkā","Mahuru","Whiringa‑ā‑nuku","Whiringa‑ā‑rangi","Hakihea"}) -> Poutū‑te‑rangi | E79: Poutū‑te‑rangi | F79: 2026 | G79: 2026 | H79: =LOOKUP(WEEKDAY(A79),{1,2,3,4,5,6,7},{"Rātapu","Rāhina","Rātū","Rāapa","Rāpare","Rāmere","Rāhoroi ","Rātapu"}) -> Rāpare | I79: Rāmere | J79: 2026-03-01 | Q79: 1 | R79: 2 | S79: 3 | T79: 4 | U79: 5 | V79: 6 | W79: 7 | X79: 8 | Y79: 9 | Z79: 10 | AA79: 11 | AB79: 12 | AC79: 13 | AD79: 14 | AE79: 15 | AF79: 16 | AG79: 17 | AH79: 18 | AI79: 19 | AJ79: 20 | AK79: 21 | AL79: 22 | AM79: =IF(ISERROR(DATEVALUE(AL79+1 & " "&TEXT($A79,"Mmmm") & " " & $F79))," ",AL79+1) -> 23 | AN79: 24 | AO79: 25 | AP79: 26 | AQ79: 27 | AR79: 28 | AS79: 29 | AT79: 30 | AU79: 31 | AV79: =LOOKUP(VALUE(TEXT(AW79,"M")),{1,2,3,4,5,6,7,8,9,10,11,12},{"Kohitātea","Hui‑tanguru","Poutū‑te‑rangi","Paengawhāwhā","Haratua","Pipiri","Hōngongoi","Here‑turi‑kōkā","Mahuru","Whiringa‑ā‑nuku","Whiringa‑ā‑rangi","Hakihea"}) -> Paengawhāwhā | AW79: 46113 | AZ79: 1 | BA79: 2 | BB79: 3 | BC79: 4 | BD79: 5 | BE79: 6 | BF79: 7 | BG79: 8 | BH79: 9 | BI79: 10 | BJ79: 11 | BK79: 12 | BL79: 13 | BM79: 14 | BN79: 15 | BO79: 16 | BP79: 17 | BQ79: 18 | BR79: 19 | BS79: 20 | BT79: 21 | BU79: 22 | BV79: 23 | BW79: 24 | BX79: 25 | BY79: 26 | BZ79: =IF(ISERROR(DATEVALUE(BY79+1 & " "&TEXT($AW79,"Mmmm") & " " & $F79)),"∙",BY79+1) -> 27 | CA79: 28 | CB79: 29 | CC79: 30 | CD79: ∙ | CE79: ∙ | CF79: ∙ | CG79: ∙ | CH79: ∙ | CI79: =SunsetTime(A79, -41.2865, 174.7762, 13) -> 2026-03-18T18:38:58.318 | CJ79: =ExcelToJD(CI79-CN79/24) -> 2461117.735 | CK79: =NewMoonPrevious(CI79 - CN79/24) -> 2461089.002 | CL79: 28.73373258 | CM79: =_xlfn.IFS( CL79<1,"Whiro", CL79<2,"Tirea", CL79<3,"Ohata", CL79<4,"Ōuenuku", CL79<5,"Okoro", CL79<6,"Tamatea-kai-ariki", CL79<7,"Tamatea-wananga", CL79<8,"Tamatea-ā-āio", CL79<9,"Tamatea-whakapau", CL79<10,"Huna", CL79<11,"Airoa", CL79<12,"Hotu", CL79<13,"Māwharu", CL79<14,"Atua whakahaehae", CL79<15,"Ōhua", CL79<16,"Ōturu", CL79<17,"Rākaunui", CL79<18,"Rākaumatohi", CL79<19,"Takiraua", CL79<20,"Oike", CL79<21,"Korekore", CL79<22,"Korekore tuarua", CL79<23,"Korekore piri ki Tangaroa", CL79<24,"Tangaroa ā-mua", CL79<25,"Tangaroa ā-roto", CL79<26,"Tangaroa ata kiokio", CL79<27,"Ōtāne", CL79<28,"Ōrongonui", CL79<29,"Maurea", CL79<30,"Mutuwhenua" ) -> Maurea | CN79: =LookupTimezoneOffset(A79) -> 13
A80: 2026-03-20 | B80: 20 o | C80: 21 o | D80: =LOOKUP(VALUE(TEXT(A80,"M")),{1,2,3,4,5,6,7,8,9,10,11,12},{"Kohitātea","Hui‑tanguru","Poutū‑te‑rangi","Paengawhāwhā","Haratua","Pipiri","Hōngongoi","Here‑turi‑kōkā","Mahuru","Whiringa‑ā‑nuku","Whiringa‑ā‑rangi","Hakihea"}) -> Poutū‑te‑rangi | E80: Poutū‑te‑rangi | F80: 2026 | G80: 2026 | H80: =LOOKUP(WEEKDAY(A80),{1,2,3,4,5,6,7},{"Rātapu","Rāhina","Rātū","Rāapa","Rāpare","Rāmere","Rāhoroi ","Rātapu"}) -> Rāmere | I80: Rāhoroi | J80: 2026-03-01 | Q80: 1 | R80: 2 | S80: 3 | T80: 4 | U80: 5 | V80: 6 | W80: 7 | X80: 8 | Y80: 9 | Z80: 10 | AA80: 11 | AB80: 12 | AC80: 13 | AD80: 14 | AE80: 15 | AF80: 16 | AG80: 17 | AH80: 18 | AI80: 19 | AJ80: 20 | AK80: 21 | AL80: 22 | AM80: =IF(ISERROR(DATEVALUE(AL80+1 & " "&TEXT($A80,"Mmmm") & " " & $F80))," ",AL80+1) -> 23 | AN80: 24 | AO80: 25 | AP80: 26 | AQ80: 27 | AR80: 28 | AS80: 29 | AT80: 30 | AU80: 31 | AV80: =LOOKUP(VALUE(TEXT(AW80,"M")),{1,2,3,4,5,6,7,8,9,10,11,12},{"Kohitātea","Hui‑tanguru","Poutū‑te‑rangi","Paengawhāwhā","Haratua","Pipiri","Hōngongoi","Here‑turi‑kōkā","Mahuru","Whiringa‑ā‑nuku","Whiringa‑ā‑rangi","Hakihea"}) -> Paengawhāwhā | AW80: 46113 | AZ80: 1 | BA80: 2 | BB80: 3 | BC80: 4 | BD80: 5 | BE80: 6 | BF80: 7 | BG80: 8 | BH80: 9 | BI80: 10 | BJ80: 11 | BK80: 12 | BL80: 13 | BM80: 14 | BN80: 15 | BO80: 16 | BP80: 17 | BQ80: 18 | BR80: 19 | BS80: 20 | BT80: 21 | BU80: 22 | BV80: 23 | BW80: 24 | BX80: 25 | BY80: 26 | BZ80: =IF(ISERROR(DATEVALUE(BY80+1 & " "&TEXT($AW80,"Mmmm") & " " & $F80)),"∙",BY80+1) -> 27 | CA80: 28 | CB80: 29 | CC80: 30 | CD80: ∙ | CE80: ∙ | CF80: ∙ | CG80: ∙ | CH80: ∙ | CI80: =SunsetTime(A80, -41.2865, 174.7762, 13) -> 2026-03-19T18:37:16.120 | CJ80: =ExcelToJD(CI80-CN80/24) -> 2461118.734 | CK80: =NewMoonPrevious(CI80 - CN80/24) -> 2461118.559 | CL80: 0.1754264077 | CM80: =_xlfn.IFS( CL80<1,"Whiro", CL80<2,"Tirea", CL80<3,"Ohata", CL80<4,"Ōuenuku", CL80<5,"Okoro", CL80<6,"Tamatea-kai-ariki", CL80<7,"Tamatea-wananga", CL80<8,"Tamatea-ā-āio", CL80<9,"Tamatea-whakapau", CL80<10,"Huna", CL80<11,"Airoa", CL80<12,"Hotu", CL80<13,"Māwharu", CL80<14,"Atua whakahaehae", CL80<15,"Ōhua", CL80<16,"Ōturu", CL80<17,"Rākaunui", CL80<18,"Rākaumatohi", CL80<19,"Takiraua", CL80<20,"Oike", CL80<21,"Korekore", CL80<22,"Korekore tuarua", CL80<23,"Korekore piri ki Tangaroa", CL80<24,"Tangaroa ā-mua", CL80<25,"Tangaroa ā-roto", CL80<26,"Tangaroa ata kiokio", CL80<27,"Ōtāne", CL80<28,"Ōrongonui", CL80<29,"Maurea", CL80<30,"Mutuwhenua" ) -> Whiro | CN80: =LookupTimezoneOffset(A80) -> 13
A81: 2026-03-21 | B81: 21 o | C81: 22 o | D81: =LOOKUP(VALUE(TEXT(A81,"M")),{1,2,3,4,5,6,7,8,9,10,11,12},{"Kohitātea","Hui‑tanguru","Poutū‑te‑rangi","Paengawhāwhā","Haratua","Pipiri","Hōngongoi","Here‑turi‑kōkā","Mahuru","Whiringa‑ā‑nuku","Whiringa‑ā‑rangi","Hakihea"}) -> Poutū‑te‑rangi | E81: Poutū‑te‑rangi | F81: 2026 | G81: 2026 | H81: =LOOKUP(WEEKDAY(A81),{1,2,3,4,5,6,7},{"Rātapu","Rāhina","Rātū","Rāapa","Rāpare","Rāmere","Rāhoroi ","Rātapu"}) -> Rāhoroi | I81: Rātapu | J81: 2026-03-01 | Q81: 1 | R81: 2 | S81: 3 | T81: 4 | U81: 5 | V81: 6 | W81: 7 | X81: 8 | Y81: 9 | Z81: 10 | AA81: 11 | AB81: 12 | AC81: 13 | AD81: 14 | AE81: 15 | AF81: 16 | AG81: 17 | AH81: 18 | AI81: 19 | AJ81: 20 | AK81: 21 | AL81: 22 | AM81: =IF(ISERROR(DATEVALUE(AL81+1 & " "&TEXT($A81,"Mmmm") & " " & $F81))," ",AL81+1) -> 23 | AN81: 24 | AO81: 25 | AP81: 26 | AQ81: 27 | AR81: 28 | AS81: 29 | AT81: 30 | AU81: 31 | AV81: =LOOKUP(VALUE(TEXT(AW81,"M")),{1,2,3,4,5,6,7,8,9,10,11,12},{"Kohitātea","Hui‑tanguru","Poutū‑te‑rangi","Paengawhāwhā","Haratua","Pipiri","Hōngongoi","Here‑turi‑kōkā","Mahuru","Whiringa‑ā‑nuku","Whiringa‑ā‑rangi","Hakihea"}) -> Paengawhāwhā | AW81: 46113 | AZ81: 1 | BA81: 2 | BB81: 3 | BC81: 4 | BD81: 5 | BE81: 6 | BF81: 7 | BG81: 8 | BH81: 9 | BI81: 10 | BJ81: 11 | BK81: 12 | BL81: 13 | BM81: 14 | BN81: 15 | BO81: 16 | BP81: 17 | BQ81: 18 | BR81: 19 | BS81: 20 | BT81: 21 | BU81: 22 | BV81: 23 | BW81: 24 | BX81: 25 | BY81: 26 | BZ81: =IF(ISERROR(DATEVALUE(BY81+1 & " "&TEXT($AW81,"Mmmm") & " " & $F81)),"∙",BY81+1) -> 27 | CA81: 28 | CB81: 29 | CC81: 30 | CD81: ∙ | CE81: ∙ | CF81: ∙ | CG81: ∙ | CH81: ∙ | CI81: =SunsetTime(A81, -41.2865, 174.7762, 13) -> 2026-03-20T18:35:33.740 | CJ81: =ExcelToJD(CI81-CN81/24) -> 2461119.733 | CK81: =NewMoonPrevious(CI81 - CN81/24) -> 2461118.559 | CL81: 1.174241452 | CM81: =_xlfn.IFS( CL81<1,"Whiro", CL81<2,"Tirea", CL81<3,"Ohata", CL81<4,"Ōuenuku", CL81<5,"Okoro", CL81<6,"Tamatea-kai-ariki", CL81<7,"Tamatea-wananga", CL81<8,"Tamatea-ā-āio", CL81<9,"Tamatea-whakapau", CL81<10,"Huna", CL81<11,"Airoa", CL81<12,"Hotu", CL81<13,"Māwharu", CL81<14,"Atua whakahaehae", CL81<15,"Ōhua", CL81<16,"Ōturu", CL81<17,"Rākaunui", CL81<18,"Rākaumatohi", CL81<19,"Takiraua", CL81<20,"Oike", CL81<21,"Korekore", CL81<22,"Korekore tuarua", CL81<23,"Korekore piri ki Tangaroa", CL81<24,"Tangaroa ā-mua", CL81<25,"Tangaroa ā-roto", CL81<26,"Tangaroa ata kiokio", CL81<27,"Ōtāne", CL81<28,"Ōrongonui", CL81<29,"Maurea", CL81<30,"Mutuwhenua" ) -> Tirea | CN81: =LookupTimezoneOffset(A81) -> 13
A82: 2026-03-22 | B82: 22 o | C82: 23 o | D82: =LOOKUP(VALUE(TEXT(A82,"M")),{1,2,3,4,5,6,7,8,9,10,11,12},{"Kohitātea","Hui‑tanguru","Poutū‑te‑rangi","Paengawhāwhā","Haratua","Pipiri","Hōngongoi","Here‑turi‑kōkā","Mahuru","Whiringa‑ā‑nuku","Whiringa‑ā‑rangi","Hakihea"}) -> Poutū‑te‑rangi | E82: Poutū‑te‑rangi | F82: =TEXT(A82,"YYYY") -> 2026 | G82: 2026 | H82: =LOOKUP(WEEKDAY(A82),{1,2,3,4,5,6,7},{"Rātapu","Rāhina","Rātū","Rāapa","Rāpare","Rāmere","Rāhoroi ","Rātapu"}) -> Rātapu | I82: Rāhina | J82: 2026-03-01 | Q82: 1 | R82: 2 | S82: 3 | T82: 4 | U82: 5 | V82: 6 | W82: 7 | X82: 8 | Y82: 9 | Z82: 10 | AA82: 11 | AB82: 12 | AC82: 13 | AD82: 14 | AE82: 15 | AF82: 16 | AG82: 17 | AH82: 18 | AI82: 19 | AJ82: 20 | AK82: 21 | AL82: 22 | AM82: =IF(ISERROR(DATEVALUE(AL82+1 & " "&TEXT($A82,"Mmmm") & " " & $F82))," ",AL82+1) -> 23 | AN82: 24 | AO82: 25 | AP82: 26 | AQ82: 27 | AR82: 28 | AS82: 29 | AT82: 30 | AU82: 31 | AV82: =LOOKUP(VALUE(TEXT(AW82,"M")),{1,2,3,4,5,6,7,8,9,10,11,12},{"Kohitātea","Hui‑tanguru","Poutū‑te‑rangi","Paengawhāwhā","Haratua","Pipiri","Hōngongoi","Here‑turi‑kōkā","Mahuru","Whiringa‑ā‑nuku","Whiringa‑ā‑rangi","Hakihea"}) -> Paengawhāwhā | AW82: 46113 | AZ82: 1 | BA82: 2 | BB82: 3 | BC82: 4 | BD82: 5 | BE82: 6 | BF82: 7 | BG82: 8 | BH82: 9 | BI82: 10 | BJ82: 11 | BK82: 12 | BL82: 13 | BM82: 14 | BN82: 15 | BO82: 16 | BP82: 17 | BQ82: 18 | BR82: 19 | BS82: 20 | BT82: 21 | BU82: 22 | BV82: 23 | BW82: 24 | BX82: 25 | BY82: 26 | BZ82: =IF(ISERROR(DATEVALUE(BY82+1 & " "&TEXT($AW82,"Mmmm") & " " & $F82)),"∙",BY82+1) -> 27 | CA82: 28 | CB82: 29 | CC82: 30 | CD82: ∙ | CE82: ∙ | CF82: ∙ | CG82: ∙ | CH82: ∙ | CI82: =SunsetTime(A82, -41.2865, 174.7762, 13) -> 2026-03-21T18:33:51.212 | CJ82: =ExcelToJD(CI82-CN82/24) -> 2461120.732 | CK82: =NewMoonPrevious(CI82 - CN82/24) -> 2461118.559 | CL82: 2.173054795 | CM82: =_xlfn.IFS( CL82<1,"Whiro", CL82<2,"Tirea", CL82<3,"Ohata", CL82<4,"Ōuenuku", CL82<5,"Okoro", CL82<6,"Tamatea-kai-ariki", CL82<7,"Tamatea-wananga", CL82<8,"Tamatea-ā-āio", CL82<9,"Tamatea-whakapau", CL82<10,"Huna", CL82<11,"Airoa", CL82<12,"Hotu", CL82<13,"Māwharu", CL82<14,"Atua whakahaehae", CL82<15,"Ōhua", CL82<16,"Ōturu", CL82<17,"Rākaunui", CL82<18,"Rākaumatohi", CL82<19,"Takiraua", CL82<20,"Oike", CL82<21,"Korekore", CL82<22,"Korekore tuarua", CL82<23,"Korekore piri ki Tangaroa", CL82<24,"Tangaroa ā-mua", CL82<25,"Tangaroa ā-roto", CL82<26,"Tangaroa ata kiokio", CL82<27,"Ōtāne", CL82<28,"Ōrongonui", CL82<29,"Maurea", CL82<30,"Mutuwhenua" ) -> Ohata | CN82: =LookupTimezoneOffset(A82) -> 13
A83: 2026-03-23 | B83: 23 o | C83: 24 o | D83: =LOOKUP(VALUE(TEXT(A83,"M")),{1,2,3,4,5,6,7,8,9,10,11,12},{"Kohitātea","Hui‑tanguru","Poutū‑te‑rangi","Paengawhāwhā","Haratua","Pipiri","Hōngongoi","Here‑turi‑kōkā","Mahuru","Whiringa‑ā‑nuku","Whiringa‑ā‑rangi","Hakihea"}) -> Poutū‑te‑rangi | E83: Poutū‑te‑rangi | F83: 2026 | G83: 2026 | H83: =LOOKUP(WEEKDAY(A83),{1,2,3,4,5,6,7},{"Rātapu","Rāhina","Rātū","Rāapa","Rāpare","Rāmere","Rāhoroi ","Rātapu"}) -> Rāhina | I83: Rātū | J83: 2026-03-01 | Q83: 1 | R83: 2 | S83: 3 | T83: 4 | U83: 5 | V83: 6 | W83: 7 | X83: 8 | Y83: 9 | Z83: 10 | AA83: 11 | AB83: 12 | AC83: 13 | AD83: 14 | AE83: 15 | AF83: 16 | AG83: 17 | AH83: 18 | AI83: 19 | AJ83: 20 | AK83: 21 | AL83: 22 | AM83: =IF(ISERROR(DATEVALUE(AL83+1 & " "&TEXT($A83,"Mmmm") & " " & $F83))," ",AL83+1) -> 23 | AN83: 24 | AO83: 25 | AP83: 26 | AQ83: 27 | AR83: 28 | AS83: 29 | AT83: 30 | AU83: 31 | AV83: =LOOKUP(VALUE(TEXT(AW83,"M")),{1,2,3,4,5,6,7,8,9,10,11,12},{"Kohitātea","Hui‑tanguru","Poutū‑te‑rangi","Paengawhāwhā","Haratua","Pipiri","Hōngongoi","Here‑turi‑kōkā","Mahuru","Whiringa‑ā‑nuku","Whiringa‑ā‑rangi","Hakihea"}) -> Paengawhāwhā | AW83: 46113 | AZ83: 1 | BA83: 2 | BB83: 3 | BC83: 4 | BD83: 5 | BE83: 6 | BF83: 7 | BG83: 8 | BH83: 9 | BI83: 10 | BJ83: 11 | BK83: 12 | BL83: 13 | BM83: 14 | BN83: 15 | BO83: 16 | BP83: 17 | BQ83: 18 | BR83: 19 | BS83: 20 | BT83: 21 | BU83: 22 | BV83: 23 | BW83: 24 | BX83: 25 | BY83: 26 | BZ83: =IF(ISERROR(DATEVALUE(BY83+1 & " "&TEXT($AW83,"Mmmm") & " " & $F83)),"∙",BY83+1) -> 27 | CA83: 28 | CB83: 29 | CC83: 30 | CD83: ∙ | CE83: ∙ | CF83: ∙ | CG83: ∙ | CH83: ∙ | CI83: =SunsetTime(A83, -41.2865, 174.7762, 13) -> 2026-03-22T18:32:08.573 | CJ83: =ExcelToJD(CI83-CN83/24) -> 2461121.731 | CK83: =NewMoonPrevious(CI83 - CN83/24) -> 2461118.559 | CL83: 3.171866842 | CM83: =_xlfn.IFS( CL83<1,"Whiro", CL83<2,"Tirea", CL83<3,"Ohata", CL83<4,"Ōuenuku", CL83<5,"Okoro", CL83<6,"Tamatea-kai-ariki", CL83<7,"Tamatea-wananga", CL83<8,"Tamatea-ā-āio", CL83<9,"Tamatea-whakapau", CL83<10,"Huna", CL83<11,"Airoa", CL83<12,"Hotu", CL83<13,"Māwharu", CL83<14,"Atua whakahaehae", CL83<15,"Ōhua", CL83<16,"Ōturu", CL83<17,"Rākaunui", CL83<18,"Rākaumatohi", CL83<19,"Takiraua", CL83<20,"Oike", CL83<21,"Korekore", CL83<22,"Korekore tuarua", CL83<23,"Korekore piri ki Tangaroa", CL83<24,"Tangaroa ā-mua", CL83<25,"Tangaroa ā-roto", CL83<26,"Tangaroa ata kiokio", CL83<27,"Ōtāne", CL83<28,"Ōrongonui", CL83<29,"Maurea", CL83<30,"Mutuwhenua" ) -> Ōuenuku | CN83: =LookupTimezoneOffset(A83) -> 13
A84: 2026-03-24 | B84: 24 o | C84: 25 o | D84: =LOOKUP(VALUE(TEXT(A84,"M")),{1,2,3,4,5,6,7,8,9,10,11,12},{"Kohitātea","Hui‑tanguru","Poutū‑te‑rangi","Paengawhāwhā","Haratua","Pipiri","Hōngongoi","Here‑turi‑kōkā","Mahuru","Whiringa‑ā‑nuku","Whiringa‑ā‑rangi","Hakihea"}) -> Poutū‑te‑rangi | E84: Poutū‑te‑rangi | F84: 2026 | G84: 2026 | H84: =LOOKUP(WEEKDAY(A84),{1,2,3,4,5,6,7},{"Rātapu","Rāhina","Rātū","Rāapa","Rāpare","Rāmere","Rāhoroi ","Rātapu"}) -> Rātū | I84: Rāapa | J84: 2026-03-01 | Q84: 1 | R84: 2 | S84: 3 | T84: 4 | U84: 5 | V84: 6 | W84: 7 | X84: 8 | Y84: 9 | Z84: 10 | AA84: 11 | AB84: 12 | AC84: 13 | AD84: 14 | AE84: 15 | AF84: 16 | AG84: 17 | AH84: 18 | AI84: 19 | AJ84: 20 | AK84: 21 | AL84: 22 | AM84: =IF(ISERROR(DATEVALUE(AL84+1 & " "&TEXT($A84,"Mmmm") & " " & $F84))," ",AL84+1) -> 23 | AN84: 24 | AO84: 25 | AP84: 26 | AQ84: 27 | AR84: 28 | AS84: 29 | AT84: 30 | AU84: 31 | AV84: =LOOKUP(VALUE(TEXT(AW84,"M")),{1,2,3,4,5,6,7,8,9,10,11,12},{"Kohitātea","Hui‑tanguru","Poutū‑te‑rangi","Paengawhāwhā","Haratua","Pipiri","Hōngongoi","Here‑turi‑kōkā","Mahuru","Whiringa‑ā‑nuku","Whiringa‑ā‑rangi","Hakihea"}) -> Paengawhāwhā | AW84: 46113 | AZ84: 1 | BA84: 2 | BB84: 3 | BC84: 4 | BD84: 5 | BE84: 6 | BF84: 7 | BG84: 8 | BH84: 9 | BI84: 10 | BJ84: 11 | BK84: 12 | BL84: 13 | BM84: 14 | BN84: 15 | BO84: 16 | BP84: 17 | BQ84: 18 | BR84: 19 | BS84: 20 | BT84: 21 | BU84: 22 | BV84: 23 | BW84: 24 | BX84: 25 | BY84: 26 | BZ84: =IF(ISERROR(DATEVALUE(BY84+1 & " "&TEXT($AW84,"Mmmm") & " " & $F84)),"∙",BY84+1) -> 27 | CA84: 28 | CB84: 29 | CC84: 30 | CD84: ∙ | CE84: ∙ | CF84: ∙ | CG84: ∙ | CH84: ∙ | CI84: =SunsetTime(A84, -41.2865, 174.7762, 13) -> 2026-03-23T18:30:25.857 | CJ84: =ExcelToJD(CI84-CN84/24) -> 2461122.729 | CK84: =NewMoonPrevious(CI84 - CN84/24) -> 2461118.559 | CL84: 4.170677998 | CM84: =_xlfn.IFS( CL84<1,"Whiro", CL84<2,"Tirea", CL84<3,"Ohata", CL84<4,"Ōuenuku", CL84<5,"Okoro", CL84<6,"Tamatea-kai-ariki", CL84<7,"Tamatea-wananga", CL84<8,"Tamatea-ā-āio", CL84<9,"Tamatea-whakapau", CL84<10,"Huna", CL84<11,"Airoa", CL84<12,"Hotu", CL84<13,"Māwharu", CL84<14,"Atua whakahaehae", CL84<15,"Ōhua", CL84<16,"Ōturu", CL84<17,"Rākaunui", CL84<18,"Rākaumatohi", CL84<19,"Takiraua", CL84<20,"Oike", CL84<21,"Korekore", CL84<22,"Korekore tuarua", CL84<23,"Korekore piri ki Tangaroa", CL84<24,"Tangaroa ā-mua", CL84<25,"Tangaroa ā-roto", CL84<26,"Tangaroa ata kiokio", CL84<27,"Ōtāne", CL84<28,"Ōrongonui", CL84<29,"Maurea", CL84<30,"Mutuwhenua" ) -> Okoro | CN84: =LookupTimezoneOffset(A84) -> 13
A85: 2026-03-25 | B85: 25 o | C85: 26 o | D85: =LOOKUP(VALUE(TEXT(A85,"M")),{1,2,3,4,5,6,7,8,9,10,11,12},{"Kohitātea","Hui‑tanguru","Poutū‑te‑rangi","Paengawhāwhā","Haratua","Pipiri","Hōngongoi","Here‑turi‑kōkā","Mahuru","Whiringa‑ā‑nuku","Whiringa‑ā‑rangi","Hakihea"}) -> Poutū‑te‑rangi | E85: Poutū‑te‑rangi | F85: 2026 | G85: 2026 | H85: =LOOKUP(WEEKDAY(A85),{1,2,3,4,5,6,7},{"Rātapu","Rāhina","Rātū","Rāapa","Rāpare","Rāmere","Rāhoroi ","Rātapu"}) -> Rāapa | I85: Rāpare | J85: 2026-03-01 | Q85: 1 | R85: 2 | S85: 3 | T85: 4 | U85: 5 | V85: 6 | W85: 7 | X85: 8 | Y85: 9 | Z85: 10 | AA85: 11 | AB85: 12 | AC85: 13 | AD85: 14 | AE85: 15 | AF85: 16 | AG85: 17 | AH85: 18 | AI85: 19 | AJ85: 20 | AK85: 21 | AL85: 22 | AM85: =IF(ISERROR(DATEVALUE(AL85+1 & " "&TEXT($A85,"Mmmm") & " " & $F85))," ",AL85+1) -> 23 | AN85: 24 | AO85: 25 | AP85: 26 | AQ85: 27 | AR85: 28 | AS85: 29 | AT85: 30 | AU85: 31 | AV85: =LOOKUP(VALUE(TEXT(AW85,"M")),{1,2,3,4,5,6,7,8,9,10,11,12},{"Kohitātea","Hui‑tanguru","Poutū‑te‑rangi","Paengawhāwhā","Haratua","Pipiri","Hōngongoi","Here‑turi‑kōkā","Mahuru","Whiringa‑ā‑nuku","Whiringa‑ā‑rangi","Hakihea"}) -> Paengawhāwhā | AW85: 46113 | AZ85: 1 | BA85: 2 | BB85: 3 | BC85: 4 | BD85: 5 | BE85: 6 | BF85: 7 | BG85: 8 | BH85: 9 | BI85: 10 | BJ85: 11 | BK85: 12 | BL85: 13 | BM85: 14 | BN85: 15 | BO85: 16 | BP85: 17 | BQ85: 18 | BR85: 19 | BS85: 20 | BT85: 21 | BU85: 22 | BV85: 23 | BW85: 24 | BX85: 25 | BY85: 26 | BZ85: =IF(ISERROR(DATEVALUE(BY85+1 & " "&TEXT($AW85,"Mmmm") & " " & $F85)),"∙",BY85+1) -> 27 | CA85: 28 | CB85: 29 | CC85: 30 | CD85: ∙ | CE85: ∙ | CF85: ∙ | CG85: ∙ | CH85: ∙ | CI85: =SunsetTime(A85, -41.2865, 174.7762, 13) -> 2026-03-24T18:28:43.099 | CJ85: =ExcelToJD(CI85-CN85/24) -> 2461123.728 | CK85: =NewMoonPrevious(CI85 - CN85/24) -> 2461118.559 | CL85: 5.169488668 | CM85: =_xlfn.IFS( CL85<1,"Whiro", CL85<2,"Tirea", CL85<3,"Ohata", CL85<4,"Ōuenuku", CL85<5,"Okoro", CL85<6,"Tamatea-kai-ariki", CL85<7,"Tamatea-wananga", CL85<8,"Tamatea-ā-āio", CL85<9,"Tamatea-whakapau", CL85<10,"Huna", CL85<11,"Airoa", CL85<12,"Hotu", CL85<13,"Māwharu", CL85<14,"Atua whakahaehae", CL85<15,"Ōhua", CL85<16,"Ōturu", CL85<17,"Rākaunui", CL85<18,"Rākaumatohi", CL85<19,"Takiraua", CL85<20,"Oike", CL85<21,"Korekore", CL85<22,"Korekore tuarua", CL85<23,"Korekore piri ki Tangaroa", CL85<24,"Tangaroa ā-mua", CL85<25,"Tangaroa ā-roto", CL85<26,"Tangaroa ata kiokio", CL85<27,"Ōtāne", CL85<28,"Ōrongonui", CL85<29,"Maurea", CL85<30,"Mutuwhenua" ) -> Tamatea-kai-ariki | CN85: =LookupTimezoneOffset(A85) -> 13
A86: 2026-03-26 | B86: 26 o | C86: 27 o | D86: =LOOKUP(VALUE(TEXT(A86,"M")),{1,2,3,4,5,6,7,8,9,10,11,12},{"Kohitātea","Hui‑tanguru","Poutū‑te‑rangi","Paengawhāwhā","Haratua","Pipiri","Hōngongoi","Here‑turi‑kōkā","Mahuru","Whiringa‑ā‑nuku","Whiringa‑ā‑rangi","Hakihea"}) -> Poutū‑te‑rangi | E86: Poutū‑te‑rangi | F86: 2026 | G86: 2026 | H86: =LOOKUP(WEEKDAY(A86),{1,2,3,4,5,6,7},{"Rātapu","Rāhina","Rātū","Rāapa","Rāpare","Rāmere","Rāhoroi ","Rātapu"}) -> Rāpare | I86: Rāmere | J86: 2026-03-01 | Q86: 1 | R86: 2 | S86: 3 | T86: 4 | U86: 5 | V86: 6 | W86: 7 | X86: 8 | Y86: 9 | Z86: 10 | AA86: 11 | AB86: 12 | AC86: 13 | AD86: 14 | AE86: 15 | AF86: 16 | AG86: 17 | AH86: 18 | AI86: 19 | AJ86: 20 | AK86: 21 | AL86: 22 | AM86: =IF(ISERROR(DATEVALUE(AL86+1 & " "&TEXT($A86,"Mmmm") & " " & $F86))," ",AL86+1) -> 23 | AN86: 24 | AO86: 25 | AP86: 26 | AQ86: 27 | AR86: 28 | AS86: 29 | AT86: 30 | AU86: 31 | AV86: =LOOKUP(VALUE(TEXT(AW86,"M")),{1,2,3,4,5,6,7,8,9,10,11,12},{"Kohitātea","Hui‑tanguru","Poutū‑te‑rangi","Paengawhāwhā","Haratua","Pipiri","Hōngongoi","Here‑turi‑kōkā","Mahuru","Whiringa‑ā‑nuku","Whiringa‑ā‑rangi","Hakihea"}) -> Paengawhāwhā | AW86: 46113 | AZ86: 1 | BA86: 2 | BB86: 3 | BC86: 4 | BD86: 5 | BE86: 6 | BF86: 7 | BG86: 8 | BH86: 9 | BI86: 10 | BJ86: 11 | BK86: 12 | BL86: 13 | BM86: 14 | BN86: 15 | BO86: 16 | BP86: 17 | BQ86: 18 | BR86: 19 | BS86: 20 | BT86: 21 | BU86: 22 | BV86: 23 | BW86: 24 | BX86: 25 | BY86: 26 | BZ86: =IF(ISERROR(DATEVALUE(BY86+1 & " "&TEXT($AW86,"Mmmm") & " " & $F86)),"∙",BY86+1) -> 27 | CA86: 28 | CB86: 29 | CC86: 30 | CD86: ∙ | CE86: ∙ | CF86: ∙ | CG86: ∙ | CH86: ∙ | CI86: =SunsetTime(A86, -41.2865, 174.7762, 13) -> 2026-03-25T18:27:00.334 | CJ86: =ExcelToJD(CI86-CN86/24) -> 2461124.727 | CK86: =NewMoonPrevious(CI86 - CN86/24) -> 2461118.559 | CL86: 6.168299259 | CM86: =_xlfn.IFS( CL86<1,"Whiro", CL86<2,"Tirea", CL86<3,"Ohata", CL86<4,"Ōuenuku", CL86<5,"Okoro", CL86<6,"Tamatea-kai-ariki", CL86<7,"Tamatea-wananga", CL86<8,"Tamatea-ā-āio", CL86<9,"Tamatea-whakapau", CL86<10,"Huna", CL86<11,"Airoa", CL86<12,"Hotu", CL86<13,"Māwharu", CL86<14,"Atua whakahaehae", CL86<15,"Ōhua", CL86<16,"Ōturu", CL86<17,"Rākaunui", CL86<18,"Rākaumatohi", CL86<19,"Takiraua", CL86<20,"Oike", CL86<21,"Korekore", CL86<22,"Korekore tuarua", CL86<23,"Korekore piri ki Tangaroa", CL86<24,"Tangaroa ā-mua", CL86<25,"Tangaroa ā-roto", CL86<26,"Tangaroa ata kiokio", CL86<27,"Ōtāne", CL86<28,"Ōrongonui", CL86<29,"Maurea", CL86<30,"Mutuwhenua" ) -> Tamatea-wananga | CN86: =LookupTimezoneOffset(A86) -> 13
A87: 2026-03-27 | B87: 27 o | C87: 28 o | D87: =LOOKUP(VALUE(TEXT(A87,"M")),{1,2,3,4,5,6,7,8,9,10,11,12},{"Kohitātea","Hui‑tanguru","Poutū‑te‑rangi","Paengawhāwhā","Haratua","Pipiri","Hōngongoi","Here‑turi‑kōkā","Mahuru","Whiringa‑ā‑nuku","Whiringa‑ā‑rangi","Hakihea"}) -> Poutū‑te‑rangi | E87: Poutū‑te‑rangi | F87: 2026 | G87: 2026 | H87: =LOOKUP(WEEKDAY(A87),{1,2,3,4,5,6,7},{"Rātapu","Rāhina","Rātū","Rāapa","Rāpare","Rāmere","Rāhoroi ","Rātapu"}) -> Rāmere | I87: Rāhoroi | J87: 2026-03-01 | Q87: 1 | R87: 2 | S87: 3 | T87: 4 | U87: 5 | V87: 6 | W87: 7 | X87: 8 | Y87: 9 | Z87: 10 | AA87: 11 | AB87: 12 | AC87: 13 | AD87: 14 | AE87: 15 | AF87: 16 | AG87: 17 | AH87: 18 | AI87: 19 | AJ87: 20 | AK87: 21 | AL87: 22 | AM87: =IF(ISERROR(DATEVALUE(AL87+1 & " "&TEXT($A87,"Mmmm") & " " & $F87))," ",AL87+1) -> 23 | AN87: 24 | AO87: 25 | AP87: 26 | AQ87: 27 | AR87: 28 | AS87: 29 | AT87: 30 | AU87: 31 | AV87: =LOOKUP(VALUE(TEXT(AW87,"M")),{1,2,3,4,5,6,7,8,9,10,11,12},{"Kohitātea","Hui‑tanguru","Poutū‑te‑rangi","Paengawhāwhā","Haratua","Pipiri","Hōngongoi","Here‑turi‑kōkā","Mahuru","Whiringa‑ā‑nuku","Whiringa‑ā‑rangi","Hakihea"}) -> Paengawhāwhā | AW87: 46113 | AZ87: 1 | BA87: 2 | BB87: 3 | BC87: 4 | BD87: 5 | BE87: 6 | BF87: 7 | BG87: 8 | BH87: 9 | BI87: 10 | BJ87: 11 | BK87: 12 | BL87: 13 | BM87: 14 | BN87: 15 | BO87: 16 | BP87: 17 | BQ87: 18 | BR87: 19 | BS87: 20 | BT87: 21 | BU87: 22 | BV87: 23 | BW87: 24 | BX87: 25 | BY87: 26 | BZ87: =IF(ISERROR(DATEVALUE(BY87+1 & " "&TEXT($AW87,"Mmmm") & " " & $F87)),"∙",BY87+1) -> 27 | CA87: 28 | CB87: 29 | CC87: 30 | CD87: ∙ | CE87: ∙ | CF87: ∙ | CG87: ∙ | CH87: ∙ | CI87: =SunsetTime(A87, -41.2865, 174.7762, 13) -> 2026-03-26T18:25:17.597 | CJ87: =ExcelToJD(CI87-CN87/24) -> 2461125.726 | CK87: =NewMoonPrevious(CI87 - CN87/24) -> 2461118.559 | CL87: 7.167110177 | CM87: =_xlfn.IFS( CL87<1,"Whiro", CL87<2,"Tirea", CL87<3,"Ohata", CL87<4,"Ōuenuku", CL87<5,"Okoro", CL87<6,"Tamatea-kai-ariki", CL87<7,"Tamatea-wananga", CL87<8,"Tamatea-ā-āio", CL87<9,"Tamatea-whakapau", CL87<10,"Huna", CL87<11,"Airoa", CL87<12,"Hotu", CL87<13,"Māwharu", CL87<14,"Atua whakahaehae", CL87<15,"Ōhua", CL87<16,"Ōturu", CL87<17,"Rākaunui", CL87<18,"Rākaumatohi", CL87<19,"Takiraua", CL87<20,"Oike", CL87<21,"Korekore", CL87<22,"Korekore tuarua", CL87<23,"Korekore piri ki Tangaroa", CL87<24,"Tangaroa ā-mua", CL87<25,"Tangaroa ā-roto", CL87<26,"Tangaroa ata kiokio", CL87<27,"Ōtāne", CL87<28,"Ōrongonui", CL87<29,"Maurea", CL87<30,"Mutuwhenua" ) -> Tamatea-ā-āio | CN87: =LookupTimezoneOffset(A87) -> 13
A88: 2026-03-28 | B88: 28 o | C88: 29 o | D88: =LOOKUP(VALUE(TEXT(A88,"M")),{1,2,3,4,5,6,7,8,9,10,11,12},{"Kohitātea","Hui‑tanguru","Poutū‑te‑rangi","Paengawhāwhā","Haratua","Pipiri","Hōngongoi","Here‑turi‑kōkā","Mahuru","Whiringa‑ā‑nuku","Whiringa‑ā‑rangi","Hakihea"}) -> Poutū‑te‑rangi | E88: Poutū‑te‑rangi | F88: 2026 | G88: 2026 | H88: =LOOKUP(WEEKDAY(A88),{1,2,3,4,5,6,7},{"Rātapu","Rāhina","Rātū","Rāapa","Rāpare","Rāmere","Rāhoroi ","Rātapu"}) -> Rāhoroi | I88: Rātapu | J88: 2026-03-01 | Q88: 1 | R88: 2 | S88: 3 | T88: 4 | U88: 5 | V88: 6 | W88: 7 | X88: 8 | Y88: 9 | Z88: 10 | AA88: 11 | AB88: 12 | AC88: 13 | AD88: 14 | AE88: 15 | AF88: 16 | AG88: 17 | AH88: 18 | AI88: 19 | AJ88: 20 | AK88: 21 | AL88: 22 | AM88: =IF(ISERROR(DATEVALUE(AL88+1 & " "&TEXT($A88,"Mmmm") & " " & $F88))," ",AL88+1) -> 23 | AN88: 24 | AO88: 25 | AP88: 26 | AQ88: 27 | AR88: 28 | AS88: 29 | AT88: 30 | AU88: 31 | AV88: =LOOKUP(VALUE(TEXT(AW88,"M")),{1,2,3,4,5,6,7,8,9,10,11,12},{"Kohitātea","Hui‑tanguru","Poutū‑te‑rangi","Paengawhāwhā","Haratua","Pipiri","Hōngongoi","Here‑turi‑kōkā","Mahuru","Whiringa‑ā‑nuku","Whiringa‑ā‑rangi","Hakihea"}) -> Paengawhāwhā | AW88: 46113 | AZ88: 1 | BA88: 2 | BB88: 3 | BC88: 4 | BD88: 5 | BE88: 6 | BF88: 7 | BG88: 8 | BH88: 9 | BI88: 10 | BJ88: 11 | BK88: 12 | BL88: 13 | BM88: 14 | BN88: 15 | BO88: 16 | BP88: 17 | BQ88: 18 | BR88: 19 | BS88: 20 | BT88: 21 | BU88: 22 | BV88: 23 | BW88: 24 | BX88: 25 | BY88: 26 | BZ88: =IF(ISERROR(DATEVALUE(BY88+1 & " "&TEXT($AW88,"Mmmm") & " " & $F88)),"∙",BY88+1) -> 27 | CA88: 28 | CB88: 29 | CC88: 30 | CD88: ∙ | CE88: ∙ | CF88: ∙ | CG88: ∙ | CH88: ∙ | CI88: =SunsetTime(A88, -41.2865, 174.7762, 13) -> 2026-03-27T18:23:34.924 | CJ88: =ExcelToJD(CI88-CN88/24) -> 2461126.725 | CK88: =NewMoonPrevious(CI88 - CN88/24) -> 2461118.559 | CL88: 8.165921828 | CM88: =_xlfn.IFS( CL88<1,"Whiro", CL88<2,"Tirea", CL88<3,"Ohata", CL88<4,"Ōuenuku", CL88<5,"Okoro", CL88<6,"Tamatea-kai-ariki", CL88<7,"Tamatea-wananga", CL88<8,"Tamatea-ā-āio", CL88<9,"Tamatea-whakapau", CL88<10,"Huna", CL88<11,"Airoa", CL88<12,"Hotu", CL88<13,"Māwharu", CL88<14,"Atua whakahaehae", CL88<15,"Ōhua", CL88<16,"Ōturu", CL88<17,"Rākaunui", CL88<18,"Rākaumatohi", CL88<19,"Takiraua", CL88<20,"Oike", CL88<21,"Korekore", CL88<22,"Korekore tuarua", CL88<23,"Korekore piri ki Tangaroa", CL88<24,"Tangaroa ā-mua", CL88<25,"Tangaroa ā-roto", CL88<26,"Tangaroa ata kiokio", CL88<27,"Ōtāne", CL88<28,"Ōrongonui", CL88<29,"Maurea", CL88<30,"Mutuwhenua" ) -> Tamatea-whakapau | CN88: =LookupTimezoneOffset(A88) -> 13
A89: 2026-03-29 | B89: 29 o | C89: 30 o | D89: =LOOKUP(VALUE(TEXT(A89,"M")),{1,2,3,4,5,6,7,8,9,10,11,12},{"Kohitātea","Hui‑tanguru","Poutū‑te‑rangi","Paengawhāwhā","Haratua","Pipiri","Hōngongoi","Here‑turi‑kōkā","Mahuru","Whiringa‑ā‑nuku","Whiringa‑ā‑rangi","Hakihea"}) -> Poutū‑te‑rangi | E89: Poutū‑te‑rangi | F89: 2026 | G89: 2026 | H89: =LOOKUP(WEEKDAY(A89),{1,2,3,4,5,6,7},{"Rātapu","Rāhina","Rātū","Rāapa","Rāpare","Rāmere","Rāhoroi ","Rātapu"}) -> Rātapu | I89: Rāhina | J89: 2026-03-01 | Q89: 1 | R89: 2 | S89: 3 | T89: 4 | U89: 5 | V89: 6 | W89: 7 | X89: 8 | Y89: 9 | Z89: 10 | AA89: 11 | AB89: 12 | AC89: 13 | AD89: 14 | AE89: 15 | AF89: 16 | AG89: 17 | AH89: 18 | AI89: 19 | AJ89: 20 | AK89: 21 | AL89: 22 | AM89: =IF(ISERROR(DATEVALUE(AL89+1 & " "&TEXT($A89,"Mmmm") & " " & $F89))," ",AL89+1) -> 23 | AN89: 24 | AO89: 25 | AP89: 26 | AQ89: 27 | AR89: 28 | AS89: 29 | AT89: 30 | AU89: 31 | AV89: =LOOKUP(VALUE(TEXT(AW89,"M")),{1,2,3,4,5,6,7,8,9,10,11,12},{"Kohitātea","Hui‑tanguru","Poutū‑te‑rangi","Paengawhāwhā","Haratua","Pipiri","Hōngongoi","Here‑turi‑kōkā","Mahuru","Whiringa‑ā‑nuku","Whiringa‑ā‑rangi","Hakihea"}) -> Paengawhāwhā | AW89: 46113 | AZ89: 1 | BA89: 2 | BB89: 3 | BC89: 4 | BD89: 5 | BE89: 6 | BF89: 7 | BG89: 8 | BH89: 9 | BI89: 10 | BJ89: 11 | BK89: 12 | BL89: 13 | BM89: 14 | BN89: 15 | BO89: 16 | BP89: 17 | BQ89: 18 | BR89: 19 | BS89: 20 | BT89: 21 | BU89: 22 | BV89: 23 | BW89: 24 | BX89: 25 | BY89: 26 | BZ89: =IF(ISERROR(DATEVALUE(BY89+1 & " "&TEXT($AW89,"Mmmm") & " " & $F89)),"∙",BY89+1) -> 27 | CA89: 28 | CB89: 29 | CC89: 30 | CD89: ∙ | CE89: ∙ | CF89: ∙ | CG89: ∙ | CH89: ∙ | CI89: =SunsetTime(A89, -41.2865, 174.7762, 13) -> 2026-03-28T18:21:52.349 | CJ89: =ExcelToJD(CI89-CN89/24) -> 2461127.724 | CK89: =NewMoonPrevious(CI89 - CN89/24) -> 2461118.559 | CL89: 9.164734617 | CM89: =_xlfn.IFS( CL89<1,"Whiro", CL89<2,"Tirea", CL89<3,"Ohata", CL89<4,"Ōuenuku", CL89<5,"Okoro", CL89<6,"Tamatea-kai-ariki", CL89<7,"Tamatea-wananga", CL89<8,"Tamatea-ā-āio", CL89<9,"Tamatea-whakapau", CL89<10,"Huna", CL89<11,"Airoa", CL89<12,"Hotu", CL89<13,"Māwharu", CL89<14,"Atua whakahaehae", CL89<15,"Ōhua", CL89<16,"Ōturu", CL89<17,"Rākaunui", CL89<18,"Rākaumatohi", CL89<19,"Takiraua", CL89<20,"Oike", CL89<21,"Korekore", CL89<22,"Korekore tuarua", CL89<23,"Korekore piri ki Tangaroa", CL89<24,"Tangaroa ā-mua", CL89<25,"Tangaroa ā-roto", CL89<26,"Tangaroa ata kiokio", CL89<27,"Ōtāne", CL89<28,"Ōrongonui", CL89<29,"Maurea", CL89<30,"Mutuwhenua" ) -> Huna | CN89: =LookupTimezoneOffset(A89) -> 13
A90: 2026-03-30 | B90: 30 o | C90: 31 o | D90: =LOOKUP(VALUE(TEXT(A90,"M")),{1,2,3,4,5,6,7,8,9,10,11,12},{"Kohitātea","Hui‑tanguru","Poutū‑te‑rangi","Paengawhāwhā","Haratua","Pipiri","Hōngongoi","Here‑turi‑kōkā","Mahuru","Whiringa‑ā‑nuku","Whiringa‑ā‑rangi","Hakihea"}) -> Poutū‑te‑rangi | E90: Poutū‑te‑rangi | F90: 2026 | G90: 2026 | H90: =LOOKUP(WEEKDAY(A90),{1,2,3,4,5,6,7},{"Rātapu","Rāhina","Rātū","Rāapa","Rāpare","Rāmere","Rāhoroi ","Rātapu"}) -> Rāhina | I90: Rātū | J90: 2026-03-01 | Q90: 1 | R90: 2 | S90: 3 | T90: 4 | U90: 5 | V90: 6 | W90: 7 | X90: 8 | Y90: 9 | Z90: 10 | AA90: 11 | AB90: 12 | AC90: 13 | AD90: 14 | AE90: 15 | AF90: 16 | AG90: 17 | AH90: 18 | AI90: 19 | AJ90: 20 | AK90: 21 | AL90: 22 | AM90: =IF(ISERROR(DATEVALUE(AL90+1 & " "&TEXT($A90,"Mmmm") & " " & $F90))," ",AL90+1) -> 23 | AN90: 24 | AO90: 25 | AP90: 26 | AQ90: 27 | AR90: 28 | AS90: 29 | AT90: 30 | AU90: 31 | AV90: =LOOKUP(VALUE(TEXT(AW90,"M")),{1,2,3,4,5,6,7,8,9,10,11,12},{"Kohitātea","Hui‑tanguru","Poutū‑te‑rangi","Paengawhāwhā","Haratua","Pipiri","Hōngongoi","Here‑turi‑kōkā","Mahuru","Whiringa‑ā‑nuku","Whiringa‑ā‑rangi","Hakihea"}) -> Paengawhāwhā | AW90: 46113 | AZ90: 1 | BA90: 2 | BB90: 3 | BC90: 4 | BD90: 5 | BE90: 6 | BF90: 7 | BG90: 8 | BH90: 9 | BI90: 10 | BJ90: 11 | BK90: 12 | BL90: 13 | BM90: 14 | BN90: 15 | BO90: 16 | BP90: 17 | BQ90: 18 | BR90: 19 | BS90: 20 | BT90: 21 | BU90: 22 | BV90: 23 | BW90: 24 | BX90: 25 | BY90: 26 | BZ90: =IF(ISERROR(DATEVALUE(BY90+1 & " "&TEXT($AW90,"Mmmm") & " " & $F90)),"∙",BY90+1) -> 27 | CA90: 28 | CB90: 29 | CC90: 30 | CD90: ∙ | CE90: ∙ | CF90: ∙ | CG90: ∙ | CH90: ∙ | CI90: =SunsetTime(A90, -41.2865, 174.7762, 13) -> 2026-03-29T18:20:09.908 | CJ90: =ExcelToJD(CI90-CN90/24) -> 2461128.722 | CK90: =NewMoonPrevious(CI90 - CN90/24) -> 2461118.559 | CL90: 10.16354895 | CM90: =_xlfn.IFS( CL90<1,"Whiro", CL90<2,"Tirea", CL90<3,"Ohata", CL90<4,"Ōuenuku", CL90<5,"Okoro", CL90<6,"Tamatea-kai-ariki", CL90<7,"Tamatea-wananga", CL90<8,"Tamatea-ā-āio", CL90<9,"Tamatea-whakapau", CL90<10,"Huna", CL90<11,"Airoa", CL90<12,"Hotu", CL90<13,"Māwharu", CL90<14,"Atua whakahaehae", CL90<15,"Ōhua", CL90<16,"Ōturu", CL90<17,"Rākaunui", CL90<18,"Rākaumatohi", CL90<19,"Takiraua", CL90<20,"Oike", CL90<21,"Korekore", CL90<22,"Korekore tuarua", CL90<23,"Korekore piri ki Tangaroa", CL90<24,"Tangaroa ā-mua", CL90<25,"Tangaroa ā-roto", CL90<26,"Tangaroa ata kiokio", CL90<27,"Ōtāne", CL90<28,"Ōrongonui", CL90<29,"Maurea", CL90<30,"Mutuwhenua" ) -> Airoa | CN90: =LookupTimezoneOffset(A90) -> 13
A91: 2026-03-31 | B91: 31 o | C91: 1 o | D91: =LOOKUP(VALUE(TEXT(A91,"M")),{1,2,3,4,5,6,7,8,9,10,11,12},{"Kohitātea","Hui‑tanguru","Poutū‑te‑rangi","Paengawhāwhā","Haratua","Pipiri","Hōngongoi","Here‑turi‑kōkā","Mahuru","Whiringa‑ā‑nuku","Whiringa‑ā‑rangi","Hakihea"}) -> Poutū‑te‑rangi | E91: Paengawhāwhā | F91: 2026 | G91: 2026 | H91: =LOOKUP(WEEKDAY(A91),{1,2,3,4,5,6,7},{"Rātapu","Rāhina","Rātū","Rāapa","Rāpare","Rāmere","Rāhoroi ","Rātapu"}) -> Rātū | I91: Rāapa | J91: 2026-03-01 | Q91: 1 | R91: 2 | S91: 3 | T91: 4 | U91: 5 | V91: 6 | W91: 7 | X91: 8 | Y91: 9 | Z91: 10 | AA91: 11 | AB91: 12 | AC91: 13 | AD91: 14 | AE91: 15 | AF91: 16 | AG91: 17 | AH91: 18 | AI91: 19 | AJ91: 20 | AK91: 21 | AL91: 22 | AM91: =IF(ISERROR(DATEVALUE(AL91+1 & " "&TEXT($A91,"Mmmm") & " " & $F91))," ",AL91+1) -> 23 | AN91: 24 | AO91: 25 | AP91: 26 | AQ91: 27 | AR91: 28 | AS91: 29 | AT91: 30 | AU91: 31 | AV91: =LOOKUP(VALUE(TEXT(AW91,"M")),{1,2,3,4,5,6,7,8,9,10,11,12},{"Kohitātea","Hui‑tanguru","Poutū‑te‑rangi","Paengawhāwhā","Haratua","Pipiri","Hōngongoi","Here‑turi‑kōkā","Mahuru","Whiringa‑ā‑nuku","Whiringa‑ā‑rangi","Hakihea"}) -> Paengawhāwhā | AW91: 46113 | AZ91: 1 | BA91: 2 | BB91: 3 | BC91: 4 | BD91: 5 | BE91: 6 | BF91: 7 | BG91: 8 | BH91: 9 | BI91: 10 | BJ91: 11 | BK91: 12 | BL91: 13 | BM91: 14 | BN91: 15 | BO91: 16 | BP91: 17 | BQ91: 18 | BR91: 19 | BS91: 20 | BT91: 21 | BU91: 22 | BV91: 23 | BW91: 24 | BX91: 25 | BY91: 26 | BZ91: =IF(ISERROR(DATEVALUE(BY91+1 & " "&TEXT($AW91,"Mmmm") & " " & $F91)),"∙",BY91+1) -> 27 | CA91: 28 | CB91: 29 | CC91: 30 | CD91: ∙ | CE91: ∙ | CF91: ∙ | CG91: ∙ | CH91: ∙ | CI91: =SunsetTime(A91, -41.2865, 174.7762, 13) -> 2026-03-30T18:18:27.635 | CJ91: =ExcelToJD(CI91-CN91/24) -> 2461129.721 | CK91: =NewMoonPrevious(CI91 - CN91/24) -> 2461118.559 | CL91: 11.16236524 | CM91: =_xlfn.IFS( CL91<1,"Whiro", CL91<2,"Tirea", CL91<3,"Ohata", CL91<4,"Ōuenuku", CL91<5,"Okoro", CL91<6,"Tamatea-kai-ariki", CL91<7,"Tamatea-wananga", CL91<8,"Tamatea-ā-āio", CL91<9,"Tamatea-whakapau", CL91<10,"Huna", CL91<11,"Airoa", CL91<12,"Hotu", CL91<13,"Māwharu", CL91<14,"Atua whakahaehae", CL91<15,"Ōhua", CL91<16,"Ōturu", CL91<17,"Rākaunui", CL91<18,"Rākaumatohi", CL91<19,"Takiraua", CL91<20,"Oike", CL91<21,"Korekore", CL91<22,"Korekore tuarua", CL91<23,"Korekore piri ki Tangaroa", CL91<24,"Tangaroa ā-mua", CL91<25,"Tangaroa ā-roto", CL91<26,"Tangaroa ata kiokio", CL91<27,"Ōtāne", CL91<28,"Ōrongonui", CL91<29,"Maurea", CL91<30,"Mutuwhenua" ) -> Hotu | CN91: =LookupTimezoneOffset(A91) -> 13
A92: 2026-04-01 | B92: 1 o | C92: 2 o | D92: =LOOKUP(VALUE(TEXT(A92,"M")),{1,2,3,4,5,6,7,8,9,10,11,12},{"Kohitātea","Hui‑tanguru","Poutū‑te‑rangi","Paengawhāwhā","Haratua","Pipiri","Hōngongoi","Here‑turi‑kōkā","Mahuru","Whiringa‑ā‑nuku","Whiringa‑ā‑rangi","Hakihea"}) -> Paengawhāwhā | E92: Paengawhāwhā | F92: 2026 | G92: 2026 | H92: =LOOKUP(WEEKDAY(A92),{1,2,3,4,5,6,7},{"Rātapu","Rāhina","Rātū","Rāapa","Rāpare","Rāmere","Rāhoroi ","Rātapu"}) -> Rāapa | I92: Rāpare | J92: 2026-04-01 | M92: 1 | N92: 2 | O92: 3 | P92: 4 | Q92: 5 | R92: 6 | S92: 7 | T92: 8 | U92: 9 | V92: 10 | W92: 11 | X92: 12 | Y92: 13 | Z92: 14 | AA92: 15 | AB92: 16 | AC92: 17 | AD92: 18 | AE92: 19 | AF92: 20 | AG92: 21 | AH92: 22 | AI92: 23 | AJ92: 24 | AK92: 25 | AL92: 26 | AM92: =IF(ISERROR(DATEVALUE(AL92+1 & " "&TEXT($A92,"Mmmm") & " " & $F92))," ",AL92+1) -> 27 | AN92: 28 | AO92: 29 | AP92: 30 | AV92: =LOOKUP(VALUE(TEXT(AW92,"M")),{1,2,3,4,5,6,7,8,9,10,11,12},{"Kohitātea","Hui‑tanguru","Poutū‑te‑rangi","Paengawhāwhā","Haratua","Pipiri","Hōngongoi","Here‑turi‑kōkā","Mahuru","Whiringa‑ā‑nuku","Whiringa‑ā‑rangi","Hakihea"}) -> Haratua | AW92: 46143 | BB92: 1 | BC92: 2 | BD92: 3 | BE92: 4 | BF92: 5 | BG92: 6 | BH92: 7 | BI92: 8 | BJ92: 9 | BK92: 10 | BL92: 11 | BM92: 12 | BN92: 13 | BO92: 14 | BP92: 15 | BQ92: 16 | BR92: 17 | BS92: 18 | BT92: 19 | BU92: 20 | BV92: 21 | BW92: 22 | BX92: 23 | BY92: 24 | BZ92: =IF(ISERROR(DATEVALUE(BY92+1 & " "&TEXT($AW92,"Mmmm") & " " & $F92)),"∙",BY92+1) -> 25 | CA92: 26 | CB92: 27 | CC92: 28 | CD92: 29 | CE92: 30 | CF92: 31 | CG92: ∙ | CH92: ∙ | CI92: =SunsetTime(A92, -41.2865, 174.7762, 13) -> 2026-03-31T18:16:45.565 | CJ92: =ExcelToJD(CI92-CN92/24) -> 2461130.72 | CK92: =NewMoonPrevious(CI92 - CN92/24) -> 2461118.559 | CL92: 12.16118388 | CM92: =_xlfn.IFS( CL92<1,"Whiro", CL92<2,"Tirea", CL92<3,"Ohata", CL92<4,"Ōuenuku", CL92<5,"Okoro", CL92<6,"Tamatea-kai-ariki", CL92<7,"Tamatea-wananga", CL92<8,"Tamatea-ā-āio", CL92<9,"Tamatea-whakapau", CL92<10,"Huna", CL92<11,"Airoa", CL92<12,"Hotu", CL92<13,"Māwharu", CL92<14,"Atua whakahaehae", CL92<15,"Ōhua", CL92<16,"Ōturu", CL92<17,"Rākaunui", CL92<18,"Rākaumatohi", CL92<19,"Takiraua", CL92<20,"Oike", CL92<21,"Korekore", CL92<22,"Korekore tuarua", CL92<23,"Korekore piri ki Tangaroa", CL92<24,"Tangaroa ā-mua", CL92<25,"Tangaroa ā-roto", CL92<26,"Tangaroa ata kiokio", CL92<27,"Ōtāne", CL92<28,"Ōrongonui", CL92<29,"Maurea", CL92<30,"Mutuwhenua" ) -> Māwharu | CN92: =LookupTimezoneOffset(A92) -> 13
A93: 2026-04-02 | B93: 2 o | C93: 3 o | D93: =LOOKUP(VALUE(TEXT(A93,"M")),{1,2,3,4,5,6,7,8,9,10,11,12},{"Kohitātea","Hui‑tanguru","Poutū‑te‑rangi","Paengawhāwhā","Haratua","Pipiri","Hōngongoi","Here‑turi‑kōkā","Mahuru","Whiringa‑ā‑nuku","Whiringa‑ā‑rangi","Hakihea"}) -> Paengawhāwhā | E93: Paengawhāwhā | F93: 2026 | G93: 2026 | H93: =LOOKUP(WEEKDAY(A93),{1,2,3,4,5,6,7},{"Rātapu","Rāhina","Rātū","Rāapa","Rāpare","Rāmere","Rāhoroi ","Rātapu"}) -> Rāpare | I93: Rāmere | J93: 2026-04-01 | M93: 1 | N93: 2 | O93: 3 | P93: 4 | Q93: 5 | R93: 6 | S93: 7 | T93: 8 | U93: 9 | V93: 10 | W93: 11 | X93: 12 | Y93: 13 | Z93: 14 | AA93: 15 | AB93: 16 | AC93: 17 | AD93: 18 | AE93: 19 | AF93: 20 | AG93: 21 | AH93: 22 | AI93: 23 | AJ93: 24 | AK93: 25 | AL93: 26 | AM93: =IF(ISERROR(DATEVALUE(AL93+1 & " "&TEXT($A93,"Mmmm") & " " & $F93))," ",AL93+1) -> 27 | AN93: 28 | AO93: 29 | AP93: 30 | AV93: =LOOKUP(VALUE(TEXT(AW93,"M")),{1,2,3,4,5,6,7,8,9,10,11,12},{"Kohitātea","Hui‑tanguru","Poutū‑te‑rangi","Paengawhāwhā","Haratua","Pipiri","Hōngongoi","Here‑turi‑kōkā","Mahuru","Whiringa‑ā‑nuku","Whiringa‑ā‑rangi","Hakihea"}) -> Haratua | AW93: 46143 | BB93: 1 | BC93: 2 | BD93: 3 | BE93: 4 | BF93: 5 | BG93: 6 | BH93: 7 | BI93: 8 | BJ93: 9 | BK93: 10 | BL93: 11 | BM93: 12 | BN93: 13 | BO93: 14 | BP93: 15 | BQ93: 16 | BR93: 17 | BS93: 18 | BT93: 19 | BU93: 20 | BV93: 21 | BW93: 22 | BX93: 23 | BY93: 24 | BZ93: =IF(ISERROR(DATEVALUE(BY93+1 & " "&TEXT($AW93,"Mmmm") & " " & $F93)),"∙",BY93+1) -> 25 | CA93: 26 | CB93: 27 | CC93: 28 | CD93: 29 | CE93: 30 | CF93: 31 | CG93: ∙ | CH93: ∙ | CI93: =SunsetTime(A93, -41.2865, 174.7762, 13) -> 2026-04-01T18:15:03.735 | CJ93: =ExcelToJD(CI93-CN93/24) -> 2461131.719 | CK93: =NewMoonPrevious(CI93 - CN93/24) -> 2461118.559 | CL93: 13.16000528 | CM93: =_xlfn.IFS( CL93<1,"Whiro", CL93<2,"Tirea", CL93<3,"Ohata", CL93<4,"Ōuenuku", CL93<5,"Okoro", CL93<6,"Tamatea-kai-ariki", CL93<7,"Tamatea-wananga", CL93<8,"Tamatea-ā-āio", CL93<9,"Tamatea-whakapau", CL93<10,"Huna", CL93<11,"Airoa", CL93<12,"Hotu", CL93<13,"Māwharu", CL93<14,"Atua whakahaehae", CL93<15,"Ōhua", CL93<16,"Ōturu", CL93<17,"Rākaunui", CL93<18,"Rākaumatohi", CL93<19,"Takiraua", CL93<20,"Oike", CL93<21,"Korekore", CL93<22,"Korekore tuarua", CL93<23,"Korekore piri ki Tangaroa", CL93<24,"Tangaroa ā-mua", CL93<25,"Tangaroa ā-roto", CL93<26,"Tangaroa ata kiokio", CL93<27,"Ōtāne", CL93<28,"Ōrongonui", CL93<29,"Maurea", CL93<30,"Mutuwhenua" ) -> Atua whakahaehae | CN93: =LookupTimezoneOffset(A93) -> 13
A94: 2026-04-03 | B94: 3 o | C94: 4 o | D94: =LOOKUP(VALUE(TEXT(A94,"M")),{1,2,3,4,5,6,7,8,9,10,11,12},{"Kohitātea","Hui‑tanguru","Poutū‑te‑rangi","Paengawhāwhā","Haratua","Pipiri","Hōngongoi","Here‑turi‑kōkā","Mahuru","Whiringa‑ā‑nuku","Whiringa‑ā‑rangi","Hakihea"}) -> Paengawhāwhā | E94: Paengawhāwhā | F94: 2026 | G94: 2026 | H94: =LOOKUP(WEEKDAY(A94),{1,2,3,4,5,6,7},{"Rātapu","Rāhina","Rātū","Rāapa","Rāpare","Rāmere","Rāhoroi ","Rātapu"}) -> Rāmere | I94: Rāhoroi | J94: 2026-04-01 | M94: 1 | N94: 2 | O94: 3 | P94: 4 | Q94: 5 | R94: 6 | S94: 7 | T94: 8 | U94: 9 | V94: 10 | W94: 11 | X94: 12 | Y94: 13 | Z94: 14 | AA94: 15 | AB94: 16 | AC94: 17 | AD94: 18 | AE94: 19 | AF94: 20 | AG94: 21 | AH94: 22 | AI94: 23 | AJ94: 24 | AK94: 25 | AL94: 26 | AM94: =IF(ISERROR(DATEVALUE(AL94+1 & " "&TEXT($A94,"Mmmm") & " " & $F94))," ",AL94+1) -> 27 | AN94: 28 | AO94: 29 | AP94: 30 | AV94: =LOOKUP(VALUE(TEXT(AW94,"M")),{1,2,3,4,5,6,7,8,9,10,11,12},{"Kohitātea","Hui‑tanguru","Poutū‑te‑rangi","Paengawhāwhā","Haratua","Pipiri","Hōngongoi","Here‑turi‑kōkā","Mahuru","Whiringa‑ā‑nuku","Whiringa‑ā‑rangi","Hakihea"}) -> Haratua | AW94: 46143 | BB94: 1 | BC94: 2 | BD94: 3 | BE94: 4 | BF94: 5 | BG94: 6 | BH94: 7 | BI94: 8 | BJ94: 9 | BK94: 10 | BL94: 11 | BM94: 12 | BN94: 13 | BO94: 14 | BP94: 15 | BQ94: 16 | BR94: 17 | BS94: 18 | BT94: 19 | BU94: 20 | BV94: 21 | BW94: 22 | BX94: 23 | BY94: 24 | BZ94: =IF(ISERROR(DATEVALUE(BY94+1 & " "&TEXT($AW94,"Mmmm") & " " & $F94)),"∙",BY94+1) -> 25 | CA94: 26 | CB94: 27 | CC94: 28 | CD94: 29 | CE94: 30 | CF94: 31 | CG94: ∙ | CH94: ∙ | CI94: =SunsetTime(A94, -41.2865, 174.7762, 13) -> 2026-04-02T18:13:22.178 | CJ94: =ExcelToJD(CI94-CN94/24) -> 2461132.718 | CK94: =NewMoonPrevious(CI94 - CN94/24) -> 2461118.559 | CL94: 14.15882986 | CM94: =_xlfn.IFS( CL94<1,"Whiro", CL94<2,"Tirea", CL94<3,"Ohata", CL94<4,"Ōuenuku", CL94<5,"Okoro", CL94<6,"Tamatea-kai-ariki", CL94<7,"Tamatea-wananga", CL94<8,"Tamatea-ā-āio", CL94<9,"Tamatea-whakapau", CL94<10,"Huna", CL94<11,"Airoa", CL94<12,"Hotu", CL94<13,"Māwharu", CL94<14,"Atua whakahaehae", CL94<15,"Ōhua", CL94<16,"Ōturu", CL94<17,"Rākaunui", CL94<18,"Rākaumatohi", CL94<19,"Takiraua", CL94<20,"Oike", CL94<21,"Korekore", CL94<22,"Korekore tuarua", CL94<23,"Korekore piri ki Tangaroa", CL94<24,"Tangaroa ā-mua", CL94<25,"Tangaroa ā-roto", CL94<26,"Tangaroa ata kiokio", CL94<27,"Ōtāne", CL94<28,"Ōrongonui", CL94<29,"Maurea", CL94<30,"Mutuwhenua" ) -> Ōhua | CN94: =LookupTimezoneOffset(A94) -> 13
A95: 2026-04-04 | B95: 4 o | C95: 5 o | D95: =LOOKUP(VALUE(TEXT(A95,"M")),{1,2,3,4,5,6,7,8,9,10,11,12},{"Kohitātea","Hui‑tanguru","Poutū‑te‑rangi","Paengawhāwhā","Haratua","Pipiri","Hōngongoi","Here‑turi‑kōkā","Mahuru","Whiringa‑ā‑nuku","Whiringa‑ā‑rangi","Hakihea"}) -> Paengawhāwhā | E95: Paengawhāwhā | F95: 2026 | G95: 2026 | H95: =LOOKUP(WEEKDAY(A95),{1,2,3,4,5,6,7},{"Rātapu","Rāhina","Rātū","Rāapa","Rāpare","Rāmere","Rāhoroi ","Rātapu"}) -> Rāhoroi | I95: Rātapu | J95: 2026-04-01 | M95: 1 | N95: 2 | O95: 3 | P95: 4 | Q95: 5 | R95: 6 | S95: 7 | T95: 8 | U95: 9 | V95: 10 | W95: 11 | X95: 12 | Y95: 13 | Z95: 14 | AA95: 15 | AB95: 16 | AC95: 17 | AD95: 18 | AE95: 19 | AF95: 20 | AG95: 21 | AH95: 22 | AI95: 23 | AJ95: 24 | AK95: 25 | AL95: 26 | AM95: =IF(ISERROR(DATEVALUE(AL95+1 & " "&TEXT($A95,"Mmmm") & " " & $F95))," ",AL95+1) -> 27 | AN95: 28 | AO95: 29 | AP95: 30 | AV95: =LOOKUP(VALUE(TEXT(AW95,"M")),{1,2,3,4,5,6,7,8,9,10,11,12},{"Kohitātea","Hui‑tanguru","Poutū‑te‑rangi","Paengawhāwhā","Haratua","Pipiri","Hōngongoi","Here‑turi‑kōkā","Mahuru","Whiringa‑ā‑nuku","Whiringa‑ā‑rangi","Hakihea"}) -> Haratua | AW95: 46143 | BB95: 1 | BC95: 2 | BD95: 3 | BE95: 4 | BF95: 5 | BG95: 6 | BH95: 7 | BI95: 8 | BJ95: 9 | BK95: 10 | BL95: 11 | BM95: 12 | BN95: 13 | BO95: 14 | BP95: 15 | BQ95: 16 | BR95: 17 | BS95: 18 | BT95: 19 | BU95: 20 | BV95: 21 | BW95: 22 | BX95: 23 | BY95: 24 | BZ95: =IF(ISERROR(DATEVALUE(BY95+1 & " "&TEXT($AW95,"Mmmm") & " " & $F95)),"∙",BY95+1) -> 25 | CA95: 26 | CB95: 27 | CC95: 28 | CD95: 29 | CE95: 30 | CF95: 31 | CG95: ∙ | CH95: ∙ | CI95: =SunsetTime(A95, -41.2865, 174.7762, 13) -> 2026-04-03T18:11:40.929 | CJ95: =ExcelToJD(CI95-CN95/24) -> 2461133.716 | CK95: =NewMoonPrevious(CI95 - CN95/24) -> 2461118.559 | CL95: 15.157658 | CM95: =_xlfn.IFS( CL95<1,"Whiro", CL95<2,"Tirea", CL95<3,"Ohata", CL95<4,"Ōuenuku", CL95<5,"Okoro", CL95<6,"Tamatea-kai-ariki", CL95<7,"Tamatea-wananga", CL95<8,"Tamatea-ā-āio", CL95<9,"Tamatea-whakapau", CL95<10,"Huna", CL95<11,"Airoa", CL95<12,"Hotu", CL95<13,"Māwharu", CL95<14,"Atua whakahaehae", CL95<15,"Ōhua", CL95<16,"Ōturu", CL95<17,"Rākaunui", CL95<18,"Rākaumatohi", CL95<19,"Takiraua", CL95<20,"Oike", CL95<21,"Korekore", CL95<22,"Korekore tuarua", CL95<23,"Korekore piri ki Tangaroa", CL95<24,"Tangaroa ā-mua", CL95<25,"Tangaroa ā-roto", CL95<26,"Tangaroa ata kiokio", CL95<27,"Ōtāne", CL95<28,"Ōrongonui", CL95<29,"Maurea", CL95<30,"Mutuwhenua" ) -> Ōturu | CN95: =LookupTimezoneOffset(A95) -> 13
A96: 2026-04-05 | B96: 5 o | C96: 6 o | D96: =LOOKUP(VALUE(TEXT(A96,"M")),{1,2,3,4,5,6,7,8,9,10,11,12},{"Kohitātea","Hui‑tanguru","Poutū‑te‑rangi","Paengawhāwhā","Haratua","Pipiri","Hōngongoi","Here‑turi‑kōkā","Mahuru","Whiringa‑ā‑nuku","Whiringa‑ā‑rangi","Hakihea"}) -> Paengawhāwhā | E96: Paengawhāwhā | F96: 2026 | G96: 2026 | H96: =LOOKUP(WEEKDAY(A96),{1,2,3,4,5,6,7},{"Rātapu","Rāhina","Rātū","Rāapa","Rāpare","Rāmere","Rāhoroi ","Rātapu"}) -> Rātapu | I96: Rāhina | J96: 2026-04-01 | M96: 1 | N96: 2 | O96: 3 | P96: 4 | Q96: 5 | R96: 6 | S96: 7 | T96: 8 | U96: 9 | V96: 10 | W96: 11 | X96: 12 | Y96: 13 | Z96: 14 | AA96: 15 | AB96: 16 | AC96: 17 | AD96: 18 | AE96: 19 | AF96: 20 | AG96: 21 | AH96: 22 | AI96: 23 | AJ96: 24 | AK96: 25 | AL96: 26 | AM96: =IF(ISERROR(DATEVALUE(AL96+1 & " "&TEXT($A96,"Mmmm") & " " & $F96))," ",AL96+1) -> 27 | AN96: 28 | AO96: 29 | AP96: 30 | AV96: =LOOKUP(VALUE(TEXT(AW96,"M")),{1,2,3,4,5,6,7,8,9,10,11,12},{"Kohitātea","Hui‑tanguru","Poutū‑te‑rangi","Paengawhāwhā","Haratua","Pipiri","Hōngongoi","Here‑turi‑kōkā","Mahuru","Whiringa‑ā‑nuku","Whiringa‑ā‑rangi","Hakihea"}) -> Haratua | AW96: 46143 | BB96: 1 | BC96: 2 | BD96: 3 | BE96: 4 | BF96: 5 | BG96: 6 | BH96: 7 | BI96: 8 | BJ96: 9 | BK96: 10 | BL96: 11 | BM96: 12 | BN96: 13 | BO96: 14 | BP96: 15 | BQ96: 16 | BR96: 17 | BS96: 18 | BT96: 19 | BU96: 20 | BV96: 21 | BW96: 22 | BX96: 23 | BY96: 24 | BZ96: =IF(ISERROR(DATEVALUE(BY96+1 & " "&TEXT($AW96,"Mmmm") & " " & $F96)),"∙",BY96+1) -> 25 | CA96: 26 | CB96: 27 | CC96: 28 | CD96: 29 | CE96: 30 | CF96: 31 | CG96: ∙ | CH96: ∙ | CI96: =SunsetTime(A96, -41.2865, 174.7762, 13) -> 2026-04-04T18:10:00.024 | CJ96: =ExcelToJD(CI96-CN96/24) -> 2461134.715 | CK96: =NewMoonPrevious(CI96 - CN96/24) -> 2461118.559 | CL96: 16.15649012 | CM96: =_xlfn.IFS( CL96<1,"Whiro", CL96<2,"Tirea", CL96<3,"Ohata", CL96<4,"Ōuenuku", CL96<5,"Okoro", CL96<6,"Tamatea-kai-ariki", CL96<7,"Tamatea-wananga", CL96<8,"Tamatea-ā-āio", CL96<9,"Tamatea-whakapau", CL96<10,"Huna", CL96<11,"Airoa", CL96<12,"Hotu", CL96<13,"Māwharu", CL96<14,"Atua whakahaehae", CL96<15,"Ōhua", CL96<16,"Ōturu", CL96<17,"Rākaunui", CL96<18,"Rākaumatohi", CL96<19,"Takiraua", CL96<20,"Oike", CL96<21,"Korekore", CL96<22,"Korekore tuarua", CL96<23,"Korekore piri ki Tangaroa", CL96<24,"Tangaroa ā-mua", CL96<25,"Tangaroa ā-roto", CL96<26,"Tangaroa ata kiokio", CL96<27,"Ōtāne", CL96<28,"Ōrongonui", CL96<29,"Maurea", CL96<30,"Mutuwhenua" ) -> Rākaunui | CN96: =LookupTimezoneOffset(A96) -> 13
A97: 2026-04-06 | B97: 6 o | C97: 7 o | D97: =LOOKUP(VALUE(TEXT(A97,"M")),{1,2,3,4,5,6,7,8,9,10,11,12},{"Kohitātea","Hui‑tanguru","Poutū‑te‑rangi","Paengawhāwhā","Haratua","Pipiri","Hōngongoi","Here‑turi‑kōkā","Mahuru","Whiringa‑ā‑nuku","Whiringa‑ā‑rangi","Hakihea"}) -> Paengawhāwhā | E97: Paengawhāwhā | F97: 2026 | G97: 2026 | H97: =LOOKUP(WEEKDAY(A97),{1,2,3,4,5,6,7},{"Rātapu","Rāhina","Rātū","Rāapa","Rāpare","Rāmere","Rāhoroi ","Rātapu"}) -> Rāhina | I97: Rātū | J97: 2026-04-01 | M97: 1 | N97: 2 | O97: 3 | P97: 4 | Q97: 5 | R97: 6 | S97: 7 | T97: 8 | U97: 9 | V97: 10 | W97: 11 | X97: 12 | Y97: 13 | Z97: 14 | AA97: 15 | AB97: 16 | AC97: 17 | AD97: 18 | AE97: 19 | AF97: 20 | AG97: 21 | AH97: 22 | AI97: 23 | AJ97: 24 | AK97: 25 | AL97: 26 | AM97: =IF(ISERROR(DATEVALUE(AL97+1 & " "&TEXT($A97,"Mmmm") & " " & $F97))," ",AL97+1) -> 27 | AN97: 28 | AO97: 29 | AP97: 30 | AV97: =LOOKUP(VALUE(TEXT(AW97,"M")),{1,2,3,4,5,6,7,8,9,10,11,12},{"Kohitātea","Hui‑tanguru","Poutū‑te‑rangi","Paengawhāwhā","Haratua","Pipiri","Hōngongoi","Here‑turi‑kōkā","Mahuru","Whiringa‑ā‑nuku","Whiringa‑ā‑rangi","Hakihea"}) -> Haratua | AW97: 46143 | BB97: 1 | BC97: 2 | BD97: 3 | BE97: 4 | BF97: 5 | BG97: 6 | BH97: 7 | BI97: 8 | BJ97: 9 | BK97: 10 | BL97: 11 | BM97: 12 | BN97: 13 | BO97: 14 | BP97: 15 | BQ97: 16 | BR97: 17 | BS97: 18 | BT97: 19 | BU97: 20 | BV97: 21 | BW97: 22 | BX97: 23 | BY97: 24 | BZ97: =IF(ISERROR(DATEVALUE(BY97+1 & " "&TEXT($AW97,"Mmmm") & " " & $F97)),"∙",BY97+1) -> 25 | CA97: 26 | CB97: 27 | CC97: 28 | CD97: 29 | CE97: 30 | CF97: 31 | CG97: ∙ | CH97: ∙ | CI97: =SunsetTime(A97, -41.2865, 174.7762, 13) -> 2026-04-05T18:08:19.498 | CJ97: =ExcelToJD(CI97-CN97/24) -> 2461135.714 | CK97: =NewMoonPrevious(CI97 - CN97/24) -> 2461118.559 | CL97: 17.15532662 | CM97: =_xlfn.IFS( CL97<1,"Whiro", CL97<2,"Tirea", CL97<3,"Ohata", CL97<4,"Ōuenuku", CL97<5,"Okoro", CL97<6,"Tamatea-kai-ariki", CL97<7,"Tamatea-wananga", CL97<8,"Tamatea-ā-āio", CL97<9,"Tamatea-whakapau", CL97<10,"Huna", CL97<11,"Airoa", CL97<12,"Hotu", CL97<13,"Māwharu", CL97<14,"Atua whakahaehae", CL97<15,"Ōhua", CL97<16,"Ōturu", CL97<17,"Rākaunui", CL97<18,"Rākaumatohi", CL97<19,"Takiraua", CL97<20,"Oike", CL97<21,"Korekore", CL97<22,"Korekore tuarua", CL97<23,"Korekore piri ki Tangaroa", CL97<24,"Tangaroa ā-mua", CL97<25,"Tangaroa ā-roto", CL97<26,"Tangaroa ata kiokio", CL97<27,"Ōtāne", CL97<28,"Ōrongonui", CL97<29,"Maurea", CL97<30,"Mutuwhenua" ) -> Rākaumatohi | CN97: =LookupTimezoneOffset(A97) -> 13
A98: 2026-04-07 | B98: 7 o | C98: 8 o | D98: =LOOKUP(VALUE(TEXT(A98,"M")),{1,2,3,4,5,6,7,8,9,10,11,12},{"Kohitātea","Hui‑tanguru","Poutū‑te‑rangi","Paengawhāwhā","Haratua","Pipiri","Hōngongoi","Here‑turi‑kōkā","Mahuru","Whiringa‑ā‑nuku","Whiringa‑ā‑rangi","Hakihea"}) -> Paengawhāwhā | E98: Paengawhāwhā | F98: 2026 | G98: 2026 | H98: =LOOKUP(WEEKDAY(A98),{1,2,3,4,5,6,7},{"Rātapu","Rāhina","Rātū","Rāapa","Rāpare","Rāmere","Rāhoroi ","Rātapu"}) -> Rātū | I98: Rāapa | J98: 2026-04-01 | M98: 1 | N98: 2 | O98: 3 | P98: 4 | Q98: 5 | R98: 6 | S98: 7 | T98: 8 | U98: 9 | V98: 10 | W98: 11 | X98: 12 | Y98: 13 | Z98: 14 | AA98: 15 | AB98: 16 | AC98: 17 | AD98: 18 | AE98: 19 | AF98: 20 | AG98: 21 | AH98: 22 | AI98: 23 | AJ98: 24 | AK98: 25 | AL98: 26 | AM98: =IF(ISERROR(DATEVALUE(AL98+1 & " "&TEXT($A98,"Mmmm") & " " & $F98))," ",AL98+1) -> 27 | AN98: 28 | AO98: 29 | AP98: 30 | AV98: =LOOKUP(VALUE(TEXT(AW98,"M")),{1,2,3,4,5,6,7,8,9,10,11,12},{"Kohitātea","Hui‑tanguru","Poutū‑te‑rangi","Paengawhāwhā","Haratua","Pipiri","Hōngongoi","Here‑turi‑kōkā","Mahuru","Whiringa‑ā‑nuku","Whiringa‑ā‑rangi","Hakihea"}) -> Haratua | AW98: 46143 | BB98: 1 | BC98: 2 | BD98: 3 | BE98: 4 | BF98: 5 | BG98: 6 | BH98: 7 | BI98: 8 | BJ98: 9 | BK98: 10 | BL98: 11 | BM98: 12 | BN98: 13 | BO98: 14 | BP98: 15 | BQ98: 16 | BR98: 17 | BS98: 18 | BT98: 19 | BU98: 20 | BV98: 21 | BW98: 22 | BX98: 23 | BY98: 24 | BZ98: =IF(ISERROR(DATEVALUE(BY98+1 & " "&TEXT($AW98,"Mmmm") & " " & $F98)),"∙",BY98+1) -> 25 | CA98: 26 | CB98: 27 | CC98: 28 | CD98: 29 | CE98: 30 | CF98: 31 | CG98: ∙ | CH98: ∙ | CI98: =SunsetTime(A98, -41.2865, 174.7762, 13) -> 2026-04-06T18:06:39.384 | CJ98: =ExcelToJD(CI98-CN98/24) -> 2461136.755 | CK98: =NewMoonPrevious(CI98 - CN98/24) -> 2461118.559 | CL98: 18.19583456 | CM98: =_xlfn.IFS( CL98<1,"Whiro", CL98<2,"Tirea", CL98<3,"Ohata", CL98<4,"Ōuenuku", CL98<5,"Okoro", CL98<6,"Tamatea-kai-ariki", CL98<7,"Tamatea-wananga", CL98<8,"Tamatea-ā-āio", CL98<9,"Tamatea-whakapau", CL98<10,"Huna", CL98<11,"Airoa", CL98<12,"Hotu", CL98<13,"Māwharu", CL98<14,"Atua whakahaehae", CL98<15,"Ōhua", CL98<16,"Ōturu", CL98<17,"Rākaunui", CL98<18,"Rākaumatohi", CL98<19,"Takiraua", CL98<20,"Oike", CL98<21,"Korekore", CL98<22,"Korekore tuarua", CL98<23,"Korekore piri ki Tangaroa", CL98<24,"Tangaroa ā-mua", CL98<25,"Tangaroa ā-roto", CL98<26,"Tangaroa ata kiokio", CL98<27,"Ōtāne", CL98<28,"Ōrongonui", CL98<29,"Maurea", CL98<30,"Mutuwhenua" ) -> Takiraua | CN98: =LookupTimezoneOffset(A98) -> 12
A99: 2026-04-08 | B99: 8 o | C99: 9 o | D99: =LOOKUP(VALUE(TEXT(A99,"M")),{1,2,3,4,5,6,7,8,9,10,11,12},{"Kohitātea","Hui‑tanguru","Poutū‑te‑rangi","Paengawhāwhā","Haratua","Pipiri","Hōngongoi","Here‑turi‑kōkā","Mahuru","Whiringa‑ā‑nuku","Whiringa‑ā‑rangi","Hakihea"}) -> Paengawhāwhā | E99: Paengawhāwhā | F99: 2026 | G99: 2026 | H99: =LOOKUP(WEEKDAY(A99),{1,2,3,4,5,6,7},{"Rātapu","Rāhina","Rātū","Rāapa","Rāpare","Rāmere","Rāhoroi ","Rātapu"}) -> Rāapa | I99: Rāpare | J99: 2026-04-01 | M99: 1 | N99: 2 | O99: 3 | P99: 4 | Q99: 5 | R99: 6 | S99: 7 | T99: 8 | U99: 9 | V99: 10 | W99: 11 | X99: 12 | Y99: 13 | Z99: 14 | AA99: 15 | AB99: 16 | AC99: 17 | AD99: 18 | AE99: 19 | AF99: 20 | AG99: 21 | AH99: 22 | AI99: 23 | AJ99: 24 | AK99: 25 | AL99: 26 | AM99: =IF(ISERROR(DATEVALUE(AL99+1 & " "&TEXT($A99,"Mmmm") & " " & $F99))," ",AL99+1) -> 27 | AN99: 28 | AO99: 29 | AP99: 30 | AV99: =LOOKUP(VALUE(TEXT(AW99,"M")),{1,2,3,4,5,6,7,8,9,10,11,12},{"Kohitātea","Hui‑tanguru","Poutū‑te‑rangi","Paengawhāwhā","Haratua","Pipiri","Hōngongoi","Here‑turi‑kōkā","Mahuru","Whiringa‑ā‑nuku","Whiringa‑ā‑rangi","Hakihea"}) -> Haratua | AW99: 46143 | BB99: 1 | BC99: 2 | BD99: 3 | BE99: 4 | BF99: 5 | BG99: 6 | BH99: 7 | BI99: 8 | BJ99: 9 | BK99: 10 | BL99: 11 | BM99: 12 | BN99: 13 | BO99: 14 | BP99: 15 | BQ99: 16 | BR99: 17 | BS99: 18 | BT99: 19 | BU99: 20 | BV99: 21 | BW99: 22 | BX99: 23 | BY99: 24 | BZ99: =IF(ISERROR(DATEVALUE(BY99+1 & " "&TEXT($AW99,"Mmmm") & " " & $F99)),"∙",BY99+1) -> 25 | CA99: 26 | CB99: 27 | CC99: 28 | CD99: 29 | CE99: 30 | CF99: 31 | CG99: ∙ | CH99: ∙ | CI99: =SunsetTime(A99, -41.2865, 174.7762, 13) -> 2026-04-07T18:04:59.719 | CJ99: =ExcelToJD(CI99-CN99/24) -> 2461137.753 | CK99: =NewMoonPrevious(CI99 - CN99/24) -> 2461118.559 | CL99: 19.19468103 | CM99: =_xlfn.IFS( CL99<1,"Whiro", CL99<2,"Tirea", CL99<3,"Ohata", CL99<4,"Ōuenuku", CL99<5,"Okoro", CL99<6,"Tamatea-kai-ariki", CL99<7,"Tamatea-wananga", CL99<8,"Tamatea-ā-āio", CL99<9,"Tamatea-whakapau", CL99<10,"Huna", CL99<11,"Airoa", CL99<12,"Hotu", CL99<13,"Māwharu", CL99<14,"Atua whakahaehae", CL99<15,"Ōhua", CL99<16,"Ōturu", CL99<17,"Rākaunui", CL99<18,"Rākaumatohi", CL99<19,"Takiraua", CL99<20,"Oike", CL99<21,"Korekore", CL99<22,"Korekore tuarua", CL99<23,"Korekore piri ki Tangaroa", CL99<24,"Tangaroa ā-mua", CL99<25,"Tangaroa ā-roto", CL99<26,"Tangaroa ata kiokio", CL99<27,"Ōtāne", CL99<28,"Ōrongonui", CL99<29,"Maurea", CL99<30,"Mutuwhenua" ) -> Oike | CN99: =LookupTimezoneOffset(A99) -> 12
A100: 2026-04-09 | B100: 9 o | C100: 10 o | D100: =LOOKUP(VALUE(TEXT(A100,"M")),{1,2,3,4,5,6,7,8,9,10,11,12},{"Kohitātea","Hui‑tanguru","Poutū‑te‑rangi","Paengawhāwhā","Haratua","Pipiri","Hōngongoi","Here‑turi‑kōkā","Mahuru","Whiringa‑ā‑nuku","Whiringa‑ā‑rangi","Hakihea"}) -> Paengawhāwhā | E100: Paengawhāwhā | F100: 2026 | G100: 2026 | H100: =LOOKUP(WEEKDAY(A100),{1,2,3,4,5,6,7},{"Rātapu","Rāhina","Rātū","Rāapa","Rāpare","Rāmere","Rāhoroi ","Rātapu"}) -> Rāpare | I100: Rāmere | J100: 2026-04-01 | M100: 1 | N100: 2 | O100: 3 | P100: 4 | Q100: 5 | R100: 6 | S100: 7 | T100: 8 | U100: 9 | V100: 10 | W100: 11 | X100: 12 | Y100: 13 | Z100: 14 | AA100: 15 | AB100: 16 | AC100: 17 | AD100: 18 | AE100: 19 | AF100: 20 | AG100: 21 | AH100: 22 | AI100: 23 | AJ100: 24 | AK100: 25 | AL100: 26 | AM100: =IF(ISERROR(DATEVALUE(AL100+1 & " "&TEXT($A100,"Mmmm") & " " & $F100))," ",AL100+1) -> 27 | AN100: 28 | AO100: 29 | AP100: 30 | AV100: =LOOKUP(VALUE(TEXT(AW100,"M")),{1,2,3,4,5,6,7,8,9,10,11,12},{"Kohitātea","Hui‑tanguru","Poutū‑te‑rangi","Paengawhāwhā","Haratua","Pipiri","Hōngongoi","Here‑turi‑kōkā","Mahuru","Whiringa‑ā‑nuku","Whiringa‑ā‑rangi","Hakihea"}) -> Haratua | AW100: 46143 | BB100: 1 | BC100: 2 | BD100: 3 | BE100: 4 | BF100: 5 | BG100: 6 | BH100: 7 | BI100: 8 | BJ100: 9 | BK100: 10 | BL100: 11 | BM100: 12 | BN100: 13 | BO100: 14 | BP100: 15 | BQ100: 16 | BR100: 17 | BS100: 18 | BT100: 19 | BU100: 20 | BV100: 21 | BW100: 22 | BX100: 23 | BY100: 24 | BZ100: =IF(ISERROR(DATEVALUE(BY100+1 & " "&TEXT($AW100,"Mmmm") & " " & $F100)),"∙",BY100+1) -> 25 | CA100: 26 | CB100: 27 | CC100: 28 | CD100: 29 | CE100: 30 | CF100: 31 | CG100: ∙ | CH100: ∙ | CI100: =SunsetTime(A100, -41.2865, 174.7762, 13) -> 2026-04-08T18:03:20.536 | CJ100: =ExcelToJD(CI100-CN100/24) -> 2461138.752 | CK100: =NewMoonPrevious(CI100 - CN100/24) -> 2461118.559 | CL100: 20.19353308 | CM100: =_xlfn.IFS( CL100<1,"Whiro", CL100<2,"Tirea", CL100<3,"Ohata", CL100<4,"Ōuenuku", CL100<5,"Okoro", CL100<6,"Tamatea-kai-ariki", CL100<7,"Tamatea-wananga", CL100<8,"Tamatea-ā-āio", CL100<9,"Tamatea-whakapau", CL100<10,"Huna", CL100<11,"Airoa", CL100<12,"Hotu", CL100<13,"Māwharu", CL100<14,"Atua whakahaehae", CL100<15,"Ōhua", CL100<16,"Ōturu", CL100<17,"Rākaunui", CL100<18,"Rākaumatohi", CL100<19,"Takiraua", CL100<20,"Oike", CL100<21,"Korekore", CL100<22,"Korekore tuarua", CL100<23,"Korekore piri ki Tangaroa", CL100<24,"Tangaroa ā-mua", CL100<25,"Tangaroa ā-roto", CL100<26,"Tangaroa ata kiokio", CL100<27,"Ōtāne", CL100<28,"Ōrongonui", CL100<29,"Maurea", CL100<30,"Mutuwhenua" ) -> Korekore | CN100: =LookupTimezoneOffset(A100) -> 12
A101: 2026-04-10 | B101: 10 o | C101: 11 o | D101: =LOOKUP(VALUE(TEXT(A101,"M")),{1,2,3,4,5,6,7,8,9,10,11,12},{"Kohitātea","Hui‑tanguru","Poutū‑te‑rangi","Paengawhāwhā","Haratua","Pipiri","Hōngongoi","Here‑turi‑kōkā","Mahuru","Whiringa‑ā‑nuku","Whiringa‑ā‑rangi","Hakihea"}) -> Paengawhāwhā | E101: Paengawhāwhā | F101: 2026 | G101: 2026 | H101: =LOOKUP(WEEKDAY(A101),{1,2,3,4,5,6,7},{"Rātapu","Rāhina","Rātū","Rāapa","Rāpare","Rāmere","Rāhoroi ","Rātapu"}) -> Rāmere | I101: Rāhoroi | J101: 2026-04-01 | M101: 1 | N101: 2 | O101: 3 | P101: 4 | Q101: 5 | R101: 6 | S101: 7 | T101: 8 | U101: 9 | V101: 10 | W101: 11 | X101: 12 | Y101: 13 | Z101: 14 | AA101: 15 | AB101: 16 | AC101: 17 | AD101: 18 | AE101: 19 | AF101: 20 | AG101: 21 | AH101: 22 | AI101: 23 | AJ101: 24 | AK101: 25 | AL101: 26 | AM101: =IF(ISERROR(DATEVALUE(AL101+1 & " "&TEXT($A101,"Mmmm") & " " & $F101))," ",AL101+1) -> 27 | AN101: 28 | AO101: 29 | AP101: 30 | AV101: =LOOKUP(VALUE(TEXT(AW101,"M")),{1,2,3,4,5,6,7,8,9,10,11,12},{"Kohitātea","Hui‑tanguru","Poutū‑te‑rangi","Paengawhāwhā","Haratua","Pipiri","Hōngongoi","Here‑turi‑kōkā","Mahuru","Whiringa‑ā‑nuku","Whiringa‑ā‑rangi","Hakihea"}) -> Haratua | AW101: 46143 | BB101: 1 | BC101: 2 | BD101: 3 | BE101: 4 | BF101: 5 | BG101: 6 | BH101: 7 | BI101: 8 | BJ101: 9 | BK101: 10 | BL101: 11 | BM101: 12 | BN101: 13 | BO101: 14 | BP101: 15 | BQ101: 16 | BR101: 17 | BS101: 18 | BT101: 19 | BU101: 20 | BV101: 21 | BW101: 22 | BX101: 23 | BY101: 24 | BZ101: =IF(ISERROR(DATEVALUE(BY101+1 & " "&TEXT($AW101,"Mmmm") & " " & $F101)),"∙",BY101+1) -> 25 | CA101: 26 | CB101: 27 | CC101: 28 | CD101: 29 | CE101: 30 | CF101: 31 | CG101: ∙ | CH101: ∙ | CI101: =SunsetTime(A101, -41.2865, 174.7762, 13) -> 2026-04-09T18:01:41.871 | CJ101: =ExcelToJD(CI101-CN101/24) -> 2461139.751 | CK101: =NewMoonPrevious(CI101 - CN101/24) -> 2461118.559 | CL101: 21.19239112 | CM101: =_xlfn.IFS( CL101<1,"Whiro", CL101<2,"Tirea", CL101<3,"Ohata", CL101<4,"Ōuenuku", CL101<5,"Okoro", CL101<6,"Tamatea-kai-ariki", CL101<7,"Tamatea-wananga", CL101<8,"Tamatea-ā-āio", CL101<9,"Tamatea-whakapau", CL101<10,"Huna", CL101<11,"Airoa", CL101<12,"Hotu", CL101<13,"Māwharu", CL101<14,"Atua whakahaehae", CL101<15,"Ōhua", CL101<16,"Ōturu", CL101<17,"Rākaunui", CL101<18,"Rākaumatohi", CL101<19,"Takiraua", CL101<20,"Oike", CL101<21,"Korekore", CL101<22,"Korekore tuarua", CL101<23,"Korekore piri ki Tangaroa", CL101<24,"Tangaroa ā-mua", CL101<25,"Tangaroa ā-roto", CL101<26,"Tangaroa ata kiokio", CL101<27,"Ōtāne", CL101<28,"Ōrongonui", CL101<29,"Maurea", CL101<30,"Mutuwhenua" ) -> Korekore tuarua | CN101: =LookupTimezoneOffset(A101) -> 12
A102: 2026-04-11 | B102: 11 o | C102: 12 o | D102: =LOOKUP(VALUE(TEXT(A102,"M")),{1,2,3,4,5,6,7,8,9,10,11,12},{"Kohitātea","Hui‑tanguru","Poutū‑te‑rangi","Paengawhāwhā","Haratua","Pipiri","Hōngongoi","Here‑turi‑kōkā","Mahuru","Whiringa‑ā‑nuku","Whiringa‑ā‑rangi","Hakihea"}) -> Paengawhāwhā | E102: Paengawhāwhā | F102: 2026 | G102: 2026 | H102: =LOOKUP(WEEKDAY(A102),{1,2,3,4,5,6,7},{"Rātapu","Rāhina","Rātū","Rāapa","Rāpare","Rāmere","Rāhoroi ","Rātapu"}) -> Rāhoroi | I102: Rātapu | J102: 2026-04-01 | M102: 1 | N102: 2 | O102: 3 | P102: 4 | Q102: 5 | R102: 6 | S102: 7 | T102: 8 | U102: 9 | V102: 10 | W102: 11 | X102: 12 | Y102: 13 | Z102: 14 | AA102: 15 | AB102: 16 | AC102: 17 | AD102: 18 | AE102: 19 | AF102: 20 | AG102: 21 | AH102: 22 | AI102: 23 | AJ102: 24 | AK102: 25 | AL102: 26 | AM102: =IF(ISERROR(DATEVALUE(AL102+1 & " "&TEXT($A102,"Mmmm") & " " & $F102))," ",AL102+1) -> 27 | AN102: 28 | AO102: 29 | AP102: 30 | AV102: =LOOKUP(VALUE(TEXT(AW102,"M")),{1,2,3,4,5,6,7,8,9,10,11,12},{"Kohitātea","Hui‑tanguru","Poutū‑te‑rangi","Paengawhāwhā","Haratua","Pipiri","Hōngongoi","Here‑turi‑kōkā","Mahuru","Whiringa‑ā‑nuku","Whiringa‑ā‑rangi","Hakihea"}) -> Haratua | AW102: 46143 | BB102: 1 | BC102: 2 | BD102: 3 | BE102: 4 | BF102: 5 | BG102: 6 | BH102: 7 | BI102: 8 | BJ102: 9 | BK102: 10 | BL102: 11 | BM102: 12 | BN102: 13 | BO102: 14 | BP102: 15 | BQ102: 16 | BR102: 17 | BS102: 18 | BT102: 19 | BU102: 20 | BV102: 21 | BW102: 22 | BX102: 23 | BY102: 24 | BZ102: =IF(ISERROR(DATEVALUE(BY102+1 & " "&TEXT($AW102,"Mmmm") & " " & $F102)),"∙",BY102+1) -> 25 | CA102: 26 | CB102: 27 | CC102: 28 | CD102: 29 | CE102: 30 | CF102: 31 | CG102: ∙ | CH102: ∙ | CI102: =SunsetTime(A102, -41.2865, 174.7762, 13) -> 2026-04-10T18:00:03.758 | CJ102: =ExcelToJD(CI102-CN102/24) -> 2461140.75 | CK102: =NewMoonPrevious(CI102 - CN102/24) -> 2461118.559 | CL102: 22.19125555 | CM102: =_xlfn.IFS( CL102<1,"Whiro", CL102<2,"Tirea", CL102<3,"Ohata", CL102<4,"Ōuenuku", CL102<5,"Okoro", CL102<6,"Tamatea-kai-ariki", CL102<7,"Tamatea-wananga", CL102<8,"Tamatea-ā-āio", CL102<9,"Tamatea-whakapau", CL102<10,"Huna", CL102<11,"Airoa", CL102<12,"Hotu", CL102<13,"Māwharu", CL102<14,"Atua whakahaehae", CL102<15,"Ōhua", CL102<16,"Ōturu", CL102<17,"Rākaunui", CL102<18,"Rākaumatohi", CL102<19,"Takiraua", CL102<20,"Oike", CL102<21,"Korekore", CL102<22,"Korekore tuarua", CL102<23,"Korekore piri ki Tangaroa", CL102<24,"Tangaroa ā-mua", CL102<25,"Tangaroa ā-roto", CL102<26,"Tangaroa ata kiokio", CL102<27,"Ōtāne", CL102<28,"Ōrongonui", CL102<29,"Maurea", CL102<30,"Mutuwhenua" ) -> Korekore piri ki Tangaroa | CN102: =LookupTimezoneOffset(A102) -> 12
A103: 2026-04-12 | B103: 12 o | C103: 13 o | D103: =LOOKUP(VALUE(TEXT(A103,"M")),{1,2,3,4,5,6,7,8,9,10,11,12},{"Kohitātea","Hui‑tanguru","Poutū‑te‑rangi","Paengawhāwhā","Haratua","Pipiri","Hōngongoi","Here‑turi‑kōkā","Mahuru","Whiringa‑ā‑nuku","Whiringa‑ā‑rangi","Hakihea"}) -> Paengawhāwhā | E103: Paengawhāwhā | F103: 2026 | G103: 2026 | H103: =LOOKUP(WEEKDAY(A103),{1,2,3,4,5,6,7},{"Rātapu","Rāhina","Rātū","Rāapa","Rāpare","Rāmere","Rāhoroi ","Rātapu"}) -> Rātapu | I103: Rāhina | J103: 2026-04-01 | M103: 1 | N103: 2 | O103: 3 | P103: 4 | Q103: 5 | R103: 6 | S103: 7 | T103: 8 | U103: 9 | V103: 10 | W103: 11 | X103: 12 | Y103: 13 | Z103: 14 | AA103: 15 | AB103: 16 | AC103: 17 | AD103: 18 | AE103: 19 | AF103: 20 | AG103: 21 | AH103: 22 | AI103: 23 | AJ103: 24 | AK103: 25 | AL103: 26 | AM103: =IF(ISERROR(DATEVALUE(AL103+1 & " "&TEXT($A103,"Mmmm") & " " & $F103))," ",AL103+1) -> 27 | AN103: 28 | AO103: 29 | AP103: 30 | AV103: =LOOKUP(VALUE(TEXT(AW103,"M")),{1,2,3,4,5,6,7,8,9,10,11,12},{"Kohitātea","Hui‑tanguru","Poutū‑te‑rangi","Paengawhāwhā","Haratua","Pipiri","Hōngongoi","Here‑turi‑kōkā","Mahuru","Whiringa‑ā‑nuku","Whiringa‑ā‑rangi","Hakihea"}) -> Haratua | AW103: 46143 | BB103: 1 | BC103: 2 | BD103: 3 | BE103: 4 | BF103: 5 | BG103: 6 | BH103: 7 | BI103: 8 | BJ103: 9 | BK103: 10 | BL103: 11 | BM103: 12 | BN103: 13 | BO103: 14 | BP103: 15 | BQ103: 16 | BR103: 17 | BS103: 18 | BT103: 19 | BU103: 20 | BV103: 21 | BW103: 22 | BX103: 23 | BY103: 24 | BZ103: =IF(ISERROR(DATEVALUE(BY103+1 & " "&TEXT($AW103,"Mmmm") & " " & $F103)),"∙",BY103+1) -> 25 | CA103: 26 | CB103: 27 | CC103: 28 | CD103: 29 | CE103: 30 | CF103: 31 | CG103: ∙ | CH103: ∙ | CI103: =SunsetTime(A103, -41.2865, 174.7762, 13) -> 2026-04-11T17:58:26.231 | CJ103: =ExcelToJD(CI103-CN103/24) -> 2461141.749 | CK103: =NewMoonPrevious(CI103 - CN103/24) -> 2461118.559 | CL103: 23.19012677 | CM103: =_xlfn.IFS( CL103<1,"Whiro", CL103<2,"Tirea", CL103<3,"Ohata", CL103<4,"Ōuenuku", CL103<5,"Okoro", CL103<6,"Tamatea-kai-ariki", CL103<7,"Tamatea-wananga", CL103<8,"Tamatea-ā-āio", CL103<9,"Tamatea-whakapau", CL103<10,"Huna", CL103<11,"Airoa", CL103<12,"Hotu", CL103<13,"Māwharu", CL103<14,"Atua whakahaehae", CL103<15,"Ōhua", CL103<16,"Ōturu", CL103<17,"Rākaunui", CL103<18,"Rākaumatohi", CL103<19,"Takiraua", CL103<20,"Oike", CL103<21,"Korekore", CL103<22,"Korekore tuarua", CL103<23,"Korekore piri ki Tangaroa", CL103<24,"Tangaroa ā-mua", CL103<25,"Tangaroa ā-roto", CL103<26,"Tangaroa ata kiokio", CL103<27,"Ōtāne", CL103<28,"Ōrongonui", CL103<29,"Maurea", CL103<30,"Mutuwhenua" ) -> Tangaroa ā-mua | CN103: =LookupTimezoneOffset(A103) -> 12
A104: 2026-04-13 | B104: 13 o | C104: 14 o | D104: =LOOKUP(VALUE(TEXT(A104,"M")),{1,2,3,4,5,6,7,8,9,10,11,12},{"Kohitātea","Hui‑tanguru","Poutū‑te‑rangi","Paengawhāwhā","Haratua","Pipiri","Hōngongoi","Here‑turi‑kōkā","Mahuru","Whiringa‑ā‑nuku","Whiringa‑ā‑rangi","Hakihea"}) -> Paengawhāwhā | E104: Paengawhāwhā | F104: 2026 | G104: 2026 | H104: =LOOKUP(WEEKDAY(A104),{1,2,3,4,5,6,7},{"Rātapu","Rāhina","Rātū","Rāapa","Rāpare","Rāmere","Rāhoroi ","Rātapu"}) -> Rāhina | I104: Rātū | J104: 2026-04-01 | M104: 1 | N104: 2 | O104: 3 | P104: 4 | Q104: 5 | R104: 6 | S104: 7 | T104: 8 | U104: 9 | V104: 10 | W104: 11 | X104: 12 | Y104: 13 | Z104: 14 | AA104: 15 | AB104: 16 | AC104: 17 | AD104: 18 | AE104: 19 | AF104: 20 | AG104: 21 | AH104: 22 | AI104: 23 | AJ104: 24 | AK104: 25 | AL104: 26 | AM104: =IF(ISERROR(DATEVALUE(AL104+1 & " "&TEXT($A104,"Mmmm") & " " & $F104))," ",AL104+1) -> 27 | AN104: 28 | AO104: 29 | AP104: 30 | AV104: =LOOKUP(VALUE(TEXT(AW104,"M")),{1,2,3,4,5,6,7,8,9,10,11,12},{"Kohitātea","Hui‑tanguru","Poutū‑te‑rangi","Paengawhāwhā","Haratua","Pipiri","Hōngongoi","Here‑turi‑kōkā","Mahuru","Whiringa‑ā‑nuku","Whiringa‑ā‑rangi","Hakihea"}) -> Haratua | AW104: 46143 | BB104: 1 | BC104: 2 | BD104: 3 | BE104: 4 | BF104: 5 | BG104: 6 | BH104: 7 | BI104: 8 | BJ104: 9 | BK104: 10 | BL104: 11 | BM104: 12 | BN104: 13 | BO104: 14 | BP104: 15 | BQ104: 16 | BR104: 17 | BS104: 18 | BT104: 19 | BU104: 20 | BV104: 21 | BW104: 22 | BX104: 23 | BY104: 24 | BZ104: =IF(ISERROR(DATEVALUE(BY104+1 & " "&TEXT($AW104,"Mmmm") & " " & $F104)),"∙",BY104+1) -> 25 | CA104: 26 | CB104: 27 | CC104: 28 | CD104: 29 | CE104: 30 | CF104: 31 | CG104: ∙ | CH104: ∙ | CI104: =SunsetTime(A104, -41.2865, 174.7762, 13) -> 2026-04-12T17:56:49.325 | CJ104: =ExcelToJD(CI104-CN104/24) -> 2461142.748 | CK104: =NewMoonPrevious(CI104 - CN104/24) -> 2461118.559 | CL104: 24.18900517 | CM104: =_xlfn.IFS( CL104<1,"Whiro", CL104<2,"Tirea", CL104<3,"Ohata", CL104<4,"Ōuenuku", CL104<5,"Okoro", CL104<6,"Tamatea-kai-ariki", CL104<7,"Tamatea-wananga", CL104<8,"Tamatea-ā-āio", CL104<9,"Tamatea-whakapau", CL104<10,"Huna", CL104<11,"Airoa", CL104<12,"Hotu", CL104<13,"Māwharu", CL104<14,"Atua whakahaehae", CL104<15,"Ōhua", CL104<16,"Ōturu", CL104<17,"Rākaunui", CL104<18,"Rākaumatohi", CL104<19,"Takiraua", CL104<20,"Oike", CL104<21,"Korekore", CL104<22,"Korekore tuarua", CL104<23,"Korekore piri ki Tangaroa", CL104<24,"Tangaroa ā-mua", CL104<25,"Tangaroa ā-roto", CL104<26,"Tangaroa ata kiokio", CL104<27,"Ōtāne", CL104<28,"Ōrongonui", CL104<29,"Maurea", CL104<30,"Mutuwhenua" ) -> Tangaroa ā-roto | CN104: =LookupTimezoneOffset(A104) -> 12
A105: 2026-04-14 | B105: 14 o | C105: 15 o | D105: =LOOKUP(VALUE(TEXT(A105,"M")),{1,2,3,4,5,6,7,8,9,10,11,12},{"Kohitātea","Hui‑tanguru","Poutū‑te‑rangi","Paengawhāwhā","Haratua","Pipiri","Hōngongoi","Here‑turi‑kōkā","Mahuru","Whiringa‑ā‑nuku","Whiringa‑ā‑rangi","Hakihea"}) -> Paengawhāwhā | E105: Paengawhāwhā | F105: 2026 | G105: 2026 | H105: =LOOKUP(WEEKDAY(A105),{1,2,3,4,5,6,7},{"Rātapu","Rāhina","Rātū","Rāapa","Rāpare","Rāmere","Rāhoroi ","Rātapu"}) -> Rātū | I105: Rāapa | J105: 2026-04-01 | M105: 1 | N105: 2 | O105: 3 | P105: 4 | Q105: 5 | R105: 6 | S105: 7 | T105: 8 | U105: 9 | V105: 10 | W105: 11 | X105: 12 | Y105: 13 | Z105: 14 | AA105: 15 | AB105: 16 | AC105: 17 | AD105: 18 | AE105: 19 | AF105: 20 | AG105: 21 | AH105: 22 | AI105: 23 | AJ105: 24 | AK105: 25 | AL105: 26 | AM105: =IF(ISERROR(DATEVALUE(AL105+1 & " "&TEXT($A105,"Mmmm") & " " & $F105))," ",AL105+1) -> 27 | AN105: 28 | AO105: 29 | AP105: 30 | AV105: =LOOKUP(VALUE(TEXT(AW105,"M")),{1,2,3,4,5,6,7,8,9,10,11,12},{"Kohitātea","Hui‑tanguru","Poutū‑te‑rangi","Paengawhāwhā","Haratua","Pipiri","Hōngongoi","Here‑turi‑kōkā","Mahuru","Whiringa‑ā‑nuku","Whiringa‑ā‑rangi","Hakihea"}) -> Haratua | AW105: 46143 | BB105: 1 | BC105: 2 | BD105: 3 | BE105: 4 | BF105: 5 | BG105: 6 | BH105: 7 | BI105: 8 | BJ105: 9 | BK105: 10 | BL105: 11 | BM105: 12 | BN105: 13 | BO105: 14 | BP105: 15 | BQ105: 16 | BR105: 17 | BS105: 18 | BT105: 19 | BU105: 20 | BV105: 21 | BW105: 22 | BX105: 23 | BY105: 24 | BZ105: =IF(ISERROR(DATEVALUE(BY105+1 & " "&TEXT($AW105,"Mmmm") & " " & $F105)),"∙",BY105+1) -> 25 | CA105: 26 | CB105: 27 | CC105: 28 | CD105: 29 | CE105: 30 | CF105: 31 | CG105: ∙ | CH105: ∙ | CI105: =SunsetTime(A105, -41.2865, 174.7762, 13) -> 2026-04-13T17:55:13.074 | CJ105: =ExcelToJD(CI105-CN105/24) -> 2461143.747 | CK105: =NewMoonPrevious(CI105 - CN105/24) -> 2461118.559 | CL105: 25.18789116 | CM105: =_xlfn.IFS( CL105<1,"Whiro", CL105<2,"Tirea", CL105<3,"Ohata", CL105<4,"Ōuenuku", CL105<5,"Okoro", CL105<6,"Tamatea-kai-ariki", CL105<7,"Tamatea-wananga", CL105<8,"Tamatea-ā-āio", CL105<9,"Tamatea-whakapau", CL105<10,"Huna", CL105<11,"Airoa", CL105<12,"Hotu", CL105<13,"Māwharu", CL105<14,"Atua whakahaehae", CL105<15,"Ōhua", CL105<16,"Ōturu", CL105<17,"Rākaunui", CL105<18,"Rākaumatohi", CL105<19,"Takiraua", CL105<20,"Oike", CL105<21,"Korekore", CL105<22,"Korekore tuarua", CL105<23,"Korekore piri ki Tangaroa", CL105<24,"Tangaroa ā-mua", CL105<25,"Tangaroa ā-roto", CL105<26,"Tangaroa ata kiokio", CL105<27,"Ōtāne", CL105<28,"Ōrongonui", CL105<29,"Maurea", CL105<30,"Mutuwhenua" ) -> Tangaroa ata kiokio | CN105: =LookupTimezoneOffset(A105) -> 12
A106: 2026-04-15 | B106: 15 o | C106: 16 o | D106: =LOOKUP(VALUE(TEXT(A106,"M")),{1,2,3,4,5,6,7,8,9,10,11,12},{"Kohitātea","Hui‑tanguru","Poutū‑te‑rangi","Paengawhāwhā","Haratua","Pipiri","Hōngongoi","Here‑turi‑kōkā","Mahuru","Whiringa‑ā‑nuku","Whiringa‑ā‑rangi","Hakihea"}) -> Paengawhāwhā | E106: Paengawhāwhā | F106: 2026 | G106: 2026 | H106: =LOOKUP(WEEKDAY(A106),{1,2,3,4,5,6,7},{"Rātapu","Rāhina","Rātū","Rāapa","Rāpare","Rāmere","Rāhoroi ","Rātapu"}) -> Rāapa | I106: Rāpare | J106: 2026-04-01 | M106: 1 | N106: 2 | O106: 3 | P106: 4 | Q106: 5 | R106: 6 | S106: 7 | T106: 8 | U106: 9 | V106: 10 | W106: 11 | X106: 12 | Y106: 13 | Z106: 14 | AA106: 15 | AB106: 16 | AC106: 17 | AD106: 18 | AE106: 19 | AF106: 20 | AG106: 21 | AH106: 22 | AI106: 23 | AJ106: 24 | AK106: 25 | AL106: 26 | AM106: =IF(ISERROR(DATEVALUE(AL106+1 & " "&TEXT($A106,"Mmmm") & " " & $F106))," ",AL106+1) -> 27 | AN106: 28 | AO106: 29 | AP106: 30 | AV106: =LOOKUP(VALUE(TEXT(AW106,"M")),{1,2,3,4,5,6,7,8,9,10,11,12},{"Kohitātea","Hui‑tanguru","Poutū‑te‑rangi","Paengawhāwhā","Haratua","Pipiri","Hōngongoi","Here‑turi‑kōkā","Mahuru","Whiringa‑ā‑nuku","Whiringa‑ā‑rangi","Hakihea"}) -> Haratua | AW106: 46143 | BB106: 1 | BC106: 2 | BD106: 3 | BE106: 4 | BF106: 5 | BG106: 6 | BH106: 7 | BI106: 8 | BJ106: 9 | BK106: 10 | BL106: 11 | BM106: 12 | BN106: 13 | BO106: 14 | BP106: 15 | BQ106: 16 | BR106: 17 | BS106: 18 | BT106: 19 | BU106: 20 | BV106: 21 | BW106: 22 | BX106: 23 | BY106: 24 | BZ106: =IF(ISERROR(DATEVALUE(BY106+1 & " "&TEXT($AW106,"Mmmm") & " " & $F106)),"∙",BY106+1) -> 25 | CA106: 26 | CB106: 27 | CC106: 28 | CD106: 29 | CE106: 30 | CF106: 31 | CG106: ∙ | CH106: ∙ | CI106: =SunsetTime(A106, -41.2865, 174.7762, 13) -> 2026-04-14T17:53:37.513 | CJ106: =ExcelToJD(CI106-CN106/24) -> 2461144.746 | CK106: =NewMoonPrevious(CI106 - CN106/24) -> 2461118.559 | CL106: 26.18678513 | CM106: =_xlfn.IFS( CL106<1,"Whiro", CL106<2,"Tirea", CL106<3,"Ohata", CL106<4,"Ōuenuku", CL106<5,"Okoro", CL106<6,"Tamatea-kai-ariki", CL106<7,"Tamatea-wananga", CL106<8,"Tamatea-ā-āio", CL106<9,"Tamatea-whakapau", CL106<10,"Huna", CL106<11,"Airoa", CL106<12,"Hotu", CL106<13,"Māwharu", CL106<14,"Atua whakahaehae", CL106<15,"Ōhua", CL106<16,"Ōturu", CL106<17,"Rākaunui", CL106<18,"Rākaumatohi", CL106<19,"Takiraua", CL106<20,"Oike", CL106<21,"Korekore", CL106<22,"Korekore tuarua", CL106<23,"Korekore piri ki Tangaroa", CL106<24,"Tangaroa ā-mua", CL106<25,"Tangaroa ā-roto", CL106<26,"Tangaroa ata kiokio", CL106<27,"Ōtāne", CL106<28,"Ōrongonui", CL106<29,"Maurea", CL106<30,"Mutuwhenua" ) -> Ōtāne | CN106: =LookupTimezoneOffset(A106) -> 12
A107: 2026-04-16 | B107: 16 o | C107: 17 o | D107: =LOOKUP(VALUE(TEXT(A107,"M")),{1,2,3,4,5,6,7,8,9,10,11,12},{"Kohitātea","Hui‑tanguru","Poutū‑te‑rangi","Paengawhāwhā","Haratua","Pipiri","Hōngongoi","Here‑turi‑kōkā","Mahuru","Whiringa‑ā‑nuku","Whiringa‑ā‑rangi","Hakihea"}) -> Paengawhāwhā | E107: Paengawhāwhā | F107: 2026 | G107: 2026 | H107: =LOOKUP(WEEKDAY(A107),{1,2,3,4,5,6,7},{"Rātapu","Rāhina","Rātū","Rāapa","Rāpare","Rāmere","Rāhoroi ","Rātapu"}) -> Rāpare | I107: Rāmere | J107: 2026-04-01 | M107: 1 | N107: 2 | O107: 3 | P107: 4 | Q107: 5 | R107: 6 | S107: 7 | T107: 8 | U107: 9 | V107: 10 | W107: 11 | X107: 12 | Y107: 13 | Z107: 14 | AA107: 15 | AB107: 16 | AC107: 17 | AD107: 18 | AE107: 19 | AF107: 20 | AG107: 21 | AH107: 22 | AI107: 23 | AJ107: 24 | AK107: 25 | AL107: 26 | AM107: =IF(ISERROR(DATEVALUE(AL107+1 & " "&TEXT($A107,"Mmmm") & " " & $F107))," ",AL107+1) -> 27 | AN107: 28 | AO107: 29 | AP107: 30 | AV107: =LOOKUP(VALUE(TEXT(AW107,"M")),{1,2,3,4,5,6,7,8,9,10,11,12},{"Kohitātea","Hui‑tanguru","Poutū‑te‑rangi","Paengawhāwhā","Haratua","Pipiri","Hōngongoi","Here‑turi‑kōkā","Mahuru","Whiringa‑ā‑nuku","Whiringa‑ā‑rangi","Hakihea"}) -> Haratua | AW107: 46143 | BB107: 1 | BC107: 2 | BD107: 3 | BE107: 4 | BF107: 5 | BG107: 6 | BH107: 7 | BI107: 8 | BJ107: 9 | BK107: 10 | BL107: 11 | BM107: 12 | BN107: 13 | BO107: 14 | BP107: 15 | BQ107: 16 | BR107: 17 | BS107: 18 | BT107: 19 | BU107: 20 | BV107: 21 | BW107: 22 | BX107: 23 | BY107: 24 | BZ107: =IF(ISERROR(DATEVALUE(BY107+1 & " "&TEXT($AW107,"Mmmm") & " " & $F107)),"∙",BY107+1) -> 25 | CA107: 26 | CB107: 27 | CC107: 28 | CD107: 29 | CE107: 30 | CF107: 31 | CG107: ∙ | CH107: ∙ | CI107: =SunsetTime(A107, -41.2865, 174.7762, 13) -> 2026-04-15T17:52:02.676 | CJ107: =ExcelToJD(CI107-CN107/24) -> 2461145.744 | CK107: =NewMoonPrevious(CI107 - CN107/24) -> 2461118.559 | CL107: 27.18568747 | CM107: =_xlfn.IFS( CL107<1,"Whiro", CL107<2,"Tirea", CL107<3,"Ohata", CL107<4,"Ōuenuku", CL107<5,"Okoro", CL107<6,"Tamatea-kai-ariki", CL107<7,"Tamatea-wananga", CL107<8,"Tamatea-ā-āio", CL107<9,"Tamatea-whakapau", CL107<10,"Huna", CL107<11,"Airoa", CL107<12,"Hotu", CL107<13,"Māwharu", CL107<14,"Atua whakahaehae", CL107<15,"Ōhua", CL107<16,"Ōturu", CL107<17,"Rākaunui", CL107<18,"Rākaumatohi", CL107<19,"Takiraua", CL107<20,"Oike", CL107<21,"Korekore", CL107<22,"Korekore tuarua", CL107<23,"Korekore piri ki Tangaroa", CL107<24,"Tangaroa ā-mua", CL107<25,"Tangaroa ā-roto", CL107<26,"Tangaroa ata kiokio", CL107<27,"Ōtāne", CL107<28,"Ōrongonui", CL107<29,"Maurea", CL107<30,"Mutuwhenua" ) -> Ōrongonui | CN107: =LookupTimezoneOffset(A107) -> 12
A108: 2026-04-17 | B108: 17 o | C108: 18 o | D108: =LOOKUP(VALUE(TEXT(A108,"M")),{1,2,3,4,5,6,7,8,9,10,11,12},{"Kohitātea","Hui‑tanguru","Poutū‑te‑rangi","Paengawhāwhā","Haratua","Pipiri","Hōngongoi","Here‑turi‑kōkā","Mahuru","Whiringa‑ā‑nuku","Whiringa‑ā‑rangi","Hakihea"}) -> Paengawhāwhā | E108: Paengawhāwhā | F108: 2026 | G108: 2026 | H108: =LOOKUP(WEEKDAY(A108),{1,2,3,4,5,6,7},{"Rātapu","Rāhina","Rātū","Rāapa","Rāpare","Rāmere","Rāhoroi ","Rātapu"}) -> Rāmere | I108: Rāhoroi | J108: 2026-04-01 | M108: 1 | N108: 2 | O108: 3 | P108: 4 | Q108: 5 | R108: 6 | S108: 7 | T108: 8 | U108: 9 | V108: 10 | W108: 11 | X108: 12 | Y108: 13 | Z108: 14 | AA108: 15 | AB108: 16 | AC108: 17 | AD108: 18 | AE108: 19 | AF108: 20 | AG108: 21 | AH108: 22 | AI108: 23 | AJ108: 24 | AK108: 25 | AL108: 26 | AM108: =IF(ISERROR(DATEVALUE(AL108+1 & " "&TEXT($A108,"Mmmm") & " " & $F108))," ",AL108+1) -> 27 | AN108: 28 | AO108: 29 | AP108: 30 | AV108: =LOOKUP(VALUE(TEXT(AW108,"M")),{1,2,3,4,5,6,7,8,9,10,11,12},{"Kohitātea","Hui‑tanguru","Poutū‑te‑rangi","Paengawhāwhā","Haratua","Pipiri","Hōngongoi","Here‑turi‑kōkā","Mahuru","Whiringa‑ā‑nuku","Whiringa‑ā‑rangi","Hakihea"}) -> Haratua | AW108: 46143 | BB108: 1 | BC108: 2 | BD108: 3 | BE108: 4 | BF108: 5 | BG108: 6 | BH108: 7 | BI108: 8 | BJ108: 9 | BK108: 10 | BL108: 11 | BM108: 12 | BN108: 13 | BO108: 14 | BP108: 15 | BQ108: 16 | BR108: 17 | BS108: 18 | BT108: 19 | BU108: 20 | BV108: 21 | BW108: 22 | BX108: 23 | BY108: 24 | BZ108: =IF(ISERROR(DATEVALUE(BY108+1 & " "&TEXT($AW108,"Mmmm") & " " & $F108)),"∙",BY108+1) -> 25 | CA108: 26 | CB108: 27 | CC108: 28 | CD108: 29 | CE108: 30 | CF108: 31 | CG108: ∙ | CH108: ∙ | CI108: =SunsetTime(A108, -41.2865, 174.7762, 13) -> 2026-04-16T17:50:28.596 | CJ108: =ExcelToJD(CI108-CN108/24) -> 2461146.743 | CK108: =NewMoonPrevious(CI108 - CN108/24) -> 2461118.559 | CL108: 28.18459859 | CM108: =_xlfn.IFS( CL108<1,"Whiro", CL108<2,"Tirea", CL108<3,"Ohata", CL108<4,"Ōuenuku", CL108<5,"Okoro", CL108<6,"Tamatea-kai-ariki", CL108<7,"Tamatea-wananga", CL108<8,"Tamatea-ā-āio", CL108<9,"Tamatea-whakapau", CL108<10,"Huna", CL108<11,"Airoa", CL108<12,"Hotu", CL108<13,"Māwharu", CL108<14,"Atua whakahaehae", CL108<15,"Ōhua", CL108<16,"Ōturu", CL108<17,"Rākaunui", CL108<18,"Rākaumatohi", CL108<19,"Takiraua", CL108<20,"Oike", CL108<21,"Korekore", CL108<22,"Korekore tuarua", CL108<23,"Korekore piri ki Tangaroa", CL108<24,"Tangaroa ā-mua", CL108<25,"Tangaroa ā-roto", CL108<26,"Tangaroa ata kiokio", CL108<27,"Ōtāne", CL108<28,"Ōrongonui", CL108<29,"Maurea", CL108<30,"Mutuwhenua" ) -> Maurea | CN108: =LookupTimezoneOffset(A108) -> 12
A109: 2026-04-18 | B109: 18 o | C109: 19 o | D109: =LOOKUP(VALUE(TEXT(A109,"M")),{1,2,3,4,5,6,7,8,9,10,11,12},{"Kohitātea","Hui‑tanguru","Poutū‑te‑rangi","Paengawhāwhā","Haratua","Pipiri","Hōngongoi","Here‑turi‑kōkā","Mahuru","Whiringa‑ā‑nuku","Whiringa‑ā‑rangi","Hakihea"}) -> Paengawhāwhā | E109: Paengawhāwhā | F109: 2026 | G109: 2026 | H109: =LOOKUP(WEEKDAY(A109),{1,2,3,4,5,6,7},{"Rātapu","Rāhina","Rātū","Rāapa","Rāpare","Rāmere","Rāhoroi ","Rātapu"}) -> Rāhoroi | I109: Rātapu | J109: 2026-04-01 | M109: 1 | N109: 2 | O109: 3 | P109: 4 | Q109: 5 | R109: 6 | S109: 7 | T109: 8 | U109: 9 | V109: 10 | W109: 11 | X109: 12 | Y109: 13 | Z109: 14 | AA109: 15 | AB109: 16 | AC109: 17 | AD109: 18 | AE109: 19 | AF109: 20 | AG109: 21 | AH109: 22 | AI109: 23 | AJ109: 24 | AK109: 25 | AL109: 26 | AM109: =IF(ISERROR(DATEVALUE(AL109+1 & " "&TEXT($A109,"Mmmm") & " " & $F109))," ",AL109+1) -> 27 | AN109: 28 | AO109: 29 | AP109: 30 | AV109: =LOOKUP(VALUE(TEXT(AW109,"M")),{1,2,3,4,5,6,7,8,9,10,11,12},{"Kohitātea","Hui‑tanguru","Poutū‑te‑rangi","Paengawhāwhā","Haratua","Pipiri","Hōngongoi","Here‑turi‑kōkā","Mahuru","Whiringa‑ā‑nuku","Whiringa‑ā‑rangi","Hakihea"}) -> Haratua | AW109: 46143 | BB109: 1 | BC109: 2 | BD109: 3 | BE109: 4 | BF109: 5 | BG109: 6 | BH109: 7 | BI109: 8 | BJ109: 9 | BK109: 10 | BL109: 11 | BM109: 12 | BN109: 13 | BO109: 14 | BP109: 15 | BQ109: 16 | BR109: 17 | BS109: 18 | BT109: 19 | BU109: 20 | BV109: 21 | BW109: 22 | BX109: 23 | BY109: 24 | BZ109: =IF(ISERROR(DATEVALUE(BY109+1 & " "&TEXT($AW109,"Mmmm") & " " & $F109)),"∙",BY109+1) -> 25 | CA109: 26 | CB109: 27 | CC109: 28 | CD109: 29 | CE109: 30 | CF109: 31 | CG109: ∙ | CH109: ∙ | CI109: =SunsetTime(A109, -41.2865, 174.7762, 13) -> 2026-04-17T17:48:55.309 | CJ109: =ExcelToJD(CI109-CN109/24) -> 2461147.742 | CK109: =NewMoonPrevious(CI109 - CN109/24) -> 2461147.995 | CL109: -0.2527990192 | CM109: =_xlfn.IFS( CL109<1,"Whiro", CL109<2,"Tirea", CL109<3,"Ohata", CL109<4,"Ōuenuku", CL109<5,"Okoro", CL109<6,"Tamatea-kai-ariki", CL109<7,"Tamatea-wananga", CL109<8,"Tamatea-ā-āio", CL109<9,"Tamatea-whakapau", CL109<10,"Huna", CL109<11,"Airoa", CL109<12,"Hotu", CL109<13,"Māwharu", CL109<14,"Atua whakahaehae", CL109<15,"Ōhua", CL109<16,"Ōturu", CL109<17,"Rākaunui", CL109<18,"Rākaumatohi", CL109<19,"Takiraua", CL109<20,"Oike", CL109<21,"Korekore", CL109<22,"Korekore tuarua", CL109<23,"Korekore piri ki Tangaroa", CL109<24,"Tangaroa ā-mua", CL109<25,"Tangaroa ā-roto", CL109<26,"Tangaroa ata kiokio", CL109<27,"Ōtāne", CL109<28,"Ōrongonui", CL109<29,"Maurea", CL109<30,"Mutuwhenua" ) -> Whiro | CN109: =LookupTimezoneOffset(A109) -> 12
A110: 2026-04-19 | B110: 19 o | C110: 20 o | D110: =LOOKUP(VALUE(TEXT(A110,"M")),{1,2,3,4,5,6,7,8,9,10,11,12},{"Kohitātea","Hui‑tanguru","Poutū‑te‑rangi","Paengawhāwhā","Haratua","Pipiri","Hōngongoi","Here‑turi‑kōkā","Mahuru","Whiringa‑ā‑nuku","Whiringa‑ā‑rangi","Hakihea"}) -> Paengawhāwhā | E110: Paengawhāwhā | F110: 2026 | G110: 2026 | H110: =LOOKUP(WEEKDAY(A110),{1,2,3,4,5,6,7},{"Rātapu","Rāhina","Rātū","Rāapa","Rāpare","Rāmere","Rāhoroi ","Rātapu"}) -> Rātapu | I110: Rāhina | J110: 2026-04-01 | M110: 1 | N110: 2 | O110: 3 | P110: 4 | Q110: 5 | R110: 6 | S110: 7 | T110: 8 | U110: 9 | V110: 10 | W110: 11 | X110: 12 | Y110: 13 | Z110: 14 | AA110: 15 | AB110: 16 | AC110: 17 | AD110: 18 | AE110: 19 | AF110: 20 | AG110: 21 | AH110: 22 | AI110: 23 | AJ110: 24 | AK110: 25 | AL110: 26 | AM110: =IF(ISERROR(DATEVALUE(AL110+1 & " "&TEXT($A110,"Mmmm") & " " & $F110))," ",AL110+1) -> 27 | AN110: 28 | AO110: 29 | AP110: 30 | AV110: =LOOKUP(VALUE(TEXT(AW110,"M")),{1,2,3,4,5,6,7,8,9,10,11,12},{"Kohitātea","Hui‑tanguru","Poutū‑te‑rangi","Paengawhāwhā","Haratua","Pipiri","Hōngongoi","Here‑turi‑kōkā","Mahuru","Whiringa‑ā‑nuku","Whiringa‑ā‑rangi","Hakihea"}) -> Haratua | AW110: 46143 | BB110: 1 | BC110: 2 | BD110: 3 | BE110: 4 | BF110: 5 | BG110: 6 | BH110: 7 | BI110: 8 | BJ110: 9 | BK110: 10 | BL110: 11 | BM110: 12 | BN110: 13 | BO110: 14 | BP110: 15 | BQ110: 16 | BR110: 17 | BS110: 18 | BT110: 19 | BU110: 20 | BV110: 21 | BW110: 22 | BX110: 23 | BY110: 24 | BZ110: =IF(ISERROR(DATEVALUE(BY110+1 & " "&TEXT($AW110,"Mmmm") & " " & $F110)),"∙",BY110+1) -> 25 | CA110: 26 | CB110: 27 | CC110: 28 | CD110: 29 | CE110: 30 | CF110: 31 | CG110: ∙ | CH110: ∙ | CI110: =SunsetTime(A110, -41.2865, 174.7762, 13) -> 2026-04-18T17:47:22.847 | CJ110: =ExcelToJD(CI110-CN110/24) -> 2461148.741 | CK110: =NewMoonPrevious(CI110 - CN110/24) -> 2461147.995 | CL110: 0.7461308236 | CM110: =_xlfn.IFS( CL110<1,"Whiro", CL110<2,"Tirea", CL110<3,"Ohata", CL110<4,"Ōuenuku", CL110<5,"Okoro", CL110<6,"Tamatea-kai-ariki", CL110<7,"Tamatea-wananga", CL110<8,"Tamatea-ā-āio", CL110<9,"Tamatea-whakapau", CL110<10,"Huna", CL110<11,"Airoa", CL110<12,"Hotu", CL110<13,"Māwharu", CL110<14,"Atua whakahaehae", CL110<15,"Ōhua", CL110<16,"Ōturu", CL110<17,"Rākaunui", CL110<18,"Rākaumatohi", CL110<19,"Takiraua", CL110<20,"Oike", CL110<21,"Korekore", CL110<22,"Korekore tuarua", CL110<23,"Korekore piri ki Tangaroa", CL110<24,"Tangaroa ā-mua", CL110<25,"Tangaroa ā-roto", CL110<26,"Tangaroa ata kiokio", CL110<27,"Ōtāne", CL110<28,"Ōrongonui", CL110<29,"Maurea", CL110<30,"Mutuwhenua" ) -> Whiro | CN110: =LookupTimezoneOffset(A110) -> 12
A111: 2026-04-20 | B111: 20 o | C111: 21 o | D111: =LOOKUP(VALUE(TEXT(A111,"M")),{1,2,3,4,5,6,7,8,9,10,11,12},{"Kohitātea","Hui‑tanguru","Poutū‑te‑rangi","Paengawhāwhā","Haratua","Pipiri","Hōngongoi","Here‑turi‑kōkā","Mahuru","Whiringa‑ā‑nuku","Whiringa‑ā‑rangi","Hakihea"}) -> Paengawhāwhā | E111: Paengawhāwhā | F111: 2026 | G111: 2026 | H111: =LOOKUP(WEEKDAY(A111),{1,2,3,4,5,6,7},{"Rātapu","Rāhina","Rātū","Rāapa","Rāpare","Rāmere","Rāhoroi ","Rātapu"}) -> Rāhina | I111: Rātū | J111: 2026-04-01 | M111: 1 | N111: 2 | O111: 3 | P111: 4 | Q111: 5 | R111: 6 | S111: 7 | T111: 8 | U111: 9 | V111: 10 | W111: 11 | X111: 12 | Y111: 13 | Z111: 14 | AA111: 15 | AB111: 16 | AC111: 17 | AD111: 18 | AE111: 19 | AF111: 20 | AG111: 21 | AH111: 22 | AI111: 23 | AJ111: 24 | AK111: 25 | AL111: 26 | AM111: =IF(ISERROR(DATEVALUE(AL111+1 & " "&TEXT($A111,"Mmmm") & " " & $F111))," ",AL111+1) -> 27 | AN111: 28 | AO111: 29 | AP111: 30 | AV111: =LOOKUP(VALUE(TEXT(AW111,"M")),{1,2,3,4,5,6,7,8,9,10,11,12},{"Kohitātea","Hui‑tanguru","Poutū‑te‑rangi","Paengawhāwhā","Haratua","Pipiri","Hōngongoi","Here‑turi‑kōkā","Mahuru","Whiringa‑ā‑nuku","Whiringa‑ā‑rangi","Hakihea"}) -> Haratua | AW111: 46143 | BB111: 1 | BC111: 2 | BD111: 3 | BE111: 4 | BF111: 5 | BG111: 6 | BH111: 7 | BI111: 8 | BJ111: 9 | BK111: 10 | BL111: 11 | BM111: 12 | BN111: 13 | BO111: 14 | BP111: 15 | BQ111: 16 | BR111: 17 | BS111: 18 | BT111: 19 | BU111: 20 | BV111: 21 | BW111: 22 | BX111: 23 | BY111: 24 | BZ111: =IF(ISERROR(DATEVALUE(BY111+1 & " "&TEXT($AW111,"Mmmm") & " " & $F111)),"∙",BY111+1) -> 25 | CA111: 26 | CB111: 27 | CC111: 28 | CD111: 29 | CE111: 30 | CF111: 31 | CG111: ∙ | CH111: ∙ | CI111: =SunsetTime(A111, -41.2865, 174.7762, 13) -> 2026-04-19T17:45:51.245 | CJ111: =ExcelToJD(CI111-CN111/24) -> 2461149.74 | CK111: =NewMoonPrevious(CI111 - CN111/24) -> 2461147.995 | CL111: 1.745070618 | CM111: =_xlfn.IFS( CL111<1,"Whiro", CL111<2,"Tirea", CL111<3,"Ohata", CL111<4,"Ōuenuku", CL111<5,"Okoro", CL111<6,"Tamatea-kai-ariki", CL111<7,"Tamatea-wananga", CL111<8,"Tamatea-ā-āio", CL111<9,"Tamatea-whakapau", CL111<10,"Huna", CL111<11,"Airoa", CL111<12,"Hotu", CL111<13,"Māwharu", CL111<14,"Atua whakahaehae", CL111<15,"Ōhua", CL111<16,"Ōturu", CL111<17,"Rākaunui", CL111<18,"Rākaumatohi", CL111<19,"Takiraua", CL111<20,"Oike", CL111<21,"Korekore", CL111<22,"Korekore tuarua", CL111<23,"Korekore piri ki Tangaroa", CL111<24,"Tangaroa ā-mua", CL111<25,"Tangaroa ā-roto", CL111<26,"Tangaroa ata kiokio", CL111<27,"Ōtāne", CL111<28,"Ōrongonui", CL111<29,"Maurea", CL111<30,"Mutuwhenua" ) -> Tirea | CN111: =LookupTimezoneOffset(A111) -> 12
A112: 2026-04-21 | B112: 21 o | C112: 22 o | D112: =LOOKUP(VALUE(TEXT(A112,"M")),{1,2,3,4,5,6,7,8,9,10,11,12},{"Kohitātea","Hui‑tanguru","Poutū‑te‑rangi","Paengawhāwhā","Haratua","Pipiri","Hōngongoi","Here‑turi‑kōkā","Mahuru","Whiringa‑ā‑nuku","Whiringa‑ā‑rangi","Hakihea"}) -> Paengawhāwhā | E112: Paengawhāwhā | F112: 2026 | G112: 2026 | H112: =LOOKUP(WEEKDAY(A112),{1,2,3,4,5,6,7},{"Rātapu","Rāhina","Rātū","Rāapa","Rāpare","Rāmere","Rāhoroi ","Rātapu"}) -> Rātū | I112: Rāapa | J112: 2026-04-01 | M112: 1 | N112: 2 | O112: 3 | P112: 4 | Q112: 5 | R112: 6 | S112: 7 | T112: 8 | U112: 9 | V112: 10 | W112: 11 | X112: 12 | Y112: 13 | Z112: 14 | AA112: 15 | AB112: 16 | AC112: 17 | AD112: 18 | AE112: 19 | AF112: 20 | AG112: 21 | AH112: 22 | AI112: 23 | AJ112: 24 | AK112: 25 | AL112: 26 | AM112: =IF(ISERROR(DATEVALUE(AL112+1 & " "&TEXT($A112,"Mmmm") & " " & $F112))," ",AL112+1) -> 27 | AN112: 28 | AO112: 29 | AP112: 30 | AV112: =LOOKUP(VALUE(TEXT(AW112,"M")),{1,2,3,4,5,6,7,8,9,10,11,12},{"Kohitātea","Hui‑tanguru","Poutū‑te‑rangi","Paengawhāwhā","Haratua","Pipiri","Hōngongoi","Here‑turi‑kōkā","Mahuru","Whiringa‑ā‑nuku","Whiringa‑ā‑rangi","Hakihea"}) -> Haratua | AW112: 46143 | BB112: 1 | BC112: 2 | BD112: 3 | BE112: 4 | BF112: 5 | BG112: 6 | BH112: 7 | BI112: 8 | BJ112: 9 | BK112: 10 | BL112: 11 | BM112: 12 | BN112: 13 | BO112: 14 | BP112: 15 | BQ112: 16 | BR112: 17 | BS112: 18 | BT112: 19 | BU112: 20 | BV112: 21 | BW112: 22 | BX112: 23 | BY112: 24 | BZ112: =IF(ISERROR(DATEVALUE(BY112+1 & " "&TEXT($AW112,"Mmmm") & " " & $F112)),"∙",BY112+1) -> 25 | CA112: 26 | CB112: 27 | CC112: 28 | CD112: 29 | CE112: 30 | CF112: 31 | CG112: ∙ | CH112: ∙ | CI112: =SunsetTime(A112, -41.2865, 174.7762, 13) -> 2026-04-20T17:44:20.537 | CJ112: =ExcelToJD(CI112-CN112/24) -> 2461150.739 | CK112: =NewMoonPrevious(CI112 - CN112/24) -> 2461147.995 | CL112: 2.744020754 | CM112: =_xlfn.IFS( CL112<1,"Whiro", CL112<2,"Tirea", CL112<3,"Ohata", CL112<4,"Ōuenuku", CL112<5,"Okoro", CL112<6,"Tamatea-kai-ariki", CL112<7,"Tamatea-wananga", CL112<8,"Tamatea-ā-āio", CL112<9,"Tamatea-whakapau", CL112<10,"Huna", CL112<11,"Airoa", CL112<12,"Hotu", CL112<13,"Māwharu", CL112<14,"Atua whakahaehae", CL112<15,"Ōhua", CL112<16,"Ōturu", CL112<17,"Rākaunui", CL112<18,"Rākaumatohi", CL112<19,"Takiraua", CL112<20,"Oike", CL112<21,"Korekore", CL112<22,"Korekore tuarua", CL112<23,"Korekore piri ki Tangaroa", CL112<24,"Tangaroa ā-mua", CL112<25,"Tangaroa ā-roto", CL112<26,"Tangaroa ata kiokio", CL112<27,"Ōtāne", CL112<28,"Ōrongonui", CL112<29,"Maurea", CL112<30,"Mutuwhenua" ) -> Ohata | CN112: =LookupTimezoneOffset(A112) -> 12
A113: 2026-04-22 | B113: 22 o | C113: 23 o | D113: =LOOKUP(VALUE(TEXT(A113,"M")),{1,2,3,4,5,6,7,8,9,10,11,12},{"Kohitātea","Hui‑tanguru","Poutū‑te‑rangi","Paengawhāwhā","Haratua","Pipiri","Hōngongoi","Here‑turi‑kōkā","Mahuru","Whiringa‑ā‑nuku","Whiringa‑ā‑rangi","Hakihea"}) -> Paengawhāwhā | E113: Paengawhāwhā | F113: 2026 | G113: 2026 | H113: =LOOKUP(WEEKDAY(A113),{1,2,3,4,5,6,7},{"Rātapu","Rāhina","Rātū","Rāapa","Rāpare","Rāmere","Rāhoroi ","Rātapu"}) -> Rāapa | I113: Rāpare | J113: 2026-04-01 | M113: 1 | N113: 2 | O113: 3 | P113: 4 | Q113: 5 | R113: 6 | S113: 7 | T113: 8 | U113: 9 | V113: 10 | W113: 11 | X113: 12 | Y113: 13 | Z113: 14 | AA113: 15 | AB113: 16 | AC113: 17 | AD113: 18 | AE113: 19 | AF113: 20 | AG113: 21 | AH113: 22 | AI113: 23 | AJ113: 24 | AK113: 25 | AL113: 26 | AM113: =IF(ISERROR(DATEVALUE(AL113+1 & " "&TEXT($A113,"Mmmm") & " " & $F113))," ",AL113+1) -> 27 | AN113: 28 | AO113: 29 | AP113: 30 | AV113: =LOOKUP(VALUE(TEXT(AW113,"M")),{1,2,3,4,5,6,7,8,9,10,11,12},{"Kohitātea","Hui‑tanguru","Poutū‑te‑rangi","Paengawhāwhā","Haratua","Pipiri","Hōngongoi","Here‑turi‑kōkā","Mahuru","Whiringa‑ā‑nuku","Whiringa‑ā‑rangi","Hakihea"}) -> Haratua | AW113: 46143 | BB113: 1 | BC113: 2 | BD113: 3 | BE113: 4 | BF113: 5 | BG113: 6 | BH113: 7 | BI113: 8 | BJ113: 9 | BK113: 10 | BL113: 11 | BM113: 12 | BN113: 13 | BO113: 14 | BP113: 15 | BQ113: 16 | BR113: 17 | BS113: 18 | BT113: 19 | BU113: 20 | BV113: 21 | BW113: 22 | BX113: 23 | BY113: 24 | BZ113: =IF(ISERROR(DATEVALUE(BY113+1 & " "&TEXT($AW113,"Mmmm") & " " & $F113)),"∙",BY113+1) -> 25 | CA113: 26 | CB113: 27 | CC113: 28 | CD113: 29 | CE113: 30 | CF113: 31 | CG113: ∙ | CH113: ∙ | CI113: =SunsetTime(A113, -41.2865, 174.7762, 13) -> 2026-04-21T17:42:50.756 | CJ113: =ExcelToJD(CI113-CN113/24) -> 2461151.738 | CK113: =NewMoonPrevious(CI113 - CN113/24) -> 2461147.995 | CL113: 3.742981623 | CM113: =_xlfn.IFS( CL113<1,"Whiro", CL113<2,"Tirea", CL113<3,"Ohata", CL113<4,"Ōuenuku", CL113<5,"Okoro", CL113<6,"Tamatea-kai-ariki", CL113<7,"Tamatea-wananga", CL113<8,"Tamatea-ā-āio", CL113<9,"Tamatea-whakapau", CL113<10,"Huna", CL113<11,"Airoa", CL113<12,"Hotu", CL113<13,"Māwharu", CL113<14,"Atua whakahaehae", CL113<15,"Ōhua", CL113<16,"Ōturu", CL113<17,"Rākaunui", CL113<18,"Rākaumatohi", CL113<19,"Takiraua", CL113<20,"Oike", CL113<21,"Korekore", CL113<22,"Korekore tuarua", CL113<23,"Korekore piri ki Tangaroa", CL113<24,"Tangaroa ā-mua", CL113<25,"Tangaroa ā-roto", CL113<26,"Tangaroa ata kiokio", CL113<27,"Ōtāne", CL113<28,"Ōrongonui", CL113<29,"Maurea", CL113<30,"Mutuwhenua" ) -> Ōuenuku | CN113: =LookupTimezoneOffset(A113) -> 12
A114: 2026-04-23 | B114: 23 o | C114: 24 o | D114: =LOOKUP(VALUE(TEXT(A114,"M")),{1,2,3,4,5,6,7,8,9,10,11,12},{"Kohitātea","Hui‑tanguru","Poutū‑te‑rangi","Paengawhāwhā","Haratua","Pipiri","Hōngongoi","Here‑turi‑kōkā","Mahuru","Whiringa‑ā‑nuku","Whiringa‑ā‑rangi","Hakihea"}) -> Paengawhāwhā | E114: Paengawhāwhā | F114: 2026 | G114: 2026 | H114: =LOOKUP(WEEKDAY(A114),{1,2,3,4,5,6,7},{"Rātapu","Rāhina","Rātū","Rāapa","Rāpare","Rāmere","Rāhoroi ","Rātapu"}) -> Rāpare | I114: Rāmere | J114: 2026-04-01 | M114: 1 | N114: 2 | O114: 3 | P114: 4 | Q114: 5 | R114: 6 | S114: 7 | T114: 8 | U114: 9 | V114: 10 | W114: 11 | X114: 12 | Y114: 13 | Z114: 14 | AA114: 15 | AB114: 16 | AC114: 17 | AD114: 18 | AE114: 19 | AF114: 20 | AG114: 21 | AH114: 22 | AI114: 23 | AJ114: 24 | AK114: 25 | AL114: 26 | AM114: =IF(ISERROR(DATEVALUE(AL114+1 & " "&TEXT($A114,"Mmmm") & " " & $F114))," ",AL114+1) -> 27 | AN114: 28 | AO114: 29 | AP114: 30 | AV114: =LOOKUP(VALUE(TEXT(AW114,"M")),{1,2,3,4,5,6,7,8,9,10,11,12},{"Kohitātea","Hui‑tanguru","Poutū‑te‑rangi","Paengawhāwhā","Haratua","Pipiri","Hōngongoi","Here‑turi‑kōkā","Mahuru","Whiringa‑ā‑nuku","Whiringa‑ā‑rangi","Hakihea"}) -> Haratua | AW114: 46143 | BB114: 1 | BC114: 2 | BD114: 3 | BE114: 4 | BF114: 5 | BG114: 6 | BH114: 7 | BI114: 8 | BJ114: 9 | BK114: 10 | BL114: 11 | BM114: 12 | BN114: 13 | BO114: 14 | BP114: 15 | BQ114: 16 | BR114: 17 | BS114: 18 | BT114: 19 | BU114: 20 | BV114: 21 | BW114: 22 | BX114: 23 | BY114: 24 | BZ114: =IF(ISERROR(DATEVALUE(BY114+1 & " "&TEXT($AW114,"Mmmm") & " " & $F114)),"∙",BY114+1) -> 25 | CA114: 26 | CB114: 27 | CC114: 28 | CD114: 29 | CE114: 30 | CF114: 31 | CG114: ∙ | CH114: ∙ | CI114: =SunsetTime(A114, -41.2865, 174.7762, 13) -> 2026-04-22T17:41:21.936 | CJ114: =ExcelToJD(CI114-CN114/24) -> 2461152.737 | CK114: =NewMoonPrevious(CI114 - CN114/24) -> 2461147.995 | CL114: 4.741953614 | CM114: =_xlfn.IFS( CL114<1,"Whiro", CL114<2,"Tirea", CL114<3,"Ohata", CL114<4,"Ōuenuku", CL114<5,"Okoro", CL114<6,"Tamatea-kai-ariki", CL114<7,"Tamatea-wananga", CL114<8,"Tamatea-ā-āio", CL114<9,"Tamatea-whakapau", CL114<10,"Huna", CL114<11,"Airoa", CL114<12,"Hotu", CL114<13,"Māwharu", CL114<14,"Atua whakahaehae", CL114<15,"Ōhua", CL114<16,"Ōturu", CL114<17,"Rākaunui", CL114<18,"Rākaumatohi", CL114<19,"Takiraua", CL114<20,"Oike", CL114<21,"Korekore", CL114<22,"Korekore tuarua", CL114<23,"Korekore piri ki Tangaroa", CL114<24,"Tangaroa ā-mua", CL114<25,"Tangaroa ā-roto", CL114<26,"Tangaroa ata kiokio", CL114<27,"Ōtāne", CL114<28,"Ōrongonui", CL114<29,"Maurea", CL114<30,"Mutuwhenua" ) -> Okoro | CN114: =LookupTimezoneOffset(A114) -> 12
A115: 2026-04-24 | B115: 24 o | C115: 25 o | D115: =LOOKUP(VALUE(TEXT(A115,"M")),{1,2,3,4,5,6,7,8,9,10,11,12},{"Kohitātea","Hui‑tanguru","Poutū‑te‑rangi","Paengawhāwhā","Haratua","Pipiri","Hōngongoi","Here‑turi‑kōkā","Mahuru","Whiringa‑ā‑nuku","Whiringa‑ā‑rangi","Hakihea"}) -> Paengawhāwhā | E115: Paengawhāwhā | F115: 2026 | G115: 2026 | H115: =LOOKUP(WEEKDAY(A115),{1,2,3,4,5,6,7},{"Rātapu","Rāhina","Rātū","Rāapa","Rāpare","Rāmere","Rāhoroi ","Rātapu"}) -> Rāmere | I115: Rāhoroi | J115: 2026-04-01 | M115: 1 | N115: 2 | O115: 3 | P115: 4 | Q115: 5 | R115: 6 | S115: 7 | T115: 8 | U115: 9 | V115: 10 | W115: 11 | X115: 12 | Y115: 13 | Z115: 14 | AA115: 15 | AB115: 16 | AC115: 17 | AD115: 18 | AE115: 19 | AF115: 20 | AG115: 21 | AH115: 22 | AI115: 23 | AJ115: 24 | AK115: 25 | AL115: 26 | AM115: =IF(ISERROR(DATEVALUE(AL115+1 & " "&TEXT($A115,"Mmmm") & " " & $F115))," ",AL115+1) -> 27 | AN115: 28 | AO115: 29 | AP115: 30 | AV115: =LOOKUP(VALUE(TEXT(AW115,"M")),{1,2,3,4,5,6,7,8,9,10,11,12},{"Kohitātea","Hui‑tanguru","Poutū‑te‑rangi","Paengawhāwhā","Haratua","Pipiri","Hōngongoi","Here‑turi‑kōkā","Mahuru","Whiringa‑ā‑nuku","Whiringa‑ā‑rangi","Hakihea"}) -> Haratua | AW115: 46143 | BB115: 1 | BC115: 2 | BD115: 3 | BE115: 4 | BF115: 5 | BG115: 6 | BH115: 7 | BI115: 8 | BJ115: 9 | BK115: 10 | BL115: 11 | BM115: 12 | BN115: 13 | BO115: 14 | BP115: 15 | BQ115: 16 | BR115: 17 | BS115: 18 | BT115: 19 | BU115: 20 | BV115: 21 | BW115: 22 | BX115: 23 | BY115: 24 | BZ115: =IF(ISERROR(DATEVALUE(BY115+1 & " "&TEXT($AW115,"Mmmm") & " " & $F115)),"∙",BY115+1) -> 25 | CA115: 26 | CB115: 27 | CC115: 28 | CD115: 29 | CE115: 30 | CF115: 31 | CG115: ∙ | CH115: ∙ | CI115: =SunsetTime(A115, -41.2865, 174.7762, 13) -> 2026-04-23T17:39:54.110 | CJ115: =ExcelToJD(CI115-CN115/24) -> 2461153.736 | CK115: =NewMoonPrevious(CI115 - CN115/24) -> 2461147.995 | CL115: 5.740937114 | CM115: =_xlfn.IFS( CL115<1,"Whiro", CL115<2,"Tirea", CL115<3,"Ohata", CL115<4,"Ōuenuku", CL115<5,"Okoro", CL115<6,"Tamatea-kai-ariki", CL115<7,"Tamatea-wananga", CL115<8,"Tamatea-ā-āio", CL115<9,"Tamatea-whakapau", CL115<10,"Huna", CL115<11,"Airoa", CL115<12,"Hotu", CL115<13,"Māwharu", CL115<14,"Atua whakahaehae", CL115<15,"Ōhua", CL115<16,"Ōturu", CL115<17,"Rākaunui", CL115<18,"Rākaumatohi", CL115<19,"Takiraua", CL115<20,"Oike", CL115<21,"Korekore", CL115<22,"Korekore tuarua", CL115<23,"Korekore piri ki Tangaroa", CL115<24,"Tangaroa ā-mua", CL115<25,"Tangaroa ā-roto", CL115<26,"Tangaroa ata kiokio", CL115<27,"Ōtāne", CL115<28,"Ōrongonui", CL115<29,"Maurea", CL115<30,"Mutuwhenua" ) -> Tamatea-kai-ariki | CN115: =LookupTimezoneOffset(A115) -> 12
A116: 2026-04-25 | B116: 25 o | C116: 26 o | D116: =LOOKUP(VALUE(TEXT(A116,"M")),{1,2,3,4,5,6,7,8,9,10,11,12},{"Kohitātea","Hui‑tanguru","Poutū‑te‑rangi","Paengawhāwhā","Haratua","Pipiri","Hōngongoi","Here‑turi‑kōkā","Mahuru","Whiringa‑ā‑nuku","Whiringa‑ā‑rangi","Hakihea"}) -> Paengawhāwhā | E116: Paengawhāwhā | F116: 2026 | G116: 2026 | H116: =LOOKUP(WEEKDAY(A116),{1,2,3,4,5,6,7},{"Rātapu","Rāhina","Rātū","Rāapa","Rāpare","Rāmere","Rāhoroi ","Rātapu"}) -> Rāhoroi | I116: Rātapu | J116: 2026-04-01 | M116: 1 | N116: 2 | O116: 3 | P116: 4 | Q116: 5 | R116: 6 | S116: 7 | T116: 8 | U116: 9 | V116: 10 | W116: 11 | X116: 12 | Y116: 13 | Z116: 14 | AA116: 15 | AB116: 16 | AC116: 17 | AD116: 18 | AE116: 19 | AF116: 20 | AG116: 21 | AH116: 22 | AI116: 23 | AJ116: 24 | AK116: 25 | AL116: 26 | AM116: =IF(ISERROR(DATEVALUE(AL116+1 & " "&TEXT($A116,"Mmmm") & " " & $F116))," ",AL116+1) -> 27 | AN116: 28 | AO116: 29 | AP116: 30 | AV116: =LOOKUP(VALUE(TEXT(AW116,"M")),{1,2,3,4,5,6,7,8,9,10,11,12},{"Kohitātea","Hui‑tanguru","Poutū‑te‑rangi","Paengawhāwhā","Haratua","Pipiri","Hōngongoi","Here‑turi‑kōkā","Mahuru","Whiringa‑ā‑nuku","Whiringa‑ā‑rangi","Hakihea"}) -> Haratua | AW116: 46143 | BB116: 1 | BC116: 2 | BD116: 3 | BE116: 4 | BF116: 5 | BG116: 6 | BH116: 7 | BI116: 8 | BJ116: 9 | BK116: 10 | BL116: 11 | BM116: 12 | BN116: 13 | BO116: 14 | BP116: 15 | BQ116: 16 | BR116: 17 | BS116: 18 | BT116: 19 | BU116: 20 | BV116: 21 | BW116: 22 | BX116: 23 | BY116: 24 | BZ116: =IF(ISERROR(DATEVALUE(BY116+1 & " "&TEXT($AW116,"Mmmm") & " " & $F116)),"∙",BY116+1) -> 25 | CA116: 26 | CB116: 27 | CC116: 28 | CD116: 29 | CE116: 30 | CF116: 31 | CG116: ∙ | CH116: ∙ | CI116: =SunsetTime(A116, -41.2865, 174.7762, 13) -> 2026-04-24T17:38:27.313 | CJ116: =ExcelToJD(CI116-CN116/24) -> 2461154.735 | CK116: =NewMoonPrevious(CI116 - CN116/24) -> 2461147.995 | CL116: 6.739932509 | CM116: =_xlfn.IFS( CL116<1,"Whiro", CL116<2,"Tirea", CL116<3,"Ohata", CL116<4,"Ōuenuku", CL116<5,"Okoro", CL116<6,"Tamatea-kai-ariki", CL116<7,"Tamatea-wananga", CL116<8,"Tamatea-ā-āio", CL116<9,"Tamatea-whakapau", CL116<10,"Huna", CL116<11,"Airoa", CL116<12,"Hotu", CL116<13,"Māwharu", CL116<14,"Atua whakahaehae", CL116<15,"Ōhua", CL116<16,"Ōturu", CL116<17,"Rākaunui", CL116<18,"Rākaumatohi", CL116<19,"Takiraua", CL116<20,"Oike", CL116<21,"Korekore", CL116<22,"Korekore tuarua", CL116<23,"Korekore piri ki Tangaroa", CL116<24,"Tangaroa ā-mua", CL116<25,"Tangaroa ā-roto", CL116<26,"Tangaroa ata kiokio", CL116<27,"Ōtāne", CL116<28,"Ōrongonui", CL116<29,"Maurea", CL116<30,"Mutuwhenua" ) -> Tamatea-wananga | CN116: =LookupTimezoneOffset(A116) -> 12
A117: 2026-04-26 | B117: 26 o | C117: 27 o | D117: =LOOKUP(VALUE(TEXT(A117,"M")),{1,2,3,4,5,6,7,8,9,10,11,12},{"Kohitātea","Hui‑tanguru","Poutū‑te‑rangi","Paengawhāwhā","Haratua","Pipiri","Hōngongoi","Here‑turi‑kōkā","Mahuru","Whiringa‑ā‑nuku","Whiringa‑ā‑rangi","Hakihea"}) -> Paengawhāwhā | E117: Paengawhāwhā | F117: 2026 | G117: 2026 | H117: =LOOKUP(WEEKDAY(A117),{1,2,3,4,5,6,7},{"Rātapu","Rāhina","Rātū","Rāapa","Rāpare","Rāmere","Rāhoroi ","Rātapu"}) -> Rātapu | I117: Rāhina | J117: 2026-04-01 | M117: 1 | N117: 2 | O117: 3 | P117: 4 | Q117: 5 | R117: 6 | S117: 7 | T117: 8 | U117: 9 | V117: 10 | W117: 11 | X117: 12 | Y117: 13 | Z117: 14 | AA117: 15 | AB117: 16 | AC117: 17 | AD117: 18 | AE117: 19 | AF117: 20 | AG117: 21 | AH117: 22 | AI117: 23 | AJ117: 24 | AK117: 25 | AL117: 26 | AM117: =IF(ISERROR(DATEVALUE(AL117+1 & " "&TEXT($A117,"Mmmm") & " " & $F117))," ",AL117+1) -> 27 | AN117: 28 | AO117: 29 | AP117: 30 | AV117: =LOOKUP(VALUE(TEXT(AW117,"M")),{1,2,3,4,5,6,7,8,9,10,11,12},{"Kohitātea","Hui‑tanguru","Poutū‑te‑rangi","Paengawhāwhā","Haratua","Pipiri","Hōngongoi","Here‑turi‑kōkā","Mahuru","Whiringa‑ā‑nuku","Whiringa‑ā‑rangi","Hakihea"}) -> Haratua | AW117: 46143 | BB117: 1 | BC117: 2 | BD117: 3 | BE117: 4 | BF117: 5 | BG117: 6 | BH117: 7 | BI117: 8 | BJ117: 9 | BK117: 10 | BL117: 11 | BM117: 12 | BN117: 13 | BO117: 14 | BP117: 15 | BQ117: 16 | BR117: 17 | BS117: 18 | BT117: 19 | BU117: 20 | BV117: 21 | BW117: 22 | BX117: 23 | BY117: 24 | BZ117: =IF(ISERROR(DATEVALUE(BY117+1 & " "&TEXT($AW117,"Mmmm") & " " & $F117)),"∙",BY117+1) -> 25 | CA117: 26 | CB117: 27 | CC117: 28 | CD117: 29 | CE117: 30 | CF117: 31 | CG117: ∙ | CH117: ∙ | CI117: =SunsetTime(A117, -41.2865, 174.7762, 13) -> 2026-04-25T17:37:01.576 | CJ117: =ExcelToJD(CI117-CN117/24) -> 2461155.734 | CK117: =NewMoonPrevious(CI117 - CN117/24) -> 2461147.995 | CL117: 7.738940185 | CM117: =_xlfn.IFS( CL117<1,"Whiro", CL117<2,"Tirea", CL117<3,"Ohata", CL117<4,"Ōuenuku", CL117<5,"Okoro", CL117<6,"Tamatea-kai-ariki", CL117<7,"Tamatea-wananga", CL117<8,"Tamatea-ā-āio", CL117<9,"Tamatea-whakapau", CL117<10,"Huna", CL117<11,"Airoa", CL117<12,"Hotu", CL117<13,"Māwharu", CL117<14,"Atua whakahaehae", CL117<15,"Ōhua", CL117<16,"Ōturu", CL117<17,"Rākaunui", CL117<18,"Rākaumatohi", CL117<19,"Takiraua", CL117<20,"Oike", CL117<21,"Korekore", CL117<22,"Korekore tuarua", CL117<23,"Korekore piri ki Tangaroa", CL117<24,"Tangaroa ā-mua", CL117<25,"Tangaroa ā-roto", CL117<26,"Tangaroa ata kiokio", CL117<27,"Ōtāne", CL117<28,"Ōrongonui", CL117<29,"Maurea", CL117<30,"Mutuwhenua" ) -> Tamatea-ā-āio | CN117: =LookupTimezoneOffset(A117) -> 12
A118: 2026-04-27 | B118: 27 o | C118: 28 o | D118: =LOOKUP(VALUE(TEXT(A118,"M")),{1,2,3,4,5,6,7,8,9,10,11,12},{"Kohitātea","Hui‑tanguru","Poutū‑te‑rangi","Paengawhāwhā","Haratua","Pipiri","Hōngongoi","Here‑turi‑kōkā","Mahuru","Whiringa‑ā‑nuku","Whiringa‑ā‑rangi","Hakihea"}) -> Paengawhāwhā | E118: Paengawhāwhā | F118: 2026 | G118: 2026 | H118: =LOOKUP(WEEKDAY(A118),{1,2,3,4,5,6,7},{"Rātapu","Rāhina","Rātū","Rāapa","Rāpare","Rāmere","Rāhoroi ","Rātapu"}) -> Rāhina | I118: Rātū | J118: 2026-04-01 | M118: 1 | N118: 2 | O118: 3 | P118: 4 | Q118: 5 | R118: 6 | S118: 7 | T118: 8 | U118: 9 | V118: 10 | W118: 11 | X118: 12 | Y118: 13 | Z118: 14 | AA118: 15 | AB118: 16 | AC118: 17 | AD118: 18 | AE118: 19 | AF118: 20 | AG118: 21 | AH118: 22 | AI118: 23 | AJ118: 24 | AK118: 25 | AL118: 26 | AM118: =IF(ISERROR(DATEVALUE(AL118+1 & " "&TEXT($A118,"Mmmm") & " " & $F118))," ",AL118+1) -> 27 | AN118: 28 | AO118: 29 | AP118: 30 | AV118: =LOOKUP(VALUE(TEXT(AW118,"M")),{1,2,3,4,5,6,7,8,9,10,11,12},{"Kohitātea","Hui‑tanguru","Poutū‑te‑rangi","Paengawhāwhā","Haratua","Pipiri","Hōngongoi","Here‑turi‑kōkā","Mahuru","Whiringa‑ā‑nuku","Whiringa‑ā‑rangi","Hakihea"}) -> Haratua | AW118: 46143 | BB118: 1 | BC118: 2 | BD118: 3 | BE118: 4 | BF118: 5 | BG118: 6 | BH118: 7 | BI118: 8 | BJ118: 9 | BK118: 10 | BL118: 11 | BM118: 12 | BN118: 13 | BO118: 14 | BP118: 15 | BQ118: 16 | BR118: 17 | BS118: 18 | BT118: 19 | BU118: 20 | BV118: 21 | BW118: 22 | BX118: 23 | BY118: 24 | BZ118: =IF(ISERROR(DATEVALUE(BY118+1 & " "&TEXT($AW118,"Mmmm") & " " & $F118)),"∙",BY118+1) -> 25 | CA118: 26 | CB118: 27 | CC118: 28 | CD118: 29 | CE118: 30 | CF118: 31 | CG118: ∙ | CH118: ∙ | CI118: =SunsetTime(A118, -41.2865, 174.7762, 13) -> 2026-04-26T17:35:36.933 | CJ118: =ExcelToJD(CI118-CN118/24) -> 2461156.733 | CK118: =NewMoonPrevious(CI118 - CN118/24) -> 2461147.995 | CL118: 8.737960526 | CM118: =_xlfn.IFS( CL118<1,"Whiro", CL118<2,"Tirea", CL118<3,"Ohata", CL118<4,"Ōuenuku", CL118<5,"Okoro", CL118<6,"Tamatea-kai-ariki", CL118<7,"Tamatea-wananga", CL118<8,"Tamatea-ā-āio", CL118<9,"Tamatea-whakapau", CL118<10,"Huna", CL118<11,"Airoa", CL118<12,"Hotu", CL118<13,"Māwharu", CL118<14,"Atua whakahaehae", CL118<15,"Ōhua", CL118<16,"Ōturu", CL118<17,"Rākaunui", CL118<18,"Rākaumatohi", CL118<19,"Takiraua", CL118<20,"Oike", CL118<21,"Korekore", CL118<22,"Korekore tuarua", CL118<23,"Korekore piri ki Tangaroa", CL118<24,"Tangaroa ā-mua", CL118<25,"Tangaroa ā-roto", CL118<26,"Tangaroa ata kiokio", CL118<27,"Ōtāne", CL118<28,"Ōrongonui", CL118<29,"Maurea", CL118<30,"Mutuwhenua" ) -> Tamatea-whakapau | CN118: =LookupTimezoneOffset(A118) -> 12
